Workbook

Sheet Calendrier
A1: 2023 | E1: N° ident. | F1: T506489 | L1: année | N1: =IF(ISERROR(VALUE("29/02/"&VLOOKUP("Février",Fériés!$I$1:$J$12,2,FALSE))),365,366) -> 365 | P1: jours | S1: contrôle | U1: =SUM(AH11:AP11) -> 365 | AS1: Sa | AT1: Samedi
E2: nom | F2: Isq | L2: =$AS$3 -> F | N2: =COUNTIF($B$12:$AF$59,L2)/2 -> 12 | P2: férié | AS2: Di | AT2: Dimanche | AW2: =CHAR(189) -> ½
E3: prénom | F3: Philippe | J3: =CHAR(189)&" "&$AS$2 -> ½ Di | L3: =$AS$2 -> Di | N3: =AJ11 -> 50 | P3: dimanche | AS3: F | AT3: Férié | AW3: =CODE("1/2") -> 49
E4: service | F4: Administratif | J4: ½ Sa | L4: =$AS$1 -> Sa | N4: =AI11 -> 51 | P4: samedi | T4: =$AO$11 -> 0 | U4: =$AS$7 -> Ma | AS4: CA | AT4: Congés annuel
J5: ½ CA | L5: =$AS$4 -> CA | N5: =COUNTIF($B$12:$AF$59,L5)-COUNTIF(copie_cal_aou,"CA") -> 25 | P5: =IF($AL$11>$N$5,"nombre de CA dépassé","reste "&25-$N$5) -> reste 0 | AS5: CP | AT5: Chômage partiel
L6: =$AS$5 -> CP | N6: =AM11 -> 0 | AS6: RTT | AT6: Recupération temps travail
J7: =CHAR(189)&" "&$AS$11 -> ½ T | L7: =$AS$11 -> T | N7: =$AT$11-(AM11+AP11+V4) -> 218 | P7: =IF(SUM($AH$15:$AH$59)>$N$7,"trop de jour travaillés",IF((SUM($AH$15:$AH$59)+AM11)=$N$7,"Nb jour travailler bon","reste à travailler")) -> Nb jour travailler bon | V7: =IF($AH$11+$T$4<=$N$7,$N$7-(AH11+T4),$N$7-AH11) -> 0 | AS7: Ma | AT7: Maladie
B8: HORAIRE 2 X 4 | J8: ½ RTT | L8: =$AS$6 -> RTT | N8: =N1-(N2+N3+N4+N5+AM11+AT11+N9) -> 9 | P8: =IF($AN$11>$N$8,"Nb de RTT dépassé","reste "&+$N$8-$AN$11) -> reste 0 | AH8: =SUM(AH11:AP11) -> 365 | AS8: CS | AT8: Congés suplémentaires (ancienneté)
J9: ½ CS | L9: =$AS$8 -> CS | P9: =IF($AP$11>$N$9,"Nb CS dépassé","reste "&+$N$9-$AP$11&" CS ") -> reste 0 CS | AH9: =CHAR(189)&$AS$11 -> ½T | AI9: =CHAR(189)&" "&$AS$1 -> ½ Sa | AJ9: =CHAR(189)&" "&$AS$2 -> ½ Di | AL9: =CHAR(189)&" "&$AS$4 -> ½ CA | AN9: =CHAR(189)&" "&$AS$6 -> ½ RTT | AP9: =CHAR(189)&" "&$AS$8 -> ½ CS | AS9: H | AT9: 8 | AU9: horaire journalier
A10: =$AT$11&" Jours de travail d'une durée de "&AT9&" heures soit "&AT11*AT9&" heures / an y compris les 7 Heures de la journée de solidaritée" -> 218 Jours de travail d'une durée de 8 heures soit 1744 heures / an y compris les 7 Heures de la journée de solidaritée | AH10: =$AS$11 -> T | AI10: =$AS$1 -> Sa | AJ10: =$AS$2 -> Di | AK10: =$AS$3 -> F | AL10: =$AS$4 -> CA | AM10: =$AS$5 -> CP | AN10: =$AS$6 -> RTT | AO10: =$AS$7 -> Ma | AP10: =$AS$8 -> CS | AS10: Pause | AT10: 0.75 | AU10: pause mi-journée
B11: 1 | C11: 2 | D11: 3 | E11: 4 | F11: 5 | G11: 6 | H11: 7 | I11: 8 | J11: 9 | K11: 10 | L11: 11 | M11: 12 | N11: 13 | O11: 14 | P11: 15 | Q11: 16 | R11: 17 | S11: 18 | T11: 19 | U11: 20 | V11: 21 | W11: 22 | X11: 23 | Y11: 24 | Z11: 25 | AA11: 26 | AB11: 27 | AC11: 28 | AD11: 29 | AE11: 30 | AF11: 31 | AH11: =SUM(AH15:AH59) -> 218 | AI11: =SUM(AI15:AI59) -> 51 | AJ11: 50 | AK11: 12 | AL11: 25 | AM11: 0 | AN11: 9 | AO11: 0 | AP11: 0 | AS11: T | AT11: 218 | AU11: Nombre de jour dû à l'année
B12: =CHOOSE(WEEKDAY(B13,2),"Lu","Ma","Me","Je","Ve","Sa","Di") -> Di | C12: =CHOOSE(WEEKDAY(C13,2),"Lu","Ma","Me","Je","Ve","Sa","Di") -> Lu | D12: Ma | E12: Me | F12: Je | G12: Ve | H12: Sa | I12: Di | J12: Lu | K12: Ma | L12: Me | M12: Je | N12: Ve | O12: Sa | P12: Di | Q12: Lu | R12: Ma | S12: Me | T12: Je | U12: Ve | V12: Sa | W12: Di | X12: Lu | Y12: Ma | Z12: Me | AA12: Je | AB12: Ve | AC12: Sa | AD12: =IF(AD13=0,0,CHOOSE(WEEKDAY(AD13,2),"Lu","Ma","Me","Je","Ve","Sa","Di")) -> Di | AE12: =IF(AE13=0,0,CHOOSE(WEEKDAY(AE13,2),"Lu","Ma","Me","Je","Ve","Sa","Di")) -> Lu | AF12: =IF(AF13=0,0,CHOOSE(WEEKDAY(AF13,2),"Lu","Ma","Me","Je","Ve","Sa","Di")) -> Ma | AS12: =INDIRECT("Fériés!k"&MATCH(AT12,Fériés!L1:L12,0)) -> 01 | AT12: Janvier | AU12: l'année commence en :
B13: =VALUE("01/"&$AS$12&"/"&AN_1) -> 44927 | C13: =B13+1 -> 44928 | D13: =C13+1 -> 44929 | E13: 44930 | F13: 44931 | G13: 44932 | H13: 44933 | I13: 44934 | J13: 44935 | K13: 44936 | L13: 44937 | M13: 44938 | N13: 44939 | O13: 44940 | P13: 44941 | Q13: 44942 | R13: 44943 | S13: 44944 | T13: 44945 | U13: 44946 | V13: 44947 | W13: 44948 | X13: 44949 | Y13: 44950 | Z13: 44951 | AA13: 44952 | AB13: 44953 | AC13: 44954 | AD13: =IF(MONTH($AC13+1)=MONTH($B13)+1,0,$AC13+1) -> 44955 | AE13: =IF(MONTH(AC13+2)=MONTH(B13)+1,0,AC13+2) -> 44956 | AF13: =IF(MONTH($AC13+3)=MONTH($B13)+1,0,$AC13+3) -> 44957
B14: =IF(AND(ISERROR(VLOOKUP(B13,liste_fériés,1,FALSE)),OR(B12="Sa",B12="Di")),B12,IF(ISERROR(VLOOKUP(B13,liste_fériés,1,FALSE)),"T","F")) -> F | C14: T | D14: T | E14: T | F14: T | G14: T | H14: Sa | I14: Di | J14: T | K14: T | L14: T | M14: T | N14: T | O14: Sa | P14: Di | Q14: T | R14: T | S14: T | T14: T | U14: T | V14: Sa | W14: Di | X14: T | Y14: T | Z14: T | AA14: T | AB14: T | AC14: Sa | AD14: =IF(AD13=0,0,IF(AND(ISERROR(VLOOKUP(AD13,liste_fériés,1,FALSE)),OR(AD12="Sa",AD12="Di")),AD12,IF(ISERROR(VLOOKUP(AD13,liste_fériés,1,FALSE)),"T","F"))) -> Di | AE14: =IF(AE13=0,0,IF(AND(ISERROR(VLOOKUP(AE13,liste_fériés,1,FALSE)),OR(AE12="Sa",AE12="Di")),AE12,IF(ISERROR(VLOOKUP(AE13,liste_fériés,1,FALSE)),"T","F"))) -> T | AF14: =IF(AF13=0,0,IF(AND(ISERROR(VLOOKUP(AF13,liste_fériés,1,FALSE)),OR(AF12="Sa",AF12="Di")),AF12,IF(ISERROR(VLOOKUP(AF13,liste_fériés,1,FALSE)),"T","F"))) -> T
A15: =CHOOSE(MONTH(B13),"JAN","FEV","MAR","AVR","MAI","JUN","JUL","AOU","SEP","OCT","NOV","DEC") -> JAN | B15: F | C15: T | D15: T | E15: T | F15: T | G15: T | H15: Sa | I15: Di | J15: RTT | K15: T | L15: T | M15: T | N15: T | O15: Sa | P15: Di | Q15: T | R15: T | S15: RTT | T15: T | U15: T | V15: Sa | W15: Di | X15: T | Y15: T | Z15: T | AA15: T | AB15: T | AC15: Sa | AD15: Di | AE15: T | AF15: T | AH15: =COUNTIF($B15:$AF15,$AH$10)+COUNTIF($B15:$AF15,$AH$9)*0.5+COUNTIF($B15:$AF15,$AN$9)*0.5++COUNTIF($B15:$AF15,$AP$9)*0.5 -> 20 | AI15: =COUNTIF($B15:$AF15,$AI$10)+((COUNTIF($B12:$AF12,$AI$10)-COUNTIF($B15:$AF15,$AI$10))/2) -> 4 | AJ15: =COUNTIF($B15:$AF15,$AJ$10) -> 4 | AK15: =COUNTIF($B15:$AF15,$AK$10) -> 1 | AL15: =COUNTIF($B15:$AF15,$AL$10) -> 0 | AM15: =COUNTIF($B15:$AF15,$AM$10) -> 0 | AN15: =COUNTIF($B15:$AF15,$AN$10)+COUNTIF($B15:$AF15,$AN$9)*0.5 -> 2 | AO15: =COUNTIF($B15:$AF15,$AO$10) -> 0 | AP15: =COUNTIF($B15:$AF15,$AP$10)+COUNTIF($B15:$AF15,$AP$9)*0.5 -> 0 | AR15: =SUM(AH15:AQ15) -> 31 | AS15: =DAY(EOMONTH(DATE(AN_1,MONTH(B13),1),0)) -> 31
B16: =CHOOSE(WEEKDAY(B17,2),"Lu","Ma","Me","Je","Ve","Sa","Di") -> Me | C16: =CHOOSE(WEEKDAY(C17,2),"Lu","Ma","Me","Je","Ve","Sa","Di") -> Je | D16: Ve | E16: Sa | F16: Di | G16: Lu | H16: Ma | I16: Me | J16: Je | K16: Ve | L16: Sa | M16: Di | N16: Lu | O16: Ma | P16: Me | Q16: Je | R16: Ve | S16: Sa | T16: Di | U16: Lu | V16: Ma | W16: Me | X16: Je | Y16: Ve | Z16: Sa | AA16: Di | AB16: Lu | AC16: Ma | AD16: =IF(AD17=0,0,CHOOSE(WEEKDAY(AD17,2),"Lu","Ma","Me","Je","Ve","Sa","Di")) -> 0 | AE16: =IF(AE17=0,0,CHOOSE(WEEKDAY(AE17,2),"Lu","Ma","Me","Je","Ve","Sa","Di")) -> 0 | AF16: =IF(AF17=0,0,CHOOSE(WEEKDAY(AF17,2),"Lu","Ma","Me","Je","Ve","Sa","Di")) -> 0 | AN16: =COUNTIF($B16:$AF16,$AN$10)+COUNTIF($B16:$AF16,$AN$9)*0.5 -> 0
B17: =VALUE("01/"&INDIRECT("Fériés!h"&COUNTA($A$11:A17)+1,1)&"/"&INDIRECT("Fériés!j"&COUNTA($A$11:A17)+1,1)) -> 44958 | C17: =B17+1 -> 44959 | D17: =C17+1 -> 44960 | E17: 44961 | F17: 44962 | G17: 44963 | H17: 44964 | I17: 44965 | J17: 44966 | K17: 44967 | L17: 44968 | M17: 44969 | N17: 44970 | O17: 44971 | P17: 44972 | Q17: 44973 | R17: 44974 | S17: 44975 | T17: 44976 | U17: 44977 | V17: 44978 | W17: 44979 | X17: 44980 | Y17: 44981 | Z17: 44982 | AA17: 44983 | AB17: 44984 | AC17: =AB17+1 -> 44985 | AD17: =IF(MONTH($AC17+1)=MONTH($B17)+1,0,$AC17+1) -> 0 | AE17: =IF(MONTH(AC17+2)=MONTH(B17)+1,0,AC17+2) -> 0 | AF17: =IF(MONTH($AC17+3)=MONTH($B17)+1,0,$AC17+3) -> 0 | AN17: 0
B18: =IF(AND(ISERROR(VLOOKUP(B17,liste_fériés,1,FALSE)),OR(B16="Sa",B16="Di")),B16,IF(ISERROR(VLOOKUP(B17,liste_fériés,1,FALSE)),"T","F")) -> T | C18: T | D18: T | E18: Sa | F18: Di | G18: T | H18: T | I18: T | J18: T | K18: T | L18: Sa | M18: Di | N18: T | O18: T | P18: T | Q18: T | R18: T | S18: Sa | T18: Di | U18: T | V18: T | W18: T | X18: T | Y18: T | Z18: Sa | AA18: Di | AB18: T | AC18: T | AD18: =IF(AD17=0,0,IF(AND(ISERROR(VLOOKUP(AD17,liste_fériés,1,FALSE)),OR(AD16="Sa",AD16="Di")),AD16,IF(ISERROR(VLOOKUP(AD17,liste_fériés,1,FALSE)),"T","F"))) -> 0 | AE18: =IF(AE17=0,0,IF(AND(ISERROR(VLOOKUP(AE17,liste_fériés,1,FALSE)),OR(AE16="Sa",AE16="Di")),AE16,IF(ISERROR(VLOOKUP(AE17,liste_fériés,1,FALSE)),"T","F"))) -> 0 | AF18: =IF(AF17=0,0,IF(AND(ISERROR(VLOOKUP(AF17,liste_fériés,1,FALSE)),OR(AF16="Sa",AF16="Di")),AF16,IF(ISERROR(VLOOKUP(AF17,liste_fériés,1,FALSE)),"T","F"))) -> 0 | AN18: 0
A19: =CHOOSE(MONTH(B17),"JAN","FEV","MAR","AVR","MAI","JUN","JUL","AOU","SEP","OCT","NOV","DEC") -> FEV | B19: T | C19: T | D19: T | E19: Sa | F19: Di | G19: T | H19: RTT | I19: T | J19: T | K19: T | L19: Sa | M19: Di | N19: T | O19: T | P19: T | Q19: T | R19: T | S19: Sa | T19: Di | U19: T | V19: T | W19: RTT | X19: T | Y19: T | Z19: Sa | AA19: Di | AB19: T | AC19: T | AH19: =COUNTIF($B19:$AF19,$AH$10)+COUNTIF($B19:$AF19,$AH$9)*0.5+COUNTIF($B19:$AF19,$AN$9)*0.5++COUNTIF($B19:$AF19,$AP$9)*0.5 -> 18 | AI19: =COUNTIF($B19:$AF19,$AI$10) -> 4 | AJ19: =COUNTIF($B19:$AF19,$AJ$10) -> 4 | AK19: =COUNTIF($B19:$AF19,$AK$10) -> 0 | AL19: =COUNTIF($B19:$AF19,$AL$10) -> 0 | AM19: =COUNTIF($B19:$AF19,$AM$10) -> 0 | AN19: 2 | AO19: =COUNTIF($B19:$AF19,$AO$10) -> 0 | AP19: =COUNTIF($B19:$AF19,$AP$10)+COUNTIF($B19:$AF19,$AP$9)*0.5 -> 0 | AR19: 28 | AS19: =DAY(EOMONTH(DATE(AN_1,MONTH(B17),1),0)) -> 28
B20: =CHOOSE(WEEKDAY(B21,2),"Lu","Ma","Me","Je","Ve","Sa","Di") -> Me | C20: =CHOOSE(WEEKDAY(C21,2),"Lu","Ma","Me","Je","Ve","Sa","Di") -> Je | D20: Ve | E20: Sa | F20: Di | G20: Lu | H20: Ma | I20: Me | J20: Je | K20: Ve | L20: Sa | M20: Di | N20: Lu | O20: Ma | P20: Me | Q20: Je | R20: Ve | S20: Sa | T20: Di | U20: Lu | V20: Ma | W20: Me | X20: Je | Y20: Ve | Z20: Sa | AA20: Di | AB20: Lu | AC20: Ma | AD20: =IF(AD21=0,0,CHOOSE(WEEKDAY(AD21,2),"Lu","Ma","Me","Je","Ve","Sa","Di")) -> Me | AE20: =IF(AE21=0,0,CHOOSE(WEEKDAY(AE21,2),"Lu","Ma","Me","Je","Ve","Sa","Di")) -> Je | AF20: =IF(AF21=0,0,CHOOSE(WEEKDAY(AF21,2),"Lu","Ma","Me","Je","Ve","Sa","Di")) -> Ve | AN20: 0
B21: =VALUE("01/"&INDIRECT("Fériés!h"&COUNTA($A$11:A21)+1,1)&"/"&INDIRECT("Fériés!j"&COUNTA($A$11:A21)+1,1)) -> 44986 | C21: =B21+1 -> 44987 | D21: =C21+1 -> 44988 | E21: 44989 | F21: 44990 | G21: 44991 | H21: 44992 | I21: 44993 | J21: 44994 | K21: 44995 | L21: 44996 | M21: 44997 | N21: 44998 | O21: 44999 | P21: 45000 | Q21: 45001 | R21: 45002 | S21: 45003 | T21: 45004 | U21: 45005 | V21: 45006 | W21: 45007 | X21: 45008 | Y21: 45009 | Z21: 45010 | AA21: 45011 | AB21: 45012 | AC21: 45013 | AD21: =IF(MONTH($AC21+1)=MONTH($B21)+1,0,$AC21+1) -> 45014 | AE21: =IF(MONTH(AC21+2)=MONTH(B21)+1,0,AC21+2) -> 45015 | AF21: =IF(MONTH($AC21+3)=MONTH($B21)+1,0,$AC21+3) -> 45016 | AN21: 0
B22: =IF(AND(ISERROR(VLOOKUP(B21,liste_fériés,1,FALSE)),OR(B20="Sa",B20="Di")),B20,IF(ISERROR(VLOOKUP(B21,liste_fériés,1,FALSE)),"T","F")) -> T | C22: T | D22: T | E22: Sa | F22: Di | G22: T | H22: T | I22: T | J22: T | K22: T | L22: Sa | M22: Di | N22: T | O22: T | P22: T | Q22: T | R22: T | S22: Sa | T22: Di | U22: T | V22: T | W22: T | X22: T | Y22: T | Z22: Sa | AA22: Di | AB22: T | AC22: T | AD22: =IF(AD21=0,0,IF(AND(ISERROR(VLOOKUP(AD21,liste_fériés,1,FALSE)),OR(AD20="Sa",AD20="Di")),AD20,IF(ISERROR(VLOOKUP(AD21,liste_fériés,1,FALSE)),"T","F"))) -> T | AE22: =IF(AE21=0,0,IF(AND(ISERROR(VLOOKUP(AE21,liste_fériés,1,FALSE)),OR(AE20="Sa",AE20="Di")),AE20,IF(ISERROR(VLOOKUP(AE21,liste_fériés,1,FALSE)),"T","F"))) -> T | AF22: =IF(AF21=0,0,IF(AND(ISERROR(VLOOKUP(AF21,liste_fériés,1,FALSE)),OR(AF20="Sa",AF20="Di")),AF20,IF(ISERROR(VLOOKUP(AF21,liste_fériés,1,FALSE)),"T","F"))) -> T | AN22: 0
A23: =CHOOSE(MONTH(B21),"JAN","FEV","MAR","AVR","MAI","JUN","JUL","AOU","SEP","OCT","NOV","DEC") -> MAR | B23: T | C23: T | D23: T | E23: Sa | F23: Di | G23: T | H23: T | I23: T | J23: T | K23: T | L23: Sa | M23: Di | N23: T | O23: T | P23: T | Q23: T | R23: T | S23: Sa | T23: Di | U23: T | V23: T | W23: T | X23: T | Y23: T | Z23: Sa | AA23: Di | AB23: T | AC23: T | AD23: T | AE23: T | AF23: T | AH23: =COUNTIF($B23:$AF23,$AH$10)+COUNTIF($B23:$AF23,$AH$9)*0.5+COUNTIF($B23:$AF23,$AN$9)*0.5++COUNTIF($B23:$AF23,$AP$9)*0.5 -> 23 | AI23: =COUNTIF($B23:$AF23,$AI$10) -> 4 | AJ23: =COUNTIF($B23:$AF23,$AJ$10) -> 4 | AK23: 0 | AL23: 0 | AM23: 0 | AN23: 0 | AO23: 0 | AP23: 0 | AR23: 31 | AS23: =DAY(EOMONTH(DATE(AN_1,MONTH(B21),1),0)) -> 31
B24: =CHOOSE(WEEKDAY(B25,2),"Lu","Ma","Me","Je","Ve","Sa","Di") -> Sa | C24: =CHOOSE(WEEKDAY(C25,2),"Lu","Ma","Me","Je","Ve","Sa","Di") -> Di | D24: Lu | E24: Ma | F24: Me | G24: Je | H24: Ve | I24: Sa | J24: Di | K24: Lu | L24: Ma | M24: Me | N24: Je | O24: Ve | P24: Sa | Q24: Di | R24: Lu | S24: Ma | T24: Me | U24: Je | V24: Ve | W24: Sa | X24: Di | Y24: Lu | Z24: Ma | AA24: Me | AB24: Je | AC24: Ve | AD24: =IF(AD25=0,0,CHOOSE(WEEKDAY(AD25,2),"Lu","Ma","Me","Je","Ve","Sa","Di")) -> Sa | AE24: =IF(AE25=0,0,CHOOSE(WEEKDAY(AE25,2),"Lu","Ma","Me","Je","Ve","Sa","Di")) -> Di | AF24: =IF(AF25=0,0,CHOOSE(WEEKDAY(AF25,2),"Lu","Ma","Me","Je","Ve","Sa","Di")) -> 0 | AN24: 0
B25: =VALUE("01/"&INDIRECT("Fériés!h"&COUNTA($A$11:A25)+1,1)&"/"&INDIRECT("Fériés!j"&COUNTA($A$11:A25)+1,1)) -> 45017 | C25: =B25+1 -> 45018 | D25: =C25+1 -> 45019 | E25: 45020 | F25: 45021 | G25: 45022 | H25: 45023 | I25: 45024 | J25: 45025 | K25: 45026 | L25: 45027 | M25: 45028 | N25: 45029 | O25: 45030 | P25: 45031 | Q25: 45032 | R25: 45033 | S25: 45034 | T25: 45035 | U25: 45036 | V25: 45037 | W25: 45038 | X25: 45039 | Y25: 45040 | Z25: 45041 | AA25: 45042 | AB25: 45043 | AC25: 45044 | AD25: =IF(MONTH($AC25+1)=MONTH($B25)+1,0,$AC25+1) -> 45045 | AE25: =IF(MONTH(AC25+2)=MONTH(B25)+1,0,AC25+2) -> 45046 | AF25: =IF(MONTH($AC25+3)=MONTH($B25)+1,0,$AC25+3) -> 0 | AN25: 0
B26: =IF(AND(ISERROR(VLOOKUP(B25,liste_fériés,1,FALSE)),OR(B24="Sa",B24="Di")),B24,IF(ISERROR(VLOOKUP(B25,liste_fériés,1,FALSE)),"T","F")) -> Sa | C26: Di | D26: T | E26: T | F26: T | G26: T | H26: T | I26: Sa | J26: F | K26: F | L26: T | M26: T | N26: T | O26: T | P26: Sa | Q26: Di | R26: T | S26: T | T26: T | U26: T | V26: T | W26: Sa | X26: Di | Y26: T | Z26: T | AA26: T | AB26: T | AC26: T | AD26: =IF(AD25=0,0,IF(AND(ISERROR(VLOOKUP(AD25,liste_fériés,1,FALSE)),OR(AD24="Sa",AD24="Di")),AD24,IF(ISERROR(VLOOKUP(AD25,liste_fériés,1,FALSE)),"T","F"))) -> Sa | AE26: =IF(AE25=0,0,IF(AND(ISERROR(VLOOKUP(AE25,liste_fériés,1,FALSE)),OR(AE24="Sa",AE24="Di")),AE24,IF(ISERROR(VLOOKUP(AE25,liste_fériés,1,FALSE)),"T","F"))) -> Di | AF26: =IF(AF25=0,0,IF(AND(ISERROR(VLOOKUP(AF25,liste_fériés,1,FALSE)),OR(AF24="Sa",AF24="Di")),AF24,IF(ISERROR(VLOOKUP(AF25,liste_fériés,1,FALSE)),"T","F"))) -> 0 | AN26: 0
A27: =CHOOSE(MONTH(B25),"JAN","FEV","MAR","AVR","MAI","JUN","JUL","AOU","SEP","OCT","NOV","DEC") -> AVR | B27: Sa | C27: Di | D27: T | E27: T | F27: T | G27: T | H27: T | I27: Sa | J27: F | K27: F | L27: T | M27: T | N27: RTT | O27: T | P27: Sa | Q27: Di | R27: T | S27: T | T27: T | U27: T | V27: T | W27: Sa | X27: Di | Y27: T | Z27: T | AA27: T | AB27: T | AC27: T | AD27: Sa | AE27: Di | AH27: =COUNTIF($B27:$AF27,$AH$10)+COUNTIF($B27:$AF27,$AH$9)*0.5+COUNTIF($B27:$AF27,$AN$9)*0.5++COUNTIF($B27:$AF27,$AP$9)*0.5 -> 18 | AI27: =COUNTIF($B27:$AF27,$AI$10) -> 5 | AJ27: =COUNTIF($B27:$AF27,$AJ$10) -> 4 | AK27: 2 | AL27: 0 | AM27: 0 | AN27: 1 | AO27: 0 | AP27: 0 | AR27: 30 | AS27: =DAY(EOMONTH(DATE(AN_1,MONTH(B25),1),0)) -> 30
B28: =CHOOSE(WEEKDAY(B29,2),"Lu","Ma","Me","Je","Ve","Sa","Di") -> Lu | C28: =CHOOSE(WEEKDAY(C29,2),"Lu","Ma","Me","Je","Ve","Sa","Di") -> Ma | D28: Me | E28: Je | F28: Ve | G28: Sa | H28: Di | I28: Lu | J28: Ma | K28: Me | L28: Je | M28: Ve | N28: Sa | O28: Di | P28: Lu | Q28: Ma | R28: Me | S28: Je | T28: Ve | U28: Sa | V28: Di | W28: Lu | X28: Ma | Y28: Me | Z28: Je | AA28: Ve | AB28: Sa | AC28: Di | AD28: =IF(AD29=0,0,CHOOSE(WEEKDAY(AD29,2),"Lu","Ma","Me","Je","Ve","Sa","Di")) -> Lu | AE28: =IF(AE29=0,0,CHOOSE(WEEKDAY(AE29,2),"Lu","Ma","Me","Je","Ve","Sa","Di")) -> Ma | AF28: =IF(AF29=0,0,CHOOSE(WEEKDAY(AF29,2),"Lu","Ma","Me","Je","Ve","Sa","Di")) -> Me | AN28: 0
B29: =VALUE("01/"&INDIRECT("Fériés!h"&COUNTA($A$11:A29)+1,1)&"/"&INDIRECT("Fériés!j"&COUNTA($A$11:A29)+1,1)) -> 45047 | C29: =B29+1 -> 45048 | D29: =C29+1 -> 45049 | E29: 45050 | F29: 45051 | G29: 45052 | H29: 45053 | I29: 45054 | J29: 45055 | K29: 45056 | L29: 45057 | M29: 45058 | N29: 45059 | O29: 45060 | P29: 45061 | Q29: 45062 | R29: 45063 | S29: 45064 | T29: 45065 | U29: 45066 | V29: 45067 | W29: 45068 | X29: 45069 | Y29: 45070 | Z29: 45071 | AA29: 45072 | AB29: 45073 | AC29: 45074 | AD29: =IF(MONTH($AC29+1)=MONTH($B29)+1,0,$AC29+1) -> 45075 | AE29: =IF(MONTH(AC29+2)=MONTH(B29)+1,0,AC29+2) -> 45076 | AF29: =IF(MONTH($AC29+3)=MONTH($B29)+1,0,$AC29+3) -> 45077 | AN29: 0
B30: =IF(AND(ISERROR(VLOOKUP(B29,liste_fériés,1,FALSE)),OR(B28="Sa",B28="Di")),B28,IF(ISERROR(VLOOKUP(B29,liste_fériés,1,FALSE)),"T","F")) -> F | C30: T | D30: T | E30: T | F30: T | G30: Sa | H30: Di | I30: F | J30: T | K30: T | L30: T | M30: T | N30: Sa | O30: Di | P30: T | Q30: T | R30: T | S30: F | T30: T | U30: Sa | V30: Di | W30: T | X30: T | Y30: T | Z30: T | AA30: T | AB30: Sa | AC30: F | AD30: =IF(AD29=0,0,IF(AND(ISERROR(VLOOKUP(AD29,liste_fériés,1,FALSE)),OR(AD28="Sa",AD28="Di")),AD28,IF(ISERROR(VLOOKUP(AD29,liste_fériés,1,FALSE)),"T","F"))) -> T | AE30: =IF(AE29=0,0,IF(AND(ISERROR(VLOOKUP(AE29,liste_fériés,1,FALSE)),OR(AE28="Sa",AE28="Di")),AE28,IF(ISERROR(VLOOKUP(AE29,liste_fériés,1,FALSE)),"T","F"))) -> T | AF30: =IF(AF29=0,0,IF(AND(ISERROR(VLOOKUP(AF29,liste_fériés,1,FALSE)),OR(AF28="Sa",AF28="Di")),AF28,IF(ISERROR(VLOOKUP(AF29,liste_fériés,1,FALSE)),"T","F"))) -> T | AN30: 0
A31: =CHOOSE(MONTH(B29),"JAN","FEV","MAR","AVR","MAI","JUN","JUL","AOU","SEP","OCT","NOV","DEC") -> MAI | B31: F | C31: T | D31: T | E31: T | F31: T | G31: Sa | H31: Di | I31: F | J31: T | K31: T | L31: T | M31: T | N31: Sa | O31: Di | P31: T | Q31: T | R31: T | S31: F | T31: CA | U31: Sa | V31: Di | W31: T | X31: T | Y31: T | Z31: T | AA31: T | AB31: Sa | AC31: F | AD31: T | AE31: T | AF31: T | AH31: =COUNTIF($B31:$AF31,$AH$10)+COUNTIF($B31:$AF31,$AH$9)*0.5+COUNTIF($B31:$AF31,$AN$9)*0.5++COUNTIF($B31:$AF31,$AP$9)*0.5 -> 19 | AI31: =COUNTIF($B31:$AF31,$AI$10) -> 4 | AJ31: =COUNTIF($B31:$AF31,$AJ$10) -> 3 | AK31: 4 | AL31: 1 | AM31: 0 | AN31: 0 | AO31: 0 | AP31: 0 | AR31: 31 | AS31: =DAY(EOMONTH(DATE(AN_1,MONTH(B29),1),0)) -> 31
B32: =CHOOSE(WEEKDAY(B33,2),"Lu","Ma","Me","Je","Ve","Sa","Di") -> Je | C32: =CHOOSE(WEEKDAY(C33,2),"Lu","Ma","Me","Je","Ve","Sa","Di") -> Ve | D32: Sa | E32: Di | F32: Lu | G32: Ma | H32: Me | I32: Je | J32: Ve | K32: Sa | L32: Di | M32: Lu | N32: Ma | O32: Me | P32: Je | Q32: Ve | R32: Sa | S32: Di | T32: Lu | U32: Ma | V32: Me | W32: Je | X32: Ve | Y32: Sa | Z32: Di | AA32: Lu | AB32: Ma | AC32: Me | AD32: =IF(AD33=0,0,CHOOSE(WEEKDAY(AD33,2),"Lu","Ma","Me","Je","Ve","Sa","Di")) -> Je | AE32: =IF(AE33=0,0,CHOOSE(WEEKDAY(AE33,2),"Lu","Ma","Me","Je","Ve","Sa","Di")) -> Ve | AF32: =IF(AF33=0,0,CHOOSE(WEEKDAY(AF33,2),"Lu","Ma","Me","Je","Ve","Sa","Di")) -> 0 | AN32: 0
B33: =VALUE("01/"&INDIRECT("Fériés!h"&COUNTA($A$11:A33)+1,1)&"/"&INDIRECT("Fériés!j"&COUNTA($A$11:A33)+1,1)) -> 45078 | C33: =B33+1 -> 45079 | D33: =C33+1 -> 45080 | E33: 45081 | F33: 45082 | G33: 45083 | H33: 45084 | I33: 45085 | J33: 45086 | K33: 45087 | L33: 45088 | M33: 45089 | N33: 45090 | O33: 45091 | P33: 45092 | Q33: 45093 | R33: 45094 | S33: 45095 | T33: 45096 | U33: 45097 | V33: 45098 | W33: 45099 | X33: 45100 | Y33: 45101 | Z33: 45102 | AA33: 45103 | AB33: 45104 | AC33: 45105 | AD33: =IF(MONTH($AC33+1)=MONTH($B33)+1,0,$AC33+1) -> 45106 | AE33: =IF(MONTH(AC33+2)=MONTH(B33)+1,0,AC33+2) -> 45107 | AF33: =IF(MONTH($AC33+3)=MONTH($B33)+1,0,$AC33+3) -> 0 | AN33: 0
B34: =IF(AND(ISERROR(VLOOKUP(B33,liste_fériés,1,FALSE)),OR(B32="Sa",B32="Di")),B32,IF(ISERROR(VLOOKUP(B33,liste_fériés,1,FALSE)),"T","F")) -> T | C34: T | D34: Sa | E34: Di | F34: T | G34: T | H34: T | I34: T | J34: T | K34: Sa | L34: Di | M34: T | N34: T | O34: T | P34: T | Q34: T | R34: Sa | S34: Di | T34: T | U34: T | V34: T | W34: T | X34: T | Y34: Sa | Z34: Di | AA34: T | AB34: T | AC34: T | AD34: =IF(AD33=0,0,IF(AND(ISERROR(VLOOKUP(AD33,liste_fériés,1,FALSE)),OR(AD32="Sa",AD32="Di")),AD32,IF(ISERROR(VLOOKUP(AD33,liste_fériés,1,FALSE)),"T","F"))) -> T | AE34: =IF(AE33=0,0,IF(AND(ISERROR(VLOOKUP(AE33,liste_fériés,1,FALSE)),OR(AE32="Sa",AE32="Di")),AE32,IF(ISERROR(VLOOKUP(AE33,liste_fériés,1,FALSE)),"T","F"))) -> T | AF34: =IF(AF33=0,0,IF(AND(ISERROR(VLOOKUP(AF33,liste_fériés,1,FALSE)),OR(AF32="Sa",AF32="Di")),AF32,IF(ISERROR(VLOOKUP(AF33,liste_fériés,1,FALSE)),"T","F"))) -> 0 | AN34: 0
A35: =CHOOSE(MONTH(B33),"JAN","FEV","MAR","AVR","MAI","JUN","JUL","AOU","SEP","OCT","NOV","DEC") -> JUN | B35: T | C35: T | D35: Sa | E35: Di | F35: T | G35: T | H35: T | I35: T | J35: T | K35: Sa | L35: Di | M35: T | N35: T | O35: T | P35: T | Q35: T | R35: Sa | S35: Di | T35: T | U35: T | V35: T | W35: T | X35: T | Y35: Sa | Z35: Di | AA35: T | AB35: T | AC35: T | AD35: T | AE35: T | AH35: =COUNTIF($B35:$AF35,$AH$10)+COUNTIF($B35:$AF35,$AH$9)*0.5+COUNTIF($B35:$AF35,$AN$9)*0.5++COUNTIF($B35:$AF35,$AP$9)*0.5 -> 22 | AI35: =COUNTIF($B35:$AF35,$AI$10) -> 4 | AJ35: =COUNTIF($B35:$AF35,$AJ$10) -> 4 | AK35: 0 | AL35: 0 | AM35: 0 | AN35: 0 | AO35: 0 | AP35: 0 | AR35: 30 | AS35: =DAY(EOMONTH(DATE(AN_1,MONTH(B33),1),0)) -> 30
B36: =CHOOSE(WEEKDAY(B37,2),"Lu","Ma","Me","Je","Ve","Sa","Di") -> Sa | C36: =CHOOSE(WEEKDAY(C37,2),"Lu","Ma","Me","Je","Ve","Sa","Di") -> Di | D36: Lu | E36: Ma | F36: Me | G36: Je | H36: Ve | I36: Sa | J36: Di | K36: Lu | L36: Ma | M36: Me | N36: Je | O36: Ve | P36: Sa | Q36: Di | R36: Lu | S36: Ma | T36: Me | U36: Je | V36: Ve | W36: Sa | X36: Di | Y36: Lu | Z36: Ma | AA36: Me | AB36: Je | AC36: Ve | AD36: =IF(AD37=0,0,CHOOSE(WEEKDAY(AD37,2),"Lu","Ma","Me","Je","Ve","Sa","Di")) -> Sa | AE36: =IF(AE37=0,0,CHOOSE(WEEKDAY(AE37,2),"Lu","Ma","Me","Je","Ve","Sa","Di")) -> Di | AF36: =IF(AF37=0,0,CHOOSE(WEEKDAY(AF37,2),"Lu","Ma","Me","Je","Ve","Sa","Di")) -> Lu
B37: =VALUE("01/"&INDIRECT("Fériés!h"&COUNTA($A$11:A37)+1,1)&"/"&INDIRECT("Fériés!j"&COUNTA($A$11:A37)+1,1)) -> 45108 | C37: =B37+1 -> 45109 | D37: =C37+1 -> 45110 | E37: 45111 | F37: 45112 | G37: 45113 | H37: 45114 | I37: 45115 | J37: 45116 | K37: 45117 | L37: 45118 | M37: 45119 | N37: 45120 | O37: 45121 | P37: 45122 | Q37: 45123 | R37: 45124 | S37: 45125 | T37: 45126 | U37: 45127 | V37: 45128 | W37: 45129 | X37: 45130 | Y37: 45131 | Z37: 45132 | AA37: 45133 | AB37: 45134 | AC37: 45135 | AD37: =IF(MONTH($AC37+1)=MONTH($B37)+1,0,$AC37+1) -> 45136 | AE37: =IF(MONTH(AC37+2)=MONTH(B37)+1,0,AC37+2) -> 45137 | AF37: =IF(MONTH($AC37+3)=MONTH($B37)+1,0,$AC37+3) -> 45138
B38: =IF(AND(ISERROR(VLOOKUP(B37,liste_fériés,1,FALSE)),OR(B36="Sa",B36="Di")),B36,IF(ISERROR(VLOOKUP(B37,liste_fériés,1,FALSE)),"T","F")) -> Sa | C38: Di | D38: T | E38: T | F38: T | G38: T | H38: T | I38: Sa | J38: Di | K38: T | L38: T | M38: T | N38: T | O38: F | P38: Sa | Q38: Di | R38: T | S38: T | T38: T | U38: T | V38: T | W38: Sa | X38: Di | Y38: T | Z38: T | AA38: T | AB38: T | AC38: T | AD38: =IF(AD37=0,0,IF(AND(ISERROR(VLOOKUP(AD37,liste_fériés,1,FALSE)),OR(AD36="Sa",AD36="Di")),AD36,IF(ISERROR(VLOOKUP(AD37,liste_fériés,1,FALSE)),"T","F"))) -> Sa | AE38: =IF(AE37=0,0,IF(AND(ISERROR(VLOOKUP(AE37,liste_fériés,1,FALSE)),OR(AE36="Sa",AE36="Di")),AE36,IF(ISERROR(VLOOKUP(AE37,liste_fériés,1,FALSE)),"T","F"))) -> Di | AF38: =IF(AF37=0,0,IF(AND(ISERROR(VLOOKUP(AF37,liste_fériés,1,FALSE)),OR(AF36="Sa",AF36="Di")),AF36,IF(ISERROR(VLOOKUP(AF37,liste_fériés,1,FALSE)),"T","F"))) -> T
A39: =CHOOSE(MONTH(B37),"JAN","FEV","MAR","AVR","MAI","JUN","JUL","AOU","SEP","OCT","NOV","DEC") -> JUL | B39: Sa | C39: Di | D39: T | E39: T | F39: T | G39: T | H39: T | I39: Sa | J39: Di | K39: T | L39: T | M39: T | N39: T | O39: F | P39: Sa | Q39: Di | R39: T | S39: T | T39: T | U39: T | V39: T | W39: Sa | X39: Di | Y39: T | Z39: T | AA39: T | AB39: T | AC39: T | AD39: Sa | AE39: Di | AF39: CA | AH39: =COUNTIF($B39:$AF39,$AH$10)+COUNTIF($B39:$AF39,$AH$9)*0.5+COUNTIF($B39:$AF39,$AN$9)*0.5++COUNTIF($B39:$AF39,$AP$9)*0.5 -> 19 | AI39: =COUNTIF($B39:$AF39,$AI$10) -> 5 | AJ39: =COUNTIF($B39:$AF39,$AJ$10) -> 5 | AK39: 1 | AL39: 1 | AM39: 0 | AN39: 0 | AO39: 0 | AP39: 0 | AR39: 31 | AS39: =DAY(EOMONTH(DATE(AN_1,MONTH(B37),1),0)) -> 31
B40: =CHOOSE(WEEKDAY(B41,2),"Lu","Ma","Me","Je","Ve","Sa","Di") -> Ma | C40: =CHOOSE(WEEKDAY(C41,2),"Lu","Ma","Me","Je","Ve","Sa","Di") -> Me | D40: Je | E40: Ve | F40: Sa | G40: Di | H40: Lu | I40: Ma | J40: Me | K40: Je | L40: Ve | M40: Sa | N40: Di | O40: Lu | P40: Ma | Q40: Me | R40: Je | S40: Ve | T40: Sa | U40: Di | V40: Lu | W40: Ma | X40: Me | Y40: Je | Z40: Ve | AA40: Sa | AB40: Di | AC40: Lu | AD40: =IF(AD41=0,0,CHOOSE(WEEKDAY(AD41,2),"Lu","Ma","Me","Je","Ve","Sa","Di")) -> Ma | AE40: =IF(AE41=0,0,CHOOSE(WEEKDAY(AE41,2),"Lu","Ma","Me","Je","Ve","Sa","Di")) -> Me | AF40: =IF(AF41=0,0,CHOOSE(WEEKDAY(AF41,2),"Lu","Ma","Me","Je","Ve","Sa","Di")) -> Je
B41: =VALUE("01/"&INDIRECT("Fériés!h"&COUNTA($A$11:A41)+1,1)&"/"&INDIRECT("Fériés!j"&COUNTA($A$11:A41)+1,1)) -> 45139 | C41: =B41+1 -> 45140 | D41: =C41+1 -> 45141 | E41: 45142 | F41: 45143 | G41: 45144 | H41: 45145 | I41: 45146 | J41: 45147 | K41: 45148 | L41: 45149 | M41: 45150 | N41: 45151 | O41: 45152 | P41: 45153 | Q41: 45154 | R41: 45155 | S41: 45156 | T41: 45157 | U41: 45158 | V41: 45159 | W41: 45160 | X41: 45161 | Y41: 45162 | Z41: 45163 | AA41: 45164 | AB41: 45165 | AC41: 45166 | AD41: =IF(MONTH($AC41+1)=MONTH($B41)+1,0,$AC41+1) -> 45167 | AE41: =IF(MONTH(AC41+2)=MONTH(B41)+1,0,AC41+2) -> 45168 | AF41: =IF(MONTH($AC41+3)=MONTH($B41)+1,0,$AC41+3) -> 45169
B42: =IF(AND(ISERROR(VLOOKUP(B41,liste_fériés,1,FALSE)),OR(B40="Sa",B40="Di")),B40,IF(ISERROR(VLOOKUP(B41,liste_fériés,1,FALSE)),"T","F")) -> T | C42: T | D42: T | E42: T | F42: Sa | G42: Di | H42: T | I42: T | J42: T | K42: T | L42: T | M42: Sa | N42: Di | O42: T | P42: F | Q42: T | R42: T | S42: T | T42: Sa | U42: Di | V42: T | W42: T | X42: T | Y42: T | Z42: T | AA42: Sa | AB42: Di | AC42: T | AD42: =IF(AD41=0,0,IF(AND(ISERROR(VLOOKUP(AD41,liste_fériés,1,FALSE)),OR(AD40="Sa",AD40="Di")),AD40,IF(ISERROR(VLOOKUP(AD41,liste_fériés,1,FALSE)),"T","F"))) -> T | AE42: =IF(AE41=0,0,IF(AND(ISERROR(VLOOKUP(AE41,liste_fériés,1,FALSE)),OR(AE40="Sa",AE40="Di")),AE40,IF(ISERROR(VLOOKUP(AE41,liste_fériés,1,FALSE)),"T","F"))) -> T | AF42: =IF(AF41=0,0,IF(AND(ISERROR(VLOOKUP(AF41,liste_fériés,1,FALSE)),OR(AF40="Sa",AF40="Di")),AF40,IF(ISERROR(VLOOKUP(AF41,liste_fériés,1,FALSE)),"T","F"))) -> T
A43: =CHOOSE(MONTH(B41),"JAN","FEV","MAR","AVR","MAI","JUN","JUL","AOU","SEP","OCT","NOV","DEC") -> AOU | B43: CA | C43: CA | D43: CA | E43: CA | F43: Sa | G43: Di | H43: CA | I43: CA | J43: CA | K43: CA | L43: CA | M43: Sa | N43: Di | O43: CA | P43: F | Q43: CA | R43: CA | S43: CA | T43: Sa | U43: Di | V43: CA | W43: CA | X43: CA | Y43: CA | Z43: CA | AA43: Sa | AB43: Di | AC43: T | AD43: T | AE43: T | AF43: T | AH43: =COUNTIF($B43:$AF43,$AH$10)+COUNTIF($B43:$AF43,$AH$9)*0.5+COUNTIF($B43:$AF43,$AN$9)*0.5++COUNTIF($B43:$AF43,$AP$9)*0.5 -> 4 | AI43: =COUNTIF($B43:$AF43,$AI$10) -> 4 | AJ43: =COUNTIF($B43:$AF43,$AJ$10) -> 4 | AK43: 1 | AL43: 18 | AM43: 0 | AN43: 0 | AO43: 0 | AP43: 0 | AR43: 31 | AS43: =DAY(EOMONTH(DATE(AN_1,MONTH(B41),1),0)) -> 31
B44: =CHOOSE(WEEKDAY(B45,2),"Lu","Ma","Me","Je","Ve","Sa","Di") -> Ve | C44: =CHOOSE(WEEKDAY(C45,2),"Lu","Ma","Me","Je","Ve","Sa","Di") -> Sa | D44: Di | E44: Lu | F44: Ma | G44: Me | H44: Je | I44: Ve | J44: Sa | K44: Di | L44: Lu | M44: Ma | N44: Me | O44: Je | P44: Ve | Q44: Sa | R44: Di | S44: Lu | T44: Ma | U44: Me | V44: Je | W44: Ve | X44: Sa | Y44: Di | Z44: Lu | AA44: Ma | AB44: Me | AC44: Je | AD44: =IF(AD45=0,0,CHOOSE(WEEKDAY(AD45,2),"Lu","Ma","Me","Je","Ve","Sa","Di")) -> Ve | AE44: Sa | AF44: =IF(AF45=0,0,CHOOSE(WEEKDAY(AF45,2),"Lu","Ma","Me","Je","Ve","Sa","Di")) -> 0
B45: =VALUE("01/"&INDIRECT("Fériés!h"&COUNTA($A$11:A45)+1,1)&"/"&INDIRECT("Fériés!j"&COUNTA($A$11:A45)+1,1)) -> 45170 | C45: =B45+1 -> 45171 | D45: =C45+1 -> 45172 | E45: 45173 | F45: 45174 | G45: 45175 | H45: 45176 | I45: 45177 | J45: 45178 | K45: 45179 | L45: 45180 | M45: 45181 | N45: 45182 | O45: 45183 | P45: 45184 | Q45: 45185 | R45: 45186 | S45: 45187 | T45: 45188 | U45: 45189 | V45: 45190 | W45: 45191 | X45: 45192 | Y45: 45193 | Z45: 45194 | AA45: 45195 | AB45: 45196 | AC45: 45197 | AD45: =IF(MONTH($AC45+1)=MONTH($B45)+1,0,$AC45+1) -> 45198 | AE45: =IF(MONTH(AC45+2)=MONTH(B45)+1,0,AC45+2) -> 45199 | AF45: =IF(MONTH($AC45+3)=MONTH($B45)+1,0,$AC45+3) -> 0
B46: =IF(AND(ISERROR(VLOOKUP(B45,liste_fériés,1,FALSE)),OR(B44="Sa",B44="Di")),B44,IF(ISERROR(VLOOKUP(B45,liste_fériés,1,FALSE)),"T","F")) -> T | C46: Sa | D46: Di | E46: T | F46: T | G46: T | H46: T | I46: T | J46: Sa | K46: Di | L46: T | M46: T | N46: T | O46: T | P46: T | Q46: Sa | R46: Di | S46: T | T46: T | U46: T | V46: T | W46: T | X46: Sa | Y46: Di | Z46: T | AA46: T | AB46: T | AC46: T | AD46: =IF(AD45=0,0,IF(AND(ISERROR(VLOOKUP(AD45,liste_fériés,1,FALSE)),OR(AD44="Sa",AD44="Di")),AD44,IF(ISERROR(VLOOKUP(AD45,liste_fériés,1,FALSE)),"T","F"))) -> T | AE46: =IF(AE45=0,0,IF(AND(ISERROR(VLOOKUP(AE45,liste_fériés,1,FALSE)),OR(AE44="Sa",AE44="Di")),AE44,IF(ISERROR(VLOOKUP(AE45,liste_fériés,1,FALSE)),"T","F"))) -> Sa | AF46: =IF(AF45=0,0,IF(AND(ISERROR(VLOOKUP(AF45,liste_fériés,1,FALSE)),OR(AF44="Sa",AF44="Di")),AF44,IF(ISERROR(VLOOKUP(AF45,liste_fériés,1,FALSE)),"T","F"))) -> 0
A47: =CHOOSE(MONTH(B45),"JAN","FEV","MAR","AVR","MAI","JUN","JUL","AOU","SEP","OCT","NOV","DEC") -> SEP | B47: T | C47: Sa | D47: Di | E47: T | F47: T | G47: T | H47: T | I47: T | J47: Sa | K47: Di | L47: T | M47: T | N47: T | O47: T | P47: T | Q47: Sa | R47: Di | S47: T | T47: T | U47: T | V47: T | W47: T | X47: Sa | Y47: Di | Z47: T | AA47: T | AB47: RTT | AC47: T | AD47: T | AE47: Sa | AH47: =COUNTIF($B47:$AF47,$AH$10)+COUNTIF($B47:$AF47,$AH$9)*0.5+COUNTIF($B47:$AF47,$AN$9)*0.5++COUNTIF($B47:$AF47,$AP$9)*0.5 -> 20 | AI47: =COUNTIF($B47:$AF47,$AI$10) -> 5 | AJ47: =COUNTIF($B47:$AF47,$AJ$10) -> 4 | AK47: 0 | AL47: 0 | AM47: 0 | AN47: 1 | AO47: 0 | AP47: 0 | AR47: 30 | AS47: =DAY(EOMONTH(DATE(AN_1,MONTH(B45),1),0)) -> 30
B48: =CHOOSE(WEEKDAY(B49,2),"Lu","Ma","Me","Je","Ve","Sa","Di") -> Di | C48: =CHOOSE(WEEKDAY(C49,2),"Lu","Ma","Me","Je","Ve","Sa","Di") -> Lu | D48: Ma | E48: Me | F48: Je | G48: Ve | H48: Sa | I48: Di | J48: Lu | K48: Ma | L48: Me | M48: Je | N48: Ve | O48: Sa | P48: Di | Q48: Lu | R48: Ma | S48: Me | T48: Je | U48: Ve | V48: Sa | W48: Di | X48: Lu | Y48: Ma | Z48: Me | AA48: Je | AB48: Ve | AC48: Sa | AD48: =IF(AD49=0,0,CHOOSE(WEEKDAY(AD49,2),"Lu","Ma","Me","Je","Ve","Sa","Di")) -> Di | AE48: =IF(AE49=0,0,CHOOSE(WEEKDAY(AE49,2),"Lu","Ma","Me","Je","Ve","Sa","Di")) -> Lu | AF48: =IF(AF49=0,0,CHOOSE(WEEKDAY(AF49,2),"Lu","Ma","Me","Je","Ve","Sa","Di")) -> Ma
B49: =VALUE("01/"&INDIRECT("Fériés!h"&COUNTA($A$11:A49)+1,1)&"/"&INDIRECT("Fériés!j"&COUNTA($A$11:A49)+1,1)) -> 45200 | C49: =B49+1 -> 45201 | D49: =C49+1 -> 45202 | E49: 45203 | F49: 45204 | G49: 45205 | H49: 45206 | I49: 45207 | J49: 45208 | K49: 45209 | L49: 45210 | M49: 45211 | N49: 45212 | O49: 45213 | P49: 45214 | Q49: 45215 | R49: 45216 | S49: 45217 | T49: 45218 | U49: 45219 | V49: 45220 | W49: 45221 | X49: 45222 | Y49: 45223 | Z49: 45224 | AA49: 45225 | AB49: 45226 | AC49: 45227 | AD49: =IF(MONTH($AC49+1)=MONTH($B49)+1,0,$AC49+1) -> 45228 | AE49: =IF(MONTH(AC49+2)=MONTH(B49)+1,0,AC49+2) -> 45229 | AF49: =IF(MONTH($AC49+3)=MONTH($B49)+1,0,$AC49+3) -> 45230
B50: =IF(AND(ISERROR(VLOOKUP(B49,liste_fériés,1,FALSE)),OR(B48="Sa",B48="Di")),B48,IF(ISERROR(VLOOKUP(B49,liste_fériés,1,FALSE)),"T","F")) -> Di | C50: T | D50: T | E50: T | F50: T | G50: T | H50: Sa | I50: Di | J50: T | K50: T | L50: T | M50: T | N50: T | O50: Sa | P50: Di | Q50: T | R50: T | S50: T | T50: T | U50: T | V50: Sa | W50: Di | X50: T | Y50: T | Z50: T | AA50: T | AB50: T | AC50: Sa | AD50: =IF(AD49=0,0,IF(AND(ISERROR(VLOOKUP(AD49,liste_fériés,1,FALSE)),OR(AD48="Sa",AD48="Di")),AD48,IF(ISERROR(VLOOKUP(AD49,liste_fériés,1,FALSE)),"T","F"))) -> Di | AE50: =IF(AE49=0,0,IF(AND(ISERROR(VLOOKUP(AE49,liste_fériés,1,FALSE)),OR(AE48="Sa",AE48="Di")),AE48,IF(ISERROR(VLOOKUP(AE49,liste_fériés,1,FALSE)),"T","F"))) -> T | AF50: =IF(AF49=0,0,IF(AND(ISERROR(VLOOKUP(AF49,liste_fériés,1,FALSE)),OR(AF48="Sa",AF48="Di")),AF48,IF(ISERROR(VLOOKUP(AF49,liste_fériés,1,FALSE)),"T","F"))) -> T
A51: =CHOOSE(MONTH(B49),"JAN","FEV","MAR","AVR","MAI","JUN","JUL","AOU","SEP","OCT","NOV","DEC") -> OCT | B51: Di | C51: T | D51: T | E51: T | F51: T | G51: T | H51: Sa | I51: Di | J51: T | K51: T | L51: T | M51: T | N51: T | O51: Sa | P51: Di | Q51: T | R51: T | S51: RTT | T51: T | U51: T | V51: Sa | W51: Di | X51: T | Y51: T | Z51: T | AA51: T | AB51: T | AC51: Sa | AD51: Di | AE51: T | AF51: T | AH51: =COUNTIF($B51:$AF51,$AH$10)+COUNTIF($B51:$AF51,$AH$9)*0.5+COUNTIF($B51:$AF51,$AN$9)*0.5++COUNTIF($B51:$AF51,$AP$9)*0.5 -> 21 | AI51: =COUNTIF($B51:$AF51,$AI$10) -> 4 | AJ51: =COUNTIF($B51:$AF51,$AJ$10) -> 5 | AK51: 0 | AL51: 0 | AM51: 0 | AN51: 1 | AO51: 0 | AP51: 0 | AR51: 31 | AS51: =DAY(EOMONTH(DATE(AN_1,MONTH(B49),1),0)) -> 31
B52: =CHOOSE(WEEKDAY(B53,2),"Lu","Ma","Me","Je","Ve","Sa","Di") -> Me | C52: =CHOOSE(WEEKDAY(C53,2),"Lu","Ma","Me","Je","Ve","Sa","Di") -> Je | D52: Ve | E52: Sa | F52: Di | G52: Lu | H52: Ma | I52: Me | J52: Je | K52: Ve | L52: Sa | M52: Di | N52: Lu | O52: Ma | P52: Me | Q52: Je | R52: Ve | S52: Sa | T52: Di | U52: Lu | V52: Ma | W52: Me | X52: Je | Y52: Ve | Z52: Sa | AA52: Di | AB52: Lu | AC52: Ma | AD52: =IF(AD53=0,0,CHOOSE(WEEKDAY(AD53,2),"Lu","Ma","Me","Je","Ve","Sa","Di")) -> Me | AE52: =IF(AE53=0,0,CHOOSE(WEEKDAY(AE53,2),"Lu","Ma","Me","Je","Ve","Sa","Di")) -> Je | AF52: =IF(AF53=0,0,CHOOSE(WEEKDAY(AF53,2),"Lu","Ma","Me","Je","Ve","Sa","Di")) -> 0
B53: =VALUE("01/"&INDIRECT("Fériés!h"&COUNTA($A$11:A53)+1,1)&"/"&INDIRECT("Fériés!j"&COUNTA($A$11:A53)+1,1)) -> 45231 | C53: =B53+1 -> 45232 | D53: =C53+1 -> 45233 | E53: 45234 | F53: 45235 | G53: 45236 | H53: 45237 | I53: 45238 | J53: 45239 | K53: 45240 | L53: 45241 | M53: 45242 | N53: 45243 | O53: 45244 | P53: 45245 | Q53: 45246 | R53: 45247 | S53: 45248 | T53: 45249 | U53: 45250 | V53: 45251 | W53: 45252 | X53: 45253 | Y53: 45254 | Z53: 45255 | AA53: 45256 | AB53: 45257 | AC53: 45258 | AD53: =IF(MONTH($AC53+1)=MONTH($B53)+1,0,$AC53+1) -> 45259 | AE53: =IF(MONTH(AC53+2)=MONTH(B53)+1,0,AC53+2) -> 45260 | AF53: =IF(MONTH($AC53+3)=MONTH($B53)+1,0,$AC53+3) -> 0
B54: =IF(AND(ISERROR(VLOOKUP(B53,liste_fériés,1,FALSE)),OR(B52="Sa",B52="Di")),B52,IF(ISERROR(VLOOKUP(B53,liste_fériés,1,FALSE)),"T","F")) -> F | C54: T | D54: T | E54: Sa | F54: Di | G54: T | H54: T | I54: T | J54: T | K54: T | L54: F | M54: Di | N54: T | O54: T | P54: T | Q54: T | R54: T | S54: Sa | T54: Di | U54: T | V54: T | W54: T | X54: T | Y54: T | Z54: Sa | AA54: Di | AB54: T | AC54: T | AD54: =IF(AD53=0,0,IF(AND(ISERROR(VLOOKUP(AD53,liste_fériés,1,FALSE)),OR(AD52="Sa",AD52="Di")),AD52,IF(ISERROR(VLOOKUP(AD53,liste_fériés,1,FALSE)),"T","F"))) -> T | AE54: =IF(AE53=0,0,IF(AND(ISERROR(VLOOKUP(AE53,liste_fériés,1,FALSE)),OR(AE52="Sa",AE52="Di")),AE52,IF(ISERROR(VLOOKUP(AE53,liste_fériés,1,FALSE)),"T","F"))) -> T | AF54: =IF(AF53=0,0,IF(AND(ISERROR(VLOOKUP(AF53,liste_fériés,1,FALSE)),OR(AF52="Sa",AF52="Di")),AF52,IF(ISERROR(VLOOKUP(AF53,liste_fériés,1,FALSE)),"T","F"))) -> 0
A55: =CHOOSE(MONTH(B53),"JAN","FEV","MAR","AVR","MAI","JUN","JUL","AOU","SEP","OCT","NOV","DEC") -> NOV | B55: F | C55: T | D55: T | E55: Sa | F55: Di | G55: T | H55: T | I55: T | J55: T | K55: T | L55: F | M55: Di | N55: T | O55: T | P55: T | Q55: T | R55: T | S55: Sa | T55: Di | U55: T | V55: T | W55: RTT | X55: T | Y55: T | Z55: Sa | AA55: Di | AB55: T | AC55: T | AD55: T | AE55: T | AH55: =COUNTIF($B55:$AF55,$AH$10)+COUNTIF($B55:$AF55,$AH$9)*0.5+COUNTIF($B55:$AF55,$AN$9)*0.5++COUNTIF($B55:$AF55,$AP$9)*0.5 -> 20 | AI55: =COUNTIF($B55:$AF55,$AI$10) -> 3 | AJ55: =COUNTIF($B55:$AF55,$AJ$10) -> 4 | AK55: 2 | AL55: 0 | AM55: 0 | AN55: 1 | AO55: 0 | AP55: 0 | AR55: 30 | AS55: =DAY(EOMONTH(DATE(AN_1,MONTH(B53),1),0)) -> 30
B56: =CHOOSE(WEEKDAY(B57,2),"Lu","Ma","Me","Je","Ve","Sa","Di") -> Ve | C56: =CHOOSE(WEEKDAY(C57,2),"Lu","Ma","Me","Je","Ve","Sa","Di") -> Sa | D56: Di | E56: Lu | F56: Ma | G56: Me | H56: Je | I56: Ve | J56: Sa | K56: Di | L56: Lu | M56: Ma | N56: Me | O56: Je | P56: Ve | Q56: Sa | R56: Di | S56: Lu | T56: Ma | U56: Me | V56: Je | W56: Ve | X56: Sa | Y56: Di | Z56: Lu | AA56: Ma | AB56: Me | AC56: Je | AD56: =IF(AD57=0,0,CHOOSE(WEEKDAY(AD57,2),"Lu","Ma","Me","Je","Ve","Sa","Di")) -> Ve | AE56: =IF(AE57=0,0,CHOOSE(WEEKDAY(AE57,2),"Lu","Ma","Me","Je","Ve","Sa","Di")) -> Sa | AF56: =IF(AF57=0,0,CHOOSE(WEEKDAY(AF57,2),"Lu","Ma","Me","Je","Ve","Sa","Di")) -> Di
B57: =VALUE("01/"&INDIRECT("Fériés!h"&COUNTA($A$11:A57)+1,1)&"/"&INDIRECT("Fériés!j"&COUNTA($A$11:A57)+1,1)) -> 45261 | C57: =B57+1 -> 45262 | D57: =C57+1 -> 45263 | E57: 45264 | F57: 45265 | G57: 45266 | H57: 45267 | I57: 45268 | J57: 45269 | K57: 45270 | L57: 45271 | M57: 45272 | N57: 45273 | O57: 45274 | P57: 45275 | Q57: 45276 | R57: 45277 | S57: 45278 | T57: 45279 | U57: 45280 | V57: 45281 | W57: 45282 | X57: 45283 | Y57: 45284 | Z57: 45285 | AA57: 45286 | AB57: 45287 | AC57: 45288 | AD57: =IF(MONTH($AC57+1)=MONTH($B57)+1,0,$AC57+1) -> 45289 | AE57: =IF(MONTH(AC57+2)=MONTH(B57)+1,0,AC57+2) -> 45290 | AF57: =IF(MONTH($AC57+3)=MONTH($B57)+1,0,$AC57+3) -> 45291
B58: =IF(AND(ISERROR(VLOOKUP(B57,liste_fériés,1,FALSE)),OR(B56="Sa",B56="Di")),B56,IF(ISERROR(VLOOKUP(B57,liste_fériés,1,FALSE)),"T","F")) -> T | C58: Sa | D58: Di | E58: T | F58: T | G58: T | H58: T | I58: T | J58: Sa | K58: Di | L58: T | M58: T | N58: T | O58: T | P58: T | Q58: Sa | R58: Di | S58: T | T58: T | U58: T | V58: T | W58: T | X58: Sa | Y58: Di | Z58: F | AA58: T | AB58: T | AC58: T | AD58: =IF(AD57=0,0,IF(AND(ISERROR(VLOOKUP(AD57,liste_fériés,1,FALSE)),OR(AD56="Sa",AD56="Di")),AD56,IF(ISERROR(VLOOKUP(AD57,liste_fériés,1,FALSE)),"T","F"))) -> T | AE58: =IF(AE57=0,0,IF(AND(ISERROR(VLOOKUP(AE57,liste_fériés,1,FALSE)),OR(AE56="Sa",AE56="Di")),AE56,IF(ISERROR(VLOOKUP(AE57,liste_fériés,1,FALSE)),"T","F"))) -> Sa | AF58: =IF(AF57=0,0,IF(AND(ISERROR(VLOOKUP(AF57,liste_fériés,1,FALSE)),OR(AF56="Sa",AF56="Di")),AF56,IF(ISERROR(VLOOKUP(AF57,liste_fériés,1,FALSE)),"T","F"))) -> Di
A59: =CHOOSE(MONTH(B57),"JAN","FEV","MAR","AVR","MAI","JUN","JUL","AOU","SEP","OCT","NOV","DEC") -> DEC | B59: T | C59: Sa | D59: Di | E59: T | F59: T | G59: T | H59: T | I59: T | J59: Sa | K59: Di | L59: T | M59: T | N59: T | O59: T | P59: T | Q59: Sa | R59: Di | S59: T | T59: RTT | U59: T | V59: T | W59: CA | X59: Sa | Y59: Di | Z59: F | AA59: CA | AB59: CA | AC59: CA | AD59: CA | AE59: Sa | AF59: Di | AH59: =COUNTIF($B59:$AF59,$AH$10)+COUNTIF($B59:$AF59,$AH$9)*0.5+COUNTIF($B59:$AF59,$AN$9)*0.5++COUNTIF($B59:$AF59,$AP$9)*0.5 -> 14 | AI59: =COUNTIF($B59:$AF59,$AI$10) -> 5 | AJ59: =COUNTIF($B59:$AF59,$AJ$10) -> 5 | AK59: 1 | AL59: 5 | AM59: 0 | AN59: 1 | AO59: 0 | AP59: 0 | AR59: 31 | AS59: =DAY(EOMONTH(DATE(AN_1,MONTH(B57),1),0)) -> 31

Sheet Feuil2
A1: =CHAR(ROW()) -> 
A2: =CHAR(ROW()) -> 
A3: 
A4: 
A5: 
A6: 
A7: 
A8: 
A14: 
A15: 
A16: 
A17: 
A18: 
A19: 
A20: 
A21: 
A22: 
A23: 
A24: 
A25: 
A26: 
A27: 
A33: !
A34: "
A35: #
A36: $
A37: %
A38: &
A39: '
A40: (
A41: )
A42: *
A43: +
A44: ,
A45: -
A46: .
A47: /
A48: 0
A49: 1
A50: 2
A51: 3
A52: 4
A53: 5
A54: 6
A55: 7
A56: 8
A57: 9
A58: :
A59: ;
A60: <
A61: =
A62: >
A63: ?
A64: @
A65: A
A66: =CHAR(ROW()) -> B
A67: C
A68: D
A69: E
A70: F
A71: G
A72: H
A73: I
A74: J
A75: K
A76: L
A77: M
A78: N
A79: O
A80: P
A81: Q
A82: R
A83: S
A84: T
A85: U
A86: V
A87: W
A88: X
A89: Y
A90: Z
A91: [
A92: \
A93: ]
A94: ^
A95: _
A96: `
A97: a
A98: b
A99: c
A100: d
A101: e
A102: f
A103: g
A104: h
A105: i
A106: j
A107: k
A108: l
A109: m
A110: n
A111: o
A112: p
A113: q
A114: r
A115: s
A116: t
A117: u
A118: v
A119: w
A120: x
A121: y
A122: z
A123: {
A124: |
A125: }
A126: ~
A127: 
A128: €
A129: 
A130: =CHAR(ROW()) -> ‚
A131: ƒ
A132: „
A133: …
A134: †
A135: ‡
A136: ˆ
A137: ‰
A138: Š
A139: ‹
A140: Œ
A141: 
A142: Ž
A143: 
A144: 
A145: ‘
A146: ’
A147: “
A148: ”
A149: •
A150: –
A151: —
A152: ˜
A153: ™
A154: š
A155: ›
A156: œ
A157: 
A158: ž
A159: Ÿ
A161: ¡
A162: ¢
A163: £
A164: ¤
A165: ¥
A166: ¦
A167: §
A168: ¨
A169: ©
A170: ª
A171: «
A172: ¬
A173: ­
A174: ®
A175: ¯
A176: °
A177: ±
A178: ²
A179: ³
A180: ´
A181: µ
A182: ¶
A183: ·
A184: ¸
A185: ¹
A186: º
A187: »
A188: ¼
A189: ½
A190: ¾
A191: ¿
A192: À
A193: Á
A194: =CHAR(ROW()) -> Â
A195: Ã
A196: Ä
A197: Å
A198: Æ
A199: Ç
A200: È
A201: É
A202: Ê
A203: Ë
A204: Ì
A205: Í
A206: Î
A207: Ï
A208: Ð
A209: Ñ
A210: Ò
A211: Ó
... 44 more rows

Sheet JAN
B1: =RIGHT(CELL("nomfichier",$A$1),3) -> JAN | C1: FICHE DE SUIVI HORAIRE
B3: mois : | C3: JANVIER | F3: année | G3: =VLOOKUP(C3,Fériés!$I$1:$J$12,2,FALSE) -> 2023 | J3: service | K3: =Calendrier!F4 -> Administratif
B5: nom : | C5: =Calendrier!F2 -> Isq | F5: prénom | G5: =Calendrier!F3 -> Philippe | J5: N° Ident | K5: =Calendrier!F1 -> T506489
H6: à réaliser | I6: cumul | J6: en cours | K6: reste | M6: N.cumul
D7: Nb J | E7: =Calendrier!$AT11 -> 218 | F7: =$H$10 -> 0 | G7: =E7-F7 -> 218 | H7: =Calendrier!N1 -> 365 | J7: =SUM(J8:J15) -> 27.5 | K7: =H7-(I7+J7) -> 337.5 | M7: =SUM(M8:M15) -> 27.5 | Q7: =MAI!M7 -> 147.5
F8: 1/2CA | G8: CA | H8: =Calendrier!N5 -> 25 | J8: =COUNTIF($J$19:$J$49,G8)+COUNTIF($J$19:$J$49,F8)/2 -> 0 | K8: =+H8-(I8+J8) -> 25 | L8: J | M8: =I8+J8 -> 0 | Q8: =MAI!M8 -> 1
F9: 1/2RTT | G9: RTT | H9: =Calendrier!N8 -> 9 | J9: =COUNTIF($J$19:$J$49,G9)+COUNTIF($J$19:$J$49,F9)/2 -> 0 | K9: =+H9-(I9+J9) -> 9 | L9: J | M9: =I9+J9 -> 0 | Q9: =MAI!M9 -> 3
F10: 1/2CS | G10: CS | H10: =Calendrier!N9 -> 0 | J10: 0 | K10: =H10-(I10+J10) -> 0 | L10: J | M10: 0 | Q10: =MAI!M10 -> 0
F11: 1/2CP | G11: CP | H11: =Calendrier!N6 -> 0 | J11: 0 | K11: =H11-(I11+J11) -> 0 | L11: J | M11: 0 | Q11: =MAI!M11 -> 0
F12: 1/2T | G12: T | H12: =Calendrier!N7 -> 218 | J12: 18.5 | K12: =H12-(I12+J12) -> 199.5 | L12: J | M12: 18.5 | Q12: =MAI!M12 -> 96.5
F13: 0 | G13: Sa | H13: =Calendrier!N4 -> 51 | J13: =COUNTIF($J$19:$J$49,G13) -> 4 | K13: =+H13-(I13+J13) -> 47 | L13: J | M13: 4 | Q13: =MAI!M13 -> 21
F14: 0 | G14: Di | H14: =Calendrier!N3 -> 50 | J14: =COUNTIF($J$19:$J$49,G14) -> 4 | K14: =+H14-(I14+J14) -> 46 | L14: J | M14: 4 | Q14: =MAI!M14 -> 19
F15: 0 | G15: F | H15: =Calendrier!N2 -> 12 | J15: =COUNTIF($J$19:$J$49,G15) -> 1 | K15: =+H15-(I15+J15) -> 11 | L15: J | M15: 1 | Q15: =MAI!M15 -> 7
G16: heure/avance fin mois | M16: =I50 -> 1.75 | N16: avec bon | Q16: =MAI!M16 -> 1.75
B17: Prévu | C17: Entrée | D17: Sortie | E17: Entrée | F17: Sortie | G17: total | H17: variation | I17: cumul | J17: Type | K17: nb J/T | M17: div. E/S | N17: Sortie | O17: Retour
Q18: =MAI!I50 -> 1.75
A19: =VALUE("01/01/"&G3) -> 2023-01-01 | B19: =INDIRECT(ADDRESS(MATCH($B$1,Calendrier!$A$15:$A$59,0)+14,ROW()-17,3,1,"Calendrier"),1) -> F | G19: =IF(AND(C19<>0,D19<>0,E19<>0,F19<>0),F19-E19+D19-C19-K19-IF(E19-D19<Calendrier!$AT$10,Calendrier!$AT$10,0),IF(AND(C19<>0,D19<>0,E19=0,F19=0),D19-C19-K19,IF(AND(C19=0,D19=0,E19<>0,F19<>0),F19-E19-K19,IF(AND(C19>20,D19=0,E19=0,F19<>0),24-C19+F19-K19,IF(AND(C19<>0,D19=0,E19=0,F19<>0),F19-C19-K19,0))))) -> 0 | H19: =IF(G19=0,0,IF(K19=0.5,0,G19-Calendrier!$AT$9)) -> 0 | I19: =I18+H19 -> 0 | J19: =IF(AND(COUNTA(C19:F19)=0,OR(B19="F",WEEKDAY(A19,2)>5,B19="T",B19="RTT",B19="CA")),B19,IF(AND(COUNTA(C19:F19)>=2,OR(B19="F",B19="RTT",B19="CA",B19="Sa",B19="Di")),"calendrier",IF(AND(COUNTA(C19)+COUNTA(F19)=2,OR(COUNTA(C19:D19)<1,COUNTA(E19:F19)<1)),"erreur",IF(COUNTA(C19:F19)=3,"en cours",IF(COUNTA(C19:F19)=4,B19,IF(OR(AND(C19<>0,D19<>0),AND(E19<>0,F19<>0)),$F$12,IF(AND(C19<>0,D19=0,E19=0,F19<>0,WEEKDAY(A19,2)>5),"calendrier",IF(AND(C19<>0,D19=0,E19=0,F19<>0),$B19,"")))))))) -> F | K19: =IF(COUNTA(C19:F19)=4,1,IF(OR(AND(C19<>0,D19<>0),AND(E19<>0,F19<>0)),0.5,IF(AND(C19<>0,F19<>0,D19=0,E19=0,B19="T"),1,0))) -> 0 | M19: =IF(OR(N19=0,O19=0),0,O19-N19) -> 0
A20: =A19+1 -> 2023-01-02 | B20: =INDIRECT(ADDRESS(MATCH($B$1,Calendrier!$A$15:$A$59,0)+14,ROW()-17,3,1,"Calendrier"),1) -> T | E20: 13 | F20: 18 | G20: =IF(AND(C20<>0,D20<>0,E20<>0,F20<>0),F20-E20+D20-C20-K20-IF(E20-D20<Calendrier!$AT$10,Calendrier!$AT$10,0),IF(AND(C20<>0,D20<>0,E20=0,F20=0),D20-C20-K20,IF(AND(C20=0,D20=0,E20<>0,F20<>0),F20-E20-K20,IF(AND(C20>20,D20=0,E20=0,F20<>0),24-C20+F20-K20,IF(AND(C20<>0,D20=0,E20=0,F20<>0),F20-C20-K20,0))))) -> 4.5 | H20: =IF(G20=0,0,IF(K20=0.5,0,G20-Calendrier!$AT$9)) -> 0 | I20: 0 | J20: 1/2T | K20: 0.5 | M20: 0
A21: =A20+1 -> 2023-01-03 | B21: =INDIRECT(ADDRESS(MATCH($B$1,Calendrier!$A$15:$A$59,0)+14,ROW()-17,3,1,"Calendrier"),1) -> T | C21: 7 | D21: 13 | G21: =IF(AND(C21<>0,D21<>0,E21<>0,F21<>0),F21-E21+D21-C21-M21-IF(E21-D21<Calendrier!$AT$10,Calendrier!$AT$10,0),IF(AND(C21<>0,D21<>0,E21=0,F21=0),D21-C21-M21,IF(AND(C21=0,D21=0,E21<>0,F21<>0),F21-E21-M21,IF(AND(C21>20,D21=0,E21=0,F21<>0),24-C21+F21-M21,IF(AND(C21<>0,D21=0,E21=0,F21<>0),F21-C21-M21,0))))) -> 6 | H21: =IF(G21=0,0,IF(K21=0.5,0,G21-Calendrier!$AT$9)) -> 0 | I21: =I20+H21 -> 0 | J21: 1/2T | K21: 0.5 | M21: 0
A22: 2023-01-04 | B22: =INDIRECT(ADDRESS(MATCH($B$1,Calendrier!$A$15:$A$59,0)+14,ROW()-17,3,1,"Calendrier"),1) -> T | G22: =IF(AND(C22<>0,D22<>0,E22<>0,F22<>0),F22-E22+D22-C22-M22-IF(E22-D22<Calendrier!$AT$10,Calendrier!$AT$10,0),IF(AND(C22<>0,D22<>0,E22=0,F22=0),D22-C22-M22,IF(AND(C22=0,D22=0,E22<>0,F22<>0),F22-E22-M22,IF(AND(C22>20,D22=0,E22=0,F22<>0),24-C22+F22-M22,IF(AND(C22<>0,D22=0,E22=0,F22<>0),F22-C22-M22,0))))) -> 0 | H22: =IF(G22=0,0,IF(K22=0.5,0,G22-Calendrier!$AT$9)) -> 0 | I22: 0 | J22: T | K22: 0 | M22: 0
A23: 2023-01-05 | B23: =INDIRECT(ADDRESS(MATCH($B$1,Calendrier!$A$15:$A$59,0)+14,ROW()-17,3,1,"Calendrier"),1) -> T | G23: =IF(AND(C23<>0,D23<>0,E23<>0,F23<>0),F23-E23+D23-C23-M23-IF(E23-D23<Calendrier!$AT$10,Calendrier!$AT$10,0),IF(AND(C23<>0,D23<>0,E23=0,F23=0),D23-C23-M23,IF(AND(C23=0,D23=0,E23<>0,F23<>0),F23-E23-M23,IF(AND(C23>20,D23=0,E23=0,F23<>0),24-C23+F23-M23,IF(AND(C23<>0,D23=0,E23=0,F23<>0),F23-C23-M23,0))))) -> 0 | H23: =IF(G23=0,0,IF(K23=0.5,0,G23-Calendrier!$AT$9)) -> 0 | I23: 0 | J23: T | K23: 0 | M23: 0
A24: 2023-01-06 | B24: =INDIRECT(ADDRESS(MATCH($B$1,Calendrier!$A$15:$A$59,0)+14,ROW()-17,3,1,"Calendrier"),1) -> T | G24: =IF(AND(C24<>0,D24<>0,E24<>0,F24<>0),F24-E24+D24-C24-M24-IF(E24-D24<Calendrier!$AT$10,Calendrier!$AT$10,0),IF(AND(C24<>0,D24<>0,E24=0,F24=0),D24-C24-M24,IF(AND(C24=0,D24=0,E24<>0,F24<>0),F24-E24-M24,IF(AND(C24>20,D24=0,E24=0,F24<>0),24-C24+F24-M24,IF(AND(C24<>0,D24=0,E24=0,F24<>0),F24-C24-M24,0))))) -> 0 | H24: =IF(G24=0,0,IF(K24=0.5,0,G24-Calendrier!$AT$9)) -> 0 | I24: 0 | J24: T | K24: 0 | M24: =IF(OR(N24=0,O24=0),0,O24-N24) -> 0
A25: 2023-01-07 | B25: =INDIRECT(ADDRESS(MATCH($B$1,Calendrier!$A$15:$A$59,0)+14,ROW()-17,3,1,"Calendrier"),1) -> Sa | G25: =IF(AND(C25<>0,D25<>0,E25<>0,F25<>0),F25-E25+D25-C25-M25-IF(E25-D25<Calendrier!$AT$10,Calendrier!$AT$10,0),IF(AND(C25<>0,D25<>0,E25=0,F25=0),D25-C25-M25,IF(AND(C25=0,D25=0,E25<>0,F25<>0),F25-E25-M25,IF(AND(C25>20,D25=0,E25=0,F25<>0),24-C25+F25-M25,IF(AND(C25<>0,D25=0,E25=0,F25<>0),F25-C25-M25,0))))) -> 0 | H25: =IF(G25=0,0,IF(K25=0.5,0,G25-Calendrier!$AT$9)) -> 0 | I25: 0 | J25: Sa | K25: 0 | M25: =IF(OR(N25=0,O25=0),0,O25-N25) -> 0
A26: 2023-01-08 | B26: =INDIRECT(ADDRESS(MATCH($B$1,Calendrier!$A$15:$A$59,0)+14,ROW()-17,3,1,"Calendrier"),1) -> Di | G26: =IF(AND(C26<>0,D26<>0,E26<>0,F26<>0),F26-E26+D26-C26-M26-IF(E26-D26<Calendrier!$AT$10,Calendrier!$AT$10,0),IF(AND(C26<>0,D26<>0,E26=0,F26=0),D26-C26-M26,IF(AND(C26=0,D26=0,E26<>0,F26<>0),F26-E26-M26,IF(AND(C26>20,D26=0,E26=0,F26<>0),24-C26+F26-M26,IF(AND(C26<>0,D26=0,E26=0,F26<>0),F26-C26-M26,0))))) -> 0 | H26: =IF(G26=0,0,IF(K26=0.5,0,G26-Calendrier!$AT$9)) -> 0 | I26: 0 | J26: Di | K26: 0 | M26: 0
A27: 2023-01-09 | B27: =INDIRECT(ADDRESS(MATCH($B$1,Calendrier!$A$15:$A$59,0)+14,ROW()-17,3,1,"Calendrier"),1) -> RTT | C27: 8 | D27: 12.5 | E27: 13 | F27: 17.25 | G27: =IF(AND(C27<>0,D27<>0,E27<>0,F27<>0),F27-E27+D27-C27-M27-IF(E27-D27<Calendrier!$AT$10,Calendrier!$AT$10,0),IF(AND(C27<>0,D27<>0,E27=0,F27=0),D27-C27-M27,IF(AND(C27=0,D27=0,E27<>0,F27<>0),F27-E27-M27,IF(AND(C27>20,D27=0,E27=0,F27<>0),24-C27+F27-M27,IF(AND(C27<>0,D27=0,E27=0,F27<>0),F27-C27-M27,0))))) -> 8 | H27: =IF(G27=0,0,IF(K27=0.5,0,G27-Calendrier!$AT$9)) -> 0 | I27: 0 | J27: calendrier | K27: 1 | M27: 0
A28: 2023-01-10 | B28: =INDIRECT(ADDRESS(MATCH($B$1,Calendrier!$A$15:$A$59,0)+14,ROW()-17,3,1,"Calendrier"),1) -> T | E28: 13 | F28: 18 | G28: =IF(AND(C28<>0,D28<>0,E28<>0,F28<>0),F28-E28+D28-C28-M28-IF(E28-D28<Calendrier!$AT$10,Calendrier!$AT$10,0),IF(AND(C28<>0,D28<>0,E28=0,F28=0),D28-C28-M28,IF(AND(C28=0,D28=0,E28<>0,F28<>0),F28-E28-M28,IF(AND(C28>20,D28=0,E28=0,F28<>0),24-C28+F28-M28,IF(AND(C28<>0,D28=0,E28=0,F28<>0),F28-C28-M28,0))))) -> 5 | H28: =IF(G28=0,0,IF(K28=0.5,0,G28-Calendrier!$AT$9)) -> 0 | I28: 0 | J28: 1/2T | K28: 0.5 | M28: 0
A29: 2023-01-11 | B29: =INDIRECT(ADDRESS(MATCH($B$1,Calendrier!$A$15:$A$59,0)+14,ROW()-17,3,1,"Calendrier"),1) -> T | C29: 5 | F29: 13 | G29: =IF(AND(C29<>0,D29<>0,E29<>0,F29<>0),F29-E29+D29-C29-M29-IF(E29-D29<Calendrier!$AT$10,Calendrier!$AT$10,0),IF(AND(C29<>0,D29<>0,E29=0,F29=0),D29-C29-M29,IF(AND(C29=0,D29=0,E29<>0,F29<>0),F29-E29-M29,IF(AND(C29>20,D29=0,E29=0,F29<>0),24-C29+F29-M29,IF(AND(C29<>0,D29=0,E29=0,F29<>0),F29-C29-M29,0))))) -> 8 | H29: =IF(G29=0,0,IF(K29=0.5,0,G29-Calendrier!$AT$9)) -> 0 | I29: 0 | J29: T | K29: 1 | M29: 0
A30: 2023-01-12 | B30: =INDIRECT(ADDRESS(MATCH($B$1,Calendrier!$A$15:$A$59,0)+14,ROW()-17,3,1,"Calendrier"),1) -> T | G30: =IF(AND(C30<>0,D30<>0,E30<>0,F30<>0),F30-E30+D30-C30-M30-IF(E30-D30<Calendrier!$AT$10,Calendrier!$AT$10,0),IF(AND(C30<>0,D30<>0,E30=0,F30=0),D30-C30-M30,IF(AND(C30=0,D30=0,E30<>0,F30<>0),F30-E30-M30,IF(AND(C30>20,D30=0,E30=0,F30<>0),24-C30+F30-M30,IF(AND(C30<>0,D30=0,E30=0,F30<>0),F30-C30-M30,0))))) -> 0 | H30: =IF(G30=0,0,IF(K30=0.5,0,G30-Calendrier!$AT$9)) -> 0 | I30: 0 | J30: T | K30: 0 | M30: 0
A31: 2023-01-13 | B31: =INDIRECT(ADDRESS(MATCH($B$1,Calendrier!$A$15:$A$59,0)+14,ROW()-17,3,1,"Calendrier"),1) -> T | C31: 13 | F31: 21 | G31: =IF(AND(C31<>0,D31<>0,E31<>0,F31<>0),F31-E31+D31-C31-M31-IF(E31-D31<Calendrier!$AT$10,Calendrier!$AT$10,0),IF(AND(C31<>0,D31<>0,E31=0,F31=0),D31-C31-M31,IF(AND(C31=0,D31=0,E31<>0,F31<>0),F31-E31-M31,IF(AND(C31>20,D31=0,E31=0,F31<>0),24-C31+F31-M31,IF(AND(C31<>0,D31=0,E31=0,F31<>0),F31-C31-M31,0))))) -> 8 | H31: =IF(G31=0,0,IF(K31=0.5,0,G31-Calendrier!$AT$9)) -> 0 | I31: 0 | J31: T | K31: 1 | M31: 0
A32: 2023-01-14 | B32: =INDIRECT(ADDRESS(MATCH($B$1,Calendrier!$A$15:$A$59,0)+14,ROW()-17,3,1,"Calendrier"),1) -> Sa | G32: =IF(AND(C32<>0,D32<>0,E32<>0,F32<>0),F32-E32+D32-C32-M32-IF(E32-D32<Calendrier!$AT$10,Calendrier!$AT$10,0),IF(AND(C32<>0,D32<>0,E32=0,F32=0),D32-C32-M32,IF(AND(C32=0,D32=0,E32<>0,F32<>0),F32-E32-M32,IF(AND(C32>20,D32=0,E32=0,F32<>0),24-C32+F32-M32,IF(AND(C32<>0,D32=0,E32=0,F32<>0),F32-C32-M32,0))))) -> 0 | H32: =IF(G32=0,0,IF(K32=0.5,0,G32-Calendrier!$AT$9)) -> 0 | I32: 0 | J32: Sa | K32: 0 | M32: 0
A33: 2023-01-15 | B33: =INDIRECT(ADDRESS(MATCH($B$1,Calendrier!$A$15:$A$59,0)+14,ROW()-17,3,1,"Calendrier"),1) -> Di | G33: =IF(AND(C33<>0,D33<>0,E33<>0,F33<>0),F33-E33+D33-C33-M33-IF(E33-D33<Calendrier!$AT$10,Calendrier!$AT$10,0),IF(AND(C33<>0,D33<>0,E33=0,F33=0),D33-C33-M33,IF(AND(C33=0,D33=0,E33<>0,F33<>0),F33-E33-M33,IF(AND(C33>20,D33=0,E33=0,F33<>0),24-C33+F33-M33,IF(AND(C33<>0,D33=0,E33=0,F33<>0),F33-C33-M33,0))))) -> 0 | H33: =IF(G33=0,0,IF(K33=0.5,0,G33-Calendrier!$AT$9)) -> 0 | I33: 0 | J33: Di | K33: 0 | M33: 0
A34: 2023-01-16 | B34: =INDIRECT(ADDRESS(MATCH($B$1,Calendrier!$A$15:$A$59,0)+14,ROW()-17,3,1,"Calendrier"),1) -> T | C34: 21 | F34: 5 | G34: =IF(AND(C34<>0,D34<>0,E34<>0,F34<>0),F34-E34+D34-C34-M34-IF(E34-D34<Calendrier!$AT$10,Calendrier!$AT$10,0),IF(AND(C34<>0,D34<>0,E34=0,F34=0),D34-C34-M34,IF(AND(C34=0,D34=0,E34<>0,F34<>0),F34-E34-M34,IF(AND(C34>20,D34=0,E34=0,F34<>0),24-C34+F34-M34,IF(AND(C34<>0,D34=0,E34=0,F34<>0),F34-C34-M34,0))))) -> 8 | H34: =IF(G34=0,0,IF(K34=0.5,0,G34-Calendrier!$AT$9)) -> 0 | I34: 0 | J34: =IF(AND(COUNTA(C34:F34)=0,OR(B34="F",WEEKDAY(A34,2)>5,B34="T",B34="RTT",B34="CA")),B34,IF(AND(COUNTA(C34:F34)>=2,OR(B34="F",B34="RTT",B34="CA",B34="Sa",B34="Di")),"calendrier",IF(AND(COUNTA(C34)+COUNTA(F34)=2,OR(COUNTA(C34:D34)<1,COUNTA(E34:F34)<1)),"erreur",IF(COUNTA(C34:F34)=3,"en cours",IF(COUNTA(C34:F34)=4,B34,IF(OR(AND(C34<>0,D34<>0),AND(E34<>0,F34<>0)),$F$12,IF(AND(C34<>0,D34=0,E34=0,F34<>0,WEEKDAY(A34,2)>5),"calendrier",IF(AND(C34<>0,D34=0,E34=0,F34<>0),$B34,"")))))))) -> T | K34: 1 | M34: 0
A35: 2023-01-17 | B35: =INDIRECT(ADDRESS(MATCH($B$1,Calendrier!$A$15:$A$59,0)+14,ROW()-17,3,1,"Calendrier"),1) -> T | C35: 7 | D35: 12 | E35: 13 | F35: 17 | G35: =IF(AND(C35<>0,D35<>0,E35<>0,F35<>0),F35-E35+D35-C35-M35-IF(E35-D35<Calendrier!$AT$10,Calendrier!$AT$10,0),IF(AND(C35<>0,D35<>0,E35=0,F35=0),D35-C35-M35,IF(AND(C35=0,D35=0,E35<>0,F35<>0),F35-E35-M35,IF(AND(C35>20,D35=0,E35=0,F35<>0),24-C35+F35-M35,IF(AND(C35<>0,D35=0,E35=0,F35<>0),F35-C35-M35,0))))) -> 9 | H35: =IF(G35=0,0,IF(K35=0.5,0,G35-Calendrier!$AT$9)) -> 1 | I35: 1 | J35: T | K35: 1 | M35: 0
A36: 2023-01-18 | B36: =INDIRECT(ADDRESS(MATCH($B$1,Calendrier!$A$15:$A$59,0)+14,ROW()-17,3,1,"Calendrier"),1) -> RTT | C36: 7 | D36: 12 | E36: 12.5 | F36: 17 | G36: =IF(AND(C36<>0,D36<>0,E36<>0,F36<>0),F36-E36+D36-C36-M36-IF(E36-D36<Calendrier!$AT$10,Calendrier!$AT$10,0),IF(AND(C36<>0,D36<>0,E36=0,F36=0),D36-C36-M36,IF(AND(C36=0,D36=0,E36<>0,F36<>0),F36-E36-M36,IF(AND(C36>20,D36=0,E36=0,F36<>0),24-C36+F36-M36,IF(AND(C36<>0,D36=0,E36=0,F36<>0),F36-C36-M36,0))))) -> 8.75 | H36: =IF(G36=0,0,IF(K36=0.5,0,G36-Calendrier!$AT$9)) -> 0.75 | I36: 1.75 | J36: calendrier | K36: 1 | M36: 0
A37: 2023-01-19 | B37: =INDIRECT(ADDRESS(MATCH($B$1,Calendrier!$A$15:$A$59,0)+14,ROW()-17,3,1,"Calendrier"),1) -> T | G37: =IF(AND(C37<>0,D37<>0,E37<>0,F37<>0),F37-E37+D37-C37-M37-IF(E37-D37<Calendrier!$AT$10,Calendrier!$AT$10,0),IF(AND(C37<>0,D37<>0,E37=0,F37=0),D37-C37-M37,IF(AND(C37=0,D37=0,E37<>0,F37<>0),F37-E37-M37,IF(AND(C37>20,D37=0,E37=0,F37<>0),24-C37+F37-M37,IF(AND(C37<>0,D37=0,E37=0,F37<>0),F37-C37-M37,0))))) -> 0 | H37: =IF(G37=0,0,IF(K37=0.5,0,G37-Calendrier!$AT$9)) -> 0 | I37: 1.75 | J37: T | K37: 0 | M37: 0
A38: 2023-01-20 | B38: =INDIRECT(ADDRESS(MATCH($B$1,Calendrier!$A$15:$A$59,0)+14,ROW()-17,3,1,"Calendrier"),1) -> T | G38: =IF(AND(C38<>0,D38<>0,E38<>0,F38<>0),F38-E38+D38-C38-M38-IF(E38-D38<Calendrier!$AT$10,Calendrier!$AT$10,0),IF(AND(C38<>0,D38<>0,E38=0,F38=0),D38-C38-M38,IF(AND(C38=0,D38=0,E38<>0,F38<>0),F38-E38-M38,IF(AND(C38>20,D38=0,E38=0,F38<>0),24-C38+F38-M38,IF(AND(C38<>0,D38=0,E38=0,F38<>0),F38-C38-M38,0))))) -> 0 | H38: =IF(G38=0,0,IF(K38=0.5,0,G38-Calendrier!$AT$9)) -> 0 | I38: 1.75 | J38: T | K38: 0 | M38: 0
A39: 2023-01-21 | B39: =INDIRECT(ADDRESS(MATCH($B$1,Calendrier!$A$15:$A$59,0)+14,ROW()-17,3,1,"Calendrier"),1) -> Sa | G39: =IF(AND(C39<>0,D39<>0,E39<>0,F39<>0),F39-E39+D39-C39-M39-IF(E39-D39<Calendrier!$AT$10,Calendrier!$AT$10,0),IF(AND(C39<>0,D39<>0,E39=0,F39=0),D39-C39-M39,IF(AND(C39=0,D39=0,E39<>0,F39<>0),F39-E39-M39,IF(AND(C39>20,D39=0,E39=0,F39<>0),24-C39+F39-M39,IF(AND(C39<>0,D39=0,E39=0,F39<>0),F39-C39-M39,0))))) -> 0 | H39: =IF(G39=0,0,IF(K39=0.5,0,G39-Calendrier!$AT$9)) -> 0 | I39: 1.75 | J39: Sa | K39: 0 | M39: 0
A40: 2023-01-22 | B40: =INDIRECT(ADDRESS(MATCH($B$1,Calendrier!$A$15:$A$59,0)+14,ROW()-17,3,1,"Calendrier"),1) -> Di | G40: =IF(AND(C40<>0,D40<>0,E40<>0,F40<>0),F40-E40+D40-C40-M40-IF(E40-D40<Calendrier!$AT$10,Calendrier!$AT$10,0),IF(AND(C40<>0,D40<>0,E40=0,F40=0),D40-C40-M40,IF(AND(C40=0,D40=0,E40<>0,F40<>0),F40-E40-M40,IF(AND(C40>20,D40=0,E40=0,F40<>0),24-C40+F40-M40,IF(AND(C40<>0,D40=0,E40=0,F40<>0),F40-C40-M40,0))))) -> 0 | H40: =IF(G40=0,0,IF(K40=0.5,0,G40-Calendrier!$AT$9)) -> 0 | I40: 1.75 | J40: Di | K40: 0 | M40: 0
A41: 2023-01-23 | B41: =INDIRECT(ADDRESS(MATCH($B$1,Calendrier!$A$15:$A$59,0)+14,ROW()-17,3,1,"Calendrier"),1) -> T | G41: =IF(AND(C41<>0,D41<>0,E41<>0,F41<>0),F41-E41+D41-C41-M41-IF(E41-D41<Calendrier!$AT$10,Calendrier!$AT$10,0),IF(AND(C41<>0,D41<>0,E41=0,F41=0),D41-C41-M41,IF(AND(C41=0,D41=0,E41<>0,F41<>0),F41-E41-M41,IF(AND(C41>20,D41=0,E41=0,F41<>0),24-C41+F41-M41,IF(AND(C41<>0,D41=0,E41=0,F41<>0),F41-C41-M41,0))))) -> 0 | H41: =IF(G41=0,0,IF(K41=0.5,0,G41-Calendrier!$AT$9)) -> 0 | I41: 1.75 | J41: T | K41: 0 | M41: 0
A42: 2023-01-24 | B42: =INDIRECT(ADDRESS(MATCH($B$1,Calendrier!$A$15:$A$59,0)+14,ROW()-17,3,1,"Calendrier"),1) -> T | G42: =IF(AND(C42<>0,D42<>0,E42<>0,F42<>0),F42-E42+D42-C42-M42-IF(E42-D42<Calendrier!$AT$10,Calendrier!$AT$10,0),IF(AND(C42<>0,D42<>0,E42=0,F42=0),D42-C42-M42,IF(AND(C42=0,D42=0,E42<>0,F42<>0),F42-E42-M42,IF(AND(C42>20,D42=0,E42=0,F42<>0),24-C42+F42-M42,IF(AND(C42<>0,D42=0,E42=0,F42<>0),F42-C42-M42,0))))) -> 0 | H42: =IF(G42=0,0,IF(K42=0.5,0,G42-Calendrier!$AT$9)) -> 0 | I42: 1.75 | J42: T | K42: 0 | M42: 0
A43: 2023-01-25 | B43: =INDIRECT(ADDRESS(MATCH($B$1,Calendrier!$A$15:$A$59,0)+14,ROW()-17,3,1,"Calendrier"),1) -> T | G43: =IF(AND(C43<>0,D43<>0,E43<>0,F43<>0),F43-E43+D43-C43-M43-IF(E43-D43<Calendrier!$AT$10,Calendrier!$AT$10,0),IF(AND(C43<>0,D43<>0,E43=0,F43=0),D43-C43-M43,IF(AND(C43=0,D43=0,E43<>0,F43<>0),F43-E43-M43,IF(AND(C43>20,D43=0,E43=0,F43<>0),24-C43+F43-M43,IF(AND(C43<>0,D43=0,E43=0,F43<>0),F43-C43-M43,0))))) -> 0 | H43: =IF(G43=0,0,IF(K43=0.5,0,G43-Calendrier!$AT$9)) -> 0 | I43: 1.75 | J43: T | K43: 0 | M43: 0
A44: 2023-01-26 | B44: =INDIRECT(ADDRESS(MATCH($B$1,Calendrier!$A$15:$A$59,0)+14,ROW()-17,3,1,"Calendrier"),1) -> T | G44: =IF(AND(C44<>0,D44<>0,E44<>0,F44<>0),F44-E44+D44-C44-M44-IF(E44-D44<Calendrier!$AT$10,Calendrier!$AT$10,0),IF(AND(C44<>0,D44<>0,E44=0,F44=0),D44-C44-M44,IF(AND(C44=0,D44=0,E44<>0,F44<>0),F44-E44-M44,IF(AND(C44>20,D44=0,E44=0,F44<>0),24-C44+F44-M44,IF(AND(C44<>0,D44=0,E44=0,F44<>0),F44-C44-M44,0))))) -> 0 | H44: =IF(G44=0,0,IF(K44=0.5,0,G44-Calendrier!$AT$9)) -> 0 | I44: 1.75 | J44: T | K44: 0 | M44: 0
A45: 2023-01-27 | B45: =INDIRECT(ADDRESS(MATCH($B$1,Calendrier!$A$15:$A$59,0)+14,ROW()-17,3,1,"Calendrier"),1) -> T | G45: =IF(AND(C45<>0,D45<>0,E45<>0,F45<>0),F45-E45+D45-C45-M45-IF(E45-D45<Calendrier!$AT$10,Calendrier!$AT$10,0),IF(AND(C45<>0,D45<>0,E45=0,F45=0),D45-C45-M45,IF(AND(C45=0,D45=0,E45<>0,F45<>0),F45-E45-M45,IF(AND(C45>20,D45=0,E45=0,F45<>0),24-C45+F45-M45,IF(AND(C45<>0,D45=0,E45=0,F45<>0),F45-C45-M45,0))))) -> 0 | H45: =IF(G45=0,0,IF(K45=0.5,0,G45-Calendrier!$AT$9)) -> 0 | I45: 1.75 | J45: T | K45: 0 | M45: 0
A46: 2023-01-28 | B46: =INDIRECT(ADDRESS(MATCH($B$1,Calendrier!$A$15:$A$59,0)+14,ROW()-17,3,1,"Calendrier"),1) -> Sa | G46: =IF(AND(C46<>0,D46<>0,E46<>0,F46<>0),F46-E46+D46-C46-M46-IF(E46-D46<Calendrier!$AT$10,Calendrier!$AT$10,0),IF(AND(C46<>0,D46<>0,E46=0,F46=0),D46-C46-M46,IF(AND(C46=0,D46=0,E46<>0,F46<>0),F46-E46-M46,IF(AND(C46>20,D46=0,E46=0,F46<>0),24-C46+F46-M46,IF(AND(C46<>0,D46=0,E46=0,F46<>0),F46-C46-M46,0))))) -> 0 | H46: =IF(G46=0,0,IF(K46=0.5,0,G46-Calendrier!$AT$9)) -> 0 | I46: 1.75 | J46: Sa | K46: 0 | M46: 0
A47: 2023-01-29 | B47: =INDIRECT(ADDRESS(MATCH($B$1,Calendrier!$A$15:$A$59,0)+14,ROW()-17,3,1,"Calendrier"),1) -> Di | G47: =IF(AND(C47<>0,D47<>0,E47<>0,F47<>0),F47-E47+D47-C47-M47-IF(E47-D47<Calendrier!$AT$10,Calendrier!$AT$10,0),IF(AND(C47<>0,D47<>0,E47=0,F47=0),D47-C47-M47,IF(AND(C47=0,D47=0,E47<>0,F47<>0),F47-E47-M47,IF(AND(C47>20,D47=0,E47=0,F47<>0),24-C47+F47-M47,IF(AND(C47<>0,D47=0,E47=0,F47<>0),F47-C47-M47,0))))) -> 0 | H47: =IF(G47=0,0,IF(K47=0.5,0,G47-Calendrier!$AT$9)) -> 0 | I47: 1.75 | J47: Di | K47: 0 | M47: 0
A48: 2023-01-30 | B48: =INDIRECT(ADDRESS(MATCH($B$1,Calendrier!$A$15:$A$59,0)+14,ROW()-17,3,1,"Calendrier"),1) -> T | G48: =IF(AND(C48<>0,D48<>0,E48<>0,F48<>0),F48-E48+D48-C48-M48-IF(E48-D48<Calendrier!$AT$10,Calendrier!$AT$10,0),IF(AND(C48<>0,D48<>0,E48=0,F48=0),D48-C48-M48,IF(AND(C48=0,D48=0,E48<>0,F48<>0),F48-E48-M48,IF(AND(C48>20,D48=0,E48=0,F48<>0),24-C48+F48-M48,IF(AND(C48<>0,D48=0,E48=0,F48<>0),F48-C48-M48,0))))) -> 0 | H48: =IF(G48=0,0,IF(K48=0.5,0,G48-Calendrier!$AT$9)) -> 0 | I48: 1.75 | J48: T | K48: 0 | M48: 0
A49: 2023-01-31 | B49: =INDIRECT(ADDRESS(MATCH($B$1,Calendrier!$A$15:$A$59,0)+14,ROW()-17,3,1,"Calendrier"),1) -> T | G49: =IF(AND(C49<>0,D49<>0,E49<>0,F49<>0),F49-E49+D49-C49-M49-IF(E49-D49<Calendrier!$AT$10,Calendrier!$AT$10,0),IF(AND(C49<>0,D49<>0,E49=0,F49=0),D49-C49-M49,IF(AND(C49=0,D49=0,E49<>0,F49<>0),F49-E49-M49,IF(AND(C49>20,D49=0,E49=0,F49<>0),24-C49+F49-M49,IF(AND(C49<>0,D49=0,E49=0,F49<>0),F49-C49-M49,0))))) -> 0 | H49: =IF(G49=0,0,IF(K49=0.5,0,G49-Calendrier!$AT$9)) -> 0 | I49: 1.75 | J49: T | K49: 0 | M49: 0
G50: =SUM(G19:G49) -> 65.25 | I50: =I49 -> 1.75

Sheet FEV
B1: =RIGHT(CELL("nomfichier",$A$1),3) -> FEV | C1: FICHE DE SUIVI HORAIRE
B3: mois : | C3: FEVRIER | F3: année | G3: =VLOOKUP(C3,Fériés!$I$1:$J$12,2,FALSE) -> 2023 | J3: service | K3: =Calendrier!F4 -> Administratif
B5: nom : | C5: =Calendrier!F2 -> Isq | F5: prénom | G5: =Calendrier!F3 -> Philippe | J5: N° Ident | K5: =Calendrier!F1 -> T506489
H6: à réaliser | I6: cumul | J6: en cours | K6: reste | M6: N.cumul
D7: Nb J | E7: =Calendrier!$AT$11 -> 218 | F7: =+$H$10 -> 0 | G7: =E7-F7 -> 218 | H7: =Calendrier!N1 -> 365 | I7: =JAN!M7 -> 27.5 | J7: =SUM(J8:J15) -> 28 | K7: =H7-(I7+J7) -> 309.5 | M7: =SUM(M8:M15) -> 55.5
F8: 1/2CA | G8: CA | H8: =Calendrier!N5 -> 25 | I8: =JAN!M8 -> 0 | J8: =COUNTIF($J$19:$J$49,G8) -> 0 | K8: =+H8-(I8+J8) -> 25 | L8: J | M8: =+I8+J8 -> 0
F9: 1/2RTT | G9: RTT | H9: =Calendrier!N8 -> 9 | I9: =JAN!M9 -> 0 | J9: =COUNTIF($J$19:$J$49,G9)+COUNTIF($J$19:$J$49,F9)/2 -> 2 | K9: =+H9-(I9+J9) -> 7 | L9: J | M9: 2
F10: 1/2CS | G10: CS | H10: =Calendrier!N9 -> 0 | I10: =JAN!M10 -> 0 | J10: 0 | K10: =H10-(I10+J10) -> 0 | L10: J | M10: 0
F11: 1/2CP | G11: CP | H11: =Calendrier!N6 -> 0 | I11: =JAN!M11 -> 0 | J11: 0 | K11: =H11-(I11+J11) -> 0 | L11: J | M11: 0
F12: 1/2T | G12: T | H12: =Calendrier!N7 -> 218 | I12: =JAN!M12 -> 18.5 | J12: 18 | K12: =H12-(I12+J12) -> 181.5 | L12: J | M12: 36.5
F13: 0 | G13: Sa | H13: =Calendrier!N4 -> 51 | I13: =JAN!M13 -> 4 | J13: =COUNTIF($J$19:$J$49,G13) -> 4 | K13: =+H13-(I13+J13) -> 43 | L13: J | M13: 8
F14: 0 | G14: Di | H14: =Calendrier!N3 -> 50 | I14: =JAN!M14 -> 4 | J14: =COUNTIF($J$19:$J$49,G14) -> 4 | K14: =+H14-(I14+J14) -> 42 | L14: J | M14: 8
F15: 0 | G15: F | H15: =Calendrier!N2 -> 12 | I15: =JAN!M15 -> 1 | J15: =COUNTIF($J$19:$J$49,G15) -> 0 | K15: =+H15-(I15+J15) -> 11 | L15: J | M15: 1
G16: heure/avance fin mois | I16: =JAN!$I$50 -> 1.75 | M16: =I50 -> 1.75 | N16: avec bon
B17: Prévu | C17: Entrée | D17: Sortie | E17: Entrée | F17: Sortie | G17: total | H17: variation | I17: cumul | J17: Type | K17: nb J/T | M17: divers E/S | N17: Sortie | O17: Retour
I18: =JAN!$I$50 -> 1.75
A19: =VALUE("01/02/"&G3) -> 2023-02-01 | B19: =INDIRECT(ADDRESS(MATCH($B$1,Calendrier!$A$15:$A$59,0)+14,ROW()-17,3,1,"Calendrier"),1) -> T | G19: =IF(AND(C19<>0,D19<>0,E19<>0,F19<>0),F19-E19+D19-C19-K19-IF(E19-D19<Calendrier!$AT$10,Calendrier!$AT$10,0),IF(AND(C19<>0,D19<>0,E19=0,F19=0),D19-C19-K19,IF(AND(C19=0,D19=0,E19<>0,F19<>0),F19-E19-K19,IF(AND(C19>20,D19=0,E19=0,F19<>0),24-C19+F19-K19,IF(AND(C19<>0,D19=0,E19=0,F19<>0),F19-C19-K19,0))))) -> 0 | H19: =IF(G19=0,0,IF(K19=0.5,0,G19-Calendrier!$AT$9)) -> 0 | I19: =I18+H19 -> 1.75 | J19: =IF(AND(COUNTA(C19:F19)=0,OR(B19="F",WEEKDAY(A19,2)>5,B19="T",B19="RTT",B19="CA")),B19,IF(AND(COUNTA(C19:F19)>=2,OR(B19="F",B19="RTT",B19="CA",B19="Sa",B19="Di")),"calendrier",IF(AND(COUNTA(C19)+COUNTA(F19)=2,OR(COUNTA(C19:D19)<1,COUNTA(E19:F19)<1)),"erreur",IF(COUNTA(C19:F19)=3,"en cours",IF(COUNTA(C19:F19)=4,B19,IF(OR(AND(C19<>0,D19<>0),AND(E19<>0,F19<>0)),$F$12,IF(AND(C19<>0,D19=0,E19=0,F19<>0,WEEKDAY(A19,2)>5),"calendrier",IF(AND(C19<>0,D19=0,E19=0,F19<>0),$B19,"")))))))) -> T | K19: =IF(COUNTA(C19:F19)=4,1,IF(OR(AND(C19<>0,D19<>0),AND(E19<>0,F19<>0)),0.5,IF(AND(C19<>0,F19<>0,D19=0,E19=0,B19="T"),1,0))) -> 0 | M19: =IF(OR(N19=0,O19=0),0,O19-N19) -> 0
A20: =A19+1 -> 2023-02-02 | B20: =INDIRECT(ADDRESS(MATCH($B$1,Calendrier!$A$15:$A$59,0)+14,ROW()-17,3,1,"Calendrier"),1) -> T | G20: =IF(AND(C20<>0,D20<>0,E20<>0,F20<>0),F20-E20+D20-C20-K20-IF(E20-D20<Calendrier!$AT$10,Calendrier!$AT$10,0),IF(AND(C20<>0,D20<>0,E20=0,F20=0),D20-C20-K20,IF(AND(C20=0,D20=0,E20<>0,F20<>0),F20-E20-K20,IF(AND(C20>20,D20=0,E20=0,F20<>0),24-C20+F20-K20,IF(AND(C20<>0,D20=0,E20=0,F20<>0),F20-C20-K20,0))))) -> 0 | H20: =IF(G20=0,0,IF(K20=0.5,0,G20-Calendrier!$AT$9)) -> 0 | I20: 1.75 | J20: T | K20: 0 | M20: 0 | Q20: =IF(AND(COUNTA(C19:F19)=0,WEEKDAY(A19,2)>5),B19,IF(COUNTA(C19:F19)=0,"",IF(COUNTA(C19:F19)=0,"",IF(AND(COUNTA(D19:F19)=0,C19<>0),"erreur",IF(COUNTA(C19:F19)=4,B19,IF(COUNTA(C19:F19)=3,"H manquante",IF(AND(C19<>0,D19<>0),$F$12,IF(AND(E19<>0,F19<>0),$F$12,IF(AND(C19<>0,D19=0,E19=0,F19<>0,WEEKDAY(A19)>5),"Modif calendrier",IF(AND(C19<>0,D19=0,E19=0,F19<>0),$B19)))))))))) -> 
A21: =A20+1 -> 2023-02-03 | B21: =INDIRECT(ADDRESS(MATCH($B$1,Calendrier!$A$15:$A$59,0)+14,ROW()-17,3,1,"Calendrier"),1) -> T | G21: =IF(AND(C21<>0,D21<>0,E21<>0,F21<>0),F21-E21+D21-C21-M21-IF(E21-D21<Calendrier!$AT$10,Calendrier!$AT$10,0),IF(AND(C21<>0,D21<>0,E21=0,F21=0),D21-C21-M21,IF(AND(C21=0,D21=0,E21<>0,F21<>0),F21-E21-M21,IF(AND(C21>20,D21=0,E21=0,F21<>0),24-C21+F21-M21,IF(AND(C21<>0,D21=0,E21=0,F21<>0),F21-C21-M21,0))))) -> 0 | H21: =IF(G21=0,0,IF(K21=0.5,0,G21-Calendrier!$AT$9)) -> 0 | I21: =I20+H21 -> 1.75 | J21: T | K21: 0 | M21: 0
A22: 2023-02-04 | B22: =INDIRECT(ADDRESS(MATCH($B$1,Calendrier!$A$15:$A$59,0)+14,ROW()-17,3,1,"Calendrier"),1) -> Sa | G22: =IF(AND(C22<>0,D22<>0,E22<>0,F22<>0),F22-E22+D22-C22-M22-IF(E22-D22<Calendrier!$AT$10,Calendrier!$AT$10,0),IF(AND(C22<>0,D22<>0,E22=0,F22=0),D22-C22-M22,IF(AND(C22=0,D22=0,E22<>0,F22<>0),F22-E22-M22,IF(AND(C22>20,D22=0,E22=0,F22<>0),24-C22+F22-M22,IF(AND(C22<>0,D22=0,E22=0,F22<>0),F22-C22-M22,0))))) -> 0 | H22: =IF(G22=0,0,IF(K22=0.5,0,G22-Calendrier!$AT$9)) -> 0 | I22: 1.75 | J22: Sa | K22: 0 | M22: 0
A23: 2023-02-05 | B23: =INDIRECT(ADDRESS(MATCH($B$1,Calendrier!$A$15:$A$59,0)+14,ROW()-17,3,1,"Calendrier"),1) -> Di | G23: =IF(AND(C23<>0,D23<>0,E23<>0,F23<>0),F23-E23+D23-C23-M23-IF(E23-D23<Calendrier!$AT$10,Calendrier!$AT$10,0),IF(AND(C23<>0,D23<>0,E23=0,F23=0),D23-C23-M23,IF(AND(C23=0,D23=0,E23<>0,F23<>0),F23-E23-M23,IF(AND(C23>20,D23=0,E23=0,F23<>0),24-C23+F23-M23,IF(AND(C23<>0,D23=0,E23=0,F23<>0),F23-C23-M23,0))))) -> 0 | H23: =IF(G23=0,0,IF(K23=0.5,0,G23-Calendrier!$AT$9)) -> 0 | I23: 1.75 | J23: Di | K23: 0 | M23: 0
A24: 2023-02-06 | B24: =INDIRECT(ADDRESS(MATCH($B$1,Calendrier!$A$15:$A$59,0)+14,ROW()-17,3,1,"Calendrier"),1) -> T | G24: =IF(AND(C24<>0,D24<>0,E24<>0,F24<>0),F24-E24+D24-C24-M24-IF(E24-D24<Calendrier!$AT$10,Calendrier!$AT$10,0),IF(AND(C24<>0,D24<>0,E24=0,F24=0),D24-C24-M24,IF(AND(C24=0,D24=0,E24<>0,F24<>0),F24-E24-M24,IF(AND(C24>20,D24=0,E24=0,F24<>0),24-C24+F24-M24,IF(AND(C24<>0,D24=0,E24=0,F24<>0),F24-C24-M24,0))))) -> 0 | H24: =IF(G24=0,0,IF(K24=0.5,0,G24-Calendrier!$AT$9)) -> 0 | I24: 1.75 | J24: T | K24: 0 | M24: =IF(OR(N24=0,O24=0),0,O24-N24) -> 0
A25: 2023-02-07 | B25: =INDIRECT(ADDRESS(MATCH($B$1,Calendrier!$A$15:$A$59,0)+14,ROW()-17,3,1,"Calendrier"),1) -> RTT | G25: =IF(AND(C25<>0,D25<>0,E25<>0,F25<>0),F25-E25+D25-C25-M25-IF(E25-D25<Calendrier!$AT$10,Calendrier!$AT$10,0),IF(AND(C25<>0,D25<>0,E25=0,F25=0),D25-C25-M25,IF(AND(C25=0,D25=0,E25<>0,F25<>0),F25-E25-M25,IF(AND(C25>20,D25=0,E25=0,F25<>0),24-C25+F25-M25,IF(AND(C25<>0,D25=0,E25=0,F25<>0),F25-C25-M25,0))))) -> 0 | H25: =IF(G25=0,0,IF(K25=0.5,0,G25-Calendrier!$AT$9)) -> 0 | I25: 1.75 | J25: RTT | K25: 0 | M25: =IF(OR(N25=0,O25=0),0,O25-N25) -> 0
A26: 2023-02-08 | B26: =INDIRECT(ADDRESS(MATCH($B$1,Calendrier!$A$15:$A$59,0)+14,ROW()-17,3,1,"Calendrier"),1) -> T | G26: =IF(AND(C26<>0,D26<>0,E26<>0,F26<>0),F26-E26+D26-C26-M26-IF(E26-D26<Calendrier!$AT$10,Calendrier!$AT$10,0),IF(AND(C26<>0,D26<>0,E26=0,F26=0),D26-C26-M26,IF(AND(C26=0,D26=0,E26<>0,F26<>0),F26-E26-M26,IF(AND(C26>20,D26=0,E26=0,F26<>0),24-C26+F26-M26,IF(AND(C26<>0,D26=0,E26=0,F26<>0),F26-C26-M26,0))))) -> 0 | H26: =IF(G26=0,0,IF(K26=0.5,0,G26-Calendrier!$AT$9)) -> 0 | I26: 1.75 | J26: T | K26: 0 | M26: 0
A27: 2023-02-09 | B27: =INDIRECT(ADDRESS(MATCH($B$1,Calendrier!$A$15:$A$59,0)+14,ROW()-17,3,1,"Calendrier"),1) -> T | G27: =IF(AND(C27<>0,D27<>0,E27<>0,F27<>0),F27-E27+D27-C27-M27-IF(E27-D27<Calendrier!$AT$10,Calendrier!$AT$10,0),IF(AND(C27<>0,D27<>0,E27=0,F27=0),D27-C27-M27,IF(AND(C27=0,D27=0,E27<>0,F27<>0),F27-E27-M27,IF(AND(C27>20,D27=0,E27=0,F27<>0),24-C27+F27-M27,IF(AND(C27<>0,D27=0,E27=0,F27<>0),F27-C27-M27,0))))) -> 0 | H27: =IF(G27=0,0,IF(K27=0.5,0,G27-Calendrier!$AT$9)) -> 0 | I27: 1.75 | J27: T | K27: 0 | M27: 0
A28: 2023-02-10 | B28: =INDIRECT(ADDRESS(MATCH($B$1,Calendrier!$A$15:$A$59,0)+14,ROW()-17,3,1,"Calendrier"),1) -> T | G28: =IF(AND(C28<>0,D28<>0,E28<>0,F28<>0),F28-E28+D28-C28-M28-IF(E28-D28<Calendrier!$AT$10,Calendrier!$AT$10,0),IF(AND(C28<>0,D28<>0,E28=0,F28=0),D28-C28-M28,IF(AND(C28=0,D28=0,E28<>0,F28<>0),F28-E28-M28,IF(AND(C28>20,D28=0,E28=0,F28<>0),24-C28+F28-M28,IF(AND(C28<>0,D28=0,E28=0,F28<>0),F28-C28-M28,0))))) -> 0 | H28: =IF(G28=0,0,IF(K28=0.5,0,G28-Calendrier!$AT$9)) -> 0 | I28: 1.75 | J28: T | K28: 0 | M28: 0
A29: 2023-02-11 | B29: =INDIRECT(ADDRESS(MATCH($B$1,Calendrier!$A$15:$A$59,0)+14,ROW()-17,3,1,"Calendrier"),1) -> Sa | G29: =IF(AND(C29<>0,D29<>0,E29<>0,F29<>0),F29-E29+D29-C29-M29-IF(E29-D29<Calendrier!$AT$10,Calendrier!$AT$10,0),IF(AND(C29<>0,D29<>0,E29=0,F29=0),D29-C29-M29,IF(AND(C29=0,D29=0,E29<>0,F29<>0),F29-E29-M29,IF(AND(C29>20,D29=0,E29=0,F29<>0),24-C29+F29-M29,IF(AND(C29<>0,D29=0,E29=0,F29<>0),F29-C29-M29,0))))) -> 0 | H29: =IF(G29=0,0,IF(K29=0.5,0,G29-Calendrier!$AT$9)) -> 0 | I29: 1.75 | J29: Sa | K29: 0 | M29: 0
A30: 2023-02-12 | B30: =INDIRECT(ADDRESS(MATCH($B$1,Calendrier!$A$15:$A$59,0)+14,ROW()-17,3,1,"Calendrier"),1) -> Di | G30: =IF(AND(C30<>0,D30<>0,E30<>0,F30<>0),F30-E30+D30-C30-M30-IF(E30-D30<Calendrier!$AT$10,Calendrier!$AT$10,0),IF(AND(C30<>0,D30<>0,E30=0,F30=0),D30-C30-M30,IF(AND(C30=0,D30=0,E30<>0,F30<>0),F30-E30-M30,IF(AND(C30>20,D30=0,E30=0,F30<>0),24-C30+F30-M30,IF(AND(C30<>0,D30=0,E30=0,F30<>0),F30-C30-M30,0))))) -> 0 | H30: =IF(G30=0,0,IF(K30=0.5,0,G30-Calendrier!$AT$9)) -> 0 | I30: 1.75 | J30: Di | K30: 0 | M30: 0
A31: 2023-02-13 | B31: =INDIRECT(ADDRESS(MATCH($B$1,Calendrier!$A$15:$A$59,0)+14,ROW()-17,3,1,"Calendrier"),1) -> T | G31: =IF(AND(C31<>0,D31<>0,E31<>0,F31<>0),F31-E31+D31-C31-M31-IF(E31-D31<Calendrier!$AT$10,Calendrier!$AT$10,0),IF(AND(C31<>0,D31<>0,E31=0,F31=0),D31-C31-M31,IF(AND(C31=0,D31=0,E31<>0,F31<>0),F31-E31-M31,IF(AND(C31>20,D31=0,E31=0,F31<>0),24-C31+F31-M31,IF(AND(C31<>0,D31=0,E31=0,F31<>0),F31-C31-M31,0))))) -> 0 | H31: =IF(G31=0,0,IF(K31=0.5,0,G31-Calendrier!$AT$9)) -> 0 | I31: 1.75 | J31: T | K31: 0 | M31: 0
A32: 2023-02-14 | B32: =INDIRECT(ADDRESS(MATCH($B$1,Calendrier!$A$15:$A$59,0)+14,ROW()-17,3,1,"Calendrier"),1) -> T | G32: =IF(AND(C32<>0,D32<>0,E32<>0,F32<>0),F32-E32+D32-C32-M32-IF(E32-D32<Calendrier!$AT$10,Calendrier!$AT$10,0),IF(AND(C32<>0,D32<>0,E32=0,F32=0),D32-C32-M32,IF(AND(C32=0,D32=0,E32<>0,F32<>0),F32-E32-M32,IF(AND(C32>20,D32=0,E32=0,F32<>0),24-C32+F32-M32,IF(AND(C32<>0,D32=0,E32=0,F32<>0),F32-C32-M32,0))))) -> 0 | H32: =IF(G32=0,0,IF(K32=0.5,0,G32-Calendrier!$AT$9)) -> 0 | I32: 1.75 | J32: T | K32: 0 | M32: 0
A33: 2023-02-15 | B33: =INDIRECT(ADDRESS(MATCH($B$1,Calendrier!$A$15:$A$59,0)+14,ROW()-17,3,1,"Calendrier"),1) -> T | G33: =IF(AND(C33<>0,D33<>0,E33<>0,F33<>0),F33-E33+D33-C33-M33-IF(E33-D33<Calendrier!$AT$10,Calendrier!$AT$10,0),IF(AND(C33<>0,D33<>0,E33=0,F33=0),D33-C33-M33,IF(AND(C33=0,D33=0,E33<>0,F33<>0),F33-E33-M33,IF(AND(C33>20,D33=0,E33=0,F33<>0),24-C33+F33-M33,IF(AND(C33<>0,D33=0,E33=0,F33<>0),F33-C33-M33,0))))) -> 0 | H33: =IF(G33=0,0,IF(K33=0.5,0,G33-Calendrier!$AT$9)) -> 0 | I33: 1.75 | J33: T | K33: 0 | M33: 0
A34: 2023-02-16 | B34: =INDIRECT(ADDRESS(MATCH($B$1,Calendrier!$A$15:$A$59,0)+14,ROW()-17,3,1,"Calendrier"),1) -> T | G34: =IF(AND(C34<>0,D34<>0,E34<>0,F34<>0),F34-E34+D34-C34-M34-IF(E34-D34<Calendrier!$AT$10,Calendrier!$AT$10,0),IF(AND(C34<>0,D34<>0,E34=0,F34=0),D34-C34-M34,IF(AND(C34=0,D34=0,E34<>0,F34<>0),F34-E34-M34,IF(AND(C34>20,D34=0,E34=0,F34<>0),24-C34+F34-M34,IF(AND(C34<>0,D34=0,E34=0,F34<>0),F34-C34-M34,0))))) -> 0 | H34: =IF(G34=0,0,IF(K34=0.5,0,G34-Calendrier!$AT$9)) -> 0 | I34: 1.75 | J34: =IF(AND(COUNTA(C34:F34)=0,OR(B34="F",WEEKDAY(A34,2)>5,B34="T",B34="RTT",B34="CA")),B34,IF(AND(COUNTA(C34:F34)>=2,OR(B34="F",B34="RTT",B34="CA",B34="Sa",B34="Di")),"calendrier",IF(AND(COUNTA(C34)+COUNTA(F34)=2,OR(COUNTA(C34:D34)<1,COUNTA(E34:F34)<1)),"erreur",IF(COUNTA(C34:F34)=3,"en cours",IF(COUNTA(C34:F34)=4,B34,IF(OR(AND(C34<>0,D34<>0),AND(E34<>0,F34<>0)),$F$12,IF(AND(C34<>0,D34=0,E34=0,F34<>0,WEEKDAY(A34,2)>5),"calendrier",IF(AND(C34<>0,D34=0,E34=0,F34<>0),$B34,"")))))))) -> T | K34: 0 | M34: 0
A35: 2023-02-17 | B35: =INDIRECT(ADDRESS(MATCH($B$1,Calendrier!$A$15:$A$59,0)+14,ROW()-17,3,1,"Calendrier"),1) -> T | G35: =IF(AND(C35<>0,D35<>0,E35<>0,F35<>0),F35-E35+D35-C35-M35-IF(E35-D35<Calendrier!$AT$10,Calendrier!$AT$10,0),IF(AND(C35<>0,D35<>0,E35=0,F35=0),D35-C35-M35,IF(AND(C35=0,D35=0,E35<>0,F35<>0),F35-E35-M35,IF(AND(C35>20,D35=0,E35=0,F35<>0),24-C35+F35-M35,IF(AND(C35<>0,D35=0,E35=0,F35<>0),F35-C35-M35,0))))) -> 0 | H35: =IF(G35=0,0,IF(K35=0.5,0,G35-Calendrier!$AT$9)) -> 0 | I35: 1.75 | J35: T | K35: 0 | M35: 0
A36: 2023-02-18 | B36: =INDIRECT(ADDRESS(MATCH($B$1,Calendrier!$A$15:$A$59,0)+14,ROW()-17,3,1,"Calendrier"),1) -> Sa | G36: =IF(AND(C36<>0,D36<>0,E36<>0,F36<>0),F36-E36+D36-C36-M36-IF(E36-D36<Calendrier!$AT$10,Calendrier!$AT$10,0),IF(AND(C36<>0,D36<>0,E36=0,F36=0),D36-C36-M36,IF(AND(C36=0,D36=0,E36<>0,F36<>0),F36-E36-M36,IF(AND(C36>20,D36=0,E36=0,F36<>0),24-C36+F36-M36,IF(AND(C36<>0,D36=0,E36=0,F36<>0),F36-C36-M36,0))))) -> 0 | H36: =IF(G36=0,0,IF(K36=0.5,0,G36-Calendrier!$AT$9)) -> 0 | I36: 1.75 | J36: Sa | K36: 0 | M36: 0
A37: 2023-02-19 | B37: =INDIRECT(ADDRESS(MATCH($B$1,Calendrier!$A$15:$A$59,0)+14,ROW()-17,3,1,"Calendrier"),1) -> Di | G37: =IF(AND(C37<>0,D37<>0,E37<>0,F37<>0),F37-E37+D37-C37-M37-IF(E37-D37<Calendrier!$AT$10,Calendrier!$AT$10,0),IF(AND(C37<>0,D37<>0,E37=0,F37=0),D37-C37-M37,IF(AND(C37=0,D37=0,E37<>0,F37<>0),F37-E37-M37,IF(AND(C37>20,D37=0,E37=0,F37<>0),24-C37+F37-M37,IF(AND(C37<>0,D37=0,E37=0,F37<>0),F37-C37-M37,0))))) -> 0 | H37: =IF(G37=0,0,IF(K37=0.5,0,G37-Calendrier!$AT$9)) -> 0 | I37: 1.75 | J37: Di | K37: 0 | M37: 0
A38: 2023-02-20 | B38: =INDIRECT(ADDRESS(MATCH($B$1,Calendrier!$A$15:$A$59,0)+14,ROW()-17,3,1,"Calendrier"),1) -> T | G38: =IF(AND(C38<>0,D38<>0,E38<>0,F38<>0),F38-E38+D38-C38-M38-IF(E38-D38<Calendrier!$AT$10,Calendrier!$AT$10,0),IF(AND(C38<>0,D38<>0,E38=0,F38=0),D38-C38-M38,IF(AND(C38=0,D38=0,E38<>0,F38<>0),F38-E38-M38,IF(AND(C38>20,D38=0,E38=0,F38<>0),24-C38+F38-M38,IF(AND(C38<>0,D38=0,E38=0,F38<>0),F38-C38-M38,0))))) -> 0 | H38: =IF(G38=0,0,IF(K38=0.5,0,G38-Calendrier!$AT$9)) -> 0 | I38: 1.75 | J38: T | K38: 0 | M38: 0
A39: 2023-02-21 | B39: =INDIRECT(ADDRESS(MATCH($B$1,Calendrier!$A$15:$A$59,0)+14,ROW()-17,3,1,"Calendrier"),1) -> T | G39: =IF(AND(C39<>0,D39<>0,E39<>0,F39<>0),F39-E39+D39-C39-M39-IF(E39-D39<Calendrier!$AT$10,Calendrier!$AT$10,0),IF(AND(C39<>0,D39<>0,E39=0,F39=0),D39-C39-M39,IF(AND(C39=0,D39=0,E39<>0,F39<>0),F39-E39-M39,IF(AND(C39>20,D39=0,E39=0,F39<>0),24-C39+F39-M39,IF(AND(C39<>0,D39=0,E39=0,F39<>0),F39-C39-M39,0))))) -> 0 | H39: =IF(G39=0,0,IF(K39=0.5,0,G39-Calendrier!$AT$9)) -> 0 | I39: 1.75 | J39: T | K39: 0 | M39: 0
A40: 2023-02-22 | B40: =INDIRECT(ADDRESS(MATCH($B$1,Calendrier!$A$15:$A$59,0)+14,ROW()-17,3,1,"Calendrier"),1) -> RTT | G40: =IF(AND(C40<>0,D40<>0,E40<>0,F40<>0),F40-E40+D40-C40-M40-IF(E40-D40<Calendrier!$AT$10,Calendrier!$AT$10,0),IF(AND(C40<>0,D40<>0,E40=0,F40=0),D40-C40-M40,IF(AND(C40=0,D40=0,E40<>0,F40<>0),F40-E40-M40,IF(AND(C40>20,D40=0,E40=0,F40<>0),24-C40+F40-M40,IF(AND(C40<>0,D40=0,E40=0,F40<>0),F40-C40-M40,0))))) -> 0 | H40: =IF(G40=0,0,IF(K40=0.5,0,G40-Calendrier!$AT$9)) -> 0 | I40: 1.75 | J40: RTT | K40: 0 | M40: 0
A41: 2023-02-23 | B41: =INDIRECT(ADDRESS(MATCH($B$1,Calendrier!$A$15:$A$59,0)+14,ROW()-17,3,1,"Calendrier"),1) -> T | G41: =IF(AND(C41<>0,D41<>0,E41<>0,F41<>0),F41-E41+D41-C41-M41-IF(E41-D41<Calendrier!$AT$10,Calendrier!$AT$10,0),IF(AND(C41<>0,D41<>0,E41=0,F41=0),D41-C41-M41,IF(AND(C41=0,D41=0,E41<>0,F41<>0),F41-E41-M41,IF(AND(C41>20,D41=0,E41=0,F41<>0),24-C41+F41-M41,IF(AND(C41<>0,D41=0,E41=0,F41<>0),F41-C41-M41,0))))) -> 0 | H41: =IF(G41=0,0,IF(K41=0.5,0,G41-Calendrier!$AT$9)) -> 0 | I41: 1.75 | J41: T | K41: 0 | M41: 0
A42: 2023-02-24 | B42: =INDIRECT(ADDRESS(MATCH($B$1,Calendrier!$A$15:$A$59,0)+14,ROW()-17,3,1,"Calendrier"),1) -> T | G42: =IF(AND(C42<>0,D42<>0,E42<>0,F42<>0),F42-E42+D42-C42-M42-IF(E42-D42<Calendrier!$AT$10,Calendrier!$AT$10,0),IF(AND(C42<>0,D42<>0,E42=0,F42=0),D42-C42-M42,IF(AND(C42=0,D42=0,E42<>0,F42<>0),F42-E42-M42,IF(AND(C42>20,D42=0,E42=0,F42<>0),24-C42+F42-M42,IF(AND(C42<>0,D42=0,E42=0,F42<>0),F42-C42-M42,0))))) -> 0 | H42: =IF(G42=0,0,IF(K42=0.5,0,G42-Calendrier!$AT$9)) -> 0 | I42: 1.75 | J42: T | K42: 0 | M42: 0
A43: 2023-02-25 | B43: =INDIRECT(ADDRESS(MATCH($B$1,Calendrier!$A$15:$A$59,0)+14,ROW()-17,3,1,"Calendrier"),1) -> Sa | G43: =IF(AND(C43<>0,D43<>0,E43<>0,F43<>0),F43-E43+D43-C43-M43-IF(E43-D43<Calendrier!$AT$10,Calendrier!$AT$10,0),IF(AND(C43<>0,D43<>0,E43=0,F43=0),D43-C43-M43,IF(AND(C43=0,D43=0,E43<>0,F43<>0),F43-E43-M43,IF(AND(C43>20,D43=0,E43=0,F43<>0),24-C43+F43-M43,IF(AND(C43<>0,D43=0,E43=0,F43<>0),F43-C43-M43,0))))) -> 0 | H43: =IF(G43=0,0,IF(K43=0.5,0,G43-Calendrier!$AT$9)) -> 0 | I43: 1.75 | J43: Sa | K43: 0 | M43: 0
A44: 2023-02-26 | B44: =INDIRECT(ADDRESS(MATCH($B$1,Calendrier!$A$15:$A$59,0)+14,ROW()-17,3,1,"Calendrier"),1) -> Di | G44: =IF(AND(C44<>0,D44<>0,E44<>0,F44<>0),F44-E44+D44-C44-M44-IF(E44-D44<Calendrier!$AT$10,Calendrier!$AT$10,0),IF(AND(C44<>0,D44<>0,E44=0,F44=0),D44-C44-M44,IF(AND(C44=0,D44=0,E44<>0,F44<>0),F44-E44-M44,IF(AND(C44>20,D44=0,E44=0,F44<>0),24-C44+F44-M44,IF(AND(C44<>0,D44=0,E44=0,F44<>0),F44-C44-M44,0))))) -> 0 | H44: =IF(G44=0,0,IF(K44=0.5,0,G44-Calendrier!$AT$9)) -> 0 | I44: 1.75 | J44: Di | K44: 0 | M44: 0
A45: 2023-02-27 | B45: =INDIRECT(ADDRESS(MATCH($B$1,Calendrier!$A$15:$A$59,0)+14,ROW()-17,3,1,"Calendrier"),1) -> T | G45: =IF(AND(C45<>0,D45<>0,E45<>0,F45<>0),F45-E45+D45-C45-M45-IF(E45-D45<Calendrier!$AT$10,Calendrier!$AT$10,0),IF(AND(C45<>0,D45<>0,E45=0,F45=0),D45-C45-M45,IF(AND(C45=0,D45=0,E45<>0,F45<>0),F45-E45-M45,IF(AND(C45>20,D45=0,E45=0,F45<>0),24-C45+F45-M45,IF(AND(C45<>0,D45=0,E45=0,F45<>0),F45-C45-M45,0))))) -> 0 | H45: =IF(G45=0,0,IF(K45=0.5,0,G45-Calendrier!$AT$9)) -> 0 | I45: 1.75 | J45: T | K45: 0 | M45: 0
A46: 2023-02-28 | B46: =INDIRECT(ADDRESS(MATCH($B$1,Calendrier!$A$15:$A$59,0)+14,ROW()-17,3,1,"Calendrier"),1) -> T | G46: =IF(AND(C46<>0,D46<>0,E46<>0,F46<>0),F46-E46+D46-C46-M46-IF(E46-D46<Calendrier!$AT$10,Calendrier!$AT$10,0),IF(AND(C46<>0,D46<>0,E46=0,F46=0),D46-C46-M46,IF(AND(C46=0,D46=0,E46<>0,F46<>0),F46-E46-M46,IF(AND(C46>20,D46=0,E46=0,F46<>0),24-C46+F46-M46,IF(AND(C46<>0,D46=0,E46=0,F46<>0),F46-C46-M46,0))))) -> 0 | H46: =IF(G46=0,0,IF(K46=0.5,0,G46-Calendrier!$AT$9)) -> 0 | I46: 1.75 | J46: T | K46: 0 | M46: 0
A47: =IF(MONTH(A46+1)=3,0,A46+1) -> 00:00:00 | B47: =INDIRECT(ADDRESS(MATCH($B$1,Calendrier!$A$15:$A$59,0)+14,ROW()-17,3,1,"Calendrier"),1) -> 0 | G47: =IF(AND(C47<>0,D47<>0,E47<>0,F47<>0),F47-E47+D47-C47-M47-IF(E47-D47<Calendrier!$AT$10,Calendrier!$AT$10,0),IF(AND(C47<>0,D47<>0,E47=0,F47=0),D47-C47-M47,IF(AND(C47=0,D47=0,E47<>0,F47<>0),F47-E47-M47,IF(AND(C47>20,D47=0,E47=0,F47<>0),24-C47+F47-M47,IF(AND(C47<>0,D47=0,E47=0,F47<>0),F47-C47-M47,0))))) -> 0 | H47: =IF(G47=0,0,IF(K47=0.5,0,G47-Calendrier!$AT$9)) -> 0 | I47: 1.75 | J47: 0 | K47: 0 | M47: 0
B48: =INDIRECT(ADDRESS(MATCH($B$1,Calendrier!$A$15:$A$59,0)+14,ROW()-17,3,1,"Calendrier"),1) -> 0 | G48: =IF(AND(C48<>0,D48<>0,E48<>0,F48<>0),F48-E48+D48-C48-M48-IF(E48-D48<Calendrier!$AT$10,Calendrier!$AT$10,0),IF(AND(C48<>0,D48<>0,E48=0,F48=0),D48-C48-M48,IF(AND(C48=0,D48=0,E48<>0,F48<>0),F48-E48-M48,IF(AND(C48>20,D48=0,E48=0,F48<>0),24-C48+F48-M48,IF(AND(C48<>0,D48=0,E48=0,F48<>0),F48-C48-M48,0))))) -> 0 | H48: =IF(G48=0,0,IF(K48=0.5,0,G48-Calendrier!$AT$9)) -> 0 | I48: 1.75 | J48: =IF(AND(COUNTA(C48:F48)=0,OR(B48="F",B48="CA",WEEKDAY(A48,2)>5,B48="RTT")),B48,IF(AND(COUNTA(C48:F48)=0,B48="T"),"",IF(AND(COUNTA(D48:F48)=0,C48<>0),"erreur",IF(AND(COUNTA(C48:F48)=4,B48="RTT"),"Err. RTT",IF(AND(COUNTA(C48:F48)=4,B48="CA"),"Err. CA",IF(AND(COUNTA(C48:F48)=4,B48="F"),"Err. F",IF(COUNTA(C48:F48)=4,"T",IF(COUNTA(C48:F48)=3,"Erreur",IF(AND(C48<>0,D48<>0),$F$12,IF(AND(E48<>0,F48<>0),$F$12,IF(AND(C48<>0,D48=0,E48=0,F48<>0,WEEKDAY(A48,2)>5),"Modif calendrier",IF(AND(C48<>0,D48=0,E48=0,F48<>0),$B48)))))))))))) -> 0 | K48: 0 | M48: 0
B49: =INDIRECT(ADDRESS(MATCH($B$1,Calendrier!$A$15:$A$59,0)+14,ROW()-17,3,1,"Calendrier"),1) -> 0 | G49: =IF(AND(C49<>0,D49<>0,E49<>0,F49<>0),F49-E49+D49-C49-M49-IF(E49-D49<Calendrier!$AT$10,Calendrier!$AT$10,0),IF(AND(C49<>0,D49<>0,E49=0,F49=0),D49-C49-M49,IF(AND(C49=0,D49=0,E49<>0,F49<>0),F49-E49-M49,IF(AND(C49>20,D49=0,E49=0,F49<>0),24-C49+F49-M49,IF(AND(C49<>0,D49=0,E49=0,F49<>0),F49-C49-M49,0))))) -> 0 | H49: =IF(G49=0,0,IF(K49=0.5,0,G49-Calendrier!$AT$9)) -> 0 | I49: 1.75 | J49: 0 | K49: 0 | M49: 0
G50: =SUM(G19:G49) -> 0 | I50: =I49 -> 1.75

Sheet MAR
B1: =RIGHT(CELL("nomfichier",$A$1),3) -> MAR | C1: FICHE DE SUIVI HORAIRE
B3: mois : | C3: MARS | F3: année | G3: =VLOOKUP(C3,Fériés!$I$1:$J$12,2,FALSE) -> 2023 | J3: service | K3: =Calendrier!F4 -> Administratif
B5: nom : | C5: =Calendrier!F2 -> Isq | F5: prénom | G5: =Calendrier!F3 -> Philippe | J5: N° Ident | K5: =Calendrier!F1 -> T506489
H6: à réaliser | I6: cumul | J6: en cours | K6: reste | M6: N.cumul
D7: Nb J | E7: =Calendrier!$AT$11 -> 218 | F7: =+$H$10 -> 0 | G7: =E7-F7 -> 218 | H7: =Calendrier!N1 -> 365 | I7: =FEV!M7 -> 55.5 | J7: =SUM(J8:J15) -> 31 | K7: =H7-(I7+J7) -> 278.5 | M7: =SUM(M8:M15) -> 86.5
F8: 1/2CA | G8: CA | H8: =Calendrier!N5 -> 25 | I8: =FEV!M8 -> 0 | J8: =COUNTIF($J$19:$J$49,G8)+COUNTIF($J$19:$J$49,F8)/2 -> 0 | K8: =+H8-(I8+J8) -> 25 | L8: J | M8: =+I8+J8 -> 0
F9: 1/2RTT | G9: RTT | H9: =Calendrier!N8 -> 9 | I9: =FEV!M9 -> 2 | J9: =COUNTIF($J$19:$J$49,G9)+COUNTIF($J$19:$J$49,F9)/2 -> 0 | K9: =+H9-(I9+J9) -> 7 | L9: J | M9: 2
F10: 1/2CS | G10: CS | H10: =Calendrier!N9 -> 0 | I10: =FEV!M10 -> 0 | J10: 0 | K10: =H10-(I10+J10) -> 0 | L10: J | M10: 0
F11: 1/2CP | G11: CP | H11: =Calendrier!N6 -> 0 | I11: =FEV!M11 -> 0 | J11: 0 | K11: =H11-(I11+J11) -> 0 | L11: J | M11: 0
F12: 1/2T | G12: T | H12: =Calendrier!N7 -> 218 | I12: =FEV!M12 -> 36.5 | J12: 23 | K12: =+H12-(I12+J12) -> 158.5 | L12: J | M12: 59.5
F13: 0 | G13: Sa | H13: =Calendrier!N4 -> 51 | I13: =FEV!M13 -> 8 | J13: =COUNTIF($J$19:$J$49,G13) -> 4 | K13: =+H13-(I13+J13) -> 39 | L13: J | M13: 12
F14: 0 | G14: Di | H14: =Calendrier!N3 -> 50 | I14: =FEV!M14 -> 8 | J14: =COUNTIF($J$19:$J$49,G14) -> 4 | K14: =+H14-(I14+J14) -> 38 | L14: J | M14: 12
F15: 0 | G15: F | H15: =Calendrier!N2 -> 12 | I15: =FEV!M15 -> 1 | J15: =COUNTIF($J$19:$J$49,G15) -> 0 | K15: =+H15-(I15+J15) -> 11 | L15: J | M15: 1
G16: heure/avance fin mois | I16: =FEV!$I$50 -> 1.75 | M16: =I50 -> 1.75 | N16: avec bon
B17: Prévu | C17: Entrée | D17: Sortie | E17: Entrée | F17: Sortie | G17: total | H17: variation | I17: cumul | J17: Type | K17: nb J/T | M17: divers E/S | N17: Sortie | O17: Retour
I18: =FEV!$I$50 -> 1.75
A19: =VALUE("01/03/"&G3) -> 2023-03-01 | B19: =INDIRECT(ADDRESS(MATCH($B$1,Calendrier!$A$15:$A$59,0)+14,ROW()-17,3,1,"Calendrier"),1) -> T | G19: =IF(AND(C19<>0,D19<>0,E19<>0,F19<>0),F19-E19+D19-C19-K19-IF(E19-D19<Calendrier!$AT$10,Calendrier!$AT$10,0),IF(AND(C19<>0,D19<>0,E19=0,F19=0),D19-C19-K19,IF(AND(C19=0,D19=0,E19<>0,F19<>0),F19-E19-K19,IF(AND(C19>20,D19=0,E19=0,F19<>0),24-C19+F19-K19,IF(AND(C19<>0,D19=0,E19=0,F19<>0),F19-C19-K19,0))))) -> 0 | H19: =IF(G19=0,0,IF(K19=0.5,0,G19-Calendrier!$AT$9)) -> 0 | I19: =I18+H19 -> 1.75 | J19: =IF(AND(COUNTA(C19:F19)=0,OR(B19="F",WEEKDAY(A19,2)>5,B19="T",B19="RTT",B19="CA")),B19,IF(AND(COUNTA(C19:F19)>=2,OR(B19="F",B19="RTT",B19="CA",B19="Sa",B19="Di")),"calendrier",IF(AND(COUNTA(C19)+COUNTA(F19)=2,OR(COUNTA(C19:D19)<1,COUNTA(E19:F19)<1)),"erreur",IF(COUNTA(C19:F19)=3,"en cours",IF(COUNTA(C19:F19)=4,B19,IF(OR(AND(C19<>0,D19<>0),AND(E19<>0,F19<>0)),$F$12,IF(AND(C19<>0,D19=0,E19=0,F19<>0,WEEKDAY(A19,2)>5),"calendrier",IF(AND(C19<>0,D19=0,E19=0,F19<>0),$B19,"")))))))) -> T | K19: =IF(COUNTA(C19:F19)=4,1,IF(OR(AND(C19<>0,D19<>0),AND(E19<>0,F19<>0)),0.5,IF(AND(C19<>0,F19<>0,D19=0,E19=0,B19="T"),1,0))) -> 0 | M19: =IF(OR(N19=0,O19=0),0,O19-N19) -> 0
A20: =A19+1 -> 2023-03-02 | B20: =INDIRECT(ADDRESS(MATCH($B$1,Calendrier!$A$15:$A$59,0)+14,ROW()-17,3,1,"Calendrier"),1) -> T | G20: =IF(AND(C20<>0,D20<>0,E20<>0,F20<>0),F20-E20+D20-C20-K20-IF(E20-D20<Calendrier!$AT$10,Calendrier!$AT$10,0),IF(AND(C20<>0,D20<>0,E20=0,F20=0),D20-C20-K20,IF(AND(C20=0,D20=0,E20<>0,F20<>0),F20-E20-K20,IF(AND(C20>20,D20=0,E20=0,F20<>0),24-C20+F20-K20,IF(AND(C20<>0,D20=0,E20=0,F20<>0),F20-C20-K20,0))))) -> 0 | H20: =IF(G20=0,0,IF(K20=0.5,0,G20-Calendrier!$AT$9)) -> 0 | I20: 1.75 | J20: T | K20: 0 | M20: 0
A21: =A20+1 -> 2023-03-03 | B21: =INDIRECT(ADDRESS(MATCH($B$1,Calendrier!$A$15:$A$59,0)+14,ROW()-17,3,1,"Calendrier"),1) -> T | G21: =IF(AND(C21<>0,D21<>0,E21<>0,F21<>0),F21-E21+D21-C21-M21-IF(E21-D21<Calendrier!$AT$10,Calendrier!$AT$10,0),IF(AND(C21<>0,D21<>0,E21=0,F21=0),D21-C21-M21,IF(AND(C21=0,D21=0,E21<>0,F21<>0),F21-E21-M21,IF(AND(C21>20,D21=0,E21=0,F21<>0),24-C21+F21-M21,IF(AND(C21<>0,D21=0,E21=0,F21<>0),F21-C21-M21,0))))) -> 0 | H21: =IF(G21=0,0,IF(K21=0.5,0,G21-Calendrier!$AT$9)) -> 0 | I21: =I20+H21 -> 1.75 | J21: T | K21: 0 | M21: 0
A22: 2023-03-04 | B22: =INDIRECT(ADDRESS(MATCH($B$1,Calendrier!$A$15:$A$59,0)+14,ROW()-17,3,1,"Calendrier"),1) -> Sa | G22: =IF(AND(C22<>0,D22<>0,E22<>0,F22<>0),F22-E22+D22-C22-M22-IF(E22-D22<Calendrier!$AT$10,Calendrier!$AT$10,0),IF(AND(C22<>0,D22<>0,E22=0,F22=0),D22-C22-M22,IF(AND(C22=0,D22=0,E22<>0,F22<>0),F22-E22-M22,IF(AND(C22>20,D22=0,E22=0,F22<>0),24-C22+F22-M22,IF(AND(C22<>0,D22=0,E22=0,F22<>0),F22-C22-M22,0))))) -> 0 | H22: =IF(G22=0,0,IF(K22=0.5,0,G22-Calendrier!$AT$9)) -> 0 | I22: 1.75 | J22: Sa | K22: 0 | M22: 0
A23: 2023-03-05 | B23: =INDIRECT(ADDRESS(MATCH($B$1,Calendrier!$A$15:$A$59,0)+14,ROW()-17,3,1,"Calendrier"),1) -> Di | G23: =IF(AND(C23<>0,D23<>0,E23<>0,F23<>0),F23-E23+D23-C23-M23-IF(E23-D23<Calendrier!$AT$10,Calendrier!$AT$10,0),IF(AND(C23<>0,D23<>0,E23=0,F23=0),D23-C23-M23,IF(AND(C23=0,D23=0,E23<>0,F23<>0),F23-E23-M23,IF(AND(C23>20,D23=0,E23=0,F23<>0),24-C23+F23-M23,IF(AND(C23<>0,D23=0,E23=0,F23<>0),F23-C23-M23,0))))) -> 0 | H23: =IF(G23=0,0,IF(K23=0.5,0,G23-Calendrier!$AT$9)) -> 0 | I23: 1.75 | J23: Di | K23: 0 | M23: 0
A24: 2023-03-06 | B24: =INDIRECT(ADDRESS(MATCH($B$1,Calendrier!$A$15:$A$59,0)+14,ROW()-17,3,1,"Calendrier"),1) -> T | G24: =IF(AND(C24<>0,D24<>0,E24<>0,F24<>0),F24-E24+D24-C24-M24-IF(E24-D24<Calendrier!$AT$10,Calendrier!$AT$10,0),IF(AND(C24<>0,D24<>0,E24=0,F24=0),D24-C24-M24,IF(AND(C24=0,D24=0,E24<>0,F24<>0),F24-E24-M24,IF(AND(C24>20,D24=0,E24=0,F24<>0),24-C24+F24-M24,IF(AND(C24<>0,D24=0,E24=0,F24<>0),F24-C24-M24,0))))) -> 0 | H24: =IF(G24=0,0,IF(K24=0.5,0,G24-Calendrier!$AT$9)) -> 0 | I24: 1.75 | J24: T | K24: 0 | M24: =IF(OR(N24=0,O24=0),0,O24-N24) -> 0
A25: 2023-03-07 | B25: =INDIRECT(ADDRESS(MATCH($B$1,Calendrier!$A$15:$A$59,0)+14,ROW()-17,3,1,"Calendrier"),1) -> T | G25: =IF(AND(C25<>0,D25<>0,E25<>0,F25<>0),F25-E25+D25-C25-M25-IF(E25-D25<Calendrier!$AT$10,Calendrier!$AT$10,0),IF(AND(C25<>0,D25<>0,E25=0,F25=0),D25-C25-M25,IF(AND(C25=0,D25=0,E25<>0,F25<>0),F25-E25-M25,IF(AND(C25>20,D25=0,E25=0,F25<>0),24-C25+F25-M25,IF(AND(C25<>0,D25=0,E25=0,F25<>0),F25-C25-M25,0))))) -> 0 | H25: =IF(G25=0,0,IF(K25=0.5,0,G25-Calendrier!$AT$9)) -> 0 | I25: 1.75 | J25: T | K25: 0 | M25: =IF(OR(N25=0,O25=0),0,O25-N25) -> 0
A26: 2023-03-08 | B26: =INDIRECT(ADDRESS(MATCH($B$1,Calendrier!$A$15:$A$59,0)+14,ROW()-17,3,1,"Calendrier"),1) -> T | G26: =IF(AND(C26<>0,D26<>0,E26<>0,F26<>0),F26-E26+D26-C26-M26-IF(E26-D26<Calendrier!$AT$10,Calendrier!$AT$10,0),IF(AND(C26<>0,D26<>0,E26=0,F26=0),D26-C26-M26,IF(AND(C26=0,D26=0,E26<>0,F26<>0),F26-E26-M26,IF(AND(C26>20,D26=0,E26=0,F26<>0),24-C26+F26-M26,IF(AND(C26<>0,D26=0,E26=0,F26<>0),F26-C26-M26,0))))) -> 0 | H26: =IF(G26=0,0,IF(K26=0.5,0,G26-Calendrier!$AT$9)) -> 0 | I26: 1.75 | J26: T | K26: 0 | M26: 0
A27: 2023-03-09 | B27: =INDIRECT(ADDRESS(MATCH($B$1,Calendrier!$A$15:$A$59,0)+14,ROW()-17,3,1,"Calendrier"),1) -> T | G27: =IF(AND(C27<>0,D27<>0,E27<>0,F27<>0),F27-E27+D27-C27-M27-IF(E27-D27<Calendrier!$AT$10,Calendrier!$AT$10,0),IF(AND(C27<>0,D27<>0,E27=0,F27=0),D27-C27-M27,IF(AND(C27=0,D27=0,E27<>0,F27<>0),F27-E27-M27,IF(AND(C27>20,D27=0,E27=0,F27<>0),24-C27+F27-M27,IF(AND(C27<>0,D27=0,E27=0,F27<>0),F27-C27-M27,0))))) -> 0 | H27: =IF(G27=0,0,IF(K27=0.5,0,G27-Calendrier!$AT$9)) -> 0 | I27: 1.75 | J27: T | K27: 0 | M27: 0
A28: 2023-03-10 | B28: =INDIRECT(ADDRESS(MATCH($B$1,Calendrier!$A$15:$A$59,0)+14,ROW()-17,3,1,"Calendrier"),1) -> T | G28: =IF(AND(C28<>0,D28<>0,E28<>0,F28<>0),F28-E28+D28-C28-M28-IF(E28-D28<Calendrier!$AT$10,Calendrier!$AT$10,0),IF(AND(C28<>0,D28<>0,E28=0,F28=0),D28-C28-M28,IF(AND(C28=0,D28=0,E28<>0,F28<>0),F28-E28-M28,IF(AND(C28>20,D28=0,E28=0,F28<>0),24-C28+F28-M28,IF(AND(C28<>0,D28=0,E28=0,F28<>0),F28-C28-M28,0))))) -> 0 | H28: =IF(G28=0,0,IF(K28=0.5,0,G28-Calendrier!$AT$9)) -> 0 | I28: 1.75 | J28: T | K28: 0 | M28: 0
A29: 2023-03-11 | B29: =INDIRECT(ADDRESS(MATCH($B$1,Calendrier!$A$15:$A$59,0)+14,ROW()-17,3,1,"Calendrier"),1) -> Sa | G29: =IF(AND(C29<>0,D29<>0,E29<>0,F29<>0),F29-E29+D29-C29-M29-IF(E29-D29<Calendrier!$AT$10,Calendrier!$AT$10,0),IF(AND(C29<>0,D29<>0,E29=0,F29=0),D29-C29-M29,IF(AND(C29=0,D29=0,E29<>0,F29<>0),F29-E29-M29,IF(AND(C29>20,D29=0,E29=0,F29<>0),24-C29+F29-M29,IF(AND(C29<>0,D29=0,E29=0,F29<>0),F29-C29-M29,0))))) -> 0 | H29: =IF(G29=0,0,IF(K29=0.5,0,G29-Calendrier!$AT$9)) -> 0 | I29: 1.75 | J29: Sa | K29: 0 | M29: 0
A30: 2023-03-12 | B30: =INDIRECT(ADDRESS(MATCH($B$1,Calendrier!$A$15:$A$59,0)+14,ROW()-17,3,1,"Calendrier"),1) -> Di | G30: =IF(AND(C30<>0,D30<>0,E30<>0,F30<>0),F30-E30+D30-C30-M30-IF(E30-D30<Calendrier!$AT$10,Calendrier!$AT$10,0),IF(AND(C30<>0,D30<>0,E30=0,F30=0),D30-C30-M30,IF(AND(C30=0,D30=0,E30<>0,F30<>0),F30-E30-M30,IF(AND(C30>20,D30=0,E30=0,F30<>0),24-C30+F30-M30,IF(AND(C30<>0,D30=0,E30=0,F30<>0),F30-C30-M30,0))))) -> 0 | H30: =IF(G30=0,0,IF(K30=0.5,0,G30-Calendrier!$AT$9)) -> 0 | I30: 1.75 | J30: Di | K30: 0 | M30: 0
A31: 2023-03-13 | B31: =INDIRECT(ADDRESS(MATCH($B$1,Calendrier!$A$15:$A$59,0)+14,ROW()-17,3,1,"Calendrier"),1) -> T | G31: =IF(AND(C31<>0,D31<>0,E31<>0,F31<>0),F31-E31+D31-C31-M31-IF(E31-D31<Calendrier!$AT$10,Calendrier!$AT$10,0),IF(AND(C31<>0,D31<>0,E31=0,F31=0),D31-C31-M31,IF(AND(C31=0,D31=0,E31<>0,F31<>0),F31-E31-M31,IF(AND(C31>20,D31=0,E31=0,F31<>0),24-C31+F31-M31,IF(AND(C31<>0,D31=0,E31=0,F31<>0),F31-C31-M31,0))))) -> 0 | H31: =IF(G31=0,0,IF(K31=0.5,0,G31-Calendrier!$AT$9)) -> 0 | I31: 1.75 | J31: T | K31: 0 | M31: 0
A32: 2023-03-14 | B32: =INDIRECT(ADDRESS(MATCH($B$1,Calendrier!$A$15:$A$59,0)+14,ROW()-17,3,1,"Calendrier"),1) -> T | G32: =IF(AND(C32<>0,D32<>0,E32<>0,F32<>0),F32-E32+D32-C32-M32-IF(E32-D32<Calendrier!$AT$10,Calendrier!$AT$10,0),IF(AND(C32<>0,D32<>0,E32=0,F32=0),D32-C32-M32,IF(AND(C32=0,D32=0,E32<>0,F32<>0),F32-E32-M32,IF(AND(C32>20,D32=0,E32=0,F32<>0),24-C32+F32-M32,IF(AND(C32<>0,D32=0,E32=0,F32<>0),F32-C32-M32,0))))) -> 0 | H32: =IF(G32=0,0,IF(K32=0.5,0,G32-Calendrier!$AT$9)) -> 0 | I32: 1.75 | J32: T | K32: 0 | M32: 0
A33: 2023-03-15 | B33: =INDIRECT(ADDRESS(MATCH($B$1,Calendrier!$A$15:$A$59,0)+14,ROW()-17,3,1,"Calendrier"),1) -> T | G33: =IF(AND(C33<>0,D33<>0,E33<>0,F33<>0),F33-E33+D33-C33-M33-IF(E33-D33<Calendrier!$AT$10,Calendrier!$AT$10,0),IF(AND(C33<>0,D33<>0,E33=0,F33=0),D33-C33-M33,IF(AND(C33=0,D33=0,E33<>0,F33<>0),F33-E33-M33,IF(AND(C33>20,D33=0,E33=0,F33<>0),24-C33+F33-M33,IF(AND(C33<>0,D33=0,E33=0,F33<>0),F33-C33-M33,0))))) -> 0 | H33: =IF(G33=0,0,IF(K33=0.5,0,G33-Calendrier!$AT$9)) -> 0 | I33: 1.75 | J33: T | K33: 0 | M33: 0
A34: 2023-03-16 | B34: =INDIRECT(ADDRESS(MATCH($B$1,Calendrier!$A$15:$A$59,0)+14,ROW()-17,3,1,"Calendrier"),1) -> T | G34: =IF(AND(C34<>0,D34<>0,E34<>0,F34<>0),F34-E34+D34-C34-M34-IF(E34-D34<Calendrier!$AT$10,Calendrier!$AT$10,0),IF(AND(C34<>0,D34<>0,E34=0,F34=0),D34-C34-M34,IF(AND(C34=0,D34=0,E34<>0,F34<>0),F34-E34-M34,IF(AND(C34>20,D34=0,E34=0,F34<>0),24-C34+F34-M34,IF(AND(C34<>0,D34=0,E34=0,F34<>0),F34-C34-M34,0))))) -> 0 | H34: =IF(G34=0,0,IF(K34=0.5,0,G34-Calendrier!$AT$9)) -> 0 | I34: 1.75 | J34: =IF(AND(COUNTA(C34:F34)=0,OR(B34="F",WEEKDAY(A34,2)>5,B34="T",B34="RTT",B34="CA")),B34,IF(AND(COUNTA(C34:F34)>=2,OR(B34="F",B34="RTT",B34="CA",B34="Sa",B34="Di")),"calendrier",IF(AND(COUNTA(C34)+COUNTA(F34)=2,OR(COUNTA(C34:D34)<1,COUNTA(E34:F34)<1)),"erreur",IF(COUNTA(C34:F34)=3,"en cours",IF(COUNTA(C34:F34)=4,B34,IF(OR(AND(C34<>0,D34<>0),AND(E34<>0,F34<>0)),$F$12,IF(AND(C34<>0,D34=0,E34=0,F34<>0,WEEKDAY(A34,2)>5),"calendrier",IF(AND(C34<>0,D34=0,E34=0,F34<>0),$B34,"")))))))) -> T | K34: 0 | M34: 0
A35: 2023-03-17 | B35: =INDIRECT(ADDRESS(MATCH($B$1,Calendrier!$A$15:$A$59,0)+14,ROW()-17,3,1,"Calendrier"),1) -> T | G35: =IF(AND(C35<>0,D35<>0,E35<>0,F35<>0),F35-E35+D35-C35-M35-IF(E35-D35<Calendrier!$AT$10,Calendrier!$AT$10,0),IF(AND(C35<>0,D35<>0,E35=0,F35=0),D35-C35-M35,IF(AND(C35=0,D35=0,E35<>0,F35<>0),F35-E35-M35,IF(AND(C35>20,D35=0,E35=0,F35<>0),24-C35+F35-M35,IF(AND(C35<>0,D35=0,E35=0,F35<>0),F35-C35-M35,0))))) -> 0 | H35: =IF(G35=0,0,IF(K35=0.5,0,G35-Calendrier!$AT$9)) -> 0 | I35: 1.75 | J35: T | K35: 0 | M35: 0
A36: 2023-03-18 | B36: =INDIRECT(ADDRESS(MATCH($B$1,Calendrier!$A$15:$A$59,0)+14,ROW()-17,3,1,"Calendrier"),1) -> Sa | G36: =IF(AND(C36<>0,D36<>0,E36<>0,F36<>0),F36-E36+D36-C36-M36-IF(E36-D36<Calendrier!$AT$10,Calendrier!$AT$10,0),IF(AND(C36<>0,D36<>0,E36=0,F36=0),D36-C36-M36,IF(AND(C36=0,D36=0,E36<>0,F36<>0),F36-E36-M36,IF(AND(C36>20,D36=0,E36=0,F36<>0),24-C36+F36-M36,IF(AND(C36<>0,D36=0,E36=0,F36<>0),F36-C36-M36,0))))) -> 0 | H36: =IF(G36=0,0,IF(K36=0.5,0,G36-Calendrier!$AT$9)) -> 0 | I36: 1.75 | J36: Sa | K36: 0 | M36: 0
A37: 2023-03-19 | B37: =INDIRECT(ADDRESS(MATCH($B$1,Calendrier!$A$15:$A$59,0)+14,ROW()-17,3,1,"Calendrier"),1) -> Di | G37: =IF(AND(C37<>0,D37<>0,E37<>0,F37<>0),F37-E37+D37-C37-M37-IF(E37-D37<Calendrier!$AT$10,Calendrier!$AT$10,0),IF(AND(C37<>0,D37<>0,E37=0,F37=0),D37-C37-M37,IF(AND(C37=0,D37=0,E37<>0,F37<>0),F37-E37-M37,IF(AND(C37>20,D37=0,E37=0,F37<>0),24-C37+F37-M37,IF(AND(C37<>0,D37=0,E37=0,F37<>0),F37-C37-M37,0))))) -> 0 | H37: =IF(G37=0,0,IF(K37=0.5,0,G37-Calendrier!$AT$9)) -> 0 | I37: 1.75 | J37: Di | K37: 0 | M37: 0
A38: 2023-03-20 | B38: =INDIRECT(ADDRESS(MATCH($B$1,Calendrier!$A$15:$A$59,0)+14,ROW()-17,3,1,"Calendrier"),1) -> T | G38: =IF(AND(C38<>0,D38<>0,E38<>0,F38<>0),F38-E38+D38-C38-M38-IF(E38-D38<Calendrier!$AT$10,Calendrier!$AT$10,0),IF(AND(C38<>0,D38<>0,E38=0,F38=0),D38-C38-M38,IF(AND(C38=0,D38=0,E38<>0,F38<>0),F38-E38-M38,IF(AND(C38>20,D38=0,E38=0,F38<>0),24-C38+F38-M38,IF(AND(C38<>0,D38=0,E38=0,F38<>0),F38-C38-M38,0))))) -> 0 | H38: =IF(G38=0,0,IF(K38=0.5,0,G38-Calendrier!$AT$9)) -> 0 | I38: 1.75 | J38: T | K38: 0 | M38: 0
A39: 2023-03-21 | B39: =INDIRECT(ADDRESS(MATCH($B$1,Calendrier!$A$15:$A$59,0)+14,ROW()-17,3,1,"Calendrier"),1) -> T | G39: =IF(AND(C39<>0,D39<>0,E39<>0,F39<>0),F39-E39+D39-C39-M39-IF(E39-D39<Calendrier!$AT$10,Calendrier!$AT$10,0),IF(AND(C39<>0,D39<>0,E39=0,F39=0),D39-C39-M39,IF(AND(C39=0,D39=0,E39<>0,F39<>0),F39-E39-M39,IF(AND(C39>20,D39=0,E39=0,F39<>0),24-C39+F39-M39,IF(AND(C39<>0,D39=0,E39=0,F39<>0),F39-C39-M39,0))))) -> 0 | H39: =IF(G39=0,0,IF(K39=0.5,0,G39-Calendrier!$AT$9)) -> 0 | I39: 1.75 | J39: T | K39: 0 | M39: 0
A40: 2023-03-22 | B40: =INDIRECT(ADDRESS(MATCH($B$1,Calendrier!$A$15:$A$59,0)+14,ROW()-17,3,1,"Calendrier"),1) -> T | G40: =IF(AND(C40<>0,D40<>0,E40<>0,F40<>0),F40-E40+D40-C40-M40-IF(E40-D40<Calendrier!$AT$10,Calendrier!$AT$10,0),IF(AND(C40<>0,D40<>0,E40=0,F40=0),D40-C40-M40,IF(AND(C40=0,D40=0,E40<>0,F40<>0),F40-E40-M40,IF(AND(C40>20,D40=0,E40=0,F40<>0),24-C40+F40-M40,IF(AND(C40<>0,D40=0,E40=0,F40<>0),F40-C40-M40,0))))) -> 0 | H40: =IF(G40=0,0,IF(K40=0.5,0,G40-Calendrier!$AT$9)) -> 0 | I40: 1.75 | J40: T | K40: 0 | M40: 0
A41: 2023-03-23 | B41: =INDIRECT(ADDRESS(MATCH($B$1,Calendrier!$A$15:$A$59,0)+14,ROW()-17,3,1,"Calendrier"),1) -> T | G41: =IF(AND(C41<>0,D41<>0,E41<>0,F41<>0),F41-E41+D41-C41-M41-IF(E41-D41<Calendrier!$AT$10,Calendrier!$AT$10,0),IF(AND(C41<>0,D41<>0,E41=0,F41=0),D41-C41-M41,IF(AND(C41=0,D41=0,E41<>0,F41<>0),F41-E41-M41,IF(AND(C41>20,D41=0,E41=0,F41<>0),24-C41+F41-M41,IF(AND(C41<>0,D41=0,E41=0,F41<>0),F41-C41-M41,0))))) -> 0 | H41: =IF(G41=0,0,IF(K41=0.5,0,G41-Calendrier!$AT$9)) -> 0 | I41: 1.75 | J41: T | K41: 0 | M41: 0
A42: 2023-03-24 | B42: =INDIRECT(ADDRESS(MATCH($B$1,Calendrier!$A$15:$A$59,0)+14,ROW()-17,3,1,"Calendrier"),1) -> T | G42: =IF(AND(C42<>0,D42<>0,E42<>0,F42<>0),F42-E42+D42-C42-M42-IF(E42-D42<Calendrier!$AT$10,Calendrier!$AT$10,0),IF(AND(C42<>0,D42<>0,E42=0,F42=0),D42-C42-M42,IF(AND(C42=0,D42=0,E42<>0,F42<>0),F42-E42-M42,IF(AND(C42>20,D42=0,E42=0,F42<>0),24-C42+F42-M42,IF(AND(C42<>0,D42=0,E42=0,F42<>0),F42-C42-M42,0))))) -> 0 | H42: =IF(G42=0,0,IF(K42=0.5,0,G42-Calendrier!$AT$9)) -> 0 | I42: 1.75 | J42: T | K42: 0 | M42: 0
A43: 2023-03-25 | B43: =INDIRECT(ADDRESS(MATCH($B$1,Calendrier!$A$15:$A$59,0)+14,ROW()-17,3,1,"Calendrier"),1) -> Sa | G43: =IF(AND(C43<>0,D43<>0,E43<>0,F43<>0),F43-E43+D43-C43-M43-IF(E43-D43<Calendrier!$AT$10,Calendrier!$AT$10,0),IF(AND(C43<>0,D43<>0,E43=0,F43=0),D43-C43-M43,IF(AND(C43=0,D43=0,E43<>0,F43<>0),F43-E43-M43,IF(AND(C43>20,D43=0,E43=0,F43<>0),24-C43+F43-M43,IF(AND(C43<>0,D43=0,E43=0,F43<>0),F43-C43-M43,0))))) -> 0 | H43: =IF(G43=0,0,IF(K43=0.5,0,G43-Calendrier!$AT$9)) -> 0 | I43: 1.75 | J43: Sa | K43: 0 | M43: 0
A44: 2023-03-26 | B44: =INDIRECT(ADDRESS(MATCH($B$1,Calendrier!$A$15:$A$59,0)+14,ROW()-17,3,1,"Calendrier"),1) -> Di | G44: =IF(AND(C44<>0,D44<>0,E44<>0,F44<>0),F44-E44+D44-C44-M44-IF(E44-D44<Calendrier!$AT$10,Calendrier!$AT$10,0),IF(AND(C44<>0,D44<>0,E44=0,F44=0),D44-C44-M44,IF(AND(C44=0,D44=0,E44<>0,F44<>0),F44-E44-M44,IF(AND(C44>20,D44=0,E44=0,F44<>0),24-C44+F44-M44,IF(AND(C44<>0,D44=0,E44=0,F44<>0),F44-C44-M44,0))))) -> 0 | H44: =IF(G44=0,0,IF(K44=0.5,0,G44-Calendrier!$AT$9)) -> 0 | I44: 1.75 | J44: Di | K44: 0 | M44: 0
A45: 2023-03-27 | B45: =INDIRECT(ADDRESS(MATCH($B$1,Calendrier!$A$15:$A$59,0)+14,ROW()-17,3,1,"Calendrier"),1) -> T | G45: =IF(AND(C45<>0,D45<>0,E45<>0,F45<>0),F45-E45+D45-C45-M45-IF(E45-D45<Calendrier!$AT$10,Calendrier!$AT$10,0),IF(AND(C45<>0,D45<>0,E45=0,F45=0),D45-C45-M45,IF(AND(C45=0,D45=0,E45<>0,F45<>0),F45-E45-M45,IF(AND(C45>20,D45=0,E45=0,F45<>0),24-C45+F45-M45,IF(AND(C45<>0,D45=0,E45=0,F45<>0),F45-C45-M45,0))))) -> 0 | H45: =IF(G45=0,0,IF(K45=0.5,0,G45-Calendrier!$AT$9)) -> 0 | I45: 1.75 | J45: T | K45: 0 | M45: 0
A46: 2023-03-28 | B46: =INDIRECT(ADDRESS(MATCH($B$1,Calendrier!$A$15:$A$59,0)+14,ROW()-17,3,1,"Calendrier"),1) -> T | G46: =IF(AND(C46<>0,D46<>0,E46<>0,F46<>0),F46-E46+D46-C46-M46-IF(E46-D46<Calendrier!$AT$10,Calendrier!$AT$10,0),IF(AND(C46<>0,D46<>0,E46=0,F46=0),D46-C46-M46,IF(AND(C46=0,D46=0,E46<>0,F46<>0),F46-E46-M46,IF(AND(C46>20,D46=0,E46=0,F46<>0),24-C46+F46-M46,IF(AND(C46<>0,D46=0,E46=0,F46<>0),F46-C46-M46,0))))) -> 0 | H46: =IF(G46=0,0,IF(K46=0.5,0,G46-Calendrier!$AT$9)) -> 0 | I46: 1.75 | J46: T | K46: 0 | M46: 0
A47: 2023-03-29 | B47: =INDIRECT(ADDRESS(MATCH($B$1,Calendrier!$A$15:$A$59,0)+14,ROW()-17,3,1,"Calendrier"),1) -> T | G47: =IF(AND(C47<>0,D47<>0,E47<>0,F47<>0),F47-E47+D47-C47-M47-IF(E47-D47<Calendrier!$AT$10,Calendrier!$AT$10,0),IF(AND(C47<>0,D47<>0,E47=0,F47=0),D47-C47-M47,IF(AND(C47=0,D47=0,E47<>0,F47<>0),F47-E47-M47,IF(AND(C47>20,D47=0,E47=0,F47<>0),24-C47+F47-M47,IF(AND(C47<>0,D47=0,E47=0,F47<>0),F47-C47-M47,0))))) -> 0 | H47: =IF(G47=0,0,IF(K47=0.5,0,G47-Calendrier!$AT$9)) -> 0 | I47: 1.75 | J47: T | K47: 0 | M47: 0
A48: 2023-03-30 | B48: =INDIRECT(ADDRESS(MATCH($B$1,Calendrier!$A$15:$A$59,0)+14,ROW()-17,3,1,"Calendrier"),1) -> T | G48: =IF(AND(C48<>0,D48<>0,E48<>0,F48<>0),F48-E48+D48-C48-M48-IF(E48-D48<Calendrier!$AT$10,Calendrier!$AT$10,0),IF(AND(C48<>0,D48<>0,E48=0,F48=0),D48-C48-M48,IF(AND(C48=0,D48=0,E48<>0,F48<>0),F48-E48-M48,IF(AND(C48>20,D48=0,E48=0,F48<>0),24-C48+F48-M48,IF(AND(C48<>0,D48=0,E48=0,F48<>0),F48-C48-M48,0))))) -> 0 | H48: =IF(G48=0,0,IF(K48=0.5,0,G48-Calendrier!$AT$9)) -> 0 | I48: 1.75 | J48: T | K48: 0 | M48: 0
A49: 2023-03-31 | B49: =INDIRECT(ADDRESS(MATCH($B$1,Calendrier!$A$15:$A$59,0)+14,ROW()-17,3,1,"Calendrier"),1) -> T | G49: =IF(AND(C49<>0,D49<>0,E49<>0,F49<>0),F49-E49+D49-C49-M49-IF(E49-D49<Calendrier!$AT$10,Calendrier!$AT$10,0),IF(AND(C49<>0,D49<>0,E49=0,F49=0),D49-C49-M49,IF(AND(C49=0,D49=0,E49<>0,F49<>0),F49-E49-M49,IF(AND(C49>20,D49=0,E49=0,F49<>0),24-C49+F49-M49,IF(AND(C49<>0,D49=0,E49=0,F49<>0),F49-C49-M49,0))))) -> 0 | H49: =IF(G49=0,0,IF(K49=0.5,0,G49-Calendrier!$AT$9)) -> 0 | I49: 1.75 | J49: T | K49: 0 | M49: 0
G50: =SUM(G19:G49) -> 0 | I50: =I49 -> 1.75

Sheet AVR
B1: =RIGHT(CELL("nomfichier",$A$1),3) -> AVR | C1: FICHE DE SUIVI HORAIRE
B3: mois : | C3: AVRIL | F3: année | G3: =VLOOKUP(C3,Fériés!$I$1:$J$12,2,FALSE) -> 2023 | J3: service | K3: =Calendrier!F4 -> Administratif
B5: nom : | C5: =Calendrier!F2 -> Isq | F5: prénom | G5: =Calendrier!F3 -> Philippe | J5: N° Ident | K5: =Calendrier!F1 -> T506489
H6: à réaliser | I6: cumul | J6: en cours | K6: reste | M6: N.cumul
D7: Nb J | E7: =Calendrier!$AT$11 -> 218 | F7: =+$H$10 -> 0 | G7: =E7-F7 -> 218 | H7: =Calendrier!N1 -> 365 | I7: =MAR!M7 -> 86.5 | J7: =SUM(J8:J15) -> 30 | K7: =H7-(I7+J7) -> 248.5 | M7: =SUM(M8:M15) -> 116.5
F8: 1/2CA | G8: CA | H8: =Calendrier!N5 -> 25 | I8: =MAR!M8 -> 0 | J8: =COUNTIF($J$19:$J$49,G8)+COUNTIF($J$19:$J$49,F8)/2 -> 0 | K8: =+H8-(I8+J8) -> 25 | L8: J | M8: =+I8+J8 -> 0
F9: 1/2RTT | G9: RTT | H9: =Calendrier!N8 -> 9 | I9: =MAR!M9 -> 2 | J9: =COUNTIF($J$19:$J$49,G9)+COUNTIF($J$19:$J$49,F9)/2 -> 1 | K9: =+H9-(I9+J9) -> 6 | L9: J | M9: 3
F10: 1/2CS | G10: CS | H10: =Calendrier!N9 -> 0 | I10: =MAR!M10 -> 0 | J10: 0 | K10: =H10-(I10+J10) -> 0 | L10: J | M10: 0
F11: 1/2CP | G11: CP | H11: =Calendrier!N6 -> 0 | I11: =MAR!M11 -> 0 | J11: 0 | K11: =H11-(I11+J11) -> 0 | L11: J | M11: 0
F12: 1/2T | G12: T | H12: =Calendrier!N7 -> 218 | I12: =MAR!M12 -> 59.5 | J12: 18 | K12: =+H12-(I12+J12) -> 140.5 | L12: J | M12: 77.5
F13: 0 | G13: Sa | H13: =Calendrier!N4 -> 51 | I13: =MAR!M13 -> 12 | J13: =COUNTIF($J$19:$J$49,G13) -> 5 | K13: =+H13-(I13+J13) -> 34 | L13: J | M13: 17
F14: 0 | G14: Di | H14: =Calendrier!N3 -> 50 | I14: =MAR!M14 -> 12 | J14: =COUNTIF($J$19:$J$49,G14) -> 4 | K14: =+H14-(I14+J14) -> 34 | L14: J | M14: 16
F15: 0 | G15: F | H15: =Calendrier!N2 -> 12 | I15: =MAR!M15 -> 1 | J15: =COUNTIF($J$19:$J$49,G15) -> 2 | K15: =+H15-(I15+J15) -> 9 | L15: J | M15: 3
G16: heure/avance fin mois | I16: =MAR!$I$50 -> 1.75 | M16: =I50 -> 1.75 | N16: avec bon
B17: Prévu | C17: Entrée | D17: Sortie | E17: Entrée | F17: Sortie | G17: total | H17: variation | I17: cumul | J17: Type | K17: nb J/T | M17: divers E/S | N17: Sortie | O17: Retour
I18: =MAR!$I$50 -> 1.75
A19: =VALUE("01/04/"&G3) -> 2023-04-01 | B19: =INDIRECT(ADDRESS(MATCH($B$1,Calendrier!$A$15:$A$59,0)+14,ROW()-17,3,1,"Calendrier"),1) -> Sa | G19: =IF(AND(C19<>0,D19<>0,E19<>0,F19<>0),F19-E19+D19-C19-K19-IF(E19-D19<Calendrier!$AT$10,Calendrier!$AT$10,0),IF(AND(C19<>0,D19<>0,E19=0,F19=0),D19-C19-K19,IF(AND(C19=0,D19=0,E19<>0,F19<>0),F19-E19-K19,IF(AND(C19>20,D19=0,E19=0,F19<>0),24-C19+F19-K19,IF(AND(C19<>0,D19=0,E19=0,F19<>0),F19-C19-K19,0))))) -> 0 | H19: =IF(G19=0,0,IF(K19=0.5,0,G19-Calendrier!$AT$9)) -> 0 | I19: =I18+H19 -> 1.75 | J19: =IF(AND(COUNTA(C19:F19)=0,OR(B19="F",WEEKDAY(A19,2)>5,B19="T",B19="RTT",B19="CA")),B19,IF(AND(COUNTA(C19:F19)>=2,OR(B19="F",B19="RTT",B19="CA",B19="Sa",B19="Di")),"calendrier",IF(AND(COUNTA(C19)+COUNTA(F19)=2,OR(COUNTA(C19:D19)<1,COUNTA(E19:F19)<1)),"erreur",IF(COUNTA(C19:F19)=3,"en cours",IF(COUNTA(C19:F19)=4,B19,IF(OR(AND(C19<>0,D19<>0),AND(E19<>0,F19<>0)),$F$12,IF(AND(C19<>0,D19=0,E19=0,F19<>0,WEEKDAY(A19,2)>5),"calendrier",IF(AND(C19<>0,D19=0,E19=0,F19<>0),$B19,"")))))))) -> Sa | K19: =IF(COUNTA(C19:F19)=4,1,IF(OR(AND(C19<>0,D19<>0),AND(E19<>0,F19<>0)),0.5,IF(AND(C19<>0,F19<>0,D19=0,E19=0,B19="T"),1,0))) -> 0 | M19: =IF(OR(N19=0,O19=0),0,O19-N19) -> 0
A20: =A19+1 -> 2023-04-02 | B20: =INDIRECT(ADDRESS(MATCH($B$1,Calendrier!$A$15:$A$59,0)+14,ROW()-17,3,1,"Calendrier"),1) -> Di | G20: =IF(AND(C20<>0,D20<>0,E20<>0,F20<>0),F20-E20+D20-C20-K20-IF(E20-D20<Calendrier!$AT$10,Calendrier!$AT$10,0),IF(AND(C20<>0,D20<>0,E20=0,F20=0),D20-C20-K20,IF(AND(C20=0,D20=0,E20<>0,F20<>0),F20-E20-K20,IF(AND(C20>20,D20=0,E20=0,F20<>0),24-C20+F20-K20,IF(AND(C20<>0,D20=0,E20=0,F20<>0),F20-C20-K20,0))))) -> 0 | H20: =IF(G20=0,0,IF(K20=0.5,0,G20-Calendrier!$AT$9)) -> 0 | I20: 1.75 | J20: Di | K20: 0 | M20: 0
A21: =A20+1 -> 2023-04-03 | B21: =INDIRECT(ADDRESS(MATCH($B$1,Calendrier!$A$15:$A$59,0)+14,ROW()-17,3,1,"Calendrier"),1) -> T | G21: =IF(AND(C21<>0,D21<>0,E21<>0,F21<>0),F21-E21+D21-C21-M21-IF(E21-D21<Calendrier!$AT$10,Calendrier!$AT$10,0),IF(AND(C21<>0,D21<>0,E21=0,F21=0),D21-C21-M21,IF(AND(C21=0,D21=0,E21<>0,F21<>0),F21-E21-M21,IF(AND(C21>20,D21=0,E21=0,F21<>0),24-C21+F21-M21,IF(AND(C21<>0,D21=0,E21=0,F21<>0),F21-C21-M21,0))))) -> 0 | H21: =IF(G21=0,0,IF(K21=0.5,0,G21-Calendrier!$AT$9)) -> 0 | I21: =I20+H21 -> 1.75 | J21: T | K21: 0 | M21: 0
A22: 2023-04-04 | B22: =INDIRECT(ADDRESS(MATCH($B$1,Calendrier!$A$15:$A$59,0)+14,ROW()-17,3,1,"Calendrier"),1) -> T | G22: =IF(AND(C22<>0,D22<>0,E22<>0,F22<>0),F22-E22+D22-C22-M22-IF(E22-D22<Calendrier!$AT$10,Calendrier!$AT$10,0),IF(AND(C22<>0,D22<>0,E22=0,F22=0),D22-C22-M22,IF(AND(C22=0,D22=0,E22<>0,F22<>0),F22-E22-M22,IF(AND(C22>20,D22=0,E22=0,F22<>0),24-C22+F22-M22,IF(AND(C22<>0,D22=0,E22=0,F22<>0),F22-C22-M22,0))))) -> 0 | H22: =IF(G22=0,0,IF(K22=0.5,0,G22-Calendrier!$AT$9)) -> 0 | I22: 1.75 | J22: T | K22: 0 | M22: 0
A23: 2023-04-05 | B23: =INDIRECT(ADDRESS(MATCH($B$1,Calendrier!$A$15:$A$59,0)+14,ROW()-17,3,1,"Calendrier"),1) -> T | G23: =IF(AND(C23<>0,D23<>0,E23<>0,F23<>0),F23-E23+D23-C23-M23-IF(E23-D23<Calendrier!$AT$10,Calendrier!$AT$10,0),IF(AND(C23<>0,D23<>0,E23=0,F23=0),D23-C23-M23,IF(AND(C23=0,D23=0,E23<>0,F23<>0),F23-E23-M23,IF(AND(C23>20,D23=0,E23=0,F23<>0),24-C23+F23-M23,IF(AND(C23<>0,D23=0,E23=0,F23<>0),F23-C23-M23,0))))) -> 0 | H23: =IF(G23=0,0,IF(K23=0.5,0,G23-Calendrier!$AT$9)) -> 0 | I23: 1.75 | J23: T | K23: 0 | M23: 0
A24: 2023-04-06 | B24: =INDIRECT(ADDRESS(MATCH($B$1,Calendrier!$A$15:$A$59,0)+14,ROW()-17,3,1,"Calendrier"),1) -> T | G24: =IF(AND(C24<>0,D24<>0,E24<>0,F24<>0),F24-E24+D24-C24-M24-IF(E24-D24<Calendrier!$AT$10,Calendrier!$AT$10,0),IF(AND(C24<>0,D24<>0,E24=0,F24=0),D24-C24-M24,IF(AND(C24=0,D24=0,E24<>0,F24<>0),F24-E24-M24,IF(AND(C24>20,D24=0,E24=0,F24<>0),24-C24+F24-M24,IF(AND(C24<>0,D24=0,E24=0,F24<>0),F24-C24-M24,0))))) -> 0 | H24: =IF(G24=0,0,IF(K24=0.5,0,G24-Calendrier!$AT$9)) -> 0 | I24: 1.75 | J24: T | K24: 0 | M24: =IF(OR(N24=0,O24=0),0,O24-N24) -> 0
A25: 2023-04-07 | B25: =INDIRECT(ADDRESS(MATCH($B$1,Calendrier!$A$15:$A$59,0)+14,ROW()-17,3,1,"Calendrier"),1) -> T | G25: =IF(AND(C25<>0,D25<>0,E25<>0,F25<>0),F25-E25+D25-C25-M25-IF(E25-D25<Calendrier!$AT$10,Calendrier!$AT$10,0),IF(AND(C25<>0,D25<>0,E25=0,F25=0),D25-C25-M25,IF(AND(C25=0,D25=0,E25<>0,F25<>0),F25-E25-M25,IF(AND(C25>20,D25=0,E25=0,F25<>0),24-C25+F25-M25,IF(AND(C25<>0,D25=0,E25=0,F25<>0),F25-C25-M25,0))))) -> 0 | H25: =IF(G25=0,0,IF(K25=0.5,0,G25-Calendrier!$AT$9)) -> 0 | I25: 1.75 | J25: T | K25: 0 | M25: =IF(OR(N25=0,O25=0),0,O25-N25) -> 0
A26: 2023-04-08 | B26: =INDIRECT(ADDRESS(MATCH($B$1,Calendrier!$A$15:$A$59,0)+14,ROW()-17,3,1,"Calendrier"),1) -> Sa | G26: =IF(AND(C26<>0,D26<>0,E26<>0,F26<>0),F26-E26+D26-C26-M26-IF(E26-D26<Calendrier!$AT$10,Calendrier!$AT$10,0),IF(AND(C26<>0,D26<>0,E26=0,F26=0),D26-C26-M26,IF(AND(C26=0,D26=0,E26<>0,F26<>0),F26-E26-M26,IF(AND(C26>20,D26=0,E26=0,F26<>0),24-C26+F26-M26,IF(AND(C26<>0,D26=0,E26=0,F26<>0),F26-C26-M26,0))))) -> 0 | H26: =IF(G26=0,0,IF(K26=0.5,0,G26-Calendrier!$AT$9)) -> 0 | I26: 1.75 | J26: Sa | K26: 0 | M26: 0
A27: 2023-04-09 | B27: =INDIRECT(ADDRESS(MATCH($B$1,Calendrier!$A$15:$A$59,0)+14,ROW()-17,3,1,"Calendrier"),1) -> F | G27: =IF(AND(C27<>0,D27<>0,E27<>0,F27<>0),F27-E27+D27-C27-M27-IF(E27-D27<Calendrier!$AT$10,Calendrier!$AT$10,0),IF(AND(C27<>0,D27<>0,E27=0,F27=0),D27-C27-M27,IF(AND(C27=0,D27=0,E27<>0,F27<>0),F27-E27-M27,IF(AND(C27>20,D27=0,E27=0,F27<>0),24-C27+F27-M27,IF(AND(C27<>0,D27=0,E27=0,F27<>0),F27-C27-M27,0))))) -> 0 | H27: =IF(G27=0,0,IF(K27=0.5,0,G27-Calendrier!$AT$9)) -> 0 | I27: 1.75 | J27: F | K27: 0 | M27: 0
A28: 2023-04-10 | B28: =INDIRECT(ADDRESS(MATCH($B$1,Calendrier!$A$15:$A$59,0)+14,ROW()-17,3,1,"Calendrier"),1) -> F | G28: =IF(AND(C28<>0,D28<>0,E28<>0,F28<>0),F28-E28+D28-C28-M28-IF(E28-D28<Calendrier!$AT$10,Calendrier!$AT$10,0),IF(AND(C28<>0,D28<>0,E28=0,F28=0),D28-C28-M28,IF(AND(C28=0,D28=0,E28<>0,F28<>0),F28-E28-M28,IF(AND(C28>20,D28=0,E28=0,F28<>0),24-C28+F28-M28,IF(AND(C28<>0,D28=0,E28=0,F28<>0),F28-C28-M28,0))))) -> 0 | H28: =IF(G28=0,0,IF(K28=0.5,0,G28-Calendrier!$AT$9)) -> 0 | I28: 1.75 | J28: F | K28: 0 | M28: 0
A29: 2023-04-11 | B29: =INDIRECT(ADDRESS(MATCH($B$1,Calendrier!$A$15:$A$59,0)+14,ROW()-17,3,1,"Calendrier"),1) -> T | G29: =IF(AND(C29<>0,D29<>0,E29<>0,F29<>0),F29-E29+D29-C29-M29-IF(E29-D29<Calendrier!$AT$10,Calendrier!$AT$10,0),IF(AND(C29<>0,D29<>0,E29=0,F29=0),D29-C29-M29,IF(AND(C29=0,D29=0,E29<>0,F29<>0),F29-E29-M29,IF(AND(C29>20,D29=0,E29=0,F29<>0),24-C29+F29-M29,IF(AND(C29<>0,D29=0,E29=0,F29<>0),F29-C29-M29,0))))) -> 0 | H29: =IF(G29=0,0,IF(K29=0.5,0,G29-Calendrier!$AT$9)) -> 0 | I29: 1.75 | J29: T | K29: 0 | M29: 0
A30: 2023-04-12 | B30: =INDIRECT(ADDRESS(MATCH($B$1,Calendrier!$A$15:$A$59,0)+14,ROW()-17,3,1,"Calendrier"),1) -> T | G30: =IF(AND(C30<>0,D30<>0,E30<>0,F30<>0),F30-E30+D30-C30-M30-IF(E30-D30<Calendrier!$AT$10,Calendrier!$AT$10,0),IF(AND(C30<>0,D30<>0,E30=0,F30=0),D30-C30-M30,IF(AND(C30=0,D30=0,E30<>0,F30<>0),F30-E30-M30,IF(AND(C30>20,D30=0,E30=0,F30<>0),24-C30+F30-M30,IF(AND(C30<>0,D30=0,E30=0,F30<>0),F30-C30-M30,0))))) -> 0 | H30: =IF(G30=0,0,IF(K30=0.5,0,G30-Calendrier!$AT$9)) -> 0 | I30: 1.75 | J30: T | K30: 0 | M30: 0
A31: 2023-04-13 | B31: =INDIRECT(ADDRESS(MATCH($B$1,Calendrier!$A$15:$A$59,0)+14,ROW()-17,3,1,"Calendrier"),1) -> RTT | G31: =IF(AND(C31<>0,D31<>0,E31<>0,F31<>0),F31-E31+D31-C31-M31-IF(E31-D31<Calendrier!$AT$10,Calendrier!$AT$10,0),IF(AND(C31<>0,D31<>0,E31=0,F31=0),D31-C31-M31,IF(AND(C31=0,D31=0,E31<>0,F31<>0),F31-E31-M31,IF(AND(C31>20,D31=0,E31=0,F31<>0),24-C31+F31-M31,IF(AND(C31<>0,D31=0,E31=0,F31<>0),F31-C31-M31,0))))) -> 0 | H31: =IF(G31=0,0,IF(K31=0.5,0,G31-Calendrier!$AT$9)) -> 0 | I31: 1.75 | J31: RTT | K31: 0 | M31: 0
A32: 2023-04-14 | B32: =INDIRECT(ADDRESS(MATCH($B$1,Calendrier!$A$15:$A$59,0)+14,ROW()-17,3,1,"Calendrier"),1) -> T | G32: =IF(AND(C32<>0,D32<>0,E32<>0,F32<>0),F32-E32+D32-C32-M32-IF(E32-D32<Calendrier!$AT$10,Calendrier!$AT$10,0),IF(AND(C32<>0,D32<>0,E32=0,F32=0),D32-C32-M32,IF(AND(C32=0,D32=0,E32<>0,F32<>0),F32-E32-M32,IF(AND(C32>20,D32=0,E32=0,F32<>0),24-C32+F32-M32,IF(AND(C32<>0,D32=0,E32=0,F32<>0),F32-C32-M32,0))))) -> 0 | H32: =IF(G32=0,0,IF(K32=0.5,0,G32-Calendrier!$AT$9)) -> 0 | I32: 1.75 | J32: T | K32: 0 | M32: 0
A33: 2023-04-15 | B33: =INDIRECT(ADDRESS(MATCH($B$1,Calendrier!$A$15:$A$59,0)+14,ROW()-17,3,1,"Calendrier"),1) -> Sa | G33: =IF(AND(C33<>0,D33<>0,E33<>0,F33<>0),F33-E33+D33-C33-M33-IF(E33-D33<Calendrier!$AT$10,Calendrier!$AT$10,0),IF(AND(C33<>0,D33<>0,E33=0,F33=0),D33-C33-M33,IF(AND(C33=0,D33=0,E33<>0,F33<>0),F33-E33-M33,IF(AND(C33>20,D33=0,E33=0,F33<>0),24-C33+F33-M33,IF(AND(C33<>0,D33=0,E33=0,F33<>0),F33-C33-M33,0))))) -> 0 | H33: =IF(G33=0,0,IF(K33=0.5,0,G33-Calendrier!$AT$9)) -> 0 | I33: 1.75 | J33: Sa | K33: 0 | M33: 0
A34: 2023-04-16 | B34: =INDIRECT(ADDRESS(MATCH($B$1,Calendrier!$A$15:$A$59,0)+14,ROW()-17,3,1,"Calendrier"),1) -> Di | G34: =IF(AND(C34<>0,D34<>0,E34<>0,F34<>0),F34-E34+D34-C34-M34-IF(E34-D34<Calendrier!$AT$10,Calendrier!$AT$10,0),IF(AND(C34<>0,D34<>0,E34=0,F34=0),D34-C34-M34,IF(AND(C34=0,D34=0,E34<>0,F34<>0),F34-E34-M34,IF(AND(C34>20,D34=0,E34=0,F34<>0),24-C34+F34-M34,IF(AND(C34<>0,D34=0,E34=0,F34<>0),F34-C34-M34,0))))) -> 0 | H34: =IF(G34=0,0,IF(K34=0.5,0,G34-Calendrier!$AT$9)) -> 0 | I34: 1.75 | J34: =IF(AND(COUNTA(C34:F34)=0,OR(B34="F",WEEKDAY(A34,2)>5,B34="T",B34="RTT",B34="CA")),B34,IF(AND(COUNTA(C34:F34)>=2,OR(B34="F",B34="RTT",B34="CA",B34="Sa",B34="Di")),"calendrier",IF(AND(COUNTA(C34)+COUNTA(F34)=2,OR(COUNTA(C34:D34)<1,COUNTA(E34:F34)<1)),"erreur",IF(COUNTA(C34:F34)=3,"en cours",IF(COUNTA(C34:F34)=4,B34,IF(OR(AND(C34<>0,D34<>0),AND(E34<>0,F34<>0)),$F$12,IF(AND(C34<>0,D34=0,E34=0,F34<>0,WEEKDAY(A34,2)>5),"calendrier",IF(AND(C34<>0,D34=0,E34=0,F34<>0),$B34,"")))))))) -> Di | K34: 0 | M34: 0
A35: 2023-04-17 | B35: =INDIRECT(ADDRESS(MATCH($B$1,Calendrier!$A$15:$A$59,0)+14,ROW()-17,3,1,"Calendrier"),1) -> T | G35: =IF(AND(C35<>0,D35<>0,E35<>0,F35<>0),F35-E35+D35-C35-M35-IF(E35-D35<Calendrier!$AT$10,Calendrier!$AT$10,0),IF(AND(C35<>0,D35<>0,E35=0,F35=0),D35-C35-M35,IF(AND(C35=0,D35=0,E35<>0,F35<>0),F35-E35-M35,IF(AND(C35>20,D35=0,E35=0,F35<>0),24-C35+F35-M35,IF(AND(C35<>0,D35=0,E35=0,F35<>0),F35-C35-M35,0))))) -> 0 | H35: =IF(G35=0,0,IF(K35=0.5,0,G35-Calendrier!$AT$9)) -> 0 | I35: 1.75 | J35: T | K35: 0 | M35: 0
A36: 2023-04-18 | B36: =INDIRECT(ADDRESS(MATCH($B$1,Calendrier!$A$15:$A$59,0)+14,ROW()-17,3,1,"Calendrier"),1) -> T | G36: =IF(AND(C36<>0,D36<>0,E36<>0,F36<>0),F36-E36+D36-C36-M36-IF(E36-D36<Calendrier!$AT$10,Calendrier!$AT$10,0),IF(AND(C36<>0,D36<>0,E36=0,F36=0),D36-C36-M36,IF(AND(C36=0,D36=0,E36<>0,F36<>0),F36-E36-M36,IF(AND(C36>20,D36=0,E36=0,F36<>0),24-C36+F36-M36,IF(AND(C36<>0,D36=0,E36=0,F36<>0),F36-C36-M36,0))))) -> 0 | H36: =IF(G36=0,0,IF(K36=0.5,0,G36-Calendrier!$AT$9)) -> 0 | I36: 1.75 | J36: T | K36: 0 | M36: 0
A37: 2023-04-19 | B37: =INDIRECT(ADDRESS(MATCH($B$1,Calendrier!$A$15:$A$59,0)+14,ROW()-17,3,1,"Calendrier"),1) -> T | G37: =IF(AND(C37<>0,D37<>0,E37<>0,F37<>0),F37-E37+D37-C37-M37-IF(E37-D37<Calendrier!$AT$10,Calendrier!$AT$10,0),IF(AND(C37<>0,D37<>0,E37=0,F37=0),D37-C37-M37,IF(AND(C37=0,D37=0,E37<>0,F37<>0),F37-E37-M37,IF(AND(C37>20,D37=0,E37=0,F37<>0),24-C37+F37-M37,IF(AND(C37<>0,D37=0,E37=0,F37<>0),F37-C37-M37,0))))) -> 0 | H37: =IF(G37=0,0,IF(K37=0.5,0,G37-Calendrier!$AT$9)) -> 0 | I37: 1.75 | J37: T | K37: 0 | M37: 0
A38: 2023-04-20 | B38: =INDIRECT(ADDRESS(MATCH($B$1,Calendrier!$A$15:$A$59,0)+14,ROW()-17,3,1,"Calendrier"),1) -> T | G38: =IF(AND(C38<>0,D38<>0,E38<>0,F38<>0),F38-E38+D38-C38-M38-IF(E38-D38<Calendrier!$AT$10,Calendrier!$AT$10,0),IF(AND(C38<>0,D38<>0,E38=0,F38=0),D38-C38-M38,IF(AND(C38=0,D38=0,E38<>0,F38<>0),F38-E38-M38,IF(AND(C38>20,D38=0,E38=0,F38<>0),24-C38+F38-M38,IF(AND(C38<>0,D38=0,E38=0,F38<>0),F38-C38-M38,0))))) -> 0 | H38: =IF(G38=0,0,IF(K38=0.5,0,G38-Calendrier!$AT$9)) -> 0 | I38: 1.75 | J38: T | K38: 0 | M38: 0
A39: 2023-04-21 | B39: =INDIRECT(ADDRESS(MATCH($B$1,Calendrier!$A$15:$A$59,0)+14,ROW()-17,3,1,"Calendrier"),1) -> T | G39: =IF(AND(C39<>0,D39<>0,E39<>0,F39<>0),F39-E39+D39-C39-M39-IF(E39-D39<Calendrier!$AT$10,Calendrier!$AT$10,0),IF(AND(C39<>0,D39<>0,E39=0,F39=0),D39-C39-M39,IF(AND(C39=0,D39=0,E39<>0,F39<>0),F39-E39-M39,IF(AND(C39>20,D39=0,E39=0,F39<>0),24-C39+F39-M39,IF(AND(C39<>0,D39=0,E39=0,F39<>0),F39-C39-M39,0))))) -> 0 | H39: =IF(G39=0,0,IF(K39=0.5,0,G39-Calendrier!$AT$9)) -> 0 | I39: 1.75 | J39: T | K39: 0 | M39: 0
A40: 2023-04-22 | B40: =INDIRECT(ADDRESS(MATCH($B$1,Calendrier!$A$15:$A$59,0)+14,ROW()-17,3,1,"Calendrier"),1) -> Sa | G40: =IF(AND(C40<>0,D40<>0,E40<>0,F40<>0),F40-E40+D40-C40-M40-IF(E40-D40<Calendrier!$AT$10,Calendrier!$AT$10,0),IF(AND(C40<>0,D40<>0,E40=0,F40=0),D40-C40-M40,IF(AND(C40=0,D40=0,E40<>0,F40<>0),F40-E40-M40,IF(AND(C40>20,D40=0,E40=0,F40<>0),24-C40+F40-M40,IF(AND(C40<>0,D40=0,E40=0,F40<>0),F40-C40-M40,0))))) -> 0 | H40: =IF(G40=0,0,IF(K40=0.5,0,G40-Calendrier!$AT$9)) -> 0 | I40: 1.75 | J40: Sa | K40: 0 | M40: 0
A41: 2023-04-23 | B41: =INDIRECT(ADDRESS(MATCH($B$1,Calendrier!$A$15:$A$59,0)+14,ROW()-17,3,1,"Calendrier"),1) -> Di | G41: =IF(AND(C41<>0,D41<>0,E41<>0,F41<>0),F41-E41+D41-C41-M41-IF(E41-D41<Calendrier!$AT$10,Calendrier!$AT$10,0),IF(AND(C41<>0,D41<>0,E41=0,F41=0),D41-C41-M41,IF(AND(C41=0,D41=0,E41<>0,F41<>0),F41-E41-M41,IF(AND(C41>20,D41=0,E41=0,F41<>0),24-C41+F41-M41,IF(AND(C41<>0,D41=0,E41=0,F41<>0),F41-C41-M41,0))))) -> 0 | H41: =IF(G41=0,0,IF(K41=0.5,0,G41-Calendrier!$AT$9)) -> 0 | I41: 1.75 | J41: Di | K41: 0 | M41: 0
A42: 2023-04-24 | B42: =INDIRECT(ADDRESS(MATCH($B$1,Calendrier!$A$15:$A$59,0)+14,ROW()-17,3,1,"Calendrier"),1) -> T | G42: =IF(AND(C42<>0,D42<>0,E42<>0,F42<>0),F42-E42+D42-C42-M42-IF(E42-D42<Calendrier!$AT$10,Calendrier!$AT$10,0),IF(AND(C42<>0,D42<>0,E42=0,F42=0),D42-C42-M42,IF(AND(C42=0,D42=0,E42<>0,F42<>0),F42-E42-M42,IF(AND(C42>20,D42=0,E42=0,F42<>0),24-C42+F42-M42,IF(AND(C42<>0,D42=0,E42=0,F42<>0),F42-C42-M42,0))))) -> 0 | H42: =IF(G42=0,0,IF(K42=0.5,0,G42-Calendrier!$AT$9)) -> 0 | I42: 1.75 | J42: T | K42: 0 | M42: 0
A43: 2023-04-25 | B43: =INDIRECT(ADDRESS(MATCH($B$1,Calendrier!$A$15:$A$59,0)+14,ROW()-17,3,1,"Calendrier"),1) -> T | G43: =IF(AND(C43<>0,D43<>0,E43<>0,F43<>0),F43-E43+D43-C43-M43-IF(E43-D43<Calendrier!$AT$10,Calendrier!$AT$10,0),IF(AND(C43<>0,D43<>0,E43=0,F43=0),D43-C43-M43,IF(AND(C43=0,D43=0,E43<>0,F43<>0),F43-E43-M43,IF(AND(C43>20,D43=0,E43=0,F43<>0),24-C43+F43-M43,IF(AND(C43<>0,D43=0,E43=0,F43<>0),F43-C43-M43,0))))) -> 0 | H43: =IF(G43=0,0,IF(K43=0.5,0,G43-Calendrier!$AT$9)) -> 0 | I43: 1.75 | J43: T | K43: 0 | M43: 0
A44: 2023-04-26 | B44: =INDIRECT(ADDRESS(MATCH($B$1,Calendrier!$A$15:$A$59,0)+14,ROW()-17,3,1,"Calendrier"),1) -> T | G44: =IF(AND(C44<>0,D44<>0,E44<>0,F44<>0),F44-E44+D44-C44-M44-IF(E44-D44<Calendrier!$AT$10,Calendrier!$AT$10,0),IF(AND(C44<>0,D44<>0,E44=0,F44=0),D44-C44-M44,IF(AND(C44=0,D44=0,E44<>0,F44<>0),F44-E44-M44,IF(AND(C44>20,D44=0,E44=0,F44<>0),24-C44+F44-M44,IF(AND(C44<>0,D44=0,E44=0,F44<>0),F44-C44-M44,0))))) -> 0 | H44: =IF(G44=0,0,IF(K44=0.5,0,G44-Calendrier!$AT$9)) -> 0 | I44: 1.75 | J44: T | K44: 0 | M44: 0
A45: 2023-04-27 | B45: =INDIRECT(ADDRESS(MATCH($B$1,Calendrier!$A$15:$A$59,0)+14,ROW()-17,3,1,"Calendrier"),1) -> T | G45: =IF(AND(C45<>0,D45<>0,E45<>0,F45<>0),F45-E45+D45-C45-M45-IF(E45-D45<Calendrier!$AT$10,Calendrier!$AT$10,0),IF(AND(C45<>0,D45<>0,E45=0,F45=0),D45-C45-M45,IF(AND(C45=0,D45=0,E45<>0,F45<>0),F45-E45-M45,IF(AND(C45>20,D45=0,E45=0,F45<>0),24-C45+F45-M45,IF(AND(C45<>0,D45=0,E45=0,F45<>0),F45-C45-M45,0))))) -> 0 | H45: =IF(G45=0,0,IF(K45=0.5,0,G45-Calendrier!$AT$9)) -> 0 | I45: 1.75 | J45: T | K45: 0 | M45: 0
A46: 2023-04-28 | B46: =INDIRECT(ADDRESS(MATCH($B$1,Calendrier!$A$15:$A$59,0)+14,ROW()-17,3,1,"Calendrier"),1) -> T | G46: =IF(AND(C46<>0,D46<>0,E46<>0,F46<>0),F46-E46+D46-C46-M46-IF(E46-D46<Calendrier!$AT$10,Calendrier!$AT$10,0),IF(AND(C46<>0,D46<>0,E46=0,F46=0),D46-C46-M46,IF(AND(C46=0,D46=0,E46<>0,F46<>0),F46-E46-M46,IF(AND(C46>20,D46=0,E46=0,F46<>0),24-C46+F46-M46,IF(AND(C46<>0,D46=0,E46=0,F46<>0),F46-C46-M46,0))))) -> 0 | H46: =IF(G46=0,0,IF(K46=0.5,0,G46-Calendrier!$AT$9)) -> 0 | I46: 1.75 | J46: T | K46: 0 | M46: 0
A47: 2023-04-29 | B47: =INDIRECT(ADDRESS(MATCH($B$1,Calendrier!$A$15:$A$59,0)+14,ROW()-17,3,1,"Calendrier"),1) -> Sa | G47: =IF(AND(C47<>0,D47<>0,E47<>0,F47<>0),F47-E47+D47-C47-M47-IF(E47-D47<Calendrier!$AT$10,Calendrier!$AT$10,0),IF(AND(C47<>0,D47<>0,E47=0,F47=0),D47-C47-M47,IF(AND(C47=0,D47=0,E47<>0,F47<>0),F47-E47-M47,IF(AND(C47>20,D47=0,E47=0,F47<>0),24-C47+F47-M47,IF(AND(C47<>0,D47=0,E47=0,F47<>0),F47-C47-M47,0))))) -> 0 | H47: =IF(G47=0,0,IF(K47=0.5,0,G47-Calendrier!$AT$9)) -> 0 | I47: 1.75 | J47: Sa | K47: 0 | M47: 0
A48: 2023-04-30 | B48: =INDIRECT(ADDRESS(MATCH($B$1,Calendrier!$A$15:$A$59,0)+14,ROW()-17,3,1,"Calendrier"),1) -> Di | G48: =IF(AND(C48<>0,D48<>0,E48<>0,F48<>0),F48-E48+D48-C48-M48-IF(E48-D48<Calendrier!$AT$10,Calendrier!$AT$10,0),IF(AND(C48<>0,D48<>0,E48=0,F48=0),D48-C48-M48,IF(AND(C48=0,D48=0,E48<>0,F48<>0),F48-E48-M48,IF(AND(C48>20,D48=0,E48=0,F48<>0),24-C48+F48-M48,IF(AND(C48<>0,D48=0,E48=0,F48<>0),F48-C48-M48,0))))) -> 0 | H48: =IF(G48=0,0,IF(K48=0.5,0,G48-Calendrier!$AT$9)) -> 0 | I48: 1.75 | J48: Di | K48: 0 | M48: 0
A49: =IF(MONTH(A48+1)>4,0,A48+1) -> 00:00:00 | B49: =INDIRECT(ADDRESS(MATCH($B$1,Calendrier!$A$15:$A$59,0)+14,ROW()-17,3,1,"Calendrier"),1) -> 0 | G49: =IF(AND(C49<>0,D49<>0,E49<>0,F49<>0),F49-E49+D49-C49-M49-IF(E49-D49<Calendrier!$AT$10,Calendrier!$AT$10,0),IF(AND(C49<>0,D49<>0,E49=0,F49=0),D49-C49-M49,IF(AND(C49=0,D49=0,E49<>0,F49<>0),F49-E49-M49,IF(AND(C49>20,D49=0,E49=0,F49<>0),24-C49+F49-M49,IF(AND(C49<>0,D49=0,E49=0,F49<>0),F49-C49-M49,0))))) -> 0 | H49: =IF(G49=0,0,IF(K49=0.5,0,G49-Calendrier!$AT$9)) -> 0 | I49: 1.75 | J49: =IF(AND(COUNTA(C49:F49)=0,B49="F"),B49,IF(AND(COUNTA(C49:F49)=0,WEEKDAY(A49,2)>5),B49,IF(AND(COUNTA(C49:F49)=0,B49="T"),"",IF(AND(COUNTA(C49:F49)=0,B49="RTT"),B49,IF(AND(COUNTA(D49:F49)=0,C49<>0),"erreur",IF(AND(COUNTA(C49:F49)=4,B49="RTT"),"Erreur RTT",IF(AND(COUNTA(C49:F49)=4,B49="F"),"fériés",IF(COUNTA(C49:F49)=4,B49,IF(COUNTA(C49:F49)=3,"Erreur",IF(AND(C49<>0,D49<>0),$F$12,IF(AND(E49<>0,F49<>0),$F$12,IF(AND(C49<>0,D49=0,E49=0,F49<>0,WEEKDAY(A49,2)>5),"Modif calendrier",IF(AND(C49<>0,D49=0,E49=0,F49<>0),$B49))))))))))))) -> 0 | K49: 0 | M49: 0
G50: =SUM(G19:G49) -> 0 | I50: =I49 -> 1.75
J52: =IF(G52>6,"T","") -> 

Sheet MAI
B1: =RIGHT(CELL("nomfichier",$A$1),3) -> MAI | C1: FICHE DE SUIVI HORAIRE
B3: mois : | C3: MAI | F3: année | G3: =VLOOKUP(C3,Fériés!$I$1:$J$12,2,FALSE) -> 2023 | J3: service | K3: =Calendrier!F4 -> Administratif
B5: nom : | C5: =Calendrier!F2 -> Isq | F5: prénom | G5: =Calendrier!F3 -> Philippe | J5: N° Ident | K5: =Calendrier!F1 -> T506489
H6: à réaliser | I6: cumul | J6: en cours | K6: reste | M6: N.cumul
D7: Nb J | E7: =Calendrier!$AT$11 -> 218 | F7: =+$H$10 -> 0 | G7: =E7-F7 -> 218 | H7: =Calendrier!N1 -> 365 | I7: =AVR!M7 -> 116.5 | J7: =SUM(J8:J15) -> 31 | K7: =H7-(I7+J7) -> 217.5 | M7: =SUM(M8:M15) -> 147.5
F8: 1/2CA | G8: CA | H8: =Calendrier!N5 -> 25 | I8: =AVR!M8 -> 0 | J8: =COUNTIF($J$19:$J$49,G8)+COUNTIF($J$19:$J$49,F8)/2 -> 1 | K8: =+H8-(I8+J8) -> 24 | L8: J | M8: =+I8+J8 -> 1
F9: 1/2RTT | G9: RTT | H9: =Calendrier!N8 -> 9 | I9: =AVR!M9 -> 3 | J9: =COUNTIF($J$19:$J$49,G9)+COUNTIF($J$19:$J$49,F9)/2 -> 0 | K9: =+H9-(I9+J9) -> 6 | L9: J | M9: 3
F10: 1/2CS | G10: CS | H10: =Calendrier!N9 -> 0 | I10: =AVR!M10 -> 0 | J10: 0 | K10: =H10-(I10+J10) -> 0 | L10: J | M10: 0
F11: 1/2CP | G11: CP | H11: =Calendrier!N6 -> 0 | I11: =AVR!M11 -> 0 | J11: 0 | K11: =H11-(I11+J11) -> 0 | L11: J | M11: 0
F12: 1/2T | G12: T | H12: =Calendrier!N7 -> 218 | I12: =AVR!M12 -> 77.5 | J12: 19 | K12: =+H12-(I12+J12) -> 121.5 | L12: J | M12: 96.5
F13: 0 | G13: Sa | H13: =Calendrier!N4 -> 51 | I13: =AVR!M13 -> 17 | J13: =COUNTIF($J$19:$J$49,G13) -> 4 | K13: =+H13-(I13+J13) -> 30 | L13: J | M13: 21
F14: 0 | G14: Di | H14: =Calendrier!N3 -> 50 | I14: =AVR!M14 -> 16 | J14: =COUNTIF($J$19:$J$49,G14) -> 3 | K14: =+H14-(I14+J14) -> 31 | L14: J | M14: 19
F15: 0 | G15: F | H15: =Calendrier!N2 -> 12 | I15: =AVR!M15 -> 3 | J15: =COUNTIF($J$19:$J$49,G15) -> 4 | K15: =+H15-(I15+J15) -> 5 | L15: J | M15: 7
G16: heure/avance fin mois | I16: =AVR!$I$50 -> 1.75 | M16: =I50 -> 1.75 | N16: avec bon
B17: Prévu | C17: Entrée | D17: Sortie | E17: Entrée | F17: Sortie | G17: total | H17: variation | I17: cumul | J17: Type | K17: nb J/T | M17: divers E/S | N17: Sortie | O17: Retour
I18: =AVR!$I$50 -> 1.75
A19: =VALUE("01/05/"&G3) -> 2023-05-01 | B19: =INDIRECT(ADDRESS(MATCH($B$1,Calendrier!$A$15:$A$59,0)+14,ROW()-17,3,1,"Calendrier"),1) -> F | G19: =IF(AND(C19<>0,D19<>0,E19<>0,F19<>0),F19-E19+D19-C19-K19-IF(E19-D19<Calendrier!$AT$10,Calendrier!$AT$10,0),IF(AND(C19<>0,D19<>0,E19=0,F19=0),D19-C19-K19,IF(AND(C19=0,D19=0,E19<>0,F19<>0),F19-E19-K19,IF(AND(C19>20,D19=0,E19=0,F19<>0),24-C19+F19-K19,IF(AND(C19<>0,D19=0,E19=0,F19<>0),F19-C19-K19,0))))) -> 0 | H19: =IF(G19=0,0,IF(K19=0.5,0,G19-Calendrier!$AT$9)) -> 0 | I19: =I18+H19 -> 1.75 | J19: =IF(AND(COUNTA(C19:F19)=0,OR(B19="F",WEEKDAY(A19,2)>5,B19="T",B19="RTT",B19="CA")),B19,IF(AND(COUNTA(C19:F19)>=2,OR(B19="F",B19="RTT",B19="CA",B19="Sa",B19="Di")),"calendrier",IF(AND(COUNTA(C19)+COUNTA(F19)=2,OR(COUNTA(C19:D19)<1,COUNTA(E19:F19)<1)),"erreur",IF(COUNTA(C19:F19)=3,"en cours",IF(COUNTA(C19:F19)=4,B19,IF(OR(AND(C19<>0,D19<>0),AND(E19<>0,F19<>0)),$F$12,IF(AND(C19<>0,D19=0,E19=0,F19<>0,WEEKDAY(A19,2)>5),"calendrier",IF(AND(C19<>0,D19=0,E19=0,F19<>0),$B19,"")))))))) -> F | K19: =IF(COUNTA(C19:F19)=4,1,IF(OR(AND(C19<>0,D19<>0),AND(E19<>0,F19<>0)),0.5,IF(AND(C19<>0,F19<>0,D19=0,E19=0,B19="T"),1,0))) -> 0 | M19: =IF(OR(N19=0,O19=0),0,O19-N19) -> 0
A20: =A19+1 -> 2023-05-02 | B20: =INDIRECT(ADDRESS(MATCH($B$1,Calendrier!$A$15:$A$59,0)+14,ROW()-17,3,1,"Calendrier"),1) -> T | G20: =IF(AND(C20<>0,D20<>0,E20<>0,F20<>0),F20-E20+D20-C20-K20-IF(E20-D20<Calendrier!$AT$10,Calendrier!$AT$10,0),IF(AND(C20<>0,D20<>0,E20=0,F20=0),D20-C20-K20,IF(AND(C20=0,D20=0,E20<>0,F20<>0),F20-E20-K20,IF(AND(C20>20,D20=0,E20=0,F20<>0),24-C20+F20-K20,IF(AND(C20<>0,D20=0,E20=0,F20<>0),F20-C20-K20,0))))) -> 0 | H20: =IF(G20=0,0,IF(K20=0.5,0,G20-Calendrier!$AT$9)) -> 0 | I20: 1.75 | J20: T | K20: 0 | M20: 0
A21: =A20+1 -> 2023-05-03 | B21: =INDIRECT(ADDRESS(MATCH($B$1,Calendrier!$A$15:$A$59,0)+14,ROW()-17,3,1,"Calendrier"),1) -> T | G21: =IF(AND(C21<>0,D21<>0,E21<>0,F21<>0),F21-E21+D21-C21-M21-IF(E21-D21<Calendrier!$AT$10,Calendrier!$AT$10,0),IF(AND(C21<>0,D21<>0,E21=0,F21=0),D21-C21-M21,IF(AND(C21=0,D21=0,E21<>0,F21<>0),F21-E21-M21,IF(AND(C21>20,D21=0,E21=0,F21<>0),24-C21+F21-M21,IF(AND(C21<>0,D21=0,E21=0,F21<>0),F21-C21-M21,0))))) -> 0 | H21: =IF(G21=0,0,IF(K21=0.5,0,G21-Calendrier!$AT$9)) -> 0 | I21: =I20+H21 -> 1.75 | J21: T | K21: 0 | M21: 0
A22: 2023-05-04 | B22: =INDIRECT(ADDRESS(MATCH($B$1,Calendrier!$A$15:$A$59,0)+14,ROW()-17,3,1,"Calendrier"),1) -> T | G22: =IF(AND(C22<>0,D22<>0,E22<>0,F22<>0),F22-E22+D22-C22-M22-IF(E22-D22<Calendrier!$AT$10,Calendrier!$AT$10,0),IF(AND(C22<>0,D22<>0,E22=0,F22=0),D22-C22-M22,IF(AND(C22=0,D22=0,E22<>0,F22<>0),F22-E22-M22,IF(AND(C22>20,D22=0,E22=0,F22<>0),24-C22+F22-M22,IF(AND(C22<>0,D22=0,E22=0,F22<>0),F22-C22-M22,0))))) -> 0 | H22: =IF(G22=0,0,IF(K22=0.5,0,G22-Calendrier!$AT$9)) -> 0 | I22: 1.75 | J22: T | K22: 0 | M22: 0
A23: 2023-05-05 | B23: =INDIRECT(ADDRESS(MATCH($B$1,Calendrier!$A$15:$A$59,0)+14,ROW()-17,3,1,"Calendrier"),1) -> T | G23: =IF(AND(C23<>0,D23<>0,E23<>0,F23<>0),F23-E23+D23-C23-M23-IF(E23-D23<Calendrier!$AT$10,Calendrier!$AT$10,0),IF(AND(C23<>0,D23<>0,E23=0,F23=0),D23-C23-M23,IF(AND(C23=0,D23=0,E23<>0,F23<>0),F23-E23-M23,IF(AND(C23>20,D23=0,E23=0,F23<>0),24-C23+F23-M23,IF(AND(C23<>0,D23=0,E23=0,F23<>0),F23-C23-M23,0))))) -> 0 | H23: =IF(G23=0,0,IF(K23=0.5,0,G23-Calendrier!$AT$9)) -> 0 | I23: 1.75 | J23: T | K23: 0 | M23: 0
A24: 2023-05-06 | B24: =INDIRECT(ADDRESS(MATCH($B$1,Calendrier!$A$15:$A$59,0)+14,ROW()-17,3,1,"Calendrier"),1) -> Sa | G24: =IF(AND(C24<>0,D24<>0,E24<>0,F24<>0),F24-E24+D24-C24-M24-IF(E24-D24<Calendrier!$AT$10,Calendrier!$AT$10,0),IF(AND(C24<>0,D24<>0,E24=0,F24=0),D24-C24-M24,IF(AND(C24=0,D24=0,E24<>0,F24<>0),F24-E24-M24,IF(AND(C24>20,D24=0,E24=0,F24<>0),24-C24+F24-M24,IF(AND(C24<>0,D24=0,E24=0,F24<>0),F24-C24-M24,0))))) -> 0 | H24: =IF(G24=0,0,IF(K24=0.5,0,G24-Calendrier!$AT$9)) -> 0 | I24: 1.75 | J24: Sa | K24: 0 | M24: =IF(OR(N24=0,O24=0),0,O24-N24) -> 0
A25: 2023-05-07 | B25: =INDIRECT(ADDRESS(MATCH($B$1,Calendrier!$A$15:$A$59,0)+14,ROW()-17,3,1,"Calendrier"),1) -> Di | G25: =IF(AND(C25<>0,D25<>0,E25<>0,F25<>0),F25-E25+D25-C25-M25-IF(E25-D25<Calendrier!$AT$10,Calendrier!$AT$10,0),IF(AND(C25<>0,D25<>0,E25=0,F25=0),D25-C25-M25,IF(AND(C25=0,D25=0,E25<>0,F25<>0),F25-E25-M25,IF(AND(C25>20,D25=0,E25=0,F25<>0),24-C25+F25-M25,IF(AND(C25<>0,D25=0,E25=0,F25<>0),F25-C25-M25,0))))) -> 0 | H25: =IF(G25=0,0,IF(K25=0.5,0,G25-Calendrier!$AT$9)) -> 0 | I25: 1.75 | J25: Di | K25: 0 | M25: =IF(OR(N25=0,O25=0),0,O25-N25) -> 0
A26: 2023-05-08 | B26: =INDIRECT(ADDRESS(MATCH($B$1,Calendrier!$A$15:$A$59,0)+14,ROW()-17,3,1,"Calendrier"),1) -> F | G26: =IF(AND(C26<>0,D26<>0,E26<>0,F26<>0),F26-E26+D26-C26-M26-IF(E26-D26<Calendrier!$AT$10,Calendrier!$AT$10,0),IF(AND(C26<>0,D26<>0,E26=0,F26=0),D26-C26-M26,IF(AND(C26=0,D26=0,E26<>0,F26<>0),F26-E26-M26,IF(AND(C26>20,D26=0,E26=0,F26<>0),24-C26+F26-M26,IF(AND(C26<>0,D26=0,E26=0,F26<>0),F26-C26-M26,0))))) -> 0 | H26: =IF(G26=0,0,IF(K26=0.5,0,G26-Calendrier!$AT$9)) -> 0 | I26: 1.75 | J26: F | K26: 0 | M26: 0
A27: 2023-05-09 | B27: =INDIRECT(ADDRESS(MATCH($B$1,Calendrier!$A$15:$A$59,0)+14,ROW()-17,3,1,"Calendrier"),1) -> T | G27: =IF(AND(C27<>0,D27<>0,E27<>0,F27<>0),F27-E27+D27-C27-M27-IF(E27-D27<Calendrier!$AT$10,Calendrier!$AT$10,0),IF(AND(C27<>0,D27<>0,E27=0,F27=0),D27-C27-M27,IF(AND(C27=0,D27=0,E27<>0,F27<>0),F27-E27-M27,IF(AND(C27>20,D27=0,E27=0,F27<>0),24-C27+F27-M27,IF(AND(C27<>0,D27=0,E27=0,F27<>0),F27-C27-M27,0))))) -> 0 | H27: =IF(G27=0,0,IF(K27=0.5,0,G27-Calendrier!$AT$9)) -> 0 | I27: 1.75 | J27: T | K27: 0 | M27: 0
A28: 2023-05-10 | B28: =INDIRECT(ADDRESS(MATCH($B$1,Calendrier!$A$15:$A$59,0)+14,ROW()-17,3,1,"Calendrier"),1) -> T | G28: =IF(AND(C28<>0,D28<>0,E28<>0,F28<>0),F28-E28+D28-C28-M28-IF(E28-D28<Calendrier!$AT$10,Calendrier!$AT$10,0),IF(AND(C28<>0,D28<>0,E28=0,F28=0),D28-C28-M28,IF(AND(C28=0,D28=0,E28<>0,F28<>0),F28-E28-M28,IF(AND(C28>20,D28=0,E28=0,F28<>0),24-C28+F28-M28,IF(AND(C28<>0,D28=0,E28=0,F28<>0),F28-C28-M28,0))))) -> 0 | H28: =IF(G28=0,0,IF(K28=0.5,0,G28-Calendrier!$AT$9)) -> 0 | I28: 1.75 | J28: T | K28: 0 | M28: 0
A29: 2023-05-11 | B29: =INDIRECT(ADDRESS(MATCH($B$1,Calendrier!$A$15:$A$59,0)+14,ROW()-17,3,1,"Calendrier"),1) -> T | G29: =IF(AND(C29<>0,D29<>0,E29<>0,F29<>0),F29-E29+D29-C29-M29-IF(E29-D29<Calendrier!$AT$10,Calendrier!$AT$10,0),IF(AND(C29<>0,D29<>0,E29=0,F29=0),D29-C29-M29,IF(AND(C29=0,D29=0,E29<>0,F29<>0),F29-E29-M29,IF(AND(C29>20,D29=0,E29=0,F29<>0),24-C29+F29-M29,IF(AND(C29<>0,D29=0,E29=0,F29<>0),F29-C29-M29,0))))) -> 0 | H29: =IF(G29=0,0,IF(K29=0.5,0,G29-Calendrier!$AT$9)) -> 0 | I29: 1.75 | J29: T | K29: 0 | M29: 0
A30: 2023-05-12 | B30: =INDIRECT(ADDRESS(MATCH($B$1,Calendrier!$A$15:$A$59,0)+14,ROW()-17,3,1,"Calendrier"),1) -> T | G30: =IF(AND(C30<>0,D30<>0,E30<>0,F30<>0),F30-E30+D30-C30-M30-IF(E30-D30<Calendrier!$AT$10,Calendrier!$AT$10,0),IF(AND(C30<>0,D30<>0,E30=0,F30=0),D30-C30-M30,IF(AND(C30=0,D30=0,E30<>0,F30<>0),F30-E30-M30,IF(AND(C30>20,D30=0,E30=0,F30<>0),24-C30+F30-M30,IF(AND(C30<>0,D30=0,E30=0,F30<>0),F30-C30-M30,0))))) -> 0 | H30: =IF(G30=0,0,IF(K30=0.5,0,G30-Calendrier!$AT$9)) -> 0 | I30: 1.75 | J30: T | K30: 0 | M30: 0
A31: 2023-05-13 | B31: =INDIRECT(ADDRESS(MATCH($B$1,Calendrier!$A$15:$A$59,0)+14,ROW()-17,3,1,"Calendrier"),1) -> Sa | G31: =IF(AND(C31<>0,D31<>0,E31<>0,F31<>0),F31-E31+D31-C31-M31-IF(E31-D31<Calendrier!$AT$10,Calendrier!$AT$10,0),IF(AND(C31<>0,D31<>0,E31=0,F31=0),D31-C31-M31,IF(AND(C31=0,D31=0,E31<>0,F31<>0),F31-E31-M31,IF(AND(C31>20,D31=0,E31=0,F31<>0),24-C31+F31-M31,IF(AND(C31<>0,D31=0,E31=0,F31<>0),F31-C31-M31,0))))) -> 0 | H31: =IF(G31=0,0,IF(K31=0.5,0,G31-Calendrier!$AT$9)) -> 0 | I31: 1.75 | J31: Sa | K31: 0 | M31: 0
A32: 2023-05-14 | B32: =INDIRECT(ADDRESS(MATCH($B$1,Calendrier!$A$15:$A$59,0)+14,ROW()-17,3,1,"Calendrier"),1) -> Di | G32: =IF(AND(C32<>0,D32<>0,E32<>0,F32<>0),F32-E32+D32-C32-M32-IF(E32-D32<Calendrier!$AT$10,Calendrier!$AT$10,0),IF(AND(C32<>0,D32<>0,E32=0,F32=0),D32-C32-M32,IF(AND(C32=0,D32=0,E32<>0,F32<>0),F32-E32-M32,IF(AND(C32>20,D32=0,E32=0,F32<>0),24-C32+F32-M32,IF(AND(C32<>0,D32=0,E32=0,F32<>0),F32-C32-M32,0))))) -> 0 | H32: =IF(G32=0,0,IF(K32=0.5,0,G32-Calendrier!$AT$9)) -> 0 | I32: 1.75 | J32: Di | K32: 0 | M32: 0
A33: 2023-05-15 | B33: =INDIRECT(ADDRESS(MATCH($B$1,Calendrier!$A$15:$A$59,0)+14,ROW()-17,3,1,"Calendrier"),1) -> T | G33: =IF(AND(C33<>0,D33<>0,E33<>0,F33<>0),F33-E33+D33-C33-M33-IF(E33-D33<Calendrier!$AT$10,Calendrier!$AT$10,0),IF(AND(C33<>0,D33<>0,E33=0,F33=0),D33-C33-M33,IF(AND(C33=0,D33=0,E33<>0,F33<>0),F33-E33-M33,IF(AND(C33>20,D33=0,E33=0,F33<>0),24-C33+F33-M33,IF(AND(C33<>0,D33=0,E33=0,F33<>0),F33-C33-M33,0))))) -> 0 | H33: =IF(G33=0,0,IF(K33=0.5,0,G33-Calendrier!$AT$9)) -> 0 | I33: 1.75 | J33: T | K33: 0 | M33: 0
A34: 2023-05-16 | B34: =INDIRECT(ADDRESS(MATCH($B$1,Calendrier!$A$15:$A$59,0)+14,ROW()-17,3,1,"Calendrier"),1) -> T | G34: =IF(AND(C34<>0,D34<>0,E34<>0,F34<>0),F34-E34+D34-C34-M34-IF(E34-D34<Calendrier!$AT$10,Calendrier!$AT$10,0),IF(AND(C34<>0,D34<>0,E34=0,F34=0),D34-C34-M34,IF(AND(C34=0,D34=0,E34<>0,F34<>0),F34-E34-M34,IF(AND(C34>20,D34=0,E34=0,F34<>0),24-C34+F34-M34,IF(AND(C34<>0,D34=0,E34=0,F34<>0),F34-C34-M34,0))))) -> 0 | H34: =IF(G34=0,0,IF(K34=0.5,0,G34-Calendrier!$AT$9)) -> 0 | I34: 1.75 | J34: =IF(AND(COUNTA(C34:F34)=0,OR(B34="F",WEEKDAY(A34,2)>5,B34="T",B34="RTT",B34="CA")),B34,IF(AND(COUNTA(C34:F34)>=2,OR(B34="F",B34="RTT",B34="CA",B34="Sa",B34="Di")),"calendrier",IF(AND(COUNTA(C34)+COUNTA(F34)=2,OR(COUNTA(C34:D34)<1,COUNTA(E34:F34)<1)),"erreur",IF(COUNTA(C34:F34)=3,"en cours",IF(COUNTA(C34:F34)=4,B34,IF(OR(AND(C34<>0,D34<>0),AND(E34<>0,F34<>0)),$F$12,IF(AND(C34<>0,D34=0,E34=0,F34<>0,WEEKDAY(A34,2)>5),"calendrier",IF(AND(C34<>0,D34=0,E34=0,F34<>0),$B34,"")))))))) -> T | K34: 0 | M34: 0
A35: 2023-05-17 | B35: =INDIRECT(ADDRESS(MATCH($B$1,Calendrier!$A$15:$A$59,0)+14,ROW()-17,3,1,"Calendrier"),1) -> T | G35: =IF(AND(C35<>0,D35<>0,E35<>0,F35<>0),F35-E35+D35-C35-M35-IF(E35-D35<Calendrier!$AT$10,Calendrier!$AT$10,0),IF(AND(C35<>0,D35<>0,E35=0,F35=0),D35-C35-M35,IF(AND(C35=0,D35=0,E35<>0,F35<>0),F35-E35-M35,IF(AND(C35>20,D35=0,E35=0,F35<>0),24-C35+F35-M35,IF(AND(C35<>0,D35=0,E35=0,F35<>0),F35-C35-M35,0))))) -> 0 | H35: =IF(G35=0,0,IF(K35=0.5,0,G35-Calendrier!$AT$9)) -> 0 | I35: 1.75 | J35: T | K35: 0 | M35: 0
A36: 2023-05-18 | B36: =INDIRECT(ADDRESS(MATCH($B$1,Calendrier!$A$15:$A$59,0)+14,ROW()-17,3,1,"Calendrier"),1) -> F | G36: =IF(AND(C36<>0,D36<>0,E36<>0,F36<>0),F36-E36+D36-C36-M36-IF(E36-D36<Calendrier!$AT$10,Calendrier!$AT$10,0),IF(AND(C36<>0,D36<>0,E36=0,F36=0),D36-C36-M36,IF(AND(C36=0,D36=0,E36<>0,F36<>0),F36-E36-M36,IF(AND(C36>20,D36=0,E36=0,F36<>0),24-C36+F36-M36,IF(AND(C36<>0,D36=0,E36=0,F36<>0),F36-C36-M36,0))))) -> 0 | H36: =IF(G36=0,0,IF(K36=0.5,0,G36-Calendrier!$AT$9)) -> 0 | I36: 1.75 | J36: F | K36: 0 | M36: 0
A37: 2023-05-19 | B37: =INDIRECT(ADDRESS(MATCH($B$1,Calendrier!$A$15:$A$59,0)+14,ROW()-17,3,1,"Calendrier"),1) -> CA | G37: =IF(AND(C37<>0,D37<>0,E37<>0,F37<>0),F37-E37+D37-C37-M37-IF(E37-D37<Calendrier!$AT$10,Calendrier!$AT$10,0),IF(AND(C37<>0,D37<>0,E37=0,F37=0),D37-C37-M37,IF(AND(C37=0,D37=0,E37<>0,F37<>0),F37-E37-M37,IF(AND(C37>20,D37=0,E37=0,F37<>0),24-C37+F37-M37,IF(AND(C37<>0,D37=0,E37=0,F37<>0),F37-C37-M37,0))))) -> 0 | H37: =IF(G37=0,0,IF(K37=0.5,0,G37-Calendrier!$AT$9)) -> 0 | I37: 1.75 | J37: CA | K37: 0 | M37: 0
A38: 2023-05-20 | B38: =INDIRECT(ADDRESS(MATCH($B$1,Calendrier!$A$15:$A$59,0)+14,ROW()-17,3,1,"Calendrier"),1) -> Sa | G38: =IF(AND(C38<>0,D38<>0,E38<>0,F38<>0),F38-E38+D38-C38-M38-IF(E38-D38<Calendrier!$AT$10,Calendrier!$AT$10,0),IF(AND(C38<>0,D38<>0,E38=0,F38=0),D38-C38-M38,IF(AND(C38=0,D38=0,E38<>0,F38<>0),F38-E38-M38,IF(AND(C38>20,D38=0,E38=0,F38<>0),24-C38+F38-M38,IF(AND(C38<>0,D38=0,E38=0,F38<>0),F38-C38-M38,0))))) -> 0 | H38: =IF(G38=0,0,IF(K38=0.5,0,G38-Calendrier!$AT$9)) -> 0 | I38: 1.75 | J38: Sa | K38: 0 | M38: 0
A39: 2023-05-21 | B39: =INDIRECT(ADDRESS(MATCH($B$1,Calendrier!$A$15:$A$59,0)+14,ROW()-17,3,1,"Calendrier"),1) -> Di | G39: =IF(AND(C39<>0,D39<>0,E39<>0,F39<>0),F39-E39+D39-C39-M39-IF(E39-D39<Calendrier!$AT$10,Calendrier!$AT$10,0),IF(AND(C39<>0,D39<>0,E39=0,F39=0),D39-C39-M39,IF(AND(C39=0,D39=0,E39<>0,F39<>0),F39-E39-M39,IF(AND(C39>20,D39=0,E39=0,F39<>0),24-C39+F39-M39,IF(AND(C39<>0,D39=0,E39=0,F39<>0),F39-C39-M39,0))))) -> 0 | H39: =IF(G39=0,0,IF(K39=0.5,0,G39-Calendrier!$AT$9)) -> 0 | I39: 1.75 | J39: Di | K39: 0 | M39: 0
A40: 2023-05-22 | B40: =INDIRECT(ADDRESS(MATCH($B$1,Calendrier!$A$15:$A$59,0)+14,ROW()-17,3,1,"Calendrier"),1) -> T | G40: =IF(AND(C40<>0,D40<>0,E40<>0,F40<>0),F40-E40+D40-C40-M40-IF(E40-D40<Calendrier!$AT$10,Calendrier!$AT$10,0),IF(AND(C40<>0,D40<>0,E40=0,F40=0),D40-C40-M40,IF(AND(C40=0,D40=0,E40<>0,F40<>0),F40-E40-M40,IF(AND(C40>20,D40=0,E40=0,F40<>0),24-C40+F40-M40,IF(AND(C40<>0,D40=0,E40=0,F40<>0),F40-C40-M40,0))))) -> 0 | H40: =IF(G40=0,0,IF(K40=0.5,0,G40-Calendrier!$AT$9)) -> 0 | I40: 1.75 | J40: T | K40: 0 | M40: 0
A41: 2023-05-23 | B41: =INDIRECT(ADDRESS(MATCH($B$1,Calendrier!$A$15:$A$59,0)+14,ROW()-17,3,1,"Calendrier"),1) -> T | G41: =IF(AND(C41<>0,D41<>0,E41<>0,F41<>0),F41-E41+D41-C41-M41-IF(E41-D41<Calendrier!$AT$10,Calendrier!$AT$10,0),IF(AND(C41<>0,D41<>0,E41=0,F41=0),D41-C41-M41,IF(AND(C41=0,D41=0,E41<>0,F41<>0),F41-E41-M41,IF(AND(C41>20,D41=0,E41=0,F41<>0),24-C41+F41-M41,IF(AND(C41<>0,D41=0,E41=0,F41<>0),F41-C41-M41,0))))) -> 0 | H41: =IF(G41=0,0,IF(K41=0.5,0,G41-Calendrier!$AT$9)) -> 0 | I41: 1.75 | J41: T | K41: 0 | M41: 0
A42: 2023-05-24 | B42: =INDIRECT(ADDRESS(MATCH($B$1,Calendrier!$A$15:$A$59,0)+14,ROW()-17,3,1,"Calendrier"),1) -> T | G42: =IF(AND(C42<>0,D42<>0,E42<>0,F42<>0),F42-E42+D42-C42-M42-IF(E42-D42<Calendrier!$AT$10,Calendrier!$AT$10,0),IF(AND(C42<>0,D42<>0,E42=0,F42=0),D42-C42-M42,IF(AND(C42=0,D42=0,E42<>0,F42<>0),F42-E42-M42,IF(AND(C42>20,D42=0,E42=0,F42<>0),24-C42+F42-M42,IF(AND(C42<>0,D42=0,E42=0,F42<>0),F42-C42-M42,0))))) -> 0 | H42: =IF(G42=0,0,IF(K42=0.5,0,G42-Calendrier!$AT$9)) -> 0 | I42: 1.75 | J42: T | K42: 0 | M42: 0
A43: 2023-05-25 | B43: =INDIRECT(ADDRESS(MATCH($B$1,Calendrier!$A$15:$A$59,0)+14,ROW()-17,3,1,"Calendrier"),1) -> T | G43: =IF(AND(C43<>0,D43<>0,E43<>0,F43<>0),F43-E43+D43-C43-M43-IF(E43-D43<Calendrier!$AT$10,Calendrier!$AT$10,0),IF(AND(C43<>0,D43<>0,E43=0,F43=0),D43-C43-M43,IF(AND(C43=0,D43=0,E43<>0,F43<>0),F43-E43-M43,IF(AND(C43>20,D43=0,E43=0,F43<>0),24-C43+F43-M43,IF(AND(C43<>0,D43=0,E43=0,F43<>0),F43-C43-M43,0))))) -> 0 | H43: =IF(G43=0,0,IF(K43=0.5,0,G43-Calendrier!$AT$9)) -> 0 | I43: 1.75 | J43: T | K43: 0 | M43: 0
A44: 2023-05-26 | B44: =INDIRECT(ADDRESS(MATCH($B$1,Calendrier!$A$15:$A$59,0)+14,ROW()-17,3,1,"Calendrier"),1) -> T | G44: =IF(AND(C44<>0,D44<>0,E44<>0,F44<>0),F44-E44+D44-C44-M44-IF(E44-D44<Calendrier!$AT$10,Calendrier!$AT$10,0),IF(AND(C44<>0,D44<>0,E44=0,F44=0),D44-C44-M44,IF(AND(C44=0,D44=0,E44<>0,F44<>0),F44-E44-M44,IF(AND(C44>20,D44=0,E44=0,F44<>0),24-C44+F44-M44,IF(AND(C44<>0,D44=0,E44=0,F44<>0),F44-C44-M44,0))))) -> 0 | H44: =IF(G44=0,0,IF(K44=0.5,0,G44-Calendrier!$AT$9)) -> 0 | I44: 1.75 | J44: T | K44: 0 | M44: 0
A45: 2023-05-27 | B45: =INDIRECT(ADDRESS(MATCH($B$1,Calendrier!$A$15:$A$59,0)+14,ROW()-17,3,1,"Calendrier"),1) -> Sa | G45: =IF(AND(C45<>0,D45<>0,E45<>0,F45<>0),F45-E45+D45-C45-M45-IF(E45-D45<Calendrier!$AT$10,Calendrier!$AT$10,0),IF(AND(C45<>0,D45<>0,E45=0,F45=0),D45-C45-M45,IF(AND(C45=0,D45=0,E45<>0,F45<>0),F45-E45-M45,IF(AND(C45>20,D45=0,E45=0,F45<>0),24-C45+F45-M45,IF(AND(C45<>0,D45=0,E45=0,F45<>0),F45-C45-M45,0))))) -> 0 | H45: =IF(G45=0,0,IF(K45=0.5,0,G45-Calendrier!$AT$9)) -> 0 | I45: 1.75 | J45: Sa | K45: 0 | M45: 0
A46: 2023-05-28 | B46: =INDIRECT(ADDRESS(MATCH($B$1,Calendrier!$A$15:$A$59,0)+14,ROW()-17,3,1,"Calendrier"),1) -> F | G46: =IF(AND(C46<>0,D46<>0,E46<>0,F46<>0),F46-E46+D46-C46-M46-IF(E46-D46<Calendrier!$AT$10,Calendrier!$AT$10,0),IF(AND(C46<>0,D46<>0,E46=0,F46=0),D46-C46-M46,IF(AND(C46=0,D46=0,E46<>0,F46<>0),F46-E46-M46,IF(AND(C46>20,D46=0,E46=0,F46<>0),24-C46+F46-M46,IF(AND(C46<>0,D46=0,E46=0,F46<>0),F46-C46-M46,0))))) -> 0 | H46: =IF(G46=0,0,IF(K46=0.5,0,G46-Calendrier!$AT$9)) -> 0 | I46: 1.75 | J46: F | K46: 0 | M46: 0
A47: 2023-05-29 | B47: =INDIRECT(ADDRESS(MATCH($B$1,Calendrier!$A$15:$A$59,0)+14,ROW()-17,3,1,"Calendrier"),1) -> T | G47: =IF(AND(C47<>0,D47<>0,E47<>0,F47<>0),F47-E47+D47-C47-M47-IF(E47-D47<Calendrier!$AT$10,Calendrier!$AT$10,0),IF(AND(C47<>0,D47<>0,E47=0,F47=0),D47-C47-M47,IF(AND(C47=0,D47=0,E47<>0,F47<>0),F47-E47-M47,IF(AND(C47>20,D47=0,E47=0,F47<>0),24-C47+F47-M47,IF(AND(C47<>0,D47=0,E47=0,F47<>0),F47-C47-M47,0))))) -> 0 | H47: =IF(G47=0,0,IF(K47=0.5,0,G47-Calendrier!$AT$9)) -> 0 | I47: 1.75 | J47: T | K47: 0 | M47: 0
A48: 2023-05-30 | B48: =INDIRECT(ADDRESS(MATCH($B$1,Calendrier!$A$15:$A$59,0)+14,ROW()-17,3,1,"Calendrier"),1) -> T | G48: =IF(AND(C48<>0,D48<>0,E48<>0,F48<>0),F48-E48+D48-C48-M48-IF(E48-D48<Calendrier!$AT$10,Calendrier!$AT$10,0),IF(AND(C48<>0,D48<>0,E48=0,F48=0),D48-C48-M48,IF(AND(C48=0,D48=0,E48<>0,F48<>0),F48-E48-M48,IF(AND(C48>20,D48=0,E48=0,F48<>0),24-C48+F48-M48,IF(AND(C48<>0,D48=0,E48=0,F48<>0),F48-C48-M48,0))))) -> 0 | H48: =IF(G48=0,0,IF(K48=0.5,0,G48-Calendrier!$AT$9)) -> 0 | I48: 1.75 | J48: T | K48: 0 | M48: 0
A49: 2023-05-31 | B49: =INDIRECT(ADDRESS(MATCH($B$1,Calendrier!$A$15:$A$59,0)+14,ROW()-17,3,1,"Calendrier"),1) -> T | G49: =IF(AND(C49<>0,D49<>0,E49<>0,F49<>0),F49-E49+D49-C49-M49-IF(E49-D49<Calendrier!$AT$10,Calendrier!$AT$10,0),IF(AND(C49<>0,D49<>0,E49=0,F49=0),D49-C49-M49,IF(AND(C49=0,D49=0,E49<>0,F49<>0),F49-E49-M49,IF(AND(C49>20,D49=0,E49=0,F49<>0),24-C49+F49-M49,IF(AND(C49<>0,D49=0,E49=0,F49<>0),F49-C49-M49,0))))) -> 0 | H49: =IF(G49=0,0,IF(K49=0.5,0,G49-Calendrier!$AT$9)) -> 0 | I49: 1.75 | J49: T | K49: 0 | M49: 0
G50: =SUM(G19:G49) -> 0 | I50: =I49 -> 1.75

Sheet JUN
B1: =RIGHT(CELL("nomfichier",$A$1),3) -> JUN | C1: FICHE DE SUIVI HORAIRE
B3: mois : | C3: JUIN | F3: année | G3: =VLOOKUP(C3,Fériés!$I$1:$J$12,2,FALSE) -> 2023 | J3: service | K3: =Calendrier!F4 -> Administratif
B5: nom : | C5: =Calendrier!F2 -> Isq | F5: prénom | G5: =Calendrier!F3 -> Philippe | J5: N° Ident | K5: =Calendrier!F1 -> T506489
H6: à réaliser | I6: cumul | J6: en cours | K6: reste | M6: N.cumul
D7: Nb J | E7: =Calendrier!$AT$11 -> 218 | F7: =$H$10 -> 0 | G7: =E7-F7 -> 218 | H7: =Calendrier!N1 -> 365 | I7: =MAI!I7 -> 116.5 | J7: =SUM(J8:J15) -> 27 | K7: =H7-(I7+J7) -> 221.5 | M7: =SUM(M8:M15) -> 143.5 | Q7: =MAI!M7 -> 147.5
F8: 1/2CA | G8: CA | H8: =Calendrier!N5 -> 25 | I8: =MAI!I8 -> 0 | J8: =COUNTIF($J$19:$J$49,G8)+COUNTIF($J$19:$J$49,F8)/2 -> 0 | K8: =+H8-(I8+J8) -> 25 | L8: J | M8: =+I8+J8 -> 0 | Q8: =MAI!M8 -> 1
F9: 1/2RTT | G9: RTT | H9: =Calendrier!N8 -> 9 | I9: =MAI!I9 -> 3 | J9: =COUNTIF($J$19:$J$49,G9)+COUNTIF($J$19:$J$49,F9)/2 -> 0 | K9: =+H9-(I9+J9) -> 6 | L9: J | M9: 3 | Q9: =MAI!M9 -> 3 | R9: =IF(COUNTA($C$27:$F$27)=0,0,"suite") -> 0
F10: 1/2CS | G10: CS | H10: =Calendrier!N9 -> 0 | I10: =MAI!I10 -> 0 | J10: 0 | K10: =H10-(I10+J10) -> 0 | L10: J | M10: 0 | Q10: =MAI!M10 -> 0 | R10: =IF(AND(C27<>0,D27=0,E27=0,F27<>0),F27-C27-M27-IF(OR(AND(C27=5,F27=13),AND(C27=13,F27=21),AND(C27=21,F27=5)),0,Calendrier!$AT$10),"suite") -> suite
F11: 1/2CP | G11: CP | H11: =Calendrier!N6 -> 0 | I11: =MAI!I11 -> 0 | J11: 0 | K11: =H11-(I11+J11) -> 0 | L11: J | M11: 0 | Q11: =MAI!M11 -> 0
F12: 1/2T | G12: T | H12: =Calendrier!N7 -> 218 | I12: =MAI!I12 -> 77.5 | J12: 21 | K12: =+H12-(I12+J12) -> 119.5 | L12: J | M12: 98.5 | Q12: =MAI!M12 -> 96.5
F13: 0 | G13: Sa | H13: =Calendrier!N4 -> 51 | I13: =MAI!I13 -> 17 | J13: =COUNTIF($J$19:$J$49,G13) -> 2 | K13: =+H13-(I13+J13) -> 32 | L13: J | M13: 19 | Q13: =MAI!M13 -> 21
F14: 0 | G14: Di | H14: =Calendrier!N3 -> 50 | I14: =MAI!I14 -> 16 | J14: =COUNTIF($J$19:$J$49,G14) -> 4 | K14: =+H14-(I14+J14) -> 30 | L14: J | M14: 20 | Q14: =MAI!M14 -> 19
F15: 0 | G15: F | H15: =Calendrier!N2 -> 12 | I15: =MAI!I15 -> 3 | J15: =COUNTIF($J$19:$J$49,G15) -> 0 | K15: =+H15-(I15+J15) -> 9 | L15: J | M15: 3 | Q15: =MAI!M15 -> 7
G16: heure/avance fin mois | I16: =MAI!I16 -> 1.75 | M16: =I50 -> 4.5 | N16: avec bon | Q16: =MAI!M16 -> 1.75
B17: Prévu | C17: Entrée | D17: Sortie | E17: Entrée | F17: Sortie | G17: total | H17: variation | I17: cumul | J17: Type | K17: nb J/T | M17: divers E/S | N17: Sortie | O17: Retour
I18: =MAI!I18 -> 1.75 | Q18: =MAI!I50 -> 1.75
A19: =VALUE("01/06/"&G3) -> 2023-06-01 | B19: =INDIRECT(ADDRESS(MATCH($B$1,Calendrier!$A$15:$A$59,0)+14,ROW()-17,3,1,"Calendrier"),1) -> T | G19: =IF(AND(C19<>0,D19<>0,E19<>0,F19<>0),F19-E19+D19-C19-K19-IF(E19-D19<Calendrier!$AT$10,Calendrier!$AT$10,0),IF(AND(C19<>0,D19<>0,E19=0,F19=0),D19-C19-K19,IF(AND(C19=0,D19=0,E19<>0,F19<>0),F19-E19-K19,IF(AND(C19>20,D19=0,E19=0,F19<>0),24-C19+F19-K19,IF(AND(C19<>0,D19=0,E19=0,F19<>0),F19-C19-K19,0))))) -> 0 | H19: =IF(G19=0,0,IF(K19=0.5,0,G19-Calendrier!$AT$9)) -> 0 | I19: =I18+H19 -> 1.75 | J19: =IF(AND(COUNTA(C19:F19)=0,OR(B19="F",WEEKDAY(A19,2)>5,B19="T",B19="RTT",B19="CA")),B19,IF(AND(COUNTA(C19:F19)>=2,OR(B19="F",B19="RTT",B19="CA",B19="Sa",B19="Di")),"calendrier",IF(AND(COUNTA(C19)+COUNTA(F19)=2,OR(COUNTA(C19:D19)<1,COUNTA(E19:F19)<1)),"erreur",IF(COUNTA(C19:F19)=3,"en cours",IF(COUNTA(C19:F19)=4,B19,IF(OR(AND(C19<>0,D19<>0),AND(E19<>0,F19<>0)),$F$12,IF(AND(C19<>0,D19=0,E19=0,F19<>0,WEEKDAY(A19,2)>5),"calendrier",IF(AND(C19<>0,D19=0,E19=0,F19<>0),$B19,"")))))))) -> T | K19: =IF(COUNTA(C19:F19)=4,1,IF(OR(AND(C19<>0,D19<>0),AND(E19<>0,F19<>0)),0.5,IF(AND(C19<>0,F19<>0,D19=0,E19=0,B19="T"),1,0))) -> 0 | M19: =IF(OR(N19=0,O19=0),0,O19-N19) -> 0
A20: =A19+1 -> 2023-06-02 | B20: =INDIRECT(ADDRESS(MATCH($B$1,Calendrier!$A$15:$A$59,0)+14,ROW()-17,3,1,"Calendrier"),1) -> T | C20: 7 | D20: 13 | G20: =IF(AND(C20<>0,D20<>0,E20<>0,F20<>0),F20-E20+D20-C20-K20-IF(E20-D20<Calendrier!$AT$10,Calendrier!$AT$10,0),IF(AND(C20<>0,D20<>0,E20=0,F20=0),D20-C20-K20,IF(AND(C20=0,D20=0,E20<>0,F20<>0),F20-E20-K20,IF(AND(C20>20,D20=0,E20=0,F20<>0),24-C20+F20-K20,IF(AND(C20<>0,D20=0,E20=0,F20<>0),F20-C20-K20,0))))) -> 5.5 | H20: =IF(G20=0,0,IF(K20=0.5,0,G20-Calendrier!$AT$9)) -> 0 | I20: 1.75 | J20: 1/2T | K20: 0.5 | M20: 0
A21: =A20+1 -> 2023-06-03 | B21: =INDIRECT(ADDRESS(MATCH($B$1,Calendrier!$A$15:$A$59,0)+14,ROW()-17,3,1,"Calendrier"),1) -> Sa | C21: 8 | F21: 17 | G21: =IF(AND(C21<>0,D21<>0,E21<>0,F21<>0),F21-E21+D21-C21-M21-IF(E21-D21<Calendrier!$AT$10,Calendrier!$AT$10,0),IF(AND(C21<>0,D21<>0,E21=0,F21=0),D21-C21-M21,IF(AND(C21=0,D21=0,E21<>0,F21<>0),F21-E21-M21,IF(AND(C21>20,D21=0,E21=0,F21<>0),24-C21+F21-M21,IF(AND(C21<>0,D21=0,E21=0,F21<>0),F21-C21-M21,0))))) -> 9 | H21: =IF(G21=0,0,IF(K21=0.5,0,G21-Calendrier!$AT$9)) -> 1 | I21: =I20+H21 -> 2.75 | J21: calendrier | K21: 0 | M21: 0
A22: 2023-06-04 | B22: =INDIRECT(ADDRESS(MATCH($B$1,Calendrier!$A$15:$A$59,0)+14,ROW()-17,3,1,"Calendrier"),1) -> Di | G22: =IF(AND(C22<>0,D22<>0,E22<>0,F22<>0),F22-E22+D22-C22-M22-IF(E22-D22<Calendrier!$AT$10,Calendrier!$AT$10,0),IF(AND(C22<>0,D22<>0,E22=0,F22=0),D22-C22-M22,IF(AND(C22=0,D22=0,E22<>0,F22<>0),F22-E22-M22,IF(AND(C22>20,D22=0,E22=0,F22<>0),24-C22+F22-M22,IF(AND(C22<>0,D22=0,E22=0,F22<>0),F22-C22-M22,0))))) -> 0 | H22: =IF(G22=0,0,IF(K22=0.5,0,G22-Calendrier!$AT$9)) -> 0 | I22: 2.75 | J22: Di | K22: 0 | M22: 0
A23: 2023-06-05 | B23: =INDIRECT(ADDRESS(MATCH($B$1,Calendrier!$A$15:$A$59,0)+14,ROW()-17,3,1,"Calendrier"),1) -> T | G23: =IF(AND(C23<>0,D23<>0,E23<>0,F23<>0),F23-E23+D23-C23-M23-IF(E23-D23<Calendrier!$AT$10,Calendrier!$AT$10,0),IF(AND(C23<>0,D23<>0,E23=0,F23=0),D23-C23-M23,IF(AND(C23=0,D23=0,E23<>0,F23<>0),F23-E23-M23,IF(AND(C23>20,D23=0,E23=0,F23<>0),24-C23+F23-M23,IF(AND(C23<>0,D23=0,E23=0,F23<>0),F23-C23-M23,0))))) -> 0 | H23: =IF(G23=0,0,IF(K23=0.5,0,G23-Calendrier!$AT$9)) -> 0 | I23: 2.75 | J23: T | K23: 0 | M23: 0
A24: 2023-06-06 | B24: =INDIRECT(ADDRESS(MATCH($B$1,Calendrier!$A$15:$A$59,0)+14,ROW()-17,3,1,"Calendrier"),1) -> T | C24: 8 | D24: 12.5 | E24: 13 | F24: 17.25 | G24: =IF(AND(C24<>0,D24<>0,E24<>0,F24<>0),F24-E24+D24-C24-M24-IF(E24-D24<Calendrier!$AT$10,Calendrier!$AT$10,0),IF(AND(C24<>0,D24<>0,E24=0,F24=0),D24-C24-M24,IF(AND(C24=0,D24=0,E24<>0,F24<>0),F24-E24-M24,IF(AND(C24>20,D24=0,E24=0,F24<>0),24-C24+F24-M24,IF(AND(C24<>0,D24=0,E24=0,F24<>0),F24-C24-M24,0))))) -> 8 | H24: =IF(G24=0,0,IF(K24=0.5,0,G24-Calendrier!$AT$9)) -> 0 | I24: 2.75 | J24: T | K24: 1 | M24: =IF(OR(N24=0,O24=0),0,O24-N24) -> 0
A25: 2023-06-07 | B25: =INDIRECT(ADDRESS(MATCH($B$1,Calendrier!$A$15:$A$59,0)+14,ROW()-17,3,1,"Calendrier"),1) -> T | E25: 13 | F25: 18 | G25: =IF(AND(C25<>0,D25<>0,E25<>0,F25<>0),F25-E25+D25-C25-M25-IF(E25-D25<Calendrier!$AT$10,Calendrier!$AT$10,0),IF(AND(C25<>0,D25<>0,E25=0,F25=0),D25-C25-M25,IF(AND(C25=0,D25=0,E25<>0,F25<>0),F25-E25-M25,IF(AND(C25>20,D25=0,E25=0,F25<>0),24-C25+F25-M25,IF(AND(C25<>0,D25=0,E25=0,F25<>0),F25-C25-M25,0))))) -> 5 | H25: =IF(G25=0,0,IF(K25=0.5,0,G25-Calendrier!$AT$9)) -> 0 | I25: 2.75 | J25: 1/2T | K25: 0.5 | M25: =IF(OR(N25=0,O25=0),0,O25-N25) -> 0
A26: 2023-06-08 | B26: =INDIRECT(ADDRESS(MATCH($B$1,Calendrier!$A$15:$A$59,0)+14,ROW()-17,3,1,"Calendrier"),1) -> T | C26: 5 | F26: 13 | G26: =IF(AND(C26<>0,D26<>0,E26<>0,F26<>0),F26-E26+D26-C26-M26-IF(E26-D26<Calendrier!$AT$10,Calendrier!$AT$10,0),IF(AND(C26<>0,D26<>0,E26=0,F26=0),D26-C26-M26,IF(AND(C26=0,D26=0,E26<>0,F26<>0),F26-E26-M26,IF(AND(C26>20,D26=0,E26=0,F26<>0),24-C26+F26-M26,IF(AND(C26<>0,D26=0,E26=0,F26<>0),F26-C26-M26,0))))) -> 8 | H26: =IF(G26=0,0,IF(K26=0.5,0,G26-Calendrier!$AT$9)) -> 0 | I26: 2.75 | J26: T | K26: 1 | M26: 0
A27: 2023-06-09 | B27: =INDIRECT(ADDRESS(MATCH($B$1,Calendrier!$A$15:$A$59,0)+14,ROW()-17,3,1,"Calendrier"),1) -> T | G27: =IF(AND(C27<>0,D27<>0,E27<>0,F27<>0),F27-E27+D27-C27-M27-IF(E27-D27<Calendrier!$AT$10,Calendrier!$AT$10,0),IF(AND(C27<>0,D27<>0,E27=0,F27=0),D27-C27-M27,IF(AND(C27=0,D27=0,E27<>0,F27<>0),F27-E27-M27,IF(AND(C27>20,D27=0,E27=0,F27<>0),24-C27+F27-M27,IF(AND(C27<>0,D27=0,E27=0,F27<>0),F27-C27-M27,0))))) -> 0 | H27: =IF(G27=0,0,IF(K27=0.5,0,G27-Calendrier!$AT$9)) -> 0 | I27: 2.75 | J27: T | K27: 0 | M27: 0
A28: 2023-06-10 | B28: =INDIRECT(ADDRESS(MATCH($B$1,Calendrier!$A$15:$A$59,0)+14,ROW()-17,3,1,"Calendrier"),1) -> Sa | C28: 13 | F28: 21 | G28: =IF(AND(C28<>0,D28<>0,E28<>0,F28<>0),F28-E28+D28-C28-M28-IF(E28-D28<Calendrier!$AT$10,Calendrier!$AT$10,0),IF(AND(C28<>0,D28<>0,E28=0,F28=0),D28-C28-M28,IF(AND(C28=0,D28=0,E28<>0,F28<>0),F28-E28-M28,IF(AND(C28>20,D28=0,E28=0,F28<>0),24-C28+F28-M28,IF(AND(C28<>0,D28=0,E28=0,F28<>0),F28-C28-M28,0))))) -> 8 | H28: =IF(G28=0,0,IF(K28=0.5,0,G28-Calendrier!$AT$9)) -> 0 | I28: 2.75 | J28: calendrier | K28: 0 | M28: 0
A29: 2023-06-11 | B29: =INDIRECT(ADDRESS(MATCH($B$1,Calendrier!$A$15:$A$59,0)+14,ROW()-17,3,1,"Calendrier"),1) -> Di | G29: =IF(AND(C29<>0,D29<>0,E29<>0,F29<>0),F29-E29+D29-C29-M29-IF(E29-D29<Calendrier!$AT$10,Calendrier!$AT$10,0),IF(AND(C29<>0,D29<>0,E29=0,F29=0),D29-C29-M29,IF(AND(C29=0,D29=0,E29<>0,F29<>0),F29-E29-M29,IF(AND(C29>20,D29=0,E29=0,F29<>0),24-C29+F29-M29,IF(AND(C29<>0,D29=0,E29=0,F29<>0),F29-C29-M29,0))))) -> 0 | H29: =IF(G29=0,0,IF(K29=0.5,0,G29-Calendrier!$AT$9)) -> 0 | I29: 2.75 | J29: Di | K29: 0 | M29: 0
A30: 2023-06-12 | B30: =INDIRECT(ADDRESS(MATCH($B$1,Calendrier!$A$15:$A$59,0)+14,ROW()-17,3,1,"Calendrier"),1) -> T | G30: =IF(AND(C30<>0,D30<>0,E30<>0,F30<>0),F30-E30+D30-C30-M30-IF(E30-D30<Calendrier!$AT$10,Calendrier!$AT$10,0),IF(AND(C30<>0,D30<>0,E30=0,F30=0),D30-C30-M30,IF(AND(C30=0,D30=0,E30<>0,F30<>0),F30-E30-M30,IF(AND(C30>20,D30=0,E30=0,F30<>0),24-C30+F30-M30,IF(AND(C30<>0,D30=0,E30=0,F30<>0),F30-C30-M30,0))))) -> 0 | H30: =IF(G30=0,0,IF(K30=0.5,0,G30-Calendrier!$AT$9)) -> 0 | I30: 2.75 | J30: T | K30: 0 | M30: 0
A31: 2023-06-13 | B31: =INDIRECT(ADDRESS(MATCH($B$1,Calendrier!$A$15:$A$59,0)+14,ROW()-17,3,1,"Calendrier"),1) -> T | C31: 21 | F31: 5 | G31: =IF(AND(C31<>0,D31<>0,E31<>0,F31<>0),F31-E31+D31-C31-M31-IF(E31-D31<Calendrier!$AT$10,Calendrier!$AT$10,0),IF(AND(C31<>0,D31<>0,E31=0,F31=0),D31-C31-M31,IF(AND(C31=0,D31=0,E31<>0,F31<>0),F31-E31-M31,IF(AND(C31>20,D31=0,E31=0,F31<>0),24-C31+F31-M31,IF(AND(C31<>0,D31=0,E31=0,F31<>0),F31-C31-M31,0))))) -> 8 | H31: =IF(G31=0,0,IF(K31=0.5,0,G31-Calendrier!$AT$9)) -> 0 | I31: 2.75 | J31: T | K31: 1 | M31: 0
A32: 2023-06-14 | B32: =INDIRECT(ADDRESS(MATCH($B$1,Calendrier!$A$15:$A$59,0)+14,ROW()-17,3,1,"Calendrier"),1) -> T | C32: 7 | D32: 12 | E32: 13 | F32: 17 | G32: =IF(AND(C32<>0,D32<>0,E32<>0,F32<>0),F32-E32+D32-C32-M32-IF(E32-D32<Calendrier!$AT$10,Calendrier!$AT$10,0),IF(AND(C32<>0,D32<>0,E32=0,F32=0),D32-C32-M32,IF(AND(C32=0,D32=0,E32<>0,F32<>0),F32-E32-M32,IF(AND(C32>20,D32=0,E32=0,F32<>0),24-C32+F32-M32,IF(AND(C32<>0,D32=0,E32=0,F32<>0),F32-C32-M32,0))))) -> 9 | H32: =IF(G32=0,0,IF(K32=0.5,0,G32-Calendrier!$AT$9)) -> 1 | I32: 3.75 | J32: T | K32: 1 | M32: 0
A33: 2023-06-15 | B33: =INDIRECT(ADDRESS(MATCH($B$1,Calendrier!$A$15:$A$59,0)+14,ROW()-17,3,1,"Calendrier"),1) -> T | C33: 7 | D33: 12 | E33: 12.5 | F33: 17 | G33: =IF(AND(C33<>0,D33<>0,E33<>0,F33<>0),F33-E33+D33-C33-M33-IF(E33-D33<Calendrier!$AT$10,Calendrier!$AT$10,0),IF(AND(C33<>0,D33<>0,E33=0,F33=0),D33-C33-M33,IF(AND(C33=0,D33=0,E33<>0,F33<>0),F33-E33-M33,IF(AND(C33>20,D33=0,E33=0,F33<>0),24-C33+F33-M33,IF(AND(C33<>0,D33=0,E33=0,F33<>0),F33-C33-M33,0))))) -> 8.75 | H33: =IF(G33=0,0,IF(K33=0.5,0,G33-Calendrier!$AT$9)) -> 0.75 | I33: 4.5 | J33: T | K33: 1 | M33: 0
A34: 2023-06-16 | B34: =INDIRECT(ADDRESS(MATCH($B$1,Calendrier!$A$15:$A$59,0)+14,ROW()-17,3,1,"Calendrier"),1) -> T | G34: =IF(AND(C34<>0,D34<>0,E34<>0,F34<>0),F34-E34+D34-C34-M34-IF(E34-D34<Calendrier!$AT$10,Calendrier!$AT$10,0),IF(AND(C34<>0,D34<>0,E34=0,F34=0),D34-C34-M34,IF(AND(C34=0,D34=0,E34<>0,F34<>0),F34-E34-M34,IF(AND(C34>20,D34=0,E34=0,F34<>0),24-C34+F34-M34,IF(AND(C34<>0,D34=0,E34=0,F34<>0),F34-C34-M34,0))))) -> 0 | H34: =IF(G34=0,0,IF(K34=0.5,0,G34-Calendrier!$AT$9)) -> 0 | I34: 4.5 | J34: =IF(AND(COUNTA(C34:F34)=0,OR(B34="F",WEEKDAY(A34,2)>5,B34="T",B34="RTT",B34="CA")),B34,IF(AND(COUNTA(C34:F34)>=2,OR(B34="F",B34="RTT",B34="CA",B34="Sa",B34="Di")),"calendrier",IF(AND(COUNTA(C34)+COUNTA(F34)=2,OR(COUNTA(C34:D34)<1,COUNTA(E34:F34)<1)),"erreur",IF(COUNTA(C34:F34)=3,"en cours",IF(COUNTA(C34:F34)=4,B34,IF(OR(AND(C34<>0,D34<>0),AND(E34<>0,F34<>0)),$F$12,IF(AND(C34<>0,D34=0,E34=0,F34<>0,WEEKDAY(A34,2)>5),"calendrier",IF(AND(C34<>0,D34=0,E34=0,F34<>0),$B34,"")))))))) -> T | K34: 0 | M34: 0
A35: 2023-06-17 | B35: =INDIRECT(ADDRESS(MATCH($B$1,Calendrier!$A$15:$A$59,0)+14,ROW()-17,3,1,"Calendrier"),1) -> Sa | G35: =IF(AND(C35<>0,D35<>0,E35<>0,F35<>0),F35-E35+D35-C35-M35-IF(E35-D35<Calendrier!$AT$10,Calendrier!$AT$10,0),IF(AND(C35<>0,D35<>0,E35=0,F35=0),D35-C35-M35,IF(AND(C35=0,D35=0,E35<>0,F35<>0),F35-E35-M35,IF(AND(C35>20,D35=0,E35=0,F35<>0),24-C35+F35-M35,IF(AND(C35<>0,D35=0,E35=0,F35<>0),F35-C35-M35,0))))) -> 0 | H35: =IF(G35=0,0,IF(K35=0.5,0,G35-Calendrier!$AT$9)) -> 0 | I35: 4.5 | J35: Sa | K35: 0 | M35: 0
A36: 2023-06-18 | B36: =INDIRECT(ADDRESS(MATCH($B$1,Calendrier!$A$15:$A$59,0)+14,ROW()-17,3,1,"Calendrier"),1) -> Di | G36: =IF(AND(C36<>0,D36<>0,E36<>0,F36<>0),F36-E36+D36-C36-M36-IF(E36-D36<Calendrier!$AT$10,Calendrier!$AT$10,0),IF(AND(C36<>0,D36<>0,E36=0,F36=0),D36-C36-M36,IF(AND(C36=0,D36=0,E36<>0,F36<>0),F36-E36-M36,IF(AND(C36>20,D36=0,E36=0,F36<>0),24-C36+F36-M36,IF(AND(C36<>0,D36=0,E36=0,F36<>0),F36-C36-M36,0))))) -> 0 | H36: =IF(G36=0,0,IF(K36=0.5,0,G36-Calendrier!$AT$9)) -> 0 | I36: 4.5 | J36: Di | K36: 0 | M36: 0
A37: 2023-06-19 | B37: =INDIRECT(ADDRESS(MATCH($B$1,Calendrier!$A$15:$A$59,0)+14,ROW()-17,3,1,"Calendrier"),1) -> T | G37: =IF(AND(C37<>0,D37<>0,E37<>0,F37<>0),F37-E37+D37-C37-M37-IF(E37-D37<Calendrier!$AT$10,Calendrier!$AT$10,0),IF(AND(C37<>0,D37<>0,E37=0,F37=0),D37-C37-M37,IF(AND(C37=0,D37=0,E37<>0,F37<>0),F37-E37-M37,IF(AND(C37>20,D37=0,E37=0,F37<>0),24-C37+F37-M37,IF(AND(C37<>0,D37=0,E37=0,F37<>0),F37-C37-M37,0))))) -> 0 | H37: =IF(G37=0,0,IF(K37=0.5,0,G37-Calendrier!$AT$9)) -> 0 | I37: 4.5 | J37: T | K37: 0 | M37: 0
A38: 2023-06-20 | B38: =INDIRECT(ADDRESS(MATCH($B$1,Calendrier!$A$15:$A$59,0)+14,ROW()-17,3,1,"Calendrier"),1) -> T | G38: =IF(AND(C38<>0,D38<>0,E38<>0,F38<>0),F38-E38+D38-C38-M38-IF(E38-D38<Calendrier!$AT$10,Calendrier!$AT$10,0),IF(AND(C38<>0,D38<>0,E38=0,F38=0),D38-C38-M38,IF(AND(C38=0,D38=0,E38<>0,F38<>0),F38-E38-M38,IF(AND(C38>20,D38=0,E38=0,F38<>0),24-C38+F38-M38,IF(AND(C38<>0,D38=0,E38=0,F38<>0),F38-C38-M38,0))))) -> 0 | H38: =IF(G38=0,0,IF(K38=0.5,0,G38-Calendrier!$AT$9)) -> 0 | I38: 4.5 | J38: T | K38: 0 | M38: 0
A39: 2023-06-21 | B39: =INDIRECT(ADDRESS(MATCH($B$1,Calendrier!$A$15:$A$59,0)+14,ROW()-17,3,1,"Calendrier"),1) -> T | G39: =IF(AND(C39<>0,D39<>0,E39<>0,F39<>0),F39-E39+D39-C39-M39-IF(E39-D39<Calendrier!$AT$10,Calendrier!$AT$10,0),IF(AND(C39<>0,D39<>0,E39=0,F39=0),D39-C39-M39,IF(AND(C39=0,D39=0,E39<>0,F39<>0),F39-E39-M39,IF(AND(C39>20,D39=0,E39=0,F39<>0),24-C39+F39-M39,IF(AND(C39<>0,D39=0,E39=0,F39<>0),F39-C39-M39,0))))) -> 0 | H39: =IF(G39=0,0,IF(K39=0.5,0,G39-Calendrier!$AT$9)) -> 0 | I39: 4.5 | J39: T | K39: 0 | M39: 0
A40: 2023-06-22 | B40: =INDIRECT(ADDRESS(MATCH($B$1,Calendrier!$A$15:$A$59,0)+14,ROW()-17,3,1,"Calendrier"),1) -> T | G40: =IF(AND(C40<>0,D40<>0,E40<>0,F40<>0),F40-E40+D40-C40-M40-IF(E40-D40<Calendrier!$AT$10,Calendrier!$AT$10,0),IF(AND(C40<>0,D40<>0,E40=0,F40=0),D40-C40-M40,IF(AND(C40=0,D40=0,E40<>0,F40<>0),F40-E40-M40,IF(AND(C40>20,D40=0,E40=0,F40<>0),24-C40+F40-M40,IF(AND(C40<>0,D40=0,E40=0,F40<>0),F40-C40-M40,0))))) -> 0 | H40: =IF(G40=0,0,IF(K40=0.5,0,G40-Calendrier!$AT$9)) -> 0 | I40: 4.5 | J40: T | K40: 0 | M40: 0
A41: 2023-06-23 | B41: =INDIRECT(ADDRESS(MATCH($B$1,Calendrier!$A$15:$A$59,0)+14,ROW()-17,3,1,"Calendrier"),1) -> T | G41: =IF(AND(C41<>0,D41<>0,E41<>0,F41<>0),F41-E41+D41-C41-M41-IF(E41-D41<Calendrier!$AT$10,Calendrier!$AT$10,0),IF(AND(C41<>0,D41<>0,E41=0,F41=0),D41-C41-M41,IF(AND(C41=0,D41=0,E41<>0,F41<>0),F41-E41-M41,IF(AND(C41>20,D41=0,E41=0,F41<>0),24-C41+F41-M41,IF(AND(C41<>0,D41=0,E41=0,F41<>0),F41-C41-M41,0))))) -> 0 | H41: =IF(G41=0,0,IF(K41=0.5,0,G41-Calendrier!$AT$9)) -> 0 | I41: 4.5 | J41: T | K41: 0 | M41: 0
A42: 2023-06-24 | B42: =INDIRECT(ADDRESS(MATCH($B$1,Calendrier!$A$15:$A$59,0)+14,ROW()-17,3,1,"Calendrier"),1) -> Sa | G42: =IF(AND(C42<>0,D42<>0,E42<>0,F42<>0),F42-E42+D42-C42-M42-IF(E42-D42<Calendrier!$AT$10,Calendrier!$AT$10,0),IF(AND(C42<>0,D42<>0,E42=0,F42=0),D42-C42-M42,IF(AND(C42=0,D42=0,E42<>0,F42<>0),F42-E42-M42,IF(AND(C42>20,D42=0,E42=0,F42<>0),24-C42+F42-M42,IF(AND(C42<>0,D42=0,E42=0,F42<>0),F42-C42-M42,0))))) -> 0 | H42: =IF(G42=0,0,IF(K42=0.5,0,G42-Calendrier!$AT$9)) -> 0 | I42: 4.5 | J42: Sa | K42: 0 | M42: 0
A43: 2023-06-25 | B43: =INDIRECT(ADDRESS(MATCH($B$1,Calendrier!$A$15:$A$59,0)+14,ROW()-17,3,1,"Calendrier"),1) -> Di | G43: =IF(AND(C43<>0,D43<>0,E43<>0,F43<>0),F43-E43+D43-C43-M43-IF(E43-D43<Calendrier!$AT$10,Calendrier!$AT$10,0),IF(AND(C43<>0,D43<>0,E43=0,F43=0),D43-C43-M43,IF(AND(C43=0,D43=0,E43<>0,F43<>0),F43-E43-M43,IF(AND(C43>20,D43=0,E43=0,F43<>0),24-C43+F43-M43,IF(AND(C43<>0,D43=0,E43=0,F43<>0),F43-C43-M43,0))))) -> 0 | H43: =IF(G43=0,0,IF(K43=0.5,0,G43-Calendrier!$AT$9)) -> 0 | I43: 4.5 | J43: Di | K43: 0 | M43: 0
A44: 2023-06-26 | B44: =INDIRECT(ADDRESS(MATCH($B$1,Calendrier!$A$15:$A$59,0)+14,ROW()-17,3,1,"Calendrier"),1) -> T | G44: =IF(AND(C44<>0,D44<>0,E44<>0,F44<>0),F44-E44+D44-C44-M44-IF(E44-D44<Calendrier!$AT$10,Calendrier!$AT$10,0),IF(AND(C44<>0,D44<>0,E44=0,F44=0),D44-C44-M44,IF(AND(C44=0,D44=0,E44<>0,F44<>0),F44-E44-M44,IF(AND(C44>20,D44=0,E44=0,F44<>0),24-C44+F44-M44,IF(AND(C44<>0,D44=0,E44=0,F44<>0),F44-C44-M44,0))))) -> 0 | H44: =IF(G44=0,0,IF(K44=0.5,0,G44-Calendrier!$AT$9)) -> 0 | I44: 4.5 | J44: T | K44: 0 | M44: 0
A45: 2023-06-27 | B45: =INDIRECT(ADDRESS(MATCH($B$1,Calendrier!$A$15:$A$59,0)+14,ROW()-17,3,1,"Calendrier"),1) -> T | G45: =IF(AND(C45<>0,D45<>0,E45<>0,F45<>0),F45-E45+D45-C45-M45-IF(E45-D45<Calendrier!$AT$10,Calendrier!$AT$10,0),IF(AND(C45<>0,D45<>0,E45=0,F45=0),D45-C45-M45,IF(AND(C45=0,D45=0,E45<>0,F45<>0),F45-E45-M45,IF(AND(C45>20,D45=0,E45=0,F45<>0),24-C45+F45-M45,IF(AND(C45<>0,D45=0,E45=0,F45<>0),F45-C45-M45,0))))) -> 0 | H45: =IF(G45=0,0,IF(K45=0.5,0,G45-Calendrier!$AT$9)) -> 0 | I45: 4.5 | J45: T | K45: 0 | M45: 0
A46: 2023-06-28 | B46: =INDIRECT(ADDRESS(MATCH($B$1,Calendrier!$A$15:$A$59,0)+14,ROW()-17,3,1,"Calendrier"),1) -> T | G46: =IF(AND(C46<>0,D46<>0,E46<>0,F46<>0),F46-E46+D46-C46-M46-IF(E46-D46<Calendrier!$AT$10,Calendrier!$AT$10,0),IF(AND(C46<>0,D46<>0,E46=0,F46=0),D46-C46-M46,IF(AND(C46=0,D46=0,E46<>0,F46<>0),F46-E46-M46,IF(AND(C46>20,D46=0,E46=0,F46<>0),24-C46+F46-M46,IF(AND(C46<>0,D46=0,E46=0,F46<>0),F46-C46-M46,0))))) -> 0 | H46: =IF(G46=0,0,IF(K46=0.5,0,G46-Calendrier!$AT$9)) -> 0 | I46: 4.5 | J46: T | K46: 0 | M46: 0
A47: 2023-06-29 | B47: =INDIRECT(ADDRESS(MATCH($B$1,Calendrier!$A$15:$A$59,0)+14,ROW()-17,3,1,"Calendrier"),1) -> T | G47: =IF(AND(C47<>0,D47<>0,E47<>0,F47<>0),F47-E47+D47-C47-M47-IF(E47-D47<Calendrier!$AT$10,Calendrier!$AT$10,0),IF(AND(C47<>0,D47<>0,E47=0,F47=0),D47-C47-M47,IF(AND(C47=0,D47=0,E47<>0,F47<>0),F47-E47-M47,IF(AND(C47>20,D47=0,E47=0,F47<>0),24-C47+F47-M47,IF(AND(C47<>0,D47=0,E47=0,F47<>0),F47-C47-M47,0))))) -> 0 | H47: =IF(G47=0,0,IF(K47=0.5,0,G47-Calendrier!$AT$9)) -> 0 | I47: 4.5 | J47: T | K47: 0 | M47: 0
A48: 2023-06-30 | B48: =INDIRECT(ADDRESS(MATCH($B$1,Calendrier!$A$15:$A$59,0)+14,ROW()-17,3,1,"Calendrier"),1) -> T | G48: =IF(AND(C48<>0,D48<>0,E48<>0,F48<>0),F48-E48+D48-C48-M48-IF(E48-D48<Calendrier!$AT$10,Calendrier!$AT$10,0),IF(AND(C48<>0,D48<>0,E48=0,F48=0),D48-C48-M48,IF(AND(C48=0,D48=0,E48<>0,F48<>0),F48-E48-M48,IF(AND(C48>20,D48=0,E48=0,F48<>0),24-C48+F48-M48,IF(AND(C48<>0,D48=0,E48=0,F48<>0),F48-C48-M48,0))))) -> 0 | H48: =IF(G48=0,0,IF(K48=0.5,0,G48-Calendrier!$AT$9)) -> 0 | I48: 4.5 | J48: T | K48: 0 | M48: 0
A49: =IF(MONTH(A48+1)>6,0,A48+1) -> 00:00:00 | B49: =INDIRECT(ADDRESS(MATCH($B$1,Calendrier!$A$15:$A$59,0)+14,ROW()-17,3,1,"Calendrier"),1) -> 0 | G49: =IF(AND(C49<>0,D49<>0,E49<>0,F49<>0),F49-E49+D49-C49-M49-IF(E49-D49<Calendrier!$AT$10,Calendrier!$AT$10,0),IF(AND(C49<>0,D49<>0,E49=0,F49=0),D49-C49-M49,IF(AND(C49=0,D49=0,E49<>0,F49<>0),F49-E49-M49,IF(AND(C49>20,D49=0,E49=0,F49<>0),24-C49+F49-M49,IF(AND(C49<>0,D49=0,E49=0,F49<>0),F49-C49-M49,0))))) -> 0 | H49: =IF(G49=0,0,IF(K49=0.5,0,G49-Calendrier!$AT$9)) -> 0 | I49: 4.5 | J49: =IF(AND(COUNTA(C49:F49)=0,B49="F"),B49,IF(AND(COUNTA(C49:F49)=0,WEEKDAY(A49,2)>5),B49,IF(AND(COUNTA(C49:F49)=0,B49="T"),"",IF(AND(COUNTA(C49:F49)=0,B49="RTT"),B49,IF(AND(COUNTA(D49:F49)=0,C49<>0),"erreur",IF(AND(COUNTA(C49:F49)=4,B49="RTT"),"Erreur RTT",IF(AND(COUNTA(C49:F49)=4,B49="F"),"fériés",IF(COUNTA(C49:F49)=4,B49,IF(COUNTA(C49:F49)=3,"Erreur",IF(AND(C49<>0,D49<>0),$F$12,IF(AND(E49<>0,F49<>0),$F$12,IF(AND(C49<>0,D49=0,E49=0,F49<>0,WEEKDAY(A49,2)>5),"Modif calendrier",IF(AND(C49<>0,D49=0,E49=0,F49<>0),$B49))))))))))))) -> 0 | K49: 0 | M49: 0
G50: =SUM(G19:G49) -> 69.25 | I50: =I49 -> 4.5

Sheet JUL
B1: =RIGHT(CELL("nomfichier",$A$1),3) -> JUL | C1: FICHE DE SUIVI HORAIRE
B3: mois : | C3: JUILLET | F3: année | G3: =VLOOKUP(C3,Fériés!$I$1:$J$12,2,FALSE) -> 2023 | J3: service | K3: =Calendrier!F4 -> Administratif
B5: nom : | C5: =Calendrier!F2 -> Isq | F5: prénom | G5: =Calendrier!F3 -> Philippe | J5: N° Ident | K5: =Calendrier!F1 -> T506489
H6: à réaliser | I6: cumul | J6: en cours | K6: reste | M6: N.cumul
D7: Nb J | E7: =Calendrier!$AT$11 -> 218 | F7: =+$H$10 -> 0 | G7: =E7-F7 -> 218 | H7: =Calendrier!N1 -> 365 | I7: =JUN!M7 -> 143.5 | J7: =SUM(J8:J15) -> 31 | K7: =H7-(I7+J7) -> 190.5 | M7: =SUM(M8:M15) -> 174.5
F8: 1/2CA | G8: CA | H8: =Calendrier!N5 -> 25 | I8: =JUN!M8 -> 0 | J8: =COUNTIF($J$19:$J$49,G8)+COUNTIF($J$19:$J$49,F8)/2 -> 1 | K8: =+H8-(I8+J8) -> 24 | L8: J | M8: =+I8+J8 -> 1
F9: 1/2RTT | G9: RTT | H9: =Calendrier!N8 -> 9 | I9: =JUN!M9 -> 3 | J9: =COUNTIF($J$19:$J$49,G9)+COUNTIF($J$19:$J$49,F9)/2 -> 0 | K9: =+H9-(I9+J9) -> 6 | L9: J | M9: 3
F10: 1/2CS | G10: CS | H10: =Calendrier!N9 -> 0 | I10: =JUN!M10 -> 0 | J10: 0 | K10: =H10-(I10+J10) -> 0 | L10: J | M10: 0
F11: 1/2CP | G11: CP | H11: =Calendrier!N6 -> 0 | I11: =JUN!M11 -> 0 | J11: 0 | K11: =H11-(I11+J11) -> 0 | L11: J | M11: 0
F12: 1/2T | G12: T | H12: =Calendrier!N7 -> 218 | I12: =JUN!M12 -> 98.5 | J12: 19 | K12: =+H12-(I12+J12) -> 100.5 | L12: J | M12: 117.5
F13: 0 | G13: Sa | H13: =Calendrier!N4 -> 51 | I13: =JUN!M13 -> 19 | J13: =COUNTIF($J$19:$J$49,G13) -> 5 | K13: =+H13-(I13+J13) -> 27 | L13: J | M13: 24
F14: 0 | G14: Di | H14: =Calendrier!N3 -> 50 | I14: =JUN!M14 -> 20 | J14: =COUNTIF($J$19:$J$49,G14) -> 5 | K14: =+H14-(I14+J14) -> 25 | L14: J | M14: 25
F15: 0 | G15: F | H15: =Calendrier!N2 -> 12 | I15: =JUN!M15 -> 3 | J15: =COUNTIF($J$19:$J$49,G15) -> 1 | K15: =+H15-(I15+J15) -> 8 | L15: J | M15: 4
G16: heure/avance fin mois | I16: =JUN!$I$50 -> 4.5 | M16: =I50 -> 4.5 | N16: avec bon
B17: Prévu | C17: Entrée | D17: Sortie | E17: Entrée | F17: Sortie | G17: total | H17: variation | I17: cumul | J17: Type | K17: nb J/T | M17: divers E/S | N17: Sortie | O17: Retour
I18: =JUN!$I$50 -> 4.5
A19: =VALUE("01/07/"&G3) -> 2023-07-01 | B19: =INDIRECT(ADDRESS(MATCH($B$1,Calendrier!$A$15:$A$59,0)+14,ROW()-17,3,1,"Calendrier"),1) -> Sa | G19: =IF(AND(C19<>0,D19<>0,E19<>0,F19<>0),F19-E19+D19-C19-K19-IF(E19-D19<Calendrier!$AT$10,Calendrier!$AT$10,0),IF(AND(C19<>0,D19<>0,E19=0,F19=0),D19-C19-K19,IF(AND(C19=0,D19=0,E19<>0,F19<>0),F19-E19-K19,IF(AND(C19>20,D19=0,E19=0,F19<>0),24-C19+F19-K19,IF(AND(C19<>0,D19=0,E19=0,F19<>0),F19-C19-K19,0))))) -> 0 | H19: =IF(G19=0,0,IF(K19=0.5,0,G19-Calendrier!$AT$9)) -> 0 | I19: =I18+H19 -> 4.5 | J19: =IF(AND(COUNTA(C19:F19)=0,OR(B19="F",WEEKDAY(A19,2)>5,B19="T",B19="RTT",B19="CA")),B19,IF(AND(COUNTA(C19:F19)>=2,OR(B19="F",B19="RTT",B19="CA",B19="Sa",B19="Di")),"calendrier",IF(AND(COUNTA(C19)+COUNTA(F19)=2,OR(COUNTA(C19:D19)<1,COUNTA(E19:F19)<1)),"erreur",IF(COUNTA(C19:F19)=3,"en cours",IF(COUNTA(C19:F19)=4,B19,IF(OR(AND(C19<>0,D19<>0),AND(E19<>0,F19<>0)),$F$12,IF(AND(C19<>0,D19=0,E19=0,F19<>0,WEEKDAY(A19,2)>5),"calendrier",IF(AND(C19<>0,D19=0,E19=0,F19<>0),$B19,"")))))))) -> Sa | K19: =IF(COUNTA(C19:F19)=4,1,IF(OR(AND(C19<>0,D19<>0),AND(E19<>0,F19<>0)),0.5,IF(AND(C19<>0,F19<>0,D19=0,E19=0,B19="T"),1,0))) -> 0 | M19: =IF(OR(N19=0,O19=0),0,O19-N19) -> 0
A20: =A19+1 -> 2023-07-02 | B20: =INDIRECT(ADDRESS(MATCH($B$1,Calendrier!$A$15:$A$59,0)+14,ROW()-17,3,1,"Calendrier"),1) -> Di | G20: =IF(AND(C20<>0,D20<>0,E20<>0,F20<>0),F20-E20+D20-C20-K20-IF(E20-D20<Calendrier!$AT$10,Calendrier!$AT$10,0),IF(AND(C20<>0,D20<>0,E20=0,F20=0),D20-C20-K20,IF(AND(C20=0,D20=0,E20<>0,F20<>0),F20-E20-K20,IF(AND(C20>20,D20=0,E20=0,F20<>0),24-C20+F20-K20,IF(AND(C20<>0,D20=0,E20=0,F20<>0),F20-C20-K20,0))))) -> 0 | H20: =IF(G20=0,0,IF(K20=0.5,0,G20-Calendrier!$AT$9)) -> 0 | I20: 4.5 | J20: Di | K20: 0 | M20: 0
A21: =A20+1 -> 2023-07-03 | B21: =INDIRECT(ADDRESS(MATCH($B$1,Calendrier!$A$15:$A$59,0)+14,ROW()-17,3,1,"Calendrier"),1) -> T | G21: =IF(AND(C21<>0,D21<>0,E21<>0,F21<>0),F21-E21+D21-C21-M21-IF(E21-D21<Calendrier!$AT$10,Calendrier!$AT$10,0),IF(AND(C21<>0,D21<>0,E21=0,F21=0),D21-C21-M21,IF(AND(C21=0,D21=0,E21<>0,F21<>0),F21-E21-M21,IF(AND(C21>20,D21=0,E21=0,F21<>0),24-C21+F21-M21,IF(AND(C21<>0,D21=0,E21=0,F21<>0),F21-C21-M21,0))))) -> 0 | H21: =IF(G21=0,0,IF(K21=0.5,0,G21-Calendrier!$AT$9)) -> 0 | I21: =I20+H21 -> 4.5 | J21: T | K21: 0 | M21: 0
A22: 2023-07-04 | B22: =INDIRECT(ADDRESS(MATCH($B$1,Calendrier!$A$15:$A$59,0)+14,ROW()-17,3,1,"Calendrier"),1) -> T | G22: =IF(AND(C22<>0,D22<>0,E22<>0,F22<>0),F22-E22+D22-C22-M22-IF(E22-D22<Calendrier!$AT$10,Calendrier!$AT$10,0),IF(AND(C22<>0,D22<>0,E22=0,F22=0),D22-C22-M22,IF(AND(C22=0,D22=0,E22<>0,F22<>0),F22-E22-M22,IF(AND(C22>20,D22=0,E22=0,F22<>0),24-C22+F22-M22,IF(AND(C22<>0,D22=0,E22=0,F22<>0),F22-C22-M22,0))))) -> 0 | H22: =IF(G22=0,0,IF(K22=0.5,0,G22-Calendrier!$AT$9)) -> 0 | I22: 4.5 | J22: T | K22: 0 | M22: 0
A23: 2023-07-05 | B23: =INDIRECT(ADDRESS(MATCH($B$1,Calendrier!$A$15:$A$59,0)+14,ROW()-17,3,1,"Calendrier"),1) -> T | G23: =IF(AND(C23<>0,D23<>0,E23<>0,F23<>0),F23-E23+D23-C23-M23-IF(E23-D23<Calendrier!$AT$10,Calendrier!$AT$10,0),IF(AND(C23<>0,D23<>0,E23=0,F23=0),D23-C23-M23,IF(AND(C23=0,D23=0,E23<>0,F23<>0),F23-E23-M23,IF(AND(C23>20,D23=0,E23=0,F23<>0),24-C23+F23-M23,IF(AND(C23<>0,D23=0,E23=0,F23<>0),F23-C23-M23,0))))) -> 0 | H23: =IF(G23=0,0,IF(K23=0.5,0,G23-Calendrier!$AT$9)) -> 0 | I23: 4.5 | J23: T | K23: 0 | M23: 0
A24: 2023-07-06 | B24: =INDIRECT(ADDRESS(MATCH($B$1,Calendrier!$A$15:$A$59,0)+14,ROW()-17,3,1,"Calendrier"),1) -> T | G24: =IF(AND(C24<>0,D24<>0,E24<>0,F24<>0),F24-E24+D24-C24-M24-IF(E24-D24<Calendrier!$AT$10,Calendrier!$AT$10,0),IF(AND(C24<>0,D24<>0,E24=0,F24=0),D24-C24-M24,IF(AND(C24=0,D24=0,E24<>0,F24<>0),F24-E24-M24,IF(AND(C24>20,D24=0,E24=0,F24<>0),24-C24+F24-M24,IF(AND(C24<>0,D24=0,E24=0,F24<>0),F24-C24-M24,0))))) -> 0 | H24: =IF(G24=0,0,IF(K24=0.5,0,G24-Calendrier!$AT$9)) -> 0 | I24: 4.5 | J24: T | K24: 0 | M24: =IF(OR(N24=0,O24=0),0,O24-N24) -> 0
A25: 2023-07-07 | B25: =INDIRECT(ADDRESS(MATCH($B$1,Calendrier!$A$15:$A$59,0)+14,ROW()-17,3,1,"Calendrier"),1) -> T | G25: =IF(AND(C25<>0,D25<>0,E25<>0,F25<>0),F25-E25+D25-C25-M25-IF(E25-D25<Calendrier!$AT$10,Calendrier!$AT$10,0),IF(AND(C25<>0,D25<>0,E25=0,F25=0),D25-C25-M25,IF(AND(C25=0,D25=0,E25<>0,F25<>0),F25-E25-M25,IF(AND(C25>20,D25=0,E25=0,F25<>0),24-C25+F25-M25,IF(AND(C25<>0,D25=0,E25=0,F25<>0),F25-C25-M25,0))))) -> 0 | H25: =IF(G25=0,0,IF(K25=0.5,0,G25-Calendrier!$AT$9)) -> 0 | I25: 4.5 | J25: T | K25: 0 | M25: =IF(OR(N25=0,O25=0),0,O25-N25) -> 0
A26: 2023-07-08 | B26: =INDIRECT(ADDRESS(MATCH($B$1,Calendrier!$A$15:$A$59,0)+14,ROW()-17,3,1,"Calendrier"),1) -> Sa | G26: =IF(AND(C26<>0,D26<>0,E26<>0,F26<>0),F26-E26+D26-C26-M26-IF(E26-D26<Calendrier!$AT$10,Calendrier!$AT$10,0),IF(AND(C26<>0,D26<>0,E26=0,F26=0),D26-C26-M26,IF(AND(C26=0,D26=0,E26<>0,F26<>0),F26-E26-M26,IF(AND(C26>20,D26=0,E26=0,F26<>0),24-C26+F26-M26,IF(AND(C26<>0,D26=0,E26=0,F26<>0),F26-C26-M26,0))))) -> 0 | H26: =IF(G26=0,0,IF(K26=0.5,0,G26-Calendrier!$AT$9)) -> 0 | I26: 4.5 | J26: Sa | K26: 0 | M26: 0
A27: 2023-07-09 | B27: =INDIRECT(ADDRESS(MATCH($B$1,Calendrier!$A$15:$A$59,0)+14,ROW()-17,3,1,"Calendrier"),1) -> Di | G27: =IF(AND(C27<>0,D27<>0,E27<>0,F27<>0),F27-E27+D27-C27-M27-IF(E27-D27<Calendrier!$AT$10,Calendrier!$AT$10,0),IF(AND(C27<>0,D27<>0,E27=0,F27=0),D27-C27-M27,IF(AND(C27=0,D27=0,E27<>0,F27<>0),F27-E27-M27,IF(AND(C27>20,D27=0,E27=0,F27<>0),24-C27+F27-M27,IF(AND(C27<>0,D27=0,E27=0,F27<>0),F27-C27-M27,0))))) -> 0 | H27: =IF(G27=0,0,IF(K27=0.5,0,G27-Calendrier!$AT$9)) -> 0 | I27: 4.5 | J27: Di | K27: 0 | M27: 0
A28: 2023-07-10 | B28: =INDIRECT(ADDRESS(MATCH($B$1,Calendrier!$A$15:$A$59,0)+14,ROW()-17,3,1,"Calendrier"),1) -> T | G28: =IF(AND(C28<>0,D28<>0,E28<>0,F28<>0),F28-E28+D28-C28-M28-IF(E28-D28<Calendrier!$AT$10,Calendrier!$AT$10,0),IF(AND(C28<>0,D28<>0,E28=0,F28=0),D28-C28-M28,IF(AND(C28=0,D28=0,E28<>0,F28<>0),F28-E28-M28,IF(AND(C28>20,D28=0,E28=0,F28<>0),24-C28+F28-M28,IF(AND(C28<>0,D28=0,E28=0,F28<>0),F28-C28-M28,0))))) -> 0 | H28: =IF(G28=0,0,IF(K28=0.5,0,G28-Calendrier!$AT$9)) -> 0 | I28: 4.5 | J28: T | K28: 0 | M28: 0
A29: 2023-07-11 | B29: =INDIRECT(ADDRESS(MATCH($B$1,Calendrier!$A$15:$A$59,0)+14,ROW()-17,3,1,"Calendrier"),1) -> T | G29: =IF(AND(C29<>0,D29<>0,E29<>0,F29<>0),F29-E29+D29-C29-M29-IF(E29-D29<Calendrier!$AT$10,Calendrier!$AT$10,0),IF(AND(C29<>0,D29<>0,E29=0,F29=0),D29-C29-M29,IF(AND(C29=0,D29=0,E29<>0,F29<>0),F29-E29-M29,IF(AND(C29>20,D29=0,E29=0,F29<>0),24-C29+F29-M29,IF(AND(C29<>0,D29=0,E29=0,F29<>0),F29-C29-M29,0))))) -> 0 | H29: =IF(G29=0,0,IF(K29=0.5,0,G29-Calendrier!$AT$9)) -> 0 | I29: 4.5 | J29: T | K29: 0 | M29: 0
A30: 2023-07-12 | B30: =INDIRECT(ADDRESS(MATCH($B$1,Calendrier!$A$15:$A$59,0)+14,ROW()-17,3,1,"Calendrier"),1) -> T | G30: =IF(AND(C30<>0,D30<>0,E30<>0,F30<>0),F30-E30+D30-C30-M30-IF(E30-D30<Calendrier!$AT$10,Calendrier!$AT$10,0),IF(AND(C30<>0,D30<>0,E30=0,F30=0),D30-C30-M30,IF(AND(C30=0,D30=0,E30<>0,F30<>0),F30-E30-M30,IF(AND(C30>20,D30=0,E30=0,F30<>0),24-C30+F30-M30,IF(AND(C30<>0,D30=0,E30=0,F30<>0),F30-C30-M30,0))))) -> 0 | H30: =IF(G30=0,0,IF(K30=0.5,0,G30-Calendrier!$AT$9)) -> 0 | I30: 4.5 | J30: T | K30: 0 | M30: 0
A31: 2023-07-13 | B31: =INDIRECT(ADDRESS(MATCH($B$1,Calendrier!$A$15:$A$59,0)+14,ROW()-17,3,1,"Calendrier"),1) -> T | G31: =IF(AND(C31<>0,D31<>0,E31<>0,F31<>0),F31-E31+D31-C31-M31-IF(E31-D31<Calendrier!$AT$10,Calendrier!$AT$10,0),IF(AND(C31<>0,D31<>0,E31=0,F31=0),D31-C31-M31,IF(AND(C31=0,D31=0,E31<>0,F31<>0),F31-E31-M31,IF(AND(C31>20,D31=0,E31=0,F31<>0),24-C31+F31-M31,IF(AND(C31<>0,D31=0,E31=0,F31<>0),F31-C31-M31,0))))) -> 0 | H31: =IF(G31=0,0,IF(K31=0.5,0,G31-Calendrier!$AT$9)) -> 0 | I31: 4.5 | J31: T | K31: 0 | M31: 0
A32: 2023-07-14 | B32: =INDIRECT(ADDRESS(MATCH($B$1,Calendrier!$A$15:$A$59,0)+14,ROW()-17,3,1,"Calendrier"),1) -> F | G32: =IF(AND(C32<>0,D32<>0,E32<>0,F32<>0),F32-E32+D32-C32-M32-IF(E32-D32<Calendrier!$AT$10,Calendrier!$AT$10,0),IF(AND(C32<>0,D32<>0,E32=0,F32=0),D32-C32-M32,IF(AND(C32=0,D32=0,E32<>0,F32<>0),F32-E32-M32,IF(AND(C32>20,D32=0,E32=0,F32<>0),24-C32+F32-M32,IF(AND(C32<>0,D32=0,E32=0,F32<>0),F32-C32-M32,0))))) -> 0 | H32: =IF(G32=0,0,IF(K32=0.5,0,G32-Calendrier!$AT$9)) -> 0 | I32: 4.5 | J32: F | K32: 0 | M32: 0
A33: 2023-07-15 | B33: =INDIRECT(ADDRESS(MATCH($B$1,Calendrier!$A$15:$A$59,0)+14,ROW()-17,3,1,"Calendrier"),1) -> Sa | G33: =IF(AND(C33<>0,D33<>0,E33<>0,F33<>0),F33-E33+D33-C33-M33-IF(E33-D33<Calendrier!$AT$10,Calendrier!$AT$10,0),IF(AND(C33<>0,D33<>0,E33=0,F33=0),D33-C33-M33,IF(AND(C33=0,D33=0,E33<>0,F33<>0),F33-E33-M33,IF(AND(C33>20,D33=0,E33=0,F33<>0),24-C33+F33-M33,IF(AND(C33<>0,D33=0,E33=0,F33<>0),F33-C33-M33,0))))) -> 0 | H33: =IF(G33=0,0,IF(K33=0.5,0,G33-Calendrier!$AT$9)) -> 0 | I33: 4.5 | J33: Sa | K33: 0 | M33: 0
A34: 2023-07-16 | B34: =INDIRECT(ADDRESS(MATCH($B$1,Calendrier!$A$15:$A$59,0)+14,ROW()-17,3,1,"Calendrier"),1) -> Di | G34: =IF(AND(C34<>0,D34<>0,E34<>0,F34<>0),F34-E34+D34-C34-M34-IF(E34-D34<Calendrier!$AT$10,Calendrier!$AT$10,0),IF(AND(C34<>0,D34<>0,E34=0,F34=0),D34-C34-M34,IF(AND(C34=0,D34=0,E34<>0,F34<>0),F34-E34-M34,IF(AND(C34>20,D34=0,E34=0,F34<>0),24-C34+F34-M34,IF(AND(C34<>0,D34=0,E34=0,F34<>0),F34-C34-M34,0))))) -> 0 | H34: =IF(G34=0,0,IF(K34=0.5,0,G34-Calendrier!$AT$9)) -> 0 | I34: 4.5 | J34: =IF(AND(COUNTA(C34:F34)=0,OR(B34="F",WEEKDAY(A34,2)>5,B34="T",B34="RTT",B34="CA")),B34,IF(AND(COUNTA(C34:F34)>=2,OR(B34="F",B34="RTT",B34="CA",B34="Sa",B34="Di")),"calendrier",IF(AND(COUNTA(C34)+COUNTA(F34)=2,OR(COUNTA(C34:D34)<1,COUNTA(E34:F34)<1)),"erreur",IF(COUNTA(C34:F34)=3,"en cours",IF(COUNTA(C34:F34)=4,B34,IF(OR(AND(C34<>0,D34<>0),AND(E34<>0,F34<>0)),$F$12,IF(AND(C34<>0,D34=0,E34=0,F34<>0,WEEKDAY(A34,2)>5),"calendrier",IF(AND(C34<>0,D34=0,E34=0,F34<>0),$B34,"")))))))) -> Di | K34: 0 | M34: 0
A35: 2023-07-17 | B35: =INDIRECT(ADDRESS(MATCH($B$1,Calendrier!$A$15:$A$59,0)+14,ROW()-17,3,1,"Calendrier"),1) -> T | G35: =IF(AND(C35<>0,D35<>0,E35<>0,F35<>0),F35-E35+D35-C35-M35-IF(E35-D35<Calendrier!$AT$10,Calendrier!$AT$10,0),IF(AND(C35<>0,D35<>0,E35=0,F35=0),D35-C35-M35,IF(AND(C35=0,D35=0,E35<>0,F35<>0),F35-E35-M35,IF(AND(C35>20,D35=0,E35=0,F35<>0),24-C35+F35-M35,IF(AND(C35<>0,D35=0,E35=0,F35<>0),F35-C35-M35,0))))) -> 0 | H35: =IF(G35=0,0,IF(K35=0.5,0,G35-Calendrier!$AT$9)) -> 0 | I35: 4.5 | J35: T | K35: 0 | M35: 0
A36: 2023-07-18 | B36: =INDIRECT(ADDRESS(MATCH($B$1,Calendrier!$A$15:$A$59,0)+14,ROW()-17,3,1,"Calendrier"),1) -> T | G36: =IF(AND(C36<>0,D36<>0,E36<>0,F36<>0),F36-E36+D36-C36-M36-IF(E36-D36<Calendrier!$AT$10,Calendrier!$AT$10,0),IF(AND(C36<>0,D36<>0,E36=0,F36=0),D36-C36-M36,IF(AND(C36=0,D36=0,E36<>0,F36<>0),F36-E36-M36,IF(AND(C36>20,D36=0,E36=0,F36<>0),24-C36+F36-M36,IF(AND(C36<>0,D36=0,E36=0,F36<>0),F36-C36-M36,0))))) -> 0 | H36: =IF(G36=0,0,IF(K36=0.5,0,G36-Calendrier!$AT$9)) -> 0 | I36: 4.5 | J36: T | K36: 0 | M36: 0
A37: 2023-07-19 | B37: =INDIRECT(ADDRESS(MATCH($B$1,Calendrier!$A$15:$A$59,0)+14,ROW()-17,3,1,"Calendrier"),1) -> T | G37: =IF(AND(C37<>0,D37<>0,E37<>0,F37<>0),F37-E37+D37-C37-M37-IF(E37-D37<Calendrier!$AT$10,Calendrier!$AT$10,0),IF(AND(C37<>0,D37<>0,E37=0,F37=0),D37-C37-M37,IF(AND(C37=0,D37=0,E37<>0,F37<>0),F37-E37-M37,IF(AND(C37>20,D37=0,E37=0,F37<>0),24-C37+F37-M37,IF(AND(C37<>0,D37=0,E37=0,F37<>0),F37-C37-M37,0))))) -> 0 | H37: =IF(G37=0,0,IF(K37=0.5,0,G37-Calendrier!$AT$9)) -> 0 | I37: 4.5 | J37: T | K37: 0 | M37: 0
A38: 2023-07-20 | B38: =INDIRECT(ADDRESS(MATCH($B$1,Calendrier!$A$15:$A$59,0)+14,ROW()-17,3,1,"Calendrier"),1) -> T | G38: =IF(AND(C38<>0,D38<>0,E38<>0,F38<>0),F38-E38+D38-C38-M38-IF(E38-D38<Calendrier!$AT$10,Calendrier!$AT$10,0),IF(AND(C38<>0,D38<>0,E38=0,F38=0),D38-C38-M38,IF(AND(C38=0,D38=0,E38<>0,F38<>0),F38-E38-M38,IF(AND(C38>20,D38=0,E38=0,F38<>0),24-C38+F38-M38,IF(AND(C38<>0,D38=0,E38=0,F38<>0),F38-C38-M38,0))))) -> 0 | H38: =IF(G38=0,0,IF(K38=0.5,0,G38-Calendrier!$AT$9)) -> 0 | I38: 4.5 | J38: T | K38: 0 | M38: 0
A39: 2023-07-21 | B39: =INDIRECT(ADDRESS(MATCH($B$1,Calendrier!$A$15:$A$59,0)+14,ROW()-17,3,1,"Calendrier"),1) -> T | G39: =IF(AND(C39<>0,D39<>0,E39<>0,F39<>0),F39-E39+D39-C39-M39-IF(E39-D39<Calendrier!$AT$10,Calendrier!$AT$10,0),IF(AND(C39<>0,D39<>0,E39=0,F39=0),D39-C39-M39,IF(AND(C39=0,D39=0,E39<>0,F39<>0),F39-E39-M39,IF(AND(C39>20,D39=0,E39=0,F39<>0),24-C39+F39-M39,IF(AND(C39<>0,D39=0,E39=0,F39<>0),F39-C39-M39,0))))) -> 0 | H39: =IF(G39=0,0,IF(K39=0.5,0,G39-Calendrier!$AT$9)) -> 0 | I39: 4.5 | J39: T | K39: 0 | M39: 0
A40: 2023-07-22 | B40: =INDIRECT(ADDRESS(MATCH($B$1,Calendrier!$A$15:$A$59,0)+14,ROW()-17,3,1,"Calendrier"),1) -> Sa | G40: =IF(AND(C40<>0,D40<>0,E40<>0,F40<>0),F40-E40+D40-C40-M40-IF(E40-D40<Calendrier!$AT$10,Calendrier!$AT$10,0),IF(AND(C40<>0,D40<>0,E40=0,F40=0),D40-C40-M40,IF(AND(C40=0,D40=0,E40<>0,F40<>0),F40-E40-M40,IF(AND(C40>20,D40=0,E40=0,F40<>0),24-C40+F40-M40,IF(AND(C40<>0,D40=0,E40=0,F40<>0),F40-C40-M40,0))))) -> 0 | H40: =IF(G40=0,0,IF(K40=0.5,0,G40-Calendrier!$AT$9)) -> 0 | I40: 4.5 | J40: Sa | K40: 0 | M40: 0
A41: 2023-07-23 | B41: =INDIRECT(ADDRESS(MATCH($B$1,Calendrier!$A$15:$A$59,0)+14,ROW()-17,3,1,"Calendrier"),1) -> Di | G41: =IF(AND(C41<>0,D41<>0,E41<>0,F41<>0),F41-E41+D41-C41-M41-IF(E41-D41<Calendrier!$AT$10,Calendrier!$AT$10,0),IF(AND(C41<>0,D41<>0,E41=0,F41=0),D41-C41-M41,IF(AND(C41=0,D41=0,E41<>0,F41<>0),F41-E41-M41,IF(AND(C41>20,D41=0,E41=0,F41<>0),24-C41+F41-M41,IF(AND(C41<>0,D41=0,E41=0,F41<>0),F41-C41-M41,0))))) -> 0 | H41: =IF(G41=0,0,IF(K41=0.5,0,G41-Calendrier!$AT$9)) -> 0 | I41: 4.5 | J41: Di | K41: 0 | M41: 0
A42: 2023-07-24 | B42: =INDIRECT(ADDRESS(MATCH($B$1,Calendrier!$A$15:$A$59,0)+14,ROW()-17,3,1,"Calendrier"),1) -> T | G42: =IF(AND(C42<>0,D42<>0,E42<>0,F42<>0),F42-E42+D42-C42-M42-IF(E42-D42<Calendrier!$AT$10,Calendrier!$AT$10,0),IF(AND(C42<>0,D42<>0,E42=0,F42=0),D42-C42-M42,IF(AND(C42=0,D42=0,E42<>0,F42<>0),F42-E42-M42,IF(AND(C42>20,D42=0,E42=0,F42<>0),24-C42+F42-M42,IF(AND(C42<>0,D42=0,E42=0,F42<>0),F42-C42-M42,0))))) -> 0 | H42: =IF(G42=0,0,IF(K42=0.5,0,G42-Calendrier!$AT$9)) -> 0 | I42: 4.5 | J42: T | K42: 0 | M42: 0
A43: 2023-07-25 | B43: =INDIRECT(ADDRESS(MATCH($B$1,Calendrier!$A$15:$A$59,0)+14,ROW()-17,3,1,"Calendrier"),1) -> T | G43: =IF(AND(C43<>0,D43<>0,E43<>0,F43<>0),F43-E43+D43-C43-M43-IF(E43-D43<Calendrier!$AT$10,Calendrier!$AT$10,0),IF(AND(C43<>0,D43<>0,E43=0,F43=0),D43-C43-M43,IF(AND(C43=0,D43=0,E43<>0,F43<>0),F43-E43-M43,IF(AND(C43>20,D43=0,E43=0,F43<>0),24-C43+F43-M43,IF(AND(C43<>0,D43=0,E43=0,F43<>0),F43-C43-M43,0))))) -> 0 | H43: =IF(G43=0,0,IF(K43=0.5,0,G43-Calendrier!$AT$9)) -> 0 | I43: 4.5 | J43: T | K43: 0 | M43: 0
A44: 2023-07-26 | B44: =INDIRECT(ADDRESS(MATCH($B$1,Calendrier!$A$15:$A$59,0)+14,ROW()-17,3,1,"Calendrier"),1) -> T | G44: =IF(AND(C44<>0,D44<>0,E44<>0,F44<>0),F44-E44+D44-C44-M44-IF(E44-D44<Calendrier!$AT$10,Calendrier!$AT$10,0),IF(AND(C44<>0,D44<>0,E44=0,F44=0),D44-C44-M44,IF(AND(C44=0,D44=0,E44<>0,F44<>0),F44-E44-M44,IF(AND(C44>20,D44=0,E44=0,F44<>0),24-C44+F44-M44,IF(AND(C44<>0,D44=0,E44=0,F44<>0),F44-C44-M44,0))))) -> 0 | H44: =IF(G44=0,0,IF(K44=0.5,0,G44-Calendrier!$AT$9)) -> 0 | I44: 4.5 | J44: T | K44: 0 | M44: 0
A45: 2023-07-27 | B45: =INDIRECT(ADDRESS(MATCH($B$1,Calendrier!$A$15:$A$59,0)+14,ROW()-17,3,1,"Calendrier"),1) -> T | G45: =IF(AND(C45<>0,D45<>0,E45<>0,F45<>0),F45-E45+D45-C45-M45-IF(E45-D45<Calendrier!$AT$10,Calendrier!$AT$10,0),IF(AND(C45<>0,D45<>0,E45=0,F45=0),D45-C45-M45,IF(AND(C45=0,D45=0,E45<>0,F45<>0),F45-E45-M45,IF(AND(C45>20,D45=0,E45=0,F45<>0),24-C45+F45-M45,IF(AND(C45<>0,D45=0,E45=0,F45<>0),F45-C45-M45,0))))) -> 0 | H45: =IF(G45=0,0,IF(K45=0.5,0,G45-Calendrier!$AT$9)) -> 0 | I45: 4.5 | J45: T | K45: 0 | M45: 0
A46: 2023-07-28 | B46: =INDIRECT(ADDRESS(MATCH($B$1,Calendrier!$A$15:$A$59,0)+14,ROW()-17,3,1,"Calendrier"),1) -> T | G46: =IF(AND(C46<>0,D46<>0,E46<>0,F46<>0),F46-E46+D46-C46-M46-IF(E46-D46<Calendrier!$AT$10,Calendrier!$AT$10,0),IF(AND(C46<>0,D46<>0,E46=0,F46=0),D46-C46-M46,IF(AND(C46=0,D46=0,E46<>0,F46<>0),F46-E46-M46,IF(AND(C46>20,D46=0,E46=0,F46<>0),24-C46+F46-M46,IF(AND(C46<>0,D46=0,E46=0,F46<>0),F46-C46-M46,0))))) -> 0 | H46: =IF(G46=0,0,IF(K46=0.5,0,G46-Calendrier!$AT$9)) -> 0 | I46: 4.5 | J46: T | K46: 0 | M46: 0
A47: 2023-07-29 | B47: =INDIRECT(ADDRESS(MATCH($B$1,Calendrier!$A$15:$A$59,0)+14,ROW()-17,3,1,"Calendrier"),1) -> Sa | G47: =IF(AND(C47<>0,D47<>0,E47<>0,F47<>0),F47-E47+D47-C47-M47-IF(E47-D47<Calendrier!$AT$10,Calendrier!$AT$10,0),IF(AND(C47<>0,D47<>0,E47=0,F47=0),D47-C47-M47,IF(AND(C47=0,D47=0,E47<>0,F47<>0),F47-E47-M47,IF(AND(C47>20,D47=0,E47=0,F47<>0),24-C47+F47-M47,IF(AND(C47<>0,D47=0,E47=0,F47<>0),F47-C47-M47,0))))) -> 0 | H47: =IF(G47=0,0,IF(K47=0.5,0,G47-Calendrier!$AT$9)) -> 0 | I47: 4.5 | J47: Sa | K47: 0 | M47: 0
A48: 2023-07-30 | B48: =INDIRECT(ADDRESS(MATCH($B$1,Calendrier!$A$15:$A$59,0)+14,ROW()-17,3,1,"Calendrier"),1) -> Di | G48: =IF(AND(C48<>0,D48<>0,E48<>0,F48<>0),F48-E48+D48-C48-M48-IF(E48-D48<Calendrier!$AT$10,Calendrier!$AT$10,0),IF(AND(C48<>0,D48<>0,E48=0,F48=0),D48-C48-M48,IF(AND(C48=0,D48=0,E48<>0,F48<>0),F48-E48-M48,IF(AND(C48>20,D48=0,E48=0,F48<>0),24-C48+F48-M48,IF(AND(C48<>0,D48=0,E48=0,F48<>0),F48-C48-M48,0))))) -> 0 | H48: =IF(G48=0,0,IF(K48=0.5,0,G48-Calendrier!$AT$9)) -> 0 | I48: 4.5 | J48: Di | K48: 0 | M48: 0
A49: 2023-07-31 | B49: =INDIRECT(ADDRESS(MATCH($B$1,Calendrier!$A$15:$A$59,0)+14,ROW()-17,3,1,"Calendrier"),1) -> CA | G49: =IF(AND(C49<>0,D49<>0,E49<>0,F49<>0),F49-E49+D49-C49-M49-IF(E49-D49<Calendrier!$AT$10,Calendrier!$AT$10,0),IF(AND(C49<>0,D49<>0,E49=0,F49=0),D49-C49-M49,IF(AND(C49=0,D49=0,E49<>0,F49<>0),F49-E49-M49,IF(AND(C49>20,D49=0,E49=0,F49<>0),24-C49+F49-M49,IF(AND(C49<>0,D49=0,E49=0,F49<>0),F49-C49-M49,0))))) -> 0 | H49: =IF(G49=0,0,IF(K49=0.5,0,G49-Calendrier!$AT$9)) -> 0 | I49: 4.5 | J49: CA | K49: 0 | M49: 0
G50: =SUM(G19:G49) -> 0 | I50: =I49 -> 4.5

Sheet AOU
B1: =RIGHT(CELL("nomfichier",$A$1),3) -> AOU | C1: FICHE DE SUIVI HORAIRE
B3: mois : | C3: AOUT | F3: année | G3: =VLOOKUP(C3,Fériés!$I$1:$J$12,2,FALSE) -> 2023 | J3: service | K3: =Calendrier!F4 -> Administratif
B5: nom : | C5: =Calendrier!F2 -> Isq | F5: prénom | G5: =Calendrier!F3 -> Philippe | J5: N° Ident | K5: =Calendrier!F1 -> T506489
H6: à réaliser | I6: cumul | J6: en cours | K6: reste | M6: N.cumul
D7: Nb J | E7: =Calendrier!$AT$11 -> 218 | F7: =+$H$10 -> 0 | G7: =E7-F7 -> 218 | H7: =Calendrier!N1 -> 365 | I7: =JUL!M7 -> 174.5 | J7: =SUM(J8:J15) -> 31 | K7: =H7-(I7+J7) -> 159.5 | M7: =SUM(M8:M15) -> 205.5
F8: 1/2CA | G8: CA | H8: =Calendrier!N5 -> 25 | I8: =JUL!M8 -> 1 | J8: =COUNTIF($J$19:$J$49,G8)+COUNTIF($J$19:$J$49,F8)/2 -> 18 | K8: =+H8-(I8+J8) -> 6 | L8: J | M8: =+I8+J8 -> 19
F9: 1/2RTT | G9: RTT | H9: =Calendrier!N8 -> 9 | I9: =JUL!M9 -> 3 | J9: =COUNTIF($J$19:$J$49,G9)+COUNTIF($J$19:$J$49,F9)/2 -> 0 | K9: =+H9-(I9+J9) -> 6 | L9: J | M9: 3
F10: 1/2CS | G10: CS | H10: =Calendrier!N9 -> 0 | I10: =JUL!M10 -> 0 | J10: 0 | K10: =H10-(I10+J10) -> 0 | L10: J | M10: 0
F11: 1/2CP | G11: CP | H11: =Calendrier!N6 -> 0 | I11: =JUL!M11 -> 0 | J11: 0 | K11: =H11-(I11+J11) -> 0 | L11: J | M11: 0
F12: 1/2T | G12: T | H12: =Calendrier!N7 -> 218 | I12: =JUL!M12 -> 117.5 | J12: 4 | K12: =+H12-(I12+J12) -> 96.5 | L12: J | M12: 121.5
F13: 0 | G13: Sa | H13: =Calendrier!N4 -> 51 | I13: =JUL!M13 -> 24 | J13: =COUNTIF($J$19:$J$49,G13) -> 4 | K13: =+H13-(I13+J13) -> 23 | L13: J | M13: 28
F14: 0 | G14: Di | H14: =Calendrier!N3 -> 50 | I14: =JUL!M14 -> 25 | J14: =COUNTIF($J$19:$J$49,G14) -> 4 | K14: =+H14-(I14+J14) -> 21 | L14: J | M14: 29
F15: 0 | G15: F | H15: =Calendrier!N2 -> 12 | I15: =JUL!M15 -> 4 | J15: =COUNTIF($J$19:$J$49,G15) -> 1 | K15: =+H15-(I15+J15) -> 7 | L15: J | M15: 5
G16: heure/avance fin mois | I16: =JUL!$I$50 -> 4.5 | M16: =I50 -> 4.5 | N16: avec bon
B17: Prévu | C17: Entrée | D17: Sortie | E17: Entrée | F17: Sortie | G17: total | H17: variation | I17: cumul | J17: Type | K17: nb J/T | M17: divers E/S | N17: Sortie | O17: Retour
I18: =JUL!$I$50 -> 4.5
A19: =VALUE("01/08/"&G3) -> 2023-08-01 | B19: =INDIRECT(ADDRESS(MATCH($B$1,Calendrier!$A$15:$A$59,0)+14,ROW()-17,3,1,"Calendrier"),1) -> CA | G19: =IF(AND(C19<>0,D19<>0,E19<>0,F19<>0),F19-E19+D19-C19-K19-IF(E19-D19<Calendrier!$AT$10,Calendrier!$AT$10,0),IF(AND(C19<>0,D19<>0,E19=0,F19=0),D19-C19-K19,IF(AND(C19=0,D19=0,E19<>0,F19<>0),F19-E19-K19,IF(AND(C19>20,D19=0,E19=0,F19<>0),24-C19+F19-K19,IF(AND(C19<>0,D19=0,E19=0,F19<>0),F19-C19-K19,0))))) -> 0 | H19: =IF(G19=0,0,IF(K19=0.5,0,G19-Calendrier!$AT$9)) -> 0 | I19: =I18+H19 -> 4.5 | J19: =IF(AND(COUNTA(C19:F19)=0,OR(B19="F",WEEKDAY(A19,2)>5,B19="T",B19="RTT",B19="CA")),B19,IF(AND(COUNTA(C19:F19)>=2,OR(B19="F",B19="RTT",B19="CA",B19="Sa",B19="Di")),"calendrier",IF(AND(COUNTA(C19)+COUNTA(F19)=2,OR(COUNTA(C19:D19)<1,COUNTA(E19:F19)<1)),"erreur",IF(COUNTA(C19:F19)=3,"en cours",IF(COUNTA(C19:F19)=4,B19,IF(OR(AND(C19<>0,D19<>0),AND(E19<>0,F19<>0)),$F$12,IF(AND(C19<>0,D19=0,E19=0,F19<>0,WEEKDAY(A19,2)>5),"calendrier",IF(AND(C19<>0,D19=0,E19=0,F19<>0),$B19,"")))))))) -> CA | K19: =IF(COUNTA(C19:F19)=4,1,IF(OR(AND(C19<>0,D19<>0),AND(E19<>0,F19<>0)),0.5,IF(AND(C19<>0,F19<>0,D19=0,E19=0,B19="T"),1,0))) -> 0 | M19: =IF(OR(N19=0,O19=0),0,O19-N19) -> 0
A20: =A19+1 -> 2023-08-02 | B20: =INDIRECT(ADDRESS(MATCH($B$1,Calendrier!$A$15:$A$59,0)+14,ROW()-17,3,1,"Calendrier"),1) -> CA | G20: =IF(AND(C20<>0,D20<>0,E20<>0,F20<>0),F20-E20+D20-C20-K20-IF(E20-D20<Calendrier!$AT$10,Calendrier!$AT$10,0),IF(AND(C20<>0,D20<>0,E20=0,F20=0),D20-C20-K20,IF(AND(C20=0,D20=0,E20<>0,F20<>0),F20-E20-K20,IF(AND(C20>20,D20=0,E20=0,F20<>0),24-C20+F20-K20,IF(AND(C20<>0,D20=0,E20=0,F20<>0),F20-C20-K20,0))))) -> 0 | H20: =IF(G20=0,0,IF(K20=0.5,0,G20-Calendrier!$AT$9)) -> 0 | I20: 4.5 | J20: CA | K20: 0 | M20: 0
A21: =A20+1 -> 2023-08-03 | B21: =INDIRECT(ADDRESS(MATCH($B$1,Calendrier!$A$15:$A$59,0)+14,ROW()-17,3,1,"Calendrier"),1) -> CA | G21: =IF(AND(C21<>0,D21<>0,E21<>0,F21<>0),F21-E21+D21-C21-M21-IF(E21-D21<Calendrier!$AT$10,Calendrier!$AT$10,0),IF(AND(C21<>0,D21<>0,E21=0,F21=0),D21-C21-M21,IF(AND(C21=0,D21=0,E21<>0,F21<>0),F21-E21-M21,IF(AND(C21>20,D21=0,E21=0,F21<>0),24-C21+F21-M21,IF(AND(C21<>0,D21=0,E21=0,F21<>0),F21-C21-M21,0))))) -> 0 | H21: =IF(G21=0,0,IF(K21=0.5,0,G21-Calendrier!$AT$9)) -> 0 | I21: =I20+H21 -> 4.5 | J21: CA | K21: 0 | M21: 0
A22: 2023-08-04 | B22: =INDIRECT(ADDRESS(MATCH($B$1,Calendrier!$A$15:$A$59,0)+14,ROW()-17,3,1,"Calendrier"),1) -> CA | G22: =IF(AND(C22<>0,D22<>0,E22<>0,F22<>0),F22-E22+D22-C22-M22-IF(E22-D22<Calendrier!$AT$10,Calendrier!$AT$10,0),IF(AND(C22<>0,D22<>0,E22=0,F22=0),D22-C22-M22,IF(AND(C22=0,D22=0,E22<>0,F22<>0),F22-E22-M22,IF(AND(C22>20,D22=0,E22=0,F22<>0),24-C22+F22-M22,IF(AND(C22<>0,D22=0,E22=0,F22<>0),F22-C22-M22,0))))) -> 0 | H22: =IF(G22=0,0,IF(K22=0.5,0,G22-Calendrier!$AT$9)) -> 0 | I22: 4.5 | J22: CA | K22: 0 | M22: 0
A23: 2023-08-05 | B23: =INDIRECT(ADDRESS(MATCH($B$1,Calendrier!$A$15:$A$59,0)+14,ROW()-17,3,1,"Calendrier"),1) -> Sa | G23: =IF(AND(C23<>0,D23<>0,E23<>0,F23<>0),F23-E23+D23-C23-M23-IF(E23-D23<Calendrier!$AT$10,Calendrier!$AT$10,0),IF(AND(C23<>0,D23<>0,E23=0,F23=0),D23-C23-M23,IF(AND(C23=0,D23=0,E23<>0,F23<>0),F23-E23-M23,IF(AND(C23>20,D23=0,E23=0,F23<>0),24-C23+F23-M23,IF(AND(C23<>0,D23=0,E23=0,F23<>0),F23-C23-M23,0))))) -> 0 | H23: =IF(G23=0,0,IF(K23=0.5,0,G23-Calendrier!$AT$9)) -> 0 | I23: 4.5 | J23: Sa | K23: 0 | M23: 0
A24: 2023-08-06 | B24: =INDIRECT(ADDRESS(MATCH($B$1,Calendrier!$A$15:$A$59,0)+14,ROW()-17,3,1,"Calendrier"),1) -> Di | G24: =IF(AND(C24<>0,D24<>0,E24<>0,F24<>0),F24-E24+D24-C24-M24-IF(E24-D24<Calendrier!$AT$10,Calendrier!$AT$10,0),IF(AND(C24<>0,D24<>0,E24=0,F24=0),D24-C24-M24,IF(AND(C24=0,D24=0,E24<>0,F24<>0),F24-E24-M24,IF(AND(C24>20,D24=0,E24=0,F24<>0),24-C24+F24-M24,IF(AND(C24<>0,D24=0,E24=0,F24<>0),F24-C24-M24,0))))) -> 0 | H24: =IF(G24=0,0,IF(K24=0.5,0,G24-Calendrier!$AT$9)) -> 0 | I24: 4.5 | J24: Di | K24: 0 | M24: =IF(OR(N24=0,O24=0),0,O24-N24) -> 0
A25: 2023-08-07 | B25: =INDIRECT(ADDRESS(MATCH($B$1,Calendrier!$A$15:$A$59,0)+14,ROW()-17,3,1,"Calendrier"),1) -> CA | G25: =IF(AND(C25<>0,D25<>0,E25<>0,F25<>0),F25-E25+D25-C25-M25-IF(E25-D25<Calendrier!$AT$10,Calendrier!$AT$10,0),IF(AND(C25<>0,D25<>0,E25=0,F25=0),D25-C25-M25,IF(AND(C25=0,D25=0,E25<>0,F25<>0),F25-E25-M25,IF(AND(C25>20,D25=0,E25=0,F25<>0),24-C25+F25-M25,IF(AND(C25<>0,D25=0,E25=0,F25<>0),F25-C25-M25,0))))) -> 0 | H25: =IF(G25=0,0,IF(K25=0.5,0,G25-Calendrier!$AT$9)) -> 0 | I25: 4.5 | J25: CA | K25: 0 | M25: =IF(OR(N25=0,O25=0),0,O25-N25) -> 0
A26: 2023-08-08 | B26: =INDIRECT(ADDRESS(MATCH($B$1,Calendrier!$A$15:$A$59,0)+14,ROW()-17,3,1,"Calendrier"),1) -> CA | G26: =IF(AND(C26<>0,D26<>0,E26<>0,F26<>0),F26-E26+D26-C26-M26-IF(E26-D26<Calendrier!$AT$10,Calendrier!$AT$10,0),IF(AND(C26<>0,D26<>0,E26=0,F26=0),D26-C26-M26,IF(AND(C26=0,D26=0,E26<>0,F26<>0),F26-E26-M26,IF(AND(C26>20,D26=0,E26=0,F26<>0),24-C26+F26-M26,IF(AND(C26<>0,D26=0,E26=0,F26<>0),F26-C26-M26,0))))) -> 0 | H26: =IF(G26=0,0,IF(K26=0.5,0,G26-Calendrier!$AT$9)) -> 0 | I26: 4.5 | J26: CA | K26: 0 | M26: 0
A27: 2023-08-09 | B27: =INDIRECT(ADDRESS(MATCH($B$1,Calendrier!$A$15:$A$59,0)+14,ROW()-17,3,1,"Calendrier"),1) -> CA | G27: =IF(AND(C27<>0,D27<>0,E27<>0,F27<>0),F27-E27+D27-C27-M27-IF(E27-D27<Calendrier!$AT$10,Calendrier!$AT$10,0),IF(AND(C27<>0,D27<>0,E27=0,F27=0),D27-C27-M27,IF(AND(C27=0,D27=0,E27<>0,F27<>0),F27-E27-M27,IF(AND(C27>20,D27=0,E27=0,F27<>0),24-C27+F27-M27,IF(AND(C27<>0,D27=0,E27=0,F27<>0),F27-C27-M27,0))))) -> 0 | H27: =IF(G27=0,0,IF(K27=0.5,0,G27-Calendrier!$AT$9)) -> 0 | I27: 4.5 | J27: CA | K27: 0 | M27: 0
A28: 2023-08-10 | B28: =INDIRECT(ADDRESS(MATCH($B$1,Calendrier!$A$15:$A$59,0)+14,ROW()-17,3,1,"Calendrier"),1) -> CA | G28: =IF(AND(C28<>0,D28<>0,E28<>0,F28<>0),F28-E28+D28-C28-M28-IF(E28-D28<Calendrier!$AT$10,Calendrier!$AT$10,0),IF(AND(C28<>0,D28<>0,E28=0,F28=0),D28-C28-M28,IF(AND(C28=0,D28=0,E28<>0,F28<>0),F28-E28-M28,IF(AND(C28>20,D28=0,E28=0,F28<>0),24-C28+F28-M28,IF(AND(C28<>0,D28=0,E28=0,F28<>0),F28-C28-M28,0))))) -> 0 | H28: =IF(G28=0,0,IF(K28=0.5,0,G28-Calendrier!$AT$9)) -> 0 | I28: 4.5 | J28: CA | K28: 0 | M28: 0
A29: 2023-08-11 | B29: =INDIRECT(ADDRESS(MATCH($B$1,Calendrier!$A$15:$A$59,0)+14,ROW()-17,3,1,"Calendrier"),1) -> CA | G29: =IF(AND(C29<>0,D29<>0,E29<>0,F29<>0),F29-E29+D29-C29-M29-IF(E29-D29<Calendrier!$AT$10,Calendrier!$AT$10,0),IF(AND(C29<>0,D29<>0,E29=0,F29=0),D29-C29-M29,IF(AND(C29=0,D29=0,E29<>0,F29<>0),F29-E29-M29,IF(AND(C29>20,D29=0,E29=0,F29<>0),24-C29+F29-M29,IF(AND(C29<>0,D29=0,E29=0,F29<>0),F29-C29-M29,0))))) -> 0 | H29: =IF(G29=0,0,IF(K29=0.5,0,G29-Calendrier!$AT$9)) -> 0 | I29: 4.5 | J29: CA | K29: 0 | M29: 0
A30: 2023-08-12 | B30: =INDIRECT(ADDRESS(MATCH($B$1,Calendrier!$A$15:$A$59,0)+14,ROW()-17,3,1,"Calendrier"),1) -> Sa | G30: =IF(AND(C30<>0,D30<>0,E30<>0,F30<>0),F30-E30+D30-C30-M30-IF(E30-D30<Calendrier!$AT$10,Calendrier!$AT$10,0),IF(AND(C30<>0,D30<>0,E30=0,F30=0),D30-C30-M30,IF(AND(C30=0,D30=0,E30<>0,F30<>0),F30-E30-M30,IF(AND(C30>20,D30=0,E30=0,F30<>0),24-C30+F30-M30,IF(AND(C30<>0,D30=0,E30=0,F30<>0),F30-C30-M30,0))))) -> 0 | H30: =IF(G30=0,0,IF(K30=0.5,0,G30-Calendrier!$AT$9)) -> 0 | I30: 4.5 | J30: Sa | K30: 0 | M30: 0
A31: 2023-08-13 | B31: =INDIRECT(ADDRESS(MATCH($B$1,Calendrier!$A$15:$A$59,0)+14,ROW()-17,3,1,"Calendrier"),1) -> Di | G31: =IF(AND(C31<>0,D31<>0,E31<>0,F31<>0),F31-E31+D31-C31-M31-IF(E31-D31<Calendrier!$AT$10,Calendrier!$AT$10,0),IF(AND(C31<>0,D31<>0,E31=0,F31=0),D31-C31-M31,IF(AND(C31=0,D31=0,E31<>0,F31<>0),F31-E31-M31,IF(AND(C31>20,D31=0,E31=0,F31<>0),24-C31+F31-M31,IF(AND(C31<>0,D31=0,E31=0,F31<>0),F31-C31-M31,0))))) -> 0 | H31: =IF(G31=0,0,IF(K31=0.5,0,G31-Calendrier!$AT$9)) -> 0 | I31: 4.5 | J31: Di | K31: 0 | M31: 0
A32: 2023-08-14 | B32: =INDIRECT(ADDRESS(MATCH($B$1,Calendrier!$A$15:$A$59,0)+14,ROW()-17,3,1,"Calendrier"),1) -> CA | G32: =IF(AND(C32<>0,D32<>0,E32<>0,F32<>0),F32-E32+D32-C32-M32-IF(E32-D32<Calendrier!$AT$10,Calendrier!$AT$10,0),IF(AND(C32<>0,D32<>0,E32=0,F32=0),D32-C32-M32,IF(AND(C32=0,D32=0,E32<>0,F32<>0),F32-E32-M32,IF(AND(C32>20,D32=0,E32=0,F32<>0),24-C32+F32-M32,IF(AND(C32<>0,D32=0,E32=0,F32<>0),F32-C32-M32,0))))) -> 0 | H32: =IF(G32=0,0,IF(K32=0.5,0,G32-Calendrier!$AT$9)) -> 0 | I32: 4.5 | J32: CA | K32: 0 | M32: 0
A33: 2023-08-15 | B33: =INDIRECT(ADDRESS(MATCH($B$1,Calendrier!$A$15:$A$59,0)+14,ROW()-17,3,1,"Calendrier"),1) -> F | G33: =IF(AND(C33<>0,D33<>0,E33<>0,F33<>0),F33-E33+D33-C33-M33-IF(E33-D33<Calendrier!$AT$10,Calendrier!$AT$10,0),IF(AND(C33<>0,D33<>0,E33=0,F33=0),D33-C33-M33,IF(AND(C33=0,D33=0,E33<>0,F33<>0),F33-E33-M33,IF(AND(C33>20,D33=0,E33=0,F33<>0),24-C33+F33-M33,IF(AND(C33<>0,D33=0,E33=0,F33<>0),F33-C33-M33,0))))) -> 0 | H33: =IF(G33=0,0,IF(K33=0.5,0,G33-Calendrier!$AT$9)) -> 0 | I33: 4.5 | J33: F | K33: 0 | M33: 0
A34: 2023-08-16 | B34: =INDIRECT(ADDRESS(MATCH($B$1,Calendrier!$A$15:$A$59,0)+14,ROW()-17,3,1,"Calendrier"),1) -> CA | G34: =IF(AND(C34<>0,D34<>0,E34<>0,F34<>0),F34-E34+D34-C34-M34-IF(E34-D34<Calendrier!$AT$10,Calendrier!$AT$10,0),IF(AND(C34<>0,D34<>0,E34=0,F34=0),D34-C34-M34,IF(AND(C34=0,D34=0,E34<>0,F34<>0),F34-E34-M34,IF(AND(C34>20,D34=0,E34=0,F34<>0),24-C34+F34-M34,IF(AND(C34<>0,D34=0,E34=0,F34<>0),F34-C34-M34,0))))) -> 0 | H34: =IF(G34=0,0,IF(K34=0.5,0,G34-Calendrier!$AT$9)) -> 0 | I34: 4.5 | J34: =IF(AND(COUNTA(C34:F34)=0,OR(B34="F",WEEKDAY(A34,2)>5,B34="T",B34="RTT",B34="CA")),B34,IF(AND(COUNTA(C34:F34)>=2,OR(B34="F",B34="RTT",B34="CA",B34="Sa",B34="Di")),"calendrier",IF(AND(COUNTA(C34)+COUNTA(F34)=2,OR(COUNTA(C34:D34)<1,COUNTA(E34:F34)<1)),"erreur",IF(COUNTA(C34:F34)=3,"en cours",IF(COUNTA(C34:F34)=4,B34,IF(OR(AND(C34<>0,D34<>0),AND(E34<>0,F34<>0)),$F$12,IF(AND(C34<>0,D34=0,E34=0,F34<>0,WEEKDAY(A34,2)>5),"calendrier",IF(AND(C34<>0,D34=0,E34=0,F34<>0),$B34,"")))))))) -> CA | K34: 0 | M34: 0
A35: 2023-08-17 | B35: =INDIRECT(ADDRESS(MATCH($B$1,Calendrier!$A$15:$A$59,0)+14,ROW()-17,3,1,"Calendrier"),1) -> CA | G35: =IF(AND(C35<>0,D35<>0,E35<>0,F35<>0),F35-E35+D35-C35-M35-IF(E35-D35<Calendrier!$AT$10,Calendrier!$AT$10,0),IF(AND(C35<>0,D35<>0,E35=0,F35=0),D35-C35-M35,IF(AND(C35=0,D35=0,E35<>0,F35<>0),F35-E35-M35,IF(AND(C35>20,D35=0,E35=0,F35<>0),24-C35+F35-M35,IF(AND(C35<>0,D35=0,E35=0,F35<>0),F35-C35-M35,0))))) -> 0 | H35: =IF(G35=0,0,IF(K35=0.5,0,G35-Calendrier!$AT$9)) -> 0 | I35: 4.5 | J35: CA | K35: 0 | M35: 0
A36: 2023-08-18 | B36: =INDIRECT(ADDRESS(MATCH($B$1,Calendrier!$A$15:$A$59,0)+14,ROW()-17,3,1,"Calendrier"),1) -> CA | G36: =IF(AND(C36<>0,D36<>0,E36<>0,F36<>0),F36-E36+D36-C36-M36-IF(E36-D36<Calendrier!$AT$10,Calendrier!$AT$10,0),IF(AND(C36<>0,D36<>0,E36=0,F36=0),D36-C36-M36,IF(AND(C36=0,D36=0,E36<>0,F36<>0),F36-E36-M36,IF(AND(C36>20,D36=0,E36=0,F36<>0),24-C36+F36-M36,IF(AND(C36<>0,D36=0,E36=0,F36<>0),F36-C36-M36,0))))) -> 0 | H36: =IF(G36=0,0,IF(K36=0.5,0,G36-Calendrier!$AT$9)) -> 0 | I36: 4.5 | J36: CA | K36: 0 | M36: 0
A37: 2023-08-19 | B37: =INDIRECT(ADDRESS(MATCH($B$1,Calendrier!$A$15:$A$59,0)+14,ROW()-17,3,1,"Calendrier"),1) -> Sa | G37: =IF(AND(C37<>0,D37<>0,E37<>0,F37<>0),F37-E37+D37-C37-M37-IF(E37-D37<Calendrier!$AT$10,Calendrier!$AT$10,0),IF(AND(C37<>0,D37<>0,E37=0,F37=0),D37-C37-M37,IF(AND(C37=0,D37=0,E37<>0,F37<>0),F37-E37-M37,IF(AND(C37>20,D37=0,E37=0,F37<>0),24-C37+F37-M37,IF(AND(C37<>0,D37=0,E37=0,F37<>0),F37-C37-M37,0))))) -> 0 | H37: =IF(G37=0,0,IF(K37=0.5,0,G37-Calendrier!$AT$9)) -> 0 | I37: 4.5 | J37: Sa | K37: 0 | M37: 0
A38: 2023-08-20 | B38: =INDIRECT(ADDRESS(MATCH($B$1,Calendrier!$A$15:$A$59,0)+14,ROW()-17,3,1,"Calendrier"),1) -> Di | G38: =IF(AND(C38<>0,D38<>0,E38<>0,F38<>0),F38-E38+D38-C38-M38-IF(E38-D38<Calendrier!$AT$10,Calendrier!$AT$10,0),IF(AND(C38<>0,D38<>0,E38=0,F38=0),D38-C38-M38,IF(AND(C38=0,D38=0,E38<>0,F38<>0),F38-E38-M38,IF(AND(C38>20,D38=0,E38=0,F38<>0),24-C38+F38-M38,IF(AND(C38<>0,D38=0,E38=0,F38<>0),F38-C38-M38,0))))) -> 0 | H38: =IF(G38=0,0,IF(K38=0.5,0,G38-Calendrier!$AT$9)) -> 0 | I38: 4.5 | J38: Di | K38: 0 | M38: 0
A39: 2023-08-21 | B39: =INDIRECT(ADDRESS(MATCH($B$1,Calendrier!$A$15:$A$59,0)+14,ROW()-17,3,1,"Calendrier"),1) -> CA | G39: =IF(AND(C39<>0,D39<>0,E39<>0,F39<>0),F39-E39+D39-C39-M39-IF(E39-D39<Calendrier!$AT$10,Calendrier!$AT$10,0),IF(AND(C39<>0,D39<>0,E39=0,F39=0),D39-C39-M39,IF(AND(C39=0,D39=0,E39<>0,F39<>0),F39-E39-M39,IF(AND(C39>20,D39=0,E39=0,F39<>0),24-C39+F39-M39,IF(AND(C39<>0,D39=0,E39=0,F39<>0),F39-C39-M39,0))))) -> 0 | H39: =IF(G39=0,0,IF(K39=0.5,0,G39-Calendrier!$AT$9)) -> 0 | I39: 4.5 | J39: CA | K39: 0 | M39: 0
A40: 2023-08-22 | B40: =INDIRECT(ADDRESS(MATCH($B$1,Calendrier!$A$15:$A$59,0)+14,ROW()-17,3,1,"Calendrier"),1) -> CA | G40: =IF(AND(C40<>0,D40<>0,E40<>0,F40<>0),F40-E40+D40-C40-M40-IF(E40-D40<Calendrier!$AT$10,Calendrier!$AT$10,0),IF(AND(C40<>0,D40<>0,E40=0,F40=0),D40-C40-M40,IF(AND(C40=0,D40=0,E40<>0,F40<>0),F40-E40-M40,IF(AND(C40>20,D40=0,E40=0,F40<>0),24-C40+F40-M40,IF(AND(C40<>0,D40=0,E40=0,F40<>0),F40-C40-M40,0))))) -> 0 | H40: =IF(G40=0,0,IF(K40=0.5,0,G40-Calendrier!$AT$9)) -> 0 | I40: 4.5 | J40: CA | K40: 0 | M40: 0
A41: 2023-08-23 | B41: =INDIRECT(ADDRESS(MATCH($B$1,Calendrier!$A$15:$A$59,0)+14,ROW()-17,3,1,"Calendrier"),1) -> CA | G41: =IF(AND(C41<>0,D41<>0,E41<>0,F41<>0),F41-E41+D41-C41-M41-IF(E41-D41<Calendrier!$AT$10,Calendrier!$AT$10,0),IF(AND(C41<>0,D41<>0,E41=0,F41=0),D41-C41-M41,IF(AND(C41=0,D41=0,E41<>0,F41<>0),F41-E41-M41,IF(AND(C41>20,D41=0,E41=0,F41<>0),24-C41+F41-M41,IF(AND(C41<>0,D41=0,E41=0,F41<>0),F41-C41-M41,0))))) -> 0 | H41: =IF(G41=0,0,IF(K41=0.5,0,G41-Calendrier!$AT$9)) -> 0 | I41: 4.5 | J41: CA | K41: 0 | M41: 0
A42: 2023-08-24 | B42: =INDIRECT(ADDRESS(MATCH($B$1,Calendrier!$A$15:$A$59,0)+14,ROW()-17,3,1,"Calendrier"),1) -> CA | G42: =IF(AND(C42<>0,D42<>0,E42<>0,F42<>0),F42-E42+D42-C42-M42-IF(E42-D42<Calendrier!$AT$10,Calendrier!$AT$10,0),IF(AND(C42<>0,D42<>0,E42=0,F42=0),D42-C42-M42,IF(AND(C42=0,D42=0,E42<>0,F42<>0),F42-E42-M42,IF(AND(C42>20,D42=0,E42=0,F42<>0),24-C42+F42-M42,IF(AND(C42<>0,D42=0,E42=0,F42<>0),F42-C42-M42,0))))) -> 0 | H42: =IF(G42=0,0,IF(K42=0.5,0,G42-Calendrier!$AT$9)) -> 0 | I42: 4.5 | J42: CA | K42: 0 | M42: 0
A43: 2023-08-25 | B43: =INDIRECT(ADDRESS(MATCH($B$1,Calendrier!$A$15:$A$59,0)+14,ROW()-17,3,1,"Calendrier"),1) -> CA | G43: =IF(AND(C43<>0,D43<>0,E43<>0,F43<>0),F43-E43+D43-C43-M43-IF(E43-D43<Calendrier!$AT$10,Calendrier!$AT$10,0),IF(AND(C43<>0,D43<>0,E43=0,F43=0),D43-C43-M43,IF(AND(C43=0,D43=0,E43<>0,F43<>0),F43-E43-M43,IF(AND(C43>20,D43=0,E43=0,F43<>0),24-C43+F43-M43,IF(AND(C43<>0,D43=0,E43=0,F43<>0),F43-C43-M43,0))))) -> 0 | H43: =IF(G43=0,0,IF(K43=0.5,0,G43-Calendrier!$AT$9)) -> 0 | I43: 4.5 | J43: CA | K43: 0 | M43: 0
A44: 2023-08-26 | B44: =INDIRECT(ADDRESS(MATCH($B$1,Calendrier!$A$15:$A$59,0)+14,ROW()-17,3,1,"Calendrier"),1) -> Sa | G44: =IF(AND(C44<>0,D44<>0,E44<>0,F44<>0),F44-E44+D44-C44-M44-IF(E44-D44<Calendrier!$AT$10,Calendrier!$AT$10,0),IF(AND(C44<>0,D44<>0,E44=0,F44=0),D44-C44-M44,IF(AND(C44=0,D44=0,E44<>0,F44<>0),F44-E44-M44,IF(AND(C44>20,D44=0,E44=0,F44<>0),24-C44+F44-M44,IF(AND(C44<>0,D44=0,E44=0,F44<>0),F44-C44-M44,0))))) -> 0 | H44: =IF(G44=0,0,IF(K44=0.5,0,G44-Calendrier!$AT$9)) -> 0 | I44: 4.5 | J44: Sa | K44: 0 | M44: 0
A45: 2023-08-27 | B45: =INDIRECT(ADDRESS(MATCH($B$1,Calendrier!$A$15:$A$59,0)+14,ROW()-17,3,1,"Calendrier"),1) -> Di | G45: =IF(AND(C45<>0,D45<>0,E45<>0,F45<>0),F45-E45+D45-C45-M45-IF(E45-D45<Calendrier!$AT$10,Calendrier!$AT$10,0),IF(AND(C45<>0,D45<>0,E45=0,F45=0),D45-C45-M45,IF(AND(C45=0,D45=0,E45<>0,F45<>0),F45-E45-M45,IF(AND(C45>20,D45=0,E45=0,F45<>0),24-C45+F45-M45,IF(AND(C45<>0,D45=0,E45=0,F45<>0),F45-C45-M45,0))))) -> 0 | H45: =IF(G45=0,0,IF(K45=0.5,0,G45-Calendrier!$AT$9)) -> 0 | I45: 4.5 | J45: Di | K45: 0 | M45: 0
A46: 2023-08-28 | B46: =INDIRECT(ADDRESS(MATCH($B$1,Calendrier!$A$15:$A$59,0)+14,ROW()-17,3,1,"Calendrier"),1) -> T | G46: =IF(AND(C46<>0,D46<>0,E46<>0,F46<>0),F46-E46+D46-C46-M46-IF(E46-D46<Calendrier!$AT$10,Calendrier!$AT$10,0),IF(AND(C46<>0,D46<>0,E46=0,F46=0),D46-C46-M46,IF(AND(C46=0,D46=0,E46<>0,F46<>0),F46-E46-M46,IF(AND(C46>20,D46=0,E46=0,F46<>0),24-C46+F46-M46,IF(AND(C46<>0,D46=0,E46=0,F46<>0),F46-C46-M46,0))))) -> 0 | H46: =IF(G46=0,0,IF(K46=0.5,0,G46-Calendrier!$AT$9)) -> 0 | I46: 4.5 | J46: T | K46: 0 | M46: 0
A47: 2023-08-29 | B47: =INDIRECT(ADDRESS(MATCH($B$1,Calendrier!$A$15:$A$59,0)+14,ROW()-17,3,1,"Calendrier"),1) -> T | G47: =IF(AND(C47<>0,D47<>0,E47<>0,F47<>0),F47-E47+D47-C47-M47-IF(E47-D47<Calendrier!$AT$10,Calendrier!$AT$10,0),IF(AND(C47<>0,D47<>0,E47=0,F47=0),D47-C47-M47,IF(AND(C47=0,D47=0,E47<>0,F47<>0),F47-E47-M47,IF(AND(C47>20,D47=0,E47=0,F47<>0),24-C47+F47-M47,IF(AND(C47<>0,D47=0,E47=0,F47<>0),F47-C47-M47,0))))) -> 0 | H47: =IF(G47=0,0,IF(K47=0.5,0,G47-Calendrier!$AT$9)) -> 0 | I47: 4.5 | J47: T | K47: 0 | M47: 0
A48: 2023-08-30 | B48: =INDIRECT(ADDRESS(MATCH($B$1,Calendrier!$A$15:$A$59,0)+14,ROW()-17,3,1,"Calendrier"),1) -> T | G48: =IF(AND(C48<>0,D48<>0,E48<>0,F48<>0),F48-E48+D48-C48-M48-IF(E48-D48<Calendrier!$AT$10,Calendrier!$AT$10,0),IF(AND(C48<>0,D48<>0,E48=0,F48=0),D48-C48-M48,IF(AND(C48=0,D48=0,E48<>0,F48<>0),F48-E48-M48,IF(AND(C48>20,D48=0,E48=0,F48<>0),24-C48+F48-M48,IF(AND(C48<>0,D48=0,E48=0,F48<>0),F48-C48-M48,0))))) -> 0 | H48: =IF(G48=0,0,IF(K48=0.5,0,G48-Calendrier!$AT$9)) -> 0 | I48: 4.5 | J48: T | K48: 0 | M48: 0
A49: 2023-08-31 | B49: =INDIRECT(ADDRESS(MATCH($B$1,Calendrier!$A$15:$A$59,0)+14,ROW()-17,3,1,"Calendrier"),1) -> T | G49: =IF(AND(C49<>0,D49<>0,E49<>0,F49<>0),F49-E49+D49-C49-M49-IF(E49-D49<Calendrier!$AT$10,Calendrier!$AT$10,0),IF(AND(C49<>0,D49<>0,E49=0,F49=0),D49-C49-M49,IF(AND(C49=0,D49=0,E49<>0,F49<>0),F49-E49-M49,IF(AND(C49>20,D49=0,E49=0,F49<>0),24-C49+F49-M49,IF(AND(C49<>0,D49=0,E49=0,F49<>0),F49-C49-M49,0))))) -> 0 | H49: =IF(G49=0,0,IF(K49=0.5,0,G49-Calendrier!$AT$9)) -> 0 | I49: 4.5 | J49: T | K49: 0 | M49: 0
G50: =SUM(G19:G49) -> 0 | I50: =I49 -> 4.5

Sheet SEP
B1: =RIGHT(CELL("nomfichier",$A$1),3) -> SEP | C1: FICHE DE SUIVI HORAIRE
B3: mois : | C3: SEPTEMBRE | F3: année | G3: =VLOOKUP(C3,Fériés!$I$1:$J$12,2,FALSE) -> 2023 | J3: service | K3: =Calendrier!F4 -> Administratif
B5: nom : | C5: =Calendrier!F2 -> Isq | F5: prénom | G5: =Calendrier!F3 -> Philippe | J5: N° Ident | K5: =Calendrier!F1 -> T506489
H6: à réaliser | I6: cumul | J6: en cours | K6: reste | M6: N.cumul
D7: Nb J | E7: =Calendrier!$AT$11 -> 218 | F7: =+$H$10 -> 0 | G7: =E7-F7 -> 218 | H7: =Calendrier!N1 -> 365 | I7: =AOU!M7 -> 205.5 | J7: =SUM(J8:J15) -> 30 | K7: =H7-(I7+J7) -> 129.5 | M7: =SUM(M8:M15) -> 235.5
F8: 1/2CA | G8: CA | H8: =Calendrier!N5 -> 25 | I8: =AOU!M8 -> 19 | J8: =COUNTIF($J$19:$J$49,G8)+COUNTIF($J$19:$J$49,F8)/2 -> 0 | K8: =+H8-(I8+J8) -> 6 | L8: J | M8: =+I8+J8 -> 19
F9: 1/2RTT | G9: RTT | H9: =Calendrier!N8 -> 9 | I9: =AOU!M9 -> 3 | J9: =COUNTIF($J$19:$J$49,G9)+COUNTIF($J$19:$J$49,F9)/2 -> 1 | K9: =+H9-(I9+J9) -> 5 | L9: J | M9: 4
F10: 1/2CS | G10: CS | H10: =Calendrier!N9 -> 0 | I10: =AOU!M10 -> 0 | J10: 0 | K10: =H10-(I10+J10) -> 0 | L10: J | M10: 0
F11: 1/2CP | G11: CP | H11: =Calendrier!N6 -> 0 | I11: =AOU!M11 -> 0 | J11: 0 | K11: =H11-(I11+J11) -> 0 | L11: J | M11: 0
F12: 1/2T | G12: T | H12: =Calendrier!N7 -> 218 | I12: =AOU!M12 -> 121.5 | J12: 20 | K12: =+H12-(I12+J12) -> 76.5 | L12: J | M12: 141.5
F13: 0 | G13: Sa | H13: =Calendrier!N4 -> 51 | I13: =AOU!M13 -> 28 | J13: =COUNTIF($J$19:$J$49,G13) -> 5 | K13: =+H13-(I13+J13) -> 18 | L13: J | M13: 33
F14: 0 | G14: Di | H14: =Calendrier!N3 -> 50 | I14: =AOU!M14 -> 29 | J14: =COUNTIF($J$19:$J$49,G14) -> 4 | K14: =+H14-(I14+J14) -> 17 | L14: J | M14: 33
F15: 0 | G15: F | H15: =Calendrier!N2 -> 12 | I15: =AOU!M15 -> 5 | J15: =COUNTIF($J$19:$J$49,G15) -> 0 | K15: =+H15-(I15+J15) -> 7 | L15: J | M15: 5
G16: heure/avance fin mois | I16: =AOU!I50 -> 4.5 | M16: =I50 -> 4.5 | N16: avec bon
B17: Prévu | C17: Entrée | D17: Sortie | E17: Entrée | F17: Sortie | G17: total | H17: variation | I17: cumul | J17: Type | K17: nb J/T | M17: divers E/S | N17: Sortie | O17: Retour
I18: =AOU!$I$50 -> 4.5
A19: =VALUE("01/09/"&G3) -> 2023-09-01 | B19: =INDIRECT(ADDRESS(MATCH($B$1,Calendrier!$A$15:$A$59,0)+14,ROW()-17,3,1,"Calendrier"),1) -> T | G19: =IF(AND(C19<>0,D19<>0,E19<>0,F19<>0),F19-E19+D19-C19-K19-IF(E19-D19<Calendrier!$AT$10,Calendrier!$AT$10,0),IF(AND(C19<>0,D19<>0,E19=0,F19=0),D19-C19-K19,IF(AND(C19=0,D19=0,E19<>0,F19<>0),F19-E19-K19,IF(AND(C19>20,D19=0,E19=0,F19<>0),24-C19+F19-K19,IF(AND(C19<>0,D19=0,E19=0,F19<>0),F19-C19-K19,0))))) -> 0 | H19: =IF(G19=0,0,IF(K19=0.5,0,G19-Calendrier!$AT$9)) -> 0 | I19: =I18+H19 -> 4.5 | J19: =IF(AND(COUNTA(C19:F19)=0,OR(B19="F",WEEKDAY(A19,2)>5,B19="T",B19="RTT",B19="CA")),B19,IF(AND(COUNTA(C19:F19)>=2,OR(B19="F",B19="RTT",B19="CA",B19="Sa",B19="Di")),"calendrier",IF(AND(COUNTA(C19)+COUNTA(F19)=2,OR(COUNTA(C19:D19)<1,COUNTA(E19:F19)<1)),"erreur",IF(COUNTA(C19:F19)=3,"en cours",IF(COUNTA(C19:F19)=4,B19,IF(OR(AND(C19<>0,D19<>0),AND(E19<>0,F19<>0)),$F$12,IF(AND(C19<>0,D19=0,E19=0,F19<>0,WEEKDAY(A19,2)>5),"calendrier",IF(AND(C19<>0,D19=0,E19=0,F19<>0),$B19,"")))))))) -> T | K19: =IF(COUNTA(C19:F19)=4,1,IF(OR(AND(C19<>0,D19<>0),AND(E19<>0,F19<>0)),0.5,IF(AND(C19<>0,F19<>0,D19=0,E19=0,B19="T"),1,0))) -> 0 | M19: =IF(OR(N19=0,O19=0),0,O19-N19) -> 0
A20: =A19+1 -> 2023-09-02 | B20: =INDIRECT(ADDRESS(MATCH($B$1,Calendrier!$A$15:$A$59,0)+14,ROW()-17,3,1,"Calendrier"),1) -> Sa | G20: =IF(AND(C20<>0,D20<>0,E20<>0,F20<>0),F20-E20+D20-C20-K20-IF(E20-D20<Calendrier!$AT$10,Calendrier!$AT$10,0),IF(AND(C20<>0,D20<>0,E20=0,F20=0),D20-C20-K20,IF(AND(C20=0,D20=0,E20<>0,F20<>0),F20-E20-K20,IF(AND(C20>20,D20=0,E20=0,F20<>0),24-C20+F20-K20,IF(AND(C20<>0,D20=0,E20=0,F20<>0),F20-C20-K20,0))))) -> 0 | H20: =IF(G20=0,0,IF(K20=0.5,0,G20-Calendrier!$AT$9)) -> 0 | I20: 4.5 | J20: Sa | K20: 0 | M20: 0
A21: =A20+1 -> 2023-09-03 | B21: =INDIRECT(ADDRESS(MATCH($B$1,Calendrier!$A$15:$A$59,0)+14,ROW()-17,3,1,"Calendrier"),1) -> Di | G21: =IF(AND(C21<>0,D21<>0,E21<>0,F21<>0),F21-E21+D21-C21-M21-IF(E21-D21<Calendrier!$AT$10,Calendrier!$AT$10,0),IF(AND(C21<>0,D21<>0,E21=0,F21=0),D21-C21-M21,IF(AND(C21=0,D21=0,E21<>0,F21<>0),F21-E21-M21,IF(AND(C21>20,D21=0,E21=0,F21<>0),24-C21+F21-M21,IF(AND(C21<>0,D21=0,E21=0,F21<>0),F21-C21-M21,0))))) -> 0 | H21: =IF(G21=0,0,IF(K21=0.5,0,G21-Calendrier!$AT$9)) -> 0 | I21: =I20+H21 -> 4.5 | J21: Di | K21: 0 | M21: 0
A22: 2023-09-04 | B22: =INDIRECT(ADDRESS(MATCH($B$1,Calendrier!$A$15:$A$59,0)+14,ROW()-17,3,1,"Calendrier"),1) -> T | G22: =IF(AND(C22<>0,D22<>0,E22<>0,F22<>0),F22-E22+D22-C22-M22-IF(E22-D22<Calendrier!$AT$10,Calendrier!$AT$10,0),IF(AND(C22<>0,D22<>0,E22=0,F22=0),D22-C22-M22,IF(AND(C22=0,D22=0,E22<>0,F22<>0),F22-E22-M22,IF(AND(C22>20,D22=0,E22=0,F22<>0),24-C22+F22-M22,IF(AND(C22<>0,D22=0,E22=0,F22<>0),F22-C22-M22,0))))) -> 0 | H22: =IF(G22=0,0,IF(K22=0.5,0,G22-Calendrier!$AT$9)) -> 0 | I22: 4.5 | J22: T | K22: 0 | M22: 0
A23: 2023-09-05 | B23: =INDIRECT(ADDRESS(MATCH($B$1,Calendrier!$A$15:$A$59,0)+14,ROW()-17,3,1,"Calendrier"),1) -> T | G23: =IF(AND(C23<>0,D23<>0,E23<>0,F23<>0),F23-E23+D23-C23-M23-IF(E23-D23<Calendrier!$AT$10,Calendrier!$AT$10,0),IF(AND(C23<>0,D23<>0,E23=0,F23=0),D23-C23-M23,IF(AND(C23=0,D23=0,E23<>0,F23<>0),F23-E23-M23,IF(AND(C23>20,D23=0,E23=0,F23<>0),24-C23+F23-M23,IF(AND(C23<>0,D23=0,E23=0,F23<>0),F23-C23-M23,0))))) -> 0 | H23: =IF(G23=0,0,IF(K23=0.5,0,G23-Calendrier!$AT$9)) -> 0 | I23: 4.5 | J23: T | K23: 0 | M23: 0
A24: 2023-09-06 | B24: =INDIRECT(ADDRESS(MATCH($B$1,Calendrier!$A$15:$A$59,0)+14,ROW()-17,3,1,"Calendrier"),1) -> T | G24: =IF(AND(C24<>0,D24<>0,E24<>0,F24<>0),F24-E24+D24-C24-M24-IF(E24-D24<Calendrier!$AT$10,Calendrier!$AT$10,0),IF(AND(C24<>0,D24<>0,E24=0,F24=0),D24-C24-M24,IF(AND(C24=0,D24=0,E24<>0,F24<>0),F24-E24-M24,IF(AND(C24>20,D24=0,E24=0,F24<>0),24-C24+F24-M24,IF(AND(C24<>0,D24=0,E24=0,F24<>0),F24-C24-M24,0))))) -> 0 | H24: =IF(G24=0,0,IF(K24=0.5,0,G24-Calendrier!$AT$9)) -> 0 | I24: 4.5 | J24: T | K24: 0 | M24: =IF(OR(N24=0,O24=0),0,O24-N24) -> 0
A25: 2023-09-07 | B25: =INDIRECT(ADDRESS(MATCH($B$1,Calendrier!$A$15:$A$59,0)+14,ROW()-17,3,1,"Calendrier"),1) -> T | G25: =IF(AND(C25<>0,D25<>0,E25<>0,F25<>0),F25-E25+D25-C25-M25-IF(E25-D25<Calendrier!$AT$10,Calendrier!$AT$10,0),IF(AND(C25<>0,D25<>0,E25=0,F25=0),D25-C25-M25,IF(AND(C25=0,D25=0,E25<>0,F25<>0),F25-E25-M25,IF(AND(C25>20,D25=0,E25=0,F25<>0),24-C25+F25-M25,IF(AND(C25<>0,D25=0,E25=0,F25<>0),F25-C25-M25,0))))) -> 0 | H25: =IF(G25=0,0,IF(K25=0.5,0,G25-Calendrier!$AT$9)) -> 0 | I25: 4.5 | J25: T | K25: 0 | M25: =IF(OR(N25=0,O25=0),0,O25-N25) -> 0
A26: 2023-09-08 | B26: =INDIRECT(ADDRESS(MATCH($B$1,Calendrier!$A$15:$A$59,0)+14,ROW()-17,3,1,"Calendrier"),1) -> T | G26: =IF(AND(C26<>0,D26<>0,E26<>0,F26<>0),F26-E26+D26-C26-M26-IF(E26-D26<Calendrier!$AT$10,Calendrier!$AT$10,0),IF(AND(C26<>0,D26<>0,E26=0,F26=0),D26-C26-M26,IF(AND(C26=0,D26=0,E26<>0,F26<>0),F26-E26-M26,IF(AND(C26>20,D26=0,E26=0,F26<>0),24-C26+F26-M26,IF(AND(C26<>0,D26=0,E26=0,F26<>0),F26-C26-M26,0))))) -> 0 | H26: =IF(G26=0,0,IF(K26=0.5,0,G26-Calendrier!$AT$9)) -> 0 | I26: 4.5 | J26: T | K26: 0 | M26: 0
A27: 2023-09-09 | B27: =INDIRECT(ADDRESS(MATCH($B$1,Calendrier!$A$15:$A$59,0)+14,ROW()-17,3,1,"Calendrier"),1) -> Sa | G27: =IF(AND(C27<>0,D27<>0,E27<>0,F27<>0),F27-E27+D27-C27-M27-IF(E27-D27<Calendrier!$AT$10,Calendrier!$AT$10,0),IF(AND(C27<>0,D27<>0,E27=0,F27=0),D27-C27-M27,IF(AND(C27=0,D27=0,E27<>0,F27<>0),F27-E27-M27,IF(AND(C27>20,D27=0,E27=0,F27<>0),24-C27+F27-M27,IF(AND(C27<>0,D27=0,E27=0,F27<>0),F27-C27-M27,0))))) -> 0 | H27: =IF(G27=0,0,IF(K27=0.5,0,G27-Calendrier!$AT$9)) -> 0 | I27: 4.5 | J27: Sa | K27: 0 | M27: 0
A28: 2023-09-10 | B28: =INDIRECT(ADDRESS(MATCH($B$1,Calendrier!$A$15:$A$59,0)+14,ROW()-17,3,1,"Calendrier"),1) -> Di | G28: =IF(AND(C28<>0,D28<>0,E28<>0,F28<>0),F28-E28+D28-C28-M28-IF(E28-D28<Calendrier!$AT$10,Calendrier!$AT$10,0),IF(AND(C28<>0,D28<>0,E28=0,F28=0),D28-C28-M28,IF(AND(C28=0,D28=0,E28<>0,F28<>0),F28-E28-M28,IF(AND(C28>20,D28=0,E28=0,F28<>0),24-C28+F28-M28,IF(AND(C28<>0,D28=0,E28=0,F28<>0),F28-C28-M28,0))))) -> 0 | H28: =IF(G28=0,0,IF(K28=0.5,0,G28-Calendrier!$AT$9)) -> 0 | I28: 4.5 | J28: Di | K28: 0 | M28: 0
A29: 2023-09-11 | B29: =INDIRECT(ADDRESS(MATCH($B$1,Calendrier!$A$15:$A$59,0)+14,ROW()-17,3,1,"Calendrier"),1) -> T | G29: =IF(AND(C29<>0,D29<>0,E29<>0,F29<>0),F29-E29+D29-C29-M29-IF(E29-D29<Calendrier!$AT$10,Calendrier!$AT$10,0),IF(AND(C29<>0,D29<>0,E29=0,F29=0),D29-C29-M29,IF(AND(C29=0,D29=0,E29<>0,F29<>0),F29-E29-M29,IF(AND(C29>20,D29=0,E29=0,F29<>0),24-C29+F29-M29,IF(AND(C29<>0,D29=0,E29=0,F29<>0),F29-C29-M29,0))))) -> 0 | H29: =IF(G29=0,0,IF(K29=0.5,0,G29-Calendrier!$AT$9)) -> 0 | I29: 4.5 | J29: T | K29: 0 | M29: 0
A30: 2023-09-12 | B30: =INDIRECT(ADDRESS(MATCH($B$1,Calendrier!$A$15:$A$59,0)+14,ROW()-17,3,1,"Calendrier"),1) -> T | G30: =IF(AND(C30<>0,D30<>0,E30<>0,F30<>0),F30-E30+D30-C30-M30-IF(E30-D30<Calendrier!$AT$10,Calendrier!$AT$10,0),IF(AND(C30<>0,D30<>0,E30=0,F30=0),D30-C30-M30,IF(AND(C30=0,D30=0,E30<>0,F30<>0),F30-E30-M30,IF(AND(C30>20,D30=0,E30=0,F30<>0),24-C30+F30-M30,IF(AND(C30<>0,D30=0,E30=0,F30<>0),F30-C30-M30,0))))) -> 0 | H30: =IF(G30=0,0,IF(K30=0.5,0,G30-Calendrier!$AT$9)) -> 0 | I30: 4.5 | J30: T | K30: 0 | M30: 0
A31: 2023-09-13 | B31: =INDIRECT(ADDRESS(MATCH($B$1,Calendrier!$A$15:$A$59,0)+14,ROW()-17,3,1,"Calendrier"),1) -> T | G31: =IF(AND(C31<>0,D31<>0,E31<>0,F31<>0),F31-E31+D31-C31-M31-IF(E31-D31<Calendrier!$AT$10,Calendrier!$AT$10,0),IF(AND(C31<>0,D31<>0,E31=0,F31=0),D31-C31-M31,IF(AND(C31=0,D31=0,E31<>0,F31<>0),F31-E31-M31,IF(AND(C31>20,D31=0,E31=0,F31<>0),24-C31+F31-M31,IF(AND(C31<>0,D31=0,E31=0,F31<>0),F31-C31-M31,0))))) -> 0 | H31: =IF(G31=0,0,IF(K31=0.5,0,G31-Calendrier!$AT$9)) -> 0 | I31: 4.5 | J31: T | K31: 0 | M31: 0
A32: 2023-09-14 | B32: =INDIRECT(ADDRESS(MATCH($B$1,Calendrier!$A$15:$A$59,0)+14,ROW()-17,3,1,"Calendrier"),1) -> T | G32: =IF(AND(C32<>0,D32<>0,E32<>0,F32<>0),F32-E32+D32-C32-M32-IF(E32-D32<Calendrier!$AT$10,Calendrier!$AT$10,0),IF(AND(C32<>0,D32<>0,E32=0,F32=0),D32-C32-M32,IF(AND(C32=0,D32=0,E32<>0,F32<>0),F32-E32-M32,IF(AND(C32>20,D32=0,E32=0,F32<>0),24-C32+F32-M32,IF(AND(C32<>0,D32=0,E32=0,F32<>0),F32-C32-M32,0))))) -> 0 | H32: =IF(G32=0,0,IF(K32=0.5,0,G32-Calendrier!$AT$9)) -> 0 | I32: 4.5 | J32: T | K32: 0 | M32: 0
A33: 2023-09-15 | B33: =INDIRECT(ADDRESS(MATCH($B$1,Calendrier!$A$15:$A$59,0)+14,ROW()-17,3,1,"Calendrier"),1) -> T | G33: =IF(AND(C33<>0,D33<>0,E33<>0,F33<>0),F33-E33+D33-C33-M33-IF(E33-D33<Calendrier!$AT$10,Calendrier!$AT$10,0),IF(AND(C33<>0,D33<>0,E33=0,F33=0),D33-C33-M33,IF(AND(C33=0,D33=0,E33<>0,F33<>0),F33-E33-M33,IF(AND(C33>20,D33=0,E33=0,F33<>0),24-C33+F33-M33,IF(AND(C33<>0,D33=0,E33=0,F33<>0),F33-C33-M33,0))))) -> 0 | H33: =IF(G33=0,0,IF(K33=0.5,0,G33-Calendrier!$AT$9)) -> 0 | I33: 4.5 | J33: T | K33: 0 | M33: 0
A34: 2023-09-16 | B34: =INDIRECT(ADDRESS(MATCH($B$1,Calendrier!$A$15:$A$59,0)+14,ROW()-17,3,1,"Calendrier"),1) -> Sa | G34: =IF(AND(C34<>0,D34<>0,E34<>0,F34<>0),F34-E34+D34-C34-M34-IF(E34-D34<Calendrier!$AT$10,Calendrier!$AT$10,0),IF(AND(C34<>0,D34<>0,E34=0,F34=0),D34-C34-M34,IF(AND(C34=0,D34=0,E34<>0,F34<>0),F34-E34-M34,IF(AND(C34>20,D34=0,E34=0,F34<>0),24-C34+F34-M34,IF(AND(C34<>0,D34=0,E34=0,F34<>0),F34-C34-M34,0))))) -> 0 | H34: =IF(G34=0,0,IF(K34=0.5,0,G34-Calendrier!$AT$9)) -> 0 | I34: 4.5 | J34: =IF(AND(COUNTA(C34:F34)=0,OR(B34="F",WEEKDAY(A34,2)>5,B34="T",B34="RTT",B34="CA")),B34,IF(AND(COUNTA(C34:F34)>=2,OR(B34="F",B34="RTT",B34="CA",B34="Sa",B34="Di")),"calendrier",IF(AND(COUNTA(C34)+COUNTA(F34)=2,OR(COUNTA(C34:D34)<1,COUNTA(E34:F34)<1)),"erreur",IF(COUNTA(C34:F34)=3,"en cours",IF(COUNTA(C34:F34)=4,B34,IF(OR(AND(C34<>0,D34<>0),AND(E34<>0,F34<>0)),$F$12,IF(AND(C34<>0,D34=0,E34=0,F34<>0,WEEKDAY(A34,2)>5),"calendrier",IF(AND(C34<>0,D34=0,E34=0,F34<>0),$B34,"")))))))) -> Sa | K34: 0 | M34: 0
A35: 2023-09-17 | B35: =INDIRECT(ADDRESS(MATCH($B$1,Calendrier!$A$15:$A$59,0)+14,ROW()-17,3,1,"Calendrier"),1) -> Di | G35: =IF(AND(C35<>0,D35<>0,E35<>0,F35<>0),F35-E35+D35-C35-M35-IF(E35-D35<Calendrier!$AT$10,Calendrier!$AT$10,0),IF(AND(C35<>0,D35<>0,E35=0,F35=0),D35-C35-M35,IF(AND(C35=0,D35=0,E35<>0,F35<>0),F35-E35-M35,IF(AND(C35>20,D35=0,E35=0,F35<>0),24-C35+F35-M35,IF(AND(C35<>0,D35=0,E35=0,F35<>0),F35-C35-M35,0))))) -> 0 | H35: =IF(G35=0,0,IF(K35=0.5,0,G35-Calendrier!$AT$9)) -> 0 | I35: 4.5 | J35: Di | K35: 0 | M35: 0
A36: 2023-09-18 | B36: =INDIRECT(ADDRESS(MATCH($B$1,Calendrier!$A$15:$A$59,0)+14,ROW()-17,3,1,"Calendrier"),1) -> T | G36: =IF(AND(C36<>0,D36<>0,E36<>0,F36<>0),F36-E36+D36-C36-M36-IF(E36-D36<Calendrier!$AT$10,Calendrier!$AT$10,0),IF(AND(C36<>0,D36<>0,E36=0,F36=0),D36-C36-M36,IF(AND(C36=0,D36=0,E36<>0,F36<>0),F36-E36-M36,IF(AND(C36>20,D36=0,E36=0,F36<>0),24-C36+F36-M36,IF(AND(C36<>0,D36=0,E36=0,F36<>0),F36-C36-M36,0))))) -> 0 | H36: =IF(G36=0,0,IF(K36=0.5,0,G36-Calendrier!$AT$9)) -> 0 | I36: 4.5 | J36: T | K36: 0 | M36: 0
A37: 2023-09-19 | B37: =INDIRECT(ADDRESS(MATCH($B$1,Calendrier!$A$15:$A$59,0)+14,ROW()-17,3,1,"Calendrier"),1) -> T | G37: =IF(AND(C37<>0,D37<>0,E37<>0,F37<>0),F37-E37+D37-C37-M37-IF(E37-D37<Calendrier!$AT$10,Calendrier!$AT$10,0),IF(AND(C37<>0,D37<>0,E37=0,F37=0),D37-C37-M37,IF(AND(C37=0,D37=0,E37<>0,F37<>0),F37-E37-M37,IF(AND(C37>20,D37=0,E37=0,F37<>0),24-C37+F37-M37,IF(AND(C37<>0,D37=0,E37=0,F37<>0),F37-C37-M37,0))))) -> 0 | H37: =IF(G37=0,0,IF(K37=0.5,0,G37-Calendrier!$AT$9)) -> 0 | I37: 4.5 | J37: T | K37: 0 | M37: 0
A38: 2023-09-20 | B38: =INDIRECT(ADDRESS(MATCH($B$1,Calendrier!$A$15:$A$59,0)+14,ROW()-17,3,1,"Calendrier"),1) -> T | G38: =IF(AND(C38<>0,D38<>0,E38<>0,F38<>0),F38-E38+D38-C38-M38-IF(E38-D38<Calendrier!$AT$10,Calendrier!$AT$10,0),IF(AND(C38<>0,D38<>0,E38=0,F38=0),D38-C38-M38,IF(AND(C38=0,D38=0,E38<>0,F38<>0),F38-E38-M38,IF(AND(C38>20,D38=0,E38=0,F38<>0),24-C38+F38-M38,IF(AND(C38<>0,D38=0,E38=0,F38<>0),F38-C38-M38,0))))) -> 0 | H38: =IF(G38=0,0,IF(K38=0.5,0,G38-Calendrier!$AT$9)) -> 0 | I38: 4.5 | J38: T | K38: 0 | M38: 0
A39: 2023-09-21 | B39: =INDIRECT(ADDRESS(MATCH($B$1,Calendrier!$A$15:$A$59,0)+14,ROW()-17,3,1,"Calendrier"),1) -> T | G39: =IF(AND(C39<>0,D39<>0,E39<>0,F39<>0),F39-E39+D39-C39-M39-IF(E39-D39<Calendrier!$AT$10,Calendrier!$AT$10,0),IF(AND(C39<>0,D39<>0,E39=0,F39=0),D39-C39-M39,IF(AND(C39=0,D39=0,E39<>0,F39<>0),F39-E39-M39,IF(AND(C39>20,D39=0,E39=0,F39<>0),24-C39+F39-M39,IF(AND(C39<>0,D39=0,E39=0,F39<>0),F39-C39-M39,0))))) -> 0 | H39: =IF(G39=0,0,IF(K39=0.5,0,G39-Calendrier!$AT$9)) -> 0 | I39: 4.5 | J39: T | K39: 0 | M39: 0
A40: 2023-09-22 | B40: =INDIRECT(ADDRESS(MATCH($B$1,Calendrier!$A$15:$A$59,0)+14,ROW()-17,3,1,"Calendrier"),1) -> T | G40: =IF(AND(C40<>0,D40<>0,E40<>0,F40<>0),F40-E40+D40-C40-M40-IF(E40-D40<Calendrier!$AT$10,Calendrier!$AT$10,0),IF(AND(C40<>0,D40<>0,E40=0,F40=0),D40-C40-M40,IF(AND(C40=0,D40=0,E40<>0,F40<>0),F40-E40-M40,IF(AND(C40>20,D40=0,E40=0,F40<>0),24-C40+F40-M40,IF(AND(C40<>0,D40=0,E40=0,F40<>0),F40-C40-M40,0))))) -> 0 | H40: =IF(G40=0,0,IF(K40=0.5,0,G40-Calendrier!$AT$9)) -> 0 | I40: 4.5 | J40: T | K40: 0 | M40: 0
A41: 2023-09-23 | B41: =INDIRECT(ADDRESS(MATCH($B$1,Calendrier!$A$15:$A$59,0)+14,ROW()-17,3,1,"Calendrier"),1) -> Sa | G41: =IF(AND(C41<>0,D41<>0,E41<>0,F41<>0),F41-E41+D41-C41-M41-IF(E41-D41<Calendrier!$AT$10,Calendrier!$AT$10,0),IF(AND(C41<>0,D41<>0,E41=0,F41=0),D41-C41-M41,IF(AND(C41=0,D41=0,E41<>0,F41<>0),F41-E41-M41,IF(AND(C41>20,D41=0,E41=0,F41<>0),24-C41+F41-M41,IF(AND(C41<>0,D41=0,E41=0,F41<>0),F41-C41-M41,0))))) -> 0 | H41: =IF(G41=0,0,IF(K41=0.5,0,G41-Calendrier!$AT$9)) -> 0 | I41: 4.5 | J41: Sa | K41: 0 | M41: 0
A42: 2023-09-24 | B42: =INDIRECT(ADDRESS(MATCH($B$1,Calendrier!$A$15:$A$59,0)+14,ROW()-17,3,1,"Calendrier"),1) -> Di | G42: =IF(AND(C42<>0,D42<>0,E42<>0,F42<>0),F42-E42+D42-C42-M42-IF(E42-D42<Calendrier!$AT$10,Calendrier!$AT$10,0),IF(AND(C42<>0,D42<>0,E42=0,F42=0),D42-C42-M42,IF(AND(C42=0,D42=0,E42<>0,F42<>0),F42-E42-M42,IF(AND(C42>20,D42=0,E42=0,F42<>0),24-C42+F42-M42,IF(AND(C42<>0,D42=0,E42=0,F42<>0),F42-C42-M42,0))))) -> 0 | H42: =IF(G42=0,0,IF(K42=0.5,0,G42-Calendrier!$AT$9)) -> 0 | I42: 4.5 | J42: Di | K42: 0 | M42: 0
A43: 2023-09-25 | B43: =INDIRECT(ADDRESS(MATCH($B$1,Calendrier!$A$15:$A$59,0)+14,ROW()-17,3,1,"Calendrier"),1) -> T | G43: =IF(AND(C43<>0,D43<>0,E43<>0,F43<>0),F43-E43+D43-C43-M43-IF(E43-D43<Calendrier!$AT$10,Calendrier!$AT$10,0),IF(AND(C43<>0,D43<>0,E43=0,F43=0),D43-C43-M43,IF(AND(C43=0,D43=0,E43<>0,F43<>0),F43-E43-M43,IF(AND(C43>20,D43=0,E43=0,F43<>0),24-C43+F43-M43,IF(AND(C43<>0,D43=0,E43=0,F43<>0),F43-C43-M43,0))))) -> 0 | H43: =IF(G43=0,0,IF(K43=0.5,0,G43-Calendrier!$AT$9)) -> 0 | I43: 4.5 | J43: T | K43: 0 | M43: 0
A44: 2023-09-26 | B44: =INDIRECT(ADDRESS(MATCH($B$1,Calendrier!$A$15:$A$59,0)+14,ROW()-17,3,1,"Calendrier"),1) -> T | G44: =IF(AND(C44<>0,D44<>0,E44<>0,F44<>0),F44-E44+D44-C44-M44-IF(E44-D44<Calendrier!$AT$10,Calendrier!$AT$10,0),IF(AND(C44<>0,D44<>0,E44=0,F44=0),D44-C44-M44,IF(AND(C44=0,D44=0,E44<>0,F44<>0),F44-E44-M44,IF(AND(C44>20,D44=0,E44=0,F44<>0),24-C44+F44-M44,IF(AND(C44<>0,D44=0,E44=0,F44<>0),F44-C44-M44,0))))) -> 0 | H44: =IF(G44=0,0,IF(K44=0.5,0,G44-Calendrier!$AT$9)) -> 0 | I44: 4.5 | J44: T | K44: 0 | M44: 0
A45: 2023-09-27 | B45: =INDIRECT(ADDRESS(MATCH($B$1,Calendrier!$A$15:$A$59,0)+14,ROW()-17,3,1,"Calendrier"),1) -> RTT | G45: =IF(AND(C45<>0,D45<>0,E45<>0,F45<>0),F45-E45+D45-C45-M45-IF(E45-D45<Calendrier!$AT$10,Calendrier!$AT$10,0),IF(AND(C45<>0,D45<>0,E45=0,F45=0),D45-C45-M45,IF(AND(C45=0,D45=0,E45<>0,F45<>0),F45-E45-M45,IF(AND(C45>20,D45=0,E45=0,F45<>0),24-C45+F45-M45,IF(AND(C45<>0,D45=0,E45=0,F45<>0),F45-C45-M45,0))))) -> 0 | H45: =IF(G45=0,0,IF(K45=0.5,0,G45-Calendrier!$AT$9)) -> 0 | I45: 4.5 | J45: RTT | K45: 0 | M45: 0
A46: 2023-09-28 | B46: =INDIRECT(ADDRESS(MATCH($B$1,Calendrier!$A$15:$A$59,0)+14,ROW()-17,3,1,"Calendrier"),1) -> T | G46: =IF(AND(C46<>0,D46<>0,E46<>0,F46<>0),F46-E46+D46-C46-M46-IF(E46-D46<Calendrier!$AT$10,Calendrier!$AT$10,0),IF(AND(C46<>0,D46<>0,E46=0,F46=0),D46-C46-M46,IF(AND(C46=0,D46=0,E46<>0,F46<>0),F46-E46-M46,IF(AND(C46>20,D46=0,E46=0,F46<>0),24-C46+F46-M46,IF(AND(C46<>0,D46=0,E46=0,F46<>0),F46-C46-M46,0))))) -> 0 | H46: =IF(G46=0,0,IF(K46=0.5,0,G46-Calendrier!$AT$9)) -> 0 | I46: 4.5 | J46: T | K46: 0 | M46: 0
A47: 2023-09-29 | B47: =INDIRECT(ADDRESS(MATCH($B$1,Calendrier!$A$15:$A$59,0)+14,ROW()-17,3,1,"Calendrier"),1) -> T | G47: =IF(AND(C47<>0,D47<>0,E47<>0,F47<>0),F47-E47+D47-C47-M47-IF(E47-D47<Calendrier!$AT$10,Calendrier!$AT$10,0),IF(AND(C47<>0,D47<>0,E47=0,F47=0),D47-C47-M47,IF(AND(C47=0,D47=0,E47<>0,F47<>0),F47-E47-M47,IF(AND(C47>20,D47=0,E47=0,F47<>0),24-C47+F47-M47,IF(AND(C47<>0,D47=0,E47=0,F47<>0),F47-C47-M47,0))))) -> 0 | H47: =IF(G47=0,0,IF(K47=0.5,0,G47-Calendrier!$AT$9)) -> 0 | I47: 4.5 | J47: T | K47: 0 | M47: 0
A48: 2023-09-30 | B48: =INDIRECT(ADDRESS(MATCH($B$1,Calendrier!$A$15:$A$59,0)+14,ROW()-17,3,1,"Calendrier"),1) -> Sa | G48: =IF(AND(C48<>0,D48<>0,E48<>0,F48<>0),F48-E48+D48-C48-M48-IF(E48-D48<Calendrier!$AT$10,Calendrier!$AT$10,0),IF(AND(C48<>0,D48<>0,E48=0,F48=0),D48-C48-M48,IF(AND(C48=0,D48=0,E48<>0,F48<>0),F48-E48-M48,IF(AND(C48>20,D48=0,E48=0,F48<>0),24-C48+F48-M48,IF(AND(C48<>0,D48=0,E48=0,F48<>0),F48-C48-M48,0))))) -> 0 | H48: =IF(G48=0,0,IF(K48=0.5,0,G48-Calendrier!$AT$9)) -> 0 | I48: 4.5 | J48: Sa | K48: 0 | M48: 0
A49: =IF(MONTH(A48+1)>9,0,A48+1) -> 00:00:00 | B49: =INDIRECT(ADDRESS(MATCH($B$1,Calendrier!$A$15:$A$59,0)+14,ROW()-17,3,1,"Calendrier"),1) -> 0 | G49: =IF(AND(C49<>0,D49<>0,E49<>0,F49<>0),F49-E49+D49-C49-M49-IF(E49-D49<Calendrier!$AT$10,Calendrier!$AT$10,0),IF(AND(C49<>0,D49<>0,E49=0,F49=0),D49-C49-M49,IF(AND(C49=0,D49=0,E49<>0,F49<>0),F49-E49-M49,IF(AND(C49>20,D49=0,E49=0,F49<>0),24-C49+F49-M49,IF(AND(C49<>0,D49=0,E49=0,F49<>0),F49-C49-M49,0))))) -> 0 | H49: =IF(G49=0,0,IF(K49=0.5,0,G49-Calendrier!$AT$9)) -> 0 | I49: 4.5 | J49: =IF(AND(COUNTA(C49:F49)=0,B49="F"),B49,IF(AND(COUNTA(C49:F49)=0,WEEKDAY(A49,2)>5),B49,IF(AND(COUNTA(C49:F49)=0,B49="T"),"",IF(AND(COUNTA(C49:F49)=0,B49="RTT"),B49,IF(AND(COUNTA(D49:F49)=0,C49<>0),"erreur",IF(AND(COUNTA(C49:F49)=4,B49="RTT"),"Erreur RTT",IF(AND(COUNTA(C49:F49)=4,B49="F"),"fériés",IF(COUNTA(C49:F49)=4,B49,IF(COUNTA(C49:F49)=3,"Erreur",IF(AND(C49<>0,D49<>0),$F$12,IF(AND(E49<>0,F49<>0),$F$12,IF(AND(C49<>0,D49=0,E49=0,F49<>0,WEEKDAY(A49,2)>5),"Modif calendrier",IF(AND(C49<>0,D49=0,E49=0,F49<>0),$B49))))))))))))) -> 0 | K49: 0 | M49: 0
G50: =SUM(G19:G49) -> 0 | I50: =I49 -> 4.5

Sheet OCT
B1: =RIGHT(CELL("nomfichier",$A$1),3) -> OCT | C1: FICHE DE SUIVI HORAIRE
B3: mois : | C3: OCTOBRE | F3: année | G3: =VLOOKUP(C3,Fériés!$I$1:$J$12,2,FALSE) -> 2023 | J3: service | K3: =Calendrier!F4 -> Administratif
B5: nom : | C5: =Calendrier!F2 -> Isq | F5: prénom | G5: =Calendrier!F3 -> Philippe | J5: N° Ident | K5: =Calendrier!F1 -> T506489
G6: type | H6: à réaliser | I6: cumul | J6: en cours | K6: reste | M6: N.cumul
D7: Nb J | E7: =Calendrier!$AT$11 -> 218 | F7: =+$H$10 -> 0 | G7: =E7-F7 -> 218 | H7: =Calendrier!N1 -> 365 | I7: =SEP!M7 -> 235.5 | J7: =SUM(J8:J15) -> 31 | K7: =H7-(I7+J7) -> 98.5 | M7: =SUM(M8:M15) -> 266.5
F8: 1/2CA | G8: CA | H8: =Calendrier!N5 -> 25 | I8: =SEP!M8 -> 19 | J8: =COUNTIF($J$19:$J$49,G8)+COUNTIF($J$19:$J$49,F8)/2 -> 0 | K8: =+H8-(I8+J8) -> 6 | L8: J | M8: =+I8+J8 -> 19
F9: 1/2RTT | G9: RTT | H9: =Calendrier!N8 -> 9 | I9: =SEP!M9 -> 4 | J9: =COUNTIF($J$19:$J$49,G9)+COUNTIF($J$19:$J$49,F9)/2 -> 1 | K9: =+H9-(I9+J9) -> 4 | L9: J | M9: 5
F10: 1/2CS | G10: CS | H10: =Calendrier!N9 -> 0 | I10: =SEP!M10 -> 0 | J10: 0 | K10: =H10-(I10+J10) -> 0 | L10: J | M10: 0
F11: 1/2CP | G11: CP | H11: =Calendrier!N6 -> 0 | I11: =SEP!M11 -> 0 | J11: 0 | K11: =H11-(I11+J11) -> 0 | L11: J | M11: 0
F12: 1/2T | G12: T | H12: =Calendrier!N7 -> 218 | I12: =SEP!M12 -> 141.5 | J12: 21 | K12: =+H12-(I12+J12) -> 55.5 | L12: J | M12: 162.5
F13: 0 | G13: Sa | H13: =Calendrier!N4 -> 51 | I13: =SEP!M13 -> 33 | J13: =COUNTIF($J$19:$J$49,G13) -> 4 | K13: =+H13-(I13+J13) -> 14 | L13: J | M13: 37
F14: 0 | G14: Di | H14: =Calendrier!N3 -> 50 | I14: =SEP!M14 -> 33 | J14: =COUNTIF($J$19:$J$49,G14) -> 5 | K14: =+H14-(I14+J14) -> 12 | L14: J | M14: 38
F15: 0 | G15: F | H15: =Calendrier!N2 -> 12 | I15: =SEP!M15 -> 5 | J15: =COUNTIF($J$19:$J$49,G15) -> 0 | K15: =+H15-(I15+J15) -> 7 | L15: J | M15: 5
G16: heure/avance fin mois | I16: =SEP!I50 -> 4.5 | M16: =I50 -> 4.5 | N16: avec bon
B17: Prévu | C17: Entrée | D17: Sortie | E17: Entrée | F17: Sortie | G17: total | H17: variation | I17: cumul | J17: Type | K17: nb J/T | M17: divers E/S | N17: Sortie | O17: Retour
I18: =SEP!$I$50 -> 4.5
A19: =VALUE("01/10/"&G3) -> 2023-10-01 | B19: =INDIRECT(ADDRESS(MATCH($B$1,Calendrier!$A$15:$A$59,0)+14,ROW()-17,3,1,"Calendrier"),1) -> Di | G19: =IF(AND(C19<>0,D19<>0,E19<>0,F19<>0),F19-E19+D19-C19-K19-IF(E19-D19<Calendrier!$AT$10,Calendrier!$AT$10,0),IF(AND(C19<>0,D19<>0,E19=0,F19=0),D19-C19-K19,IF(AND(C19=0,D19=0,E19<>0,F19<>0),F19-E19-K19,IF(AND(C19>20,D19=0,E19=0,F19<>0),24-C19+F19-K19,IF(AND(C19<>0,D19=0,E19=0,F19<>0),F19-C19-K19,0))))) -> 0 | H19: =IF(G19=0,0,IF(K19=0.5,0,G19-Calendrier!$AT$9)) -> 0 | I19: =I18+H19 -> 4.5 | J19: =IF(AND(COUNTA(C19:F19)=0,OR(B19="F",WEEKDAY(A19,2)>5,B19="T",B19="RTT",B19="CA")),B19,IF(AND(COUNTA(C19:F19)>=2,OR(B19="F",B19="RTT",B19="CA",B19="Sa",B19="Di")),"calendrier",IF(AND(COUNTA(C19)+COUNTA(F19)=2,OR(COUNTA(C19:D19)<1,COUNTA(E19:F19)<1)),"erreur",IF(COUNTA(C19:F19)=3,"en cours",IF(COUNTA(C19:F19)=4,B19,IF(OR(AND(C19<>0,D19<>0),AND(E19<>0,F19<>0)),$F$12,IF(AND(C19<>0,D19=0,E19=0,F19<>0,WEEKDAY(A19,2)>5),"calendrier",IF(AND(C19<>0,D19=0,E19=0,F19<>0),$B19,"")))))))) -> Di | K19: =IF(COUNTA(C19:F19)=4,1,IF(OR(AND(C19<>0,D19<>0),AND(E19<>0,F19<>0)),0.5,IF(AND(C19<>0,F19<>0,D19=0,E19=0,B19="T"),1,0))) -> 0 | M19: =IF(OR(N19=0,O19=0),0,O19-N19) -> 0
A20: =A19+1 -> 2023-10-02 | B20: =INDIRECT(ADDRESS(MATCH($B$1,Calendrier!$A$15:$A$59,0)+14,ROW()-17,3,1,"Calendrier"),1) -> T | G20: =IF(AND(C20<>0,D20<>0,E20<>0,F20<>0),F20-E20+D20-C20-K20-IF(E20-D20<Calendrier!$AT$10,Calendrier!$AT$10,0),IF(AND(C20<>0,D20<>0,E20=0,F20=0),D20-C20-K20,IF(AND(C20=0,D20=0,E20<>0,F20<>0),F20-E20-K20,IF(AND(C20>20,D20=0,E20=0,F20<>0),24-C20+F20-K20,IF(AND(C20<>0,D20=0,E20=0,F20<>0),F20-C20-K20,0))))) -> 0 | H20: =IF(G20=0,0,IF(K20=0.5,0,G20-Calendrier!$AT$9)) -> 0 | I20: 4.5 | J20: T | K20: 0 | M20: 0
A21: =A20+1 -> 2023-10-03 | B21: =INDIRECT(ADDRESS(MATCH($B$1,Calendrier!$A$15:$A$59,0)+14,ROW()-17,3,1,"Calendrier"),1) -> T | G21: =IF(AND(C21<>0,D21<>0,E21<>0,F21<>0),F21-E21+D21-C21-M21-IF(E21-D21<Calendrier!$AT$10,Calendrier!$AT$10,0),IF(AND(C21<>0,D21<>0,E21=0,F21=0),D21-C21-M21,IF(AND(C21=0,D21=0,E21<>0,F21<>0),F21-E21-M21,IF(AND(C21>20,D21=0,E21=0,F21<>0),24-C21+F21-M21,IF(AND(C21<>0,D21=0,E21=0,F21<>0),F21-C21-M21,0))))) -> 0 | H21: =IF(G21=0,0,IF(K21=0.5,0,G21-Calendrier!$AT$9)) -> 0 | I21: =I20+H21 -> 4.5 | J21: T | K21: 0 | M21: 0
A22: 2023-10-04 | B22: =INDIRECT(ADDRESS(MATCH($B$1,Calendrier!$A$15:$A$59,0)+14,ROW()-17,3,1,"Calendrier"),1) -> T | G22: =IF(AND(C22<>0,D22<>0,E22<>0,F22<>0),F22-E22+D22-C22-M22-IF(E22-D22<Calendrier!$AT$10,Calendrier!$AT$10,0),IF(AND(C22<>0,D22<>0,E22=0,F22=0),D22-C22-M22,IF(AND(C22=0,D22=0,E22<>0,F22<>0),F22-E22-M22,IF(AND(C22>20,D22=0,E22=0,F22<>0),24-C22+F22-M22,IF(AND(C22<>0,D22=0,E22=0,F22<>0),F22-C22-M22,0))))) -> 0 | H22: =IF(G22=0,0,IF(K22=0.5,0,G22-Calendrier!$AT$9)) -> 0 | I22: 4.5 | J22: T | K22: 0 | M22: 0
A23: 2023-10-05 | B23: =INDIRECT(ADDRESS(MATCH($B$1,Calendrier!$A$15:$A$59,0)+14,ROW()-17,3,1,"Calendrier"),1) -> T | G23: =IF(AND(C23<>0,D23<>0,E23<>0,F23<>0),F23-E23+D23-C23-M23-IF(E23-D23<Calendrier!$AT$10,Calendrier!$AT$10,0),IF(AND(C23<>0,D23<>0,E23=0,F23=0),D23-C23-M23,IF(AND(C23=0,D23=0,E23<>0,F23<>0),F23-E23-M23,IF(AND(C23>20,D23=0,E23=0,F23<>0),24-C23+F23-M23,IF(AND(C23<>0,D23=0,E23=0,F23<>0),F23-C23-M23,0))))) -> 0 | H23: =IF(G23=0,0,IF(K23=0.5,0,G23-Calendrier!$AT$9)) -> 0 | I23: 4.5 | J23: T | K23: 0 | M23: 0
A24: 2023-10-06 | B24: =INDIRECT(ADDRESS(MATCH($B$1,Calendrier!$A$15:$A$59,0)+14,ROW()-17,3,1,"Calendrier"),1) -> T | G24: =IF(AND(C24<>0,D24<>0,E24<>0,F24<>0),F24-E24+D24-C24-M24-IF(E24-D24<Calendrier!$AT$10,Calendrier!$AT$10,0),IF(AND(C24<>0,D24<>0,E24=0,F24=0),D24-C24-M24,IF(AND(C24=0,D24=0,E24<>0,F24<>0),F24-E24-M24,IF(AND(C24>20,D24=0,E24=0,F24<>0),24-C24+F24-M24,IF(AND(C24<>0,D24=0,E24=0,F24<>0),F24-C24-M24,0))))) -> 0 | H24: =IF(G24=0,0,IF(K24=0.5,0,G24-Calendrier!$AT$9)) -> 0 | I24: 4.5 | J24: T | K24: 0 | M24: =IF(OR(N24=0,O24=0),0,O24-N24) -> 0
A25: 2023-10-07 | B25: =INDIRECT(ADDRESS(MATCH($B$1,Calendrier!$A$15:$A$59,0)+14,ROW()-17,3,1,"Calendrier"),1) -> Sa | G25: =IF(AND(C25<>0,D25<>0,E25<>0,F25<>0),F25-E25+D25-C25-M25-IF(E25-D25<Calendrier!$AT$10,Calendrier!$AT$10,0),IF(AND(C25<>0,D25<>0,E25=0,F25=0),D25-C25-M25,IF(AND(C25=0,D25=0,E25<>0,F25<>0),F25-E25-M25,IF(AND(C25>20,D25=0,E25=0,F25<>0),24-C25+F25-M25,IF(AND(C25<>0,D25=0,E25=0,F25<>0),F25-C25-M25,0))))) -> 0 | H25: =IF(G25=0,0,IF(K25=0.5,0,G25-Calendrier!$AT$9)) -> 0 | I25: 4.5 | J25: Sa | K25: 0 | M25: =IF(OR(N25=0,O25=0),0,O25-N25) -> 0
A26: 2023-10-08 | B26: =INDIRECT(ADDRESS(MATCH($B$1,Calendrier!$A$15:$A$59,0)+14,ROW()-17,3,1,"Calendrier"),1) -> Di | G26: =IF(AND(C26<>0,D26<>0,E26<>0,F26<>0),F26-E26+D26-C26-M26-IF(E26-D26<Calendrier!$AT$10,Calendrier!$AT$10,0),IF(AND(C26<>0,D26<>0,E26=0,F26=0),D26-C26-M26,IF(AND(C26=0,D26=0,E26<>0,F26<>0),F26-E26-M26,IF(AND(C26>20,D26=0,E26=0,F26<>0),24-C26+F26-M26,IF(AND(C26<>0,D26=0,E26=0,F26<>0),F26-C26-M26,0))))) -> 0 | H26: =IF(G26=0,0,IF(K26=0.5,0,G26-Calendrier!$AT$9)) -> 0 | I26: 4.5 | J26: Di | K26: 0 | M26: 0
A27: 2023-10-09 | B27: =INDIRECT(ADDRESS(MATCH($B$1,Calendrier!$A$15:$A$59,0)+14,ROW()-17,3,1,"Calendrier"),1) -> T | G27: =IF(AND(C27<>0,D27<>0,E27<>0,F27<>0),F27-E27+D27-C27-M27-IF(E27-D27<Calendrier!$AT$10,Calendrier!$AT$10,0),IF(AND(C27<>0,D27<>0,E27=0,F27=0),D27-C27-M27,IF(AND(C27=0,D27=0,E27<>0,F27<>0),F27-E27-M27,IF(AND(C27>20,D27=0,E27=0,F27<>0),24-C27+F27-M27,IF(AND(C27<>0,D27=0,E27=0,F27<>0),F27-C27-M27,0))))) -> 0 | H27: =IF(G27=0,0,IF(K27=0.5,0,G27-Calendrier!$AT$9)) -> 0 | I27: 4.5 | J27: T | K27: 0 | M27: 0
A28: 2023-10-10 | B28: =INDIRECT(ADDRESS(MATCH($B$1,Calendrier!$A$15:$A$59,0)+14,ROW()-17,3,1,"Calendrier"),1) -> T | G28: =IF(AND(C28<>0,D28<>0,E28<>0,F28<>0),F28-E28+D28-C28-M28-IF(E28-D28<Calendrier!$AT$10,Calendrier!$AT$10,0),IF(AND(C28<>0,D28<>0,E28=0,F28=0),D28-C28-M28,IF(AND(C28=0,D28=0,E28<>0,F28<>0),F28-E28-M28,IF(AND(C28>20,D28=0,E28=0,F28<>0),24-C28+F28-M28,IF(AND(C28<>0,D28=0,E28=0,F28<>0),F28-C28-M28,0))))) -> 0 | H28: =IF(G28=0,0,IF(K28=0.5,0,G28-Calendrier!$AT$9)) -> 0 | I28: 4.5 | J28: T | K28: 0 | M28: 0
A29: 2023-10-11 | B29: =INDIRECT(ADDRESS(MATCH($B$1,Calendrier!$A$15:$A$59,0)+14,ROW()-17,3,1,"Calendrier"),1) -> T | G29: =IF(AND(C29<>0,D29<>0,E29<>0,F29<>0),F29-E29+D29-C29-M29-IF(E29-D29<Calendrier!$AT$10,Calendrier!$AT$10,0),IF(AND(C29<>0,D29<>0,E29=0,F29=0),D29-C29-M29,IF(AND(C29=0,D29=0,E29<>0,F29<>0),F29-E29-M29,IF(AND(C29>20,D29=0,E29=0,F29<>0),24-C29+F29-M29,IF(AND(C29<>0,D29=0,E29=0,F29<>0),F29-C29-M29,0))))) -> 0 | H29: =IF(G29=0,0,IF(K29=0.5,0,G29-Calendrier!$AT$9)) -> 0 | I29: 4.5 | J29: T | K29: 0 | M29: 0
A30: 2023-10-12 | B30: =INDIRECT(ADDRESS(MATCH($B$1,Calendrier!$A$15:$A$59,0)+14,ROW()-17,3,1,"Calendrier"),1) -> T | G30: =IF(AND(C30<>0,D30<>0,E30<>0,F30<>0),F30-E30+D30-C30-M30-IF(E30-D30<Calendrier!$AT$10,Calendrier!$AT$10,0),IF(AND(C30<>0,D30<>0,E30=0,F30=0),D30-C30-M30,IF(AND(C30=0,D30=0,E30<>0,F30<>0),F30-E30-M30,IF(AND(C30>20,D30=0,E30=0,F30<>0),24-C30+F30-M30,IF(AND(C30<>0,D30=0,E30=0,F30<>0),F30-C30-M30,0))))) -> 0 | H30: =IF(G30=0,0,IF(K30=0.5,0,G30-Calendrier!$AT$9)) -> 0 | I30: 4.5 | J30: T | K30: 0 | M30: 0
A31: 2023-10-13 | B31: =INDIRECT(ADDRESS(MATCH($B$1,Calendrier!$A$15:$A$59,0)+14,ROW()-17,3,1,"Calendrier"),1) -> T | G31: =IF(AND(C31<>0,D31<>0,E31<>0,F31<>0),F31-E31+D31-C31-M31-IF(E31-D31<Calendrier!$AT$10,Calendrier!$AT$10,0),IF(AND(C31<>0,D31<>0,E31=0,F31=0),D31-C31-M31,IF(AND(C31=0,D31=0,E31<>0,F31<>0),F31-E31-M31,IF(AND(C31>20,D31=0,E31=0,F31<>0),24-C31+F31-M31,IF(AND(C31<>0,D31=0,E31=0,F31<>0),F31-C31-M31,0))))) -> 0 | H31: =IF(G31=0,0,IF(K31=0.5,0,G31-Calendrier!$AT$9)) -> 0 | I31: 4.5 | J31: T | K31: 0 | M31: 0
A32: 2023-10-14 | B32: =INDIRECT(ADDRESS(MATCH($B$1,Calendrier!$A$15:$A$59,0)+14,ROW()-17,3,1,"Calendrier"),1) -> Sa | G32: =IF(AND(C32<>0,D32<>0,E32<>0,F32<>0),F32-E32+D32-C32-M32-IF(E32-D32<Calendrier!$AT$10,Calendrier!$AT$10,0),IF(AND(C32<>0,D32<>0,E32=0,F32=0),D32-C32-M32,IF(AND(C32=0,D32=0,E32<>0,F32<>0),F32-E32-M32,IF(AND(C32>20,D32=0,E32=0,F32<>0),24-C32+F32-M32,IF(AND(C32<>0,D32=0,E32=0,F32<>0),F32-C32-M32,0))))) -> 0 | H32: =IF(G32=0,0,IF(K32=0.5,0,G32-Calendrier!$AT$9)) -> 0 | I32: 4.5 | J32: Sa | K32: 0 | M32: 0
A33: 2023-10-15 | B33: =INDIRECT(ADDRESS(MATCH($B$1,Calendrier!$A$15:$A$59,0)+14,ROW()-17,3,1,"Calendrier"),1) -> Di | G33: =IF(AND(C33<>0,D33<>0,E33<>0,F33<>0),F33-E33+D33-C33-M33-IF(E33-D33<Calendrier!$AT$10,Calendrier!$AT$10,0),IF(AND(C33<>0,D33<>0,E33=0,F33=0),D33-C33-M33,IF(AND(C33=0,D33=0,E33<>0,F33<>0),F33-E33-M33,IF(AND(C33>20,D33=0,E33=0,F33<>0),24-C33+F33-M33,IF(AND(C33<>0,D33=0,E33=0,F33<>0),F33-C33-M33,0))))) -> 0 | H33: =IF(G33=0,0,IF(K33=0.5,0,G33-Calendrier!$AT$9)) -> 0 | I33: 4.5 | J33: Di | K33: 0 | M33: 0
A34: 2023-10-16 | B34: =INDIRECT(ADDRESS(MATCH($B$1,Calendrier!$A$15:$A$59,0)+14,ROW()-17,3,1,"Calendrier"),1) -> T | G34: =IF(AND(C34<>0,D34<>0,E34<>0,F34<>0),F34-E34+D34-C34-M34-IF(E34-D34<Calendrier!$AT$10,Calendrier!$AT$10,0),IF(AND(C34<>0,D34<>0,E34=0,F34=0),D34-C34-M34,IF(AND(C34=0,D34=0,E34<>0,F34<>0),F34-E34-M34,IF(AND(C34>20,D34=0,E34=0,F34<>0),24-C34+F34-M34,IF(AND(C34<>0,D34=0,E34=0,F34<>0),F34-C34-M34,0))))) -> 0 | H34: =IF(G34=0,0,IF(K34=0.5,0,G34-Calendrier!$AT$9)) -> 0 | I34: 4.5 | J34: =IF(AND(COUNTA(C34:F34)=0,OR(B34="F",WEEKDAY(A34,2)>5,B34="T",B34="RTT",B34="CA")),B34,IF(AND(COUNTA(C34:F34)>=2,OR(B34="F",B34="RTT",B34="CA",B34="Sa",B34="Di")),"calendrier",IF(AND(COUNTA(C34)+COUNTA(F34)=2,OR(COUNTA(C34:D34)<1,COUNTA(E34:F34)<1)),"erreur",IF(COUNTA(C34:F34)=3,"en cours",IF(COUNTA(C34:F34)=4,B34,IF(OR(AND(C34<>0,D34<>0),AND(E34<>0,F34<>0)),$F$12,IF(AND(C34<>0,D34=0,E34=0,F34<>0,WEEKDAY(A34,2)>5),"calendrier",IF(AND(C34<>0,D34=0,E34=0,F34<>0),$B34,"")))))))) -> T | K34: 0 | M34: 0
A35: 2023-10-17 | B35: =INDIRECT(ADDRESS(MATCH($B$1,Calendrier!$A$15:$A$59,0)+14,ROW()-17,3,1,"Calendrier"),1) -> T | G35: =IF(AND(C35<>0,D35<>0,E35<>0,F35<>0),F35-E35+D35-C35-M35-IF(E35-D35<Calendrier!$AT$10,Calendrier!$AT$10,0),IF(AND(C35<>0,D35<>0,E35=0,F35=0),D35-C35-M35,IF(AND(C35=0,D35=0,E35<>0,F35<>0),F35-E35-M35,IF(AND(C35>20,D35=0,E35=0,F35<>0),24-C35+F35-M35,IF(AND(C35<>0,D35=0,E35=0,F35<>0),F35-C35-M35,0))))) -> 0 | H35: =IF(G35=0,0,IF(K35=0.5,0,G35-Calendrier!$AT$9)) -> 0 | I35: 4.5 | J35: T | K35: 0 | M35: 0
A36: 2023-10-18 | B36: =INDIRECT(ADDRESS(MATCH($B$1,Calendrier!$A$15:$A$59,0)+14,ROW()-17,3,1,"Calendrier"),1) -> RTT | G36: =IF(AND(C36<>0,D36<>0,E36<>0,F36<>0),F36-E36+D36-C36-M36-IF(E36-D36<Calendrier!$AT$10,Calendrier!$AT$10,0),IF(AND(C36<>0,D36<>0,E36=0,F36=0),D36-C36-M36,IF(AND(C36=0,D36=0,E36<>0,F36<>0),F36-E36-M36,IF(AND(C36>20,D36=0,E36=0,F36<>0),24-C36+F36-M36,IF(AND(C36<>0,D36=0,E36=0,F36<>0),F36-C36-M36,0))))) -> 0 | H36: =IF(G36=0,0,IF(K36=0.5,0,G36-Calendrier!$AT$9)) -> 0 | I36: 4.5 | J36: RTT | K36: 0 | M36: 0
A37: 2023-10-19 | B37: =INDIRECT(ADDRESS(MATCH($B$1,Calendrier!$A$15:$A$59,0)+14,ROW()-17,3,1,"Calendrier"),1) -> T | G37: =IF(AND(C37<>0,D37<>0,E37<>0,F37<>0),F37-E37+D37-C37-M37-IF(E37-D37<Calendrier!$AT$10,Calendrier!$AT$10,0),IF(AND(C37<>0,D37<>0,E37=0,F37=0),D37-C37-M37,IF(AND(C37=0,D37=0,E37<>0,F37<>0),F37-E37-M37,IF(AND(C37>20,D37=0,E37=0,F37<>0),24-C37+F37-M37,IF(AND(C37<>0,D37=0,E37=0,F37<>0),F37-C37-M37,0))))) -> 0 | H37: =IF(G37=0,0,IF(K37=0.5,0,G37-Calendrier!$AT$9)) -> 0 | I37: 4.5 | J37: T | K37: 0 | M37: 0
A38: 2023-10-20 | B38: =INDIRECT(ADDRESS(MATCH($B$1,Calendrier!$A$15:$A$59,0)+14,ROW()-17,3,1,"Calendrier"),1) -> T | G38: =IF(AND(C38<>0,D38<>0,E38<>0,F38<>0),F38-E38+D38-C38-M38-IF(E38-D38<Calendrier!$AT$10,Calendrier!$AT$10,0),IF(AND(C38<>0,D38<>0,E38=0,F38=0),D38-C38-M38,IF(AND(C38=0,D38=0,E38<>0,F38<>0),F38-E38-M38,IF(AND(C38>20,D38=0,E38=0,F38<>0),24-C38+F38-M38,IF(AND(C38<>0,D38=0,E38=0,F38<>0),F38-C38-M38,0))))) -> 0 | H38: =IF(G38=0,0,IF(K38=0.5,0,G38-Calendrier!$AT$9)) -> 0 | I38: 4.5 | J38: T | K38: 0 | M38: 0
A39: 2023-10-21 | B39: =INDIRECT(ADDRESS(MATCH($B$1,Calendrier!$A$15:$A$59,0)+14,ROW()-17,3,1,"Calendrier"),1) -> Sa | G39: =IF(AND(C39<>0,D39<>0,E39<>0,F39<>0),F39-E39+D39-C39-M39-IF(E39-D39<Calendrier!$AT$10,Calendrier!$AT$10,0),IF(AND(C39<>0,D39<>0,E39=0,F39=0),D39-C39-M39,IF(AND(C39=0,D39=0,E39<>0,F39<>0),F39-E39-M39,IF(AND(C39>20,D39=0,E39=0,F39<>0),24-C39+F39-M39,IF(AND(C39<>0,D39=0,E39=0,F39<>0),F39-C39-M39,0))))) -> 0 | H39: =IF(G39=0,0,IF(K39=0.5,0,G39-Calendrier!$AT$9)) -> 0 | I39: 4.5 | J39: Sa | K39: 0 | M39: 0
A40: 2023-10-22 | B40: =INDIRECT(ADDRESS(MATCH($B$1,Calendrier!$A$15:$A$59,0)+14,ROW()-17,3,1,"Calendrier"),1) -> Di | G40: =IF(AND(C40<>0,D40<>0,E40<>0,F40<>0),F40-E40+D40-C40-M40-IF(E40-D40<Calendrier!$AT$10,Calendrier!$AT$10,0),IF(AND(C40<>0,D40<>0,E40=0,F40=0),D40-C40-M40,IF(AND(C40=0,D40=0,E40<>0,F40<>0),F40-E40-M40,IF(AND(C40>20,D40=0,E40=0,F40<>0),24-C40+F40-M40,IF(AND(C40<>0,D40=0,E40=0,F40<>0),F40-C40-M40,0))))) -> 0 | H40: =IF(G40=0,0,IF(K40=0.5,0,G40-Calendrier!$AT$9)) -> 0 | I40: 4.5 | J40: Di | K40: 0 | M40: 0
A41: 2023-10-23 | B41: =INDIRECT(ADDRESS(MATCH($B$1,Calendrier!$A$15:$A$59,0)+14,ROW()-17,3,1,"Calendrier"),1) -> T | G41: =IF(AND(C41<>0,D41<>0,E41<>0,F41<>0),F41-E41+D41-C41-M41-IF(E41-D41<Calendrier!$AT$10,Calendrier!$AT$10,0),IF(AND(C41<>0,D41<>0,E41=0,F41=0),D41-C41-M41,IF(AND(C41=0,D41=0,E41<>0,F41<>0),F41-E41-M41,IF(AND(C41>20,D41=0,E41=0,F41<>0),24-C41+F41-M41,IF(AND(C41<>0,D41=0,E41=0,F41<>0),F41-C41-M41,0))))) -> 0 | H41: =IF(G41=0,0,IF(K41=0.5,0,G41-Calendrier!$AT$9)) -> 0 | I41: 4.5 | J41: T | K41: 0 | M41: 0
A42: 2023-10-24 | B42: =INDIRECT(ADDRESS(MATCH($B$1,Calendrier!$A$15:$A$59,0)+14,ROW()-17,3,1,"Calendrier"),1) -> T | G42: =IF(AND(C42<>0,D42<>0,E42<>0,F42<>0),F42-E42+D42-C42-M42-IF(E42-D42<Calendrier!$AT$10,Calendrier!$AT$10,0),IF(AND(C42<>0,D42<>0,E42=0,F42=0),D42-C42-M42,IF(AND(C42=0,D42=0,E42<>0,F42<>0),F42-E42-M42,IF(AND(C42>20,D42=0,E42=0,F42<>0),24-C42+F42-M42,IF(AND(C42<>0,D42=0,E42=0,F42<>0),F42-C42-M42,0))))) -> 0 | H42: =IF(G42=0,0,IF(K42=0.5,0,G42-Calendrier!$AT$9)) -> 0 | I42: 4.5 | J42: T | K42: 0 | M42: 0
A43: 2023-10-25 | B43: =INDIRECT(ADDRESS(MATCH($B$1,Calendrier!$A$15:$A$59,0)+14,ROW()-17,3,1,"Calendrier"),1) -> T | G43: =IF(AND(C43<>0,D43<>0,E43<>0,F43<>0),F43-E43+D43-C43-M43-IF(E43-D43<Calendrier!$AT$10,Calendrier!$AT$10,0),IF(AND(C43<>0,D43<>0,E43=0,F43=0),D43-C43-M43,IF(AND(C43=0,D43=0,E43<>0,F43<>0),F43-E43-M43,IF(AND(C43>20,D43=0,E43=0,F43<>0),24-C43+F43-M43,IF(AND(C43<>0,D43=0,E43=0,F43<>0),F43-C43-M43,0))))) -> 0 | H43: =IF(G43=0,0,IF(K43=0.5,0,G43-Calendrier!$AT$9)) -> 0 | I43: 4.5 | J43: T | K43: 0 | M43: 0
A44: 2023-10-26 | B44: =INDIRECT(ADDRESS(MATCH($B$1,Calendrier!$A$15:$A$59,0)+14,ROW()-17,3,1,"Calendrier"),1) -> T | G44: =IF(AND(C44<>0,D44<>0,E44<>0,F44<>0),F44-E44+D44-C44-M44-IF(E44-D44<Calendrier!$AT$10,Calendrier!$AT$10,0),IF(AND(C44<>0,D44<>0,E44=0,F44=0),D44-C44-M44,IF(AND(C44=0,D44=0,E44<>0,F44<>0),F44-E44-M44,IF(AND(C44>20,D44=0,E44=0,F44<>0),24-C44+F44-M44,IF(AND(C44<>0,D44=0,E44=0,F44<>0),F44-C44-M44,0))))) -> 0 | H44: =IF(G44=0,0,IF(K44=0.5,0,G44-Calendrier!$AT$9)) -> 0 | I44: 4.5 | J44: T | K44: 0 | M44: 0
A45: 2023-10-27 | B45: =INDIRECT(ADDRESS(MATCH($B$1,Calendrier!$A$15:$A$59,0)+14,ROW()-17,3,1,"Calendrier"),1) -> T | G45: =IF(AND(C45<>0,D45<>0,E45<>0,F45<>0),F45-E45+D45-C45-M45-IF(E45-D45<Calendrier!$AT$10,Calendrier!$AT$10,0),IF(AND(C45<>0,D45<>0,E45=0,F45=0),D45-C45-M45,IF(AND(C45=0,D45=0,E45<>0,F45<>0),F45-E45-M45,IF(AND(C45>20,D45=0,E45=0,F45<>0),24-C45+F45-M45,IF(AND(C45<>0,D45=0,E45=0,F45<>0),F45-C45-M45,0))))) -> 0 | H45: =IF(G45=0,0,IF(K45=0.5,0,G45-Calendrier!$AT$9)) -> 0 | I45: 4.5 | J45: T | K45: 0 | M45: 0
A46: 2023-10-28 | B46: =INDIRECT(ADDRESS(MATCH($B$1,Calendrier!$A$15:$A$59,0)+14,ROW()-17,3,1,"Calendrier"),1) -> Sa | G46: =IF(AND(C46<>0,D46<>0,E46<>0,F46<>0),F46-E46+D46-C46-M46-IF(E46-D46<Calendrier!$AT$10,Calendrier!$AT$10,0),IF(AND(C46<>0,D46<>0,E46=0,F46=0),D46-C46-M46,IF(AND(C46=0,D46=0,E46<>0,F46<>0),F46-E46-M46,IF(AND(C46>20,D46=0,E46=0,F46<>0),24-C46+F46-M46,IF(AND(C46<>0,D46=0,E46=0,F46<>0),F46-C46-M46,0))))) -> 0 | H46: =IF(G46=0,0,IF(K46=0.5,0,G46-Calendrier!$AT$9)) -> 0 | I46: 4.5 | J46: Sa | K46: 0 | M46: 0
A47: 2023-10-29 | B47: =INDIRECT(ADDRESS(MATCH($B$1,Calendrier!$A$15:$A$59,0)+14,ROW()-17,3,1,"Calendrier"),1) -> Di | G47: =IF(AND(C47<>0,D47<>0,E47<>0,F47<>0),F47-E47+D47-C47-M47-IF(E47-D47<Calendrier!$AT$10,Calendrier!$AT$10,0),IF(AND(C47<>0,D47<>0,E47=0,F47=0),D47-C47-M47,IF(AND(C47=0,D47=0,E47<>0,F47<>0),F47-E47-M47,IF(AND(C47>20,D47=0,E47=0,F47<>0),24-C47+F47-M47,IF(AND(C47<>0,D47=0,E47=0,F47<>0),F47-C47-M47,0))))) -> 0 | H47: =IF(G47=0,0,IF(K47=0.5,0,G47-Calendrier!$AT$9)) -> 0 | I47: 4.5 | J47: Di | K47: 0 | M47: 0
A48: 2023-10-30 | B48: =INDIRECT(ADDRESS(MATCH($B$1,Calendrier!$A$15:$A$59,0)+14,ROW()-17,3,1,"Calendrier"),1) -> T | G48: =IF(AND(C48<>0,D48<>0,E48<>0,F48<>0),F48-E48+D48-C48-M48-IF(E48-D48<Calendrier!$AT$10,Calendrier!$AT$10,0),IF(AND(C48<>0,D48<>0,E48=0,F48=0),D48-C48-M48,IF(AND(C48=0,D48=0,E48<>0,F48<>0),F48-E48-M48,IF(AND(C48>20,D48=0,E48=0,F48<>0),24-C48+F48-M48,IF(AND(C48<>0,D48=0,E48=0,F48<>0),F48-C48-M48,0))))) -> 0 | H48: =IF(G48=0,0,IF(K48=0.5,0,G48-Calendrier!$AT$9)) -> 0 | I48: 4.5 | J48: T | K48: 0 | M48: 0
A49: 2023-10-31 | B49: =INDIRECT(ADDRESS(MATCH($B$1,Calendrier!$A$15:$A$59,0)+14,ROW()-17,3,1,"Calendrier"),1) -> T | G49: =IF(AND(C49<>0,D49<>0,E49<>0,F49<>0),F49-E49+D49-C49-M49-IF(E49-D49<Calendrier!$AT$10,Calendrier!$AT$10,0),IF(AND(C49<>0,D49<>0,E49=0,F49=0),D49-C49-M49,IF(AND(C49=0,D49=0,E49<>0,F49<>0),F49-E49-M49,IF(AND(C49>20,D49=0,E49=0,F49<>0),24-C49+F49-M49,IF(AND(C49<>0,D49=0,E49=0,F49<>0),F49-C49-M49,0))))) -> 0 | H49: =IF(G49=0,0,IF(K49=0.5,0,G49-Calendrier!$AT$9)) -> 0 | I49: 4.5 | J49: T | K49: 0 | M49: 0
G50: =SUM(G19:G49) -> 0 | I50: =I49 -> 4.5

Sheet NOV
B1: =RIGHT(CELL("nomfichier",$A$1),3) -> NOV | C1: FICHE DE SUIVI HORAIRE
B3: mois : | C3: NOVEMBRE | F3: année | G3: =VLOOKUP(C3,Fériés!$I$1:$J$12,2,FALSE) -> 2023 | J3: service | K3: =Calendrier!F4 -> Administratif
B5: nom : | C5: =Calendrier!F2 -> Isq | F5: prénom | G5: =Calendrier!F3 -> Philippe | J5: N° Ident | K5: =Calendrier!F1 -> T506489
H6: à réaliser | I6: cumul | J6: en cours | K6: reste | M6: N.cumul
D7: Nb J | E7: =Calendrier!$AT$11 -> 218 | F7: =+$H$10 -> 0 | G7: =E7-F7 -> 218 | H7: =Calendrier!N1 -> 365 | I7: =OCT!M7 -> 266.5 | J7: =SUM(J8:J15) -> 30 | K7: =H7-(I7+J7) -> 68.5 | M7: =SUM(M8:M15) -> 296.5
F8: 1/2CA | G8: CA | H8: =Calendrier!N5 -> 25 | I8: =OCT!M8 -> 19 | J8: =COUNTIF($J$19:$J$49,G8)+COUNTIF($J$19:$J$49,F8)/2 -> 0 | K8: =+H8-(I8+J8) -> 6 | L8: J | M8: =+I8+J8 -> 19
F9: 1/2RTT | G9: RTT | H9: =Calendrier!N8 -> 9 | I9: =OCT!M9 -> 5 | J9: =COUNTIF($J$19:$J$49,G9)+COUNTIF($J$19:$J$49,F9)/2 -> 1 | K9: =+H9-(I9+J9) -> 3 | L9: J | M9: 6
F10: 1/2CS | G10: CS | H10: =Calendrier!N9 -> 0 | I10: =OCT!M10 -> 0 | J10: 0 | K10: =H10-(I10+J10) -> 0 | L10: J | M10: 0
F11: 1/2CP | G11: CP | H11: =Calendrier!N6 -> 0 | I11: =OCT!M11 -> 0 | J11: 0 | K11: =H11-(I11+J11) -> 0 | L11: J | M11: 0
F12: 1/2T | G12: T | H12: =Calendrier!N7 -> 218 | I12: =OCT!M12 -> 162.5 | J12: 20 | K12: =+H12-(I12+J12) -> 35.5 | L12: J | M12: 182.5
F13: 0 | G13: Sa | H13: =Calendrier!N4 -> 51 | I13: =OCT!M13 -> 37 | J13: =COUNTIF($J$19:$J$49,G13) -> 3 | K13: =+H13-(I13+J13) -> 11 | L13: J | M13: 40
F14: 0 | G14: Di | H14: =Calendrier!N3 -> 50 | I14: =OCT!M14 -> 38 | J14: =COUNTIF($J$19:$J$49,G14) -> 4 | K14: =+H14-(I14+J14) -> 8 | L14: J | M14: 42
F15: 0 | G15: F | H15: =Calendrier!N2 -> 12 | I15: =OCT!M15 -> 5 | J15: =COUNTIF($J$19:$J$49,G15) -> 2 | K15: =+H15-(I15+J15) -> 5 | L15: J | M15: 7
G16: heure/avance fin mois | I16: =OCT!I50 -> 4.5 | M16: =I50 -> 4.5 | N16: avec bon
B17: Prévu | C17: Entrée | D17: Sortie | E17: Entrée | F17: Sortie | G17: total | H17: variation | I17: cumul | J17: Type | K17: nb J/T | M17: divers E/S | N17: Sortie | O17: Retour
I18: =OCT!$I$50 -> 4.5
A19: =VALUE("01/11/"&G3) -> 2023-11-01 | B19: =INDIRECT(ADDRESS(MATCH($B$1,Calendrier!$A$15:$A$59,0)+14,ROW()-17,3,1,"Calendrier"),1) -> F | G19: =IF(AND(C19<>0,D19<>0,E19<>0,F19<>0),F19-E19+D19-C19-K19-IF(E19-D19<Calendrier!$AT$10,Calendrier!$AT$10,0),IF(AND(C19<>0,D19<>0,E19=0,F19=0),D19-C19-K19,IF(AND(C19=0,D19=0,E19<>0,F19<>0),F19-E19-K19,IF(AND(C19>20,D19=0,E19=0,F19<>0),24-C19+F19-K19,IF(AND(C19<>0,D19=0,E19=0,F19<>0),F19-C19-K19,0))))) -> 0 | H19: =IF(G19=0,0,IF(K19=0.5,0,G19-Calendrier!$AT$9)) -> 0 | I19: =I18+H19 -> 4.5 | J19: =IF(AND(COUNTA(C19:F19)=0,OR(B19="F",WEEKDAY(A19,2)>5,B19="T",B19="RTT",B19="CA")),B19,IF(AND(COUNTA(C19:F19)>=2,OR(B19="F",B19="RTT",B19="CA",B19="Sa",B19="Di")),"calendrier",IF(AND(COUNTA(C19)+COUNTA(F19)=2,OR(COUNTA(C19:D19)<1,COUNTA(E19:F19)<1)),"erreur",IF(COUNTA(C19:F19)=3,"en cours",IF(COUNTA(C19:F19)=4,B19,IF(OR(AND(C19<>0,D19<>0),AND(E19<>0,F19<>0)),$F$12,IF(AND(C19<>0,D19=0,E19=0,F19<>0,WEEKDAY(A19,2)>5),"calendrier",IF(AND(C19<>0,D19=0,E19=0,F19<>0),$B19,"")))))))) -> F | K19: =IF(COUNTA(C19:F19)=4,1,IF(OR(AND(C19<>0,D19<>0),AND(E19<>0,F19<>0)),0.5,IF(AND(C19<>0,F19<>0,D19=0,E19=0,B19="T"),1,0))) -> 0 | M19: =IF(OR(N19=0,O19=0),0,O19-N19) -> 0
A20: =A19+1 -> 2023-11-02 | B20: =INDIRECT(ADDRESS(MATCH($B$1,Calendrier!$A$15:$A$59,0)+14,ROW()-17,3,1,"Calendrier"),1) -> T | G20: =IF(AND(C20<>0,D20<>0,E20<>0,F20<>0),F20-E20+D20-C20-K20-IF(E20-D20<Calendrier!$AT$10,Calendrier!$AT$10,0),IF(AND(C20<>0,D20<>0,E20=0,F20=0),D20-C20-K20,IF(AND(C20=0,D20=0,E20<>0,F20<>0),F20-E20-K20,IF(AND(C20>20,D20=0,E20=0,F20<>0),24-C20+F20-K20,IF(AND(C20<>0,D20=0,E20=0,F20<>0),F20-C20-K20,0))))) -> 0 | H20: =IF(G20=0,0,IF(K20=0.5,0,G20-Calendrier!$AT$9)) -> 0 | I20: 4.5 | J20: T | K20: 0 | M20: 0
A21: =A20+1 -> 2023-11-03 | B21: =INDIRECT(ADDRESS(MATCH($B$1,Calendrier!$A$15:$A$59,0)+14,ROW()-17,3,1,"Calendrier"),1) -> T | G21: =IF(AND(C21<>0,D21<>0,E21<>0,F21<>0),F21-E21+D21-C21-M21-IF(E21-D21<Calendrier!$AT$10,Calendrier!$AT$10,0),IF(AND(C21<>0,D21<>0,E21=0,F21=0),D21-C21-M21,IF(AND(C21=0,D21=0,E21<>0,F21<>0),F21-E21-M21,IF(AND(C21>20,D21=0,E21=0,F21<>0),24-C21+F21-M21,IF(AND(C21<>0,D21=0,E21=0,F21<>0),F21-C21-M21,0))))) -> 0 | H21: =IF(G21=0,0,IF(K21=0.5,0,G21-Calendrier!$AT$9)) -> 0 | I21: =I20+H21 -> 4.5 | J21: T | K21: 0 | M21: 0
A22: 2023-11-04 | B22: =INDIRECT(ADDRESS(MATCH($B$1,Calendrier!$A$15:$A$59,0)+14,ROW()-17,3,1,"Calendrier"),1) -> Sa | G22: =IF(AND(C22<>0,D22<>0,E22<>0,F22<>0),F22-E22+D22-C22-M22-IF(E22-D22<Calendrier!$AT$10,Calendrier!$AT$10,0),IF(AND(C22<>0,D22<>0,E22=0,F22=0),D22-C22-M22,IF(AND(C22=0,D22=0,E22<>0,F22<>0),F22-E22-M22,IF(AND(C22>20,D22=0,E22=0,F22<>0),24-C22+F22-M22,IF(AND(C22<>0,D22=0,E22=0,F22<>0),F22-C22-M22,0))))) -> 0 | H22: =IF(G22=0,0,IF(K22=0.5,0,G22-Calendrier!$AT$9)) -> 0 | I22: 4.5 | J22: Sa | K22: 0 | M22: 0
A23: 2023-11-05 | B23: =INDIRECT(ADDRESS(MATCH($B$1,Calendrier!$A$15:$A$59,0)+14,ROW()-17,3,1,"Calendrier"),1) -> Di | G23: =IF(AND(C23<>0,D23<>0,E23<>0,F23<>0),F23-E23+D23-C23-M23-IF(E23-D23<Calendrier!$AT$10,Calendrier!$AT$10,0),IF(AND(C23<>0,D23<>0,E23=0,F23=0),D23-C23-M23,IF(AND(C23=0,D23=0,E23<>0,F23<>0),F23-E23-M23,IF(AND(C23>20,D23=0,E23=0,F23<>0),24-C23+F23-M23,IF(AND(C23<>0,D23=0,E23=0,F23<>0),F23-C23-M23,0))))) -> 0 | H23: =IF(G23=0,0,IF(K23=0.5,0,G23-Calendrier!$AT$9)) -> 0 | I23: 4.5 | J23: Di | K23: 0 | M23: 0
A24: 2023-11-06 | B24: =INDIRECT(ADDRESS(MATCH($B$1,Calendrier!$A$15:$A$59,0)+14,ROW()-17,3,1,"Calendrier"),1) -> T | G24: =IF(AND(C24<>0,D24<>0,E24<>0,F24<>0),F24-E24+D24-C24-M24-IF(E24-D24<Calendrier!$AT$10,Calendrier!$AT$10,0),IF(AND(C24<>0,D24<>0,E24=0,F24=0),D24-C24-M24,IF(AND(C24=0,D24=0,E24<>0,F24<>0),F24-E24-M24,IF(AND(C24>20,D24=0,E24=0,F24<>0),24-C24+F24-M24,IF(AND(C24<>0,D24=0,E24=0,F24<>0),F24-C24-M24,0))))) -> 0 | H24: =IF(G24=0,0,IF(K24=0.5,0,G24-Calendrier!$AT$9)) -> 0 | I24: 4.5 | J24: T | K24: 0 | M24: =IF(OR(N24=0,O24=0),0,O24-N24) -> 0
A25: 2023-11-07 | B25: =INDIRECT(ADDRESS(MATCH($B$1,Calendrier!$A$15:$A$59,0)+14,ROW()-17,3,1,"Calendrier"),1) -> T | G25: =IF(AND(C25<>0,D25<>0,E25<>0,F25<>0),F25-E25+D25-C25-M25-IF(E25-D25<Calendrier!$AT$10,Calendrier!$AT$10,0),IF(AND(C25<>0,D25<>0,E25=0,F25=0),D25-C25-M25,IF(AND(C25=0,D25=0,E25<>0,F25<>0),F25-E25-M25,IF(AND(C25>20,D25=0,E25=0,F25<>0),24-C25+F25-M25,IF(AND(C25<>0,D25=0,E25=0,F25<>0),F25-C25-M25,0))))) -> 0 | H25: =IF(G25=0,0,IF(K25=0.5,0,G25-Calendrier!$AT$9)) -> 0 | I25: 4.5 | J25: T | K25: 0 | M25: =IF(OR(N25=0,O25=0),0,O25-N25) -> 0
A26: 2023-11-08 | B26: =INDIRECT(ADDRESS(MATCH($B$1,Calendrier!$A$15:$A$59,0)+14,ROW()-17,3,1,"Calendrier"),1) -> T | G26: =IF(AND(C26<>0,D26<>0,E26<>0,F26<>0),F26-E26+D26-C26-M26-IF(E26-D26<Calendrier!$AT$10,Calendrier!$AT$10,0),IF(AND(C26<>0,D26<>0,E26=0,F26=0),D26-C26-M26,IF(AND(C26=0,D26=0,E26<>0,F26<>0),F26-E26-M26,IF(AND(C26>20,D26=0,E26=0,F26<>0),24-C26+F26-M26,IF(AND(C26<>0,D26=0,E26=0,F26<>0),F26-C26-M26,0))))) -> 0 | H26: =IF(G26=0,0,IF(K26=0.5,0,G26-Calendrier!$AT$9)) -> 0 | I26: 4.5 | J26: T | K26: 0 | M26: 0
A27: 2023-11-09 | B27: =INDIRECT(ADDRESS(MATCH($B$1,Calendrier!$A$15:$A$59,0)+14,ROW()-17,3,1,"Calendrier"),1) -> T | G27: =IF(AND(C27<>0,D27<>0,E27<>0,F27<>0),F27-E27+D27-C27-M27-IF(E27-D27<Calendrier!$AT$10,Calendrier!$AT$10,0),IF(AND(C27<>0,D27<>0,E27=0,F27=0),D27-C27-M27,IF(AND(C27=0,D27=0,E27<>0,F27<>0),F27-E27-M27,IF(AND(C27>20,D27=0,E27=0,F27<>0),24-C27+F27-M27,IF(AND(C27<>0,D27=0,E27=0,F27<>0),F27-C27-M27,0))))) -> 0 | H27: =IF(G27=0,0,IF(K27=0.5,0,G27-Calendrier!$AT$9)) -> 0 | I27: 4.5 | J27: T | K27: 0 | M27: 0
A28: 2023-11-10 | B28: =INDIRECT(ADDRESS(MATCH($B$1,Calendrier!$A$15:$A$59,0)+14,ROW()-17,3,1,"Calendrier"),1) -> T | G28: =IF(AND(C28<>0,D28<>0,E28<>0,F28<>0),F28-E28+D28-C28-M28-IF(E28-D28<Calendrier!$AT$10,Calendrier!$AT$10,0),IF(AND(C28<>0,D28<>0,E28=0,F28=0),D28-C28-M28,IF(AND(C28=0,D28=0,E28<>0,F28<>0),F28-E28-M28,IF(AND(C28>20,D28=0,E28=0,F28<>0),24-C28+F28-M28,IF(AND(C28<>0,D28=0,E28=0,F28<>0),F28-C28-M28,0))))) -> 0 | H28: =IF(G28=0,0,IF(K28=0.5,0,G28-Calendrier!$AT$9)) -> 0 | I28: 4.5 | J28: T | K28: 0 | M28: 0
A29: 2023-11-11 | B29: =INDIRECT(ADDRESS(MATCH($B$1,Calendrier!$A$15:$A$59,0)+14,ROW()-17,3,1,"Calendrier"),1) -> F | G29: =IF(AND(C29<>0,D29<>0,E29<>0,F29<>0),F29-E29+D29-C29-M29-IF(E29-D29<Calendrier!$AT$10,Calendrier!$AT$10,0),IF(AND(C29<>0,D29<>0,E29=0,F29=0),D29-C29-M29,IF(AND(C29=0,D29=0,E29<>0,F29<>0),F29-E29-M29,IF(AND(C29>20,D29=0,E29=0,F29<>0),24-C29+F29-M29,IF(AND(C29<>0,D29=0,E29=0,F29<>0),F29-C29-M29,0))))) -> 0 | H29: =IF(G29=0,0,IF(K29=0.5,0,G29-Calendrier!$AT$9)) -> 0 | I29: 4.5 | J29: F | K29: 0 | M29: 0
A30: 2023-11-12 | B30: =INDIRECT(ADDRESS(MATCH($B$1,Calendrier!$A$15:$A$59,0)+14,ROW()-17,3,1,"Calendrier"),1) -> Di | G30: =IF(AND(C30<>0,D30<>0,E30<>0,F30<>0),F30-E30+D30-C30-M30-IF(E30-D30<Calendrier!$AT$10,Calendrier!$AT$10,0),IF(AND(C30<>0,D30<>0,E30=0,F30=0),D30-C30-M30,IF(AND(C30=0,D30=0,E30<>0,F30<>0),F30-E30-M30,IF(AND(C30>20,D30=0,E30=0,F30<>0),24-C30+F30-M30,IF(AND(C30<>0,D30=0,E30=0,F30<>0),F30-C30-M30,0))))) -> 0 | H30: =IF(G30=0,0,IF(K30=0.5,0,G30-Calendrier!$AT$9)) -> 0 | I30: 4.5 | J30: Di | K30: 0 | M30: 0
A31: 2023-11-13 | B31: =INDIRECT(ADDRESS(MATCH($B$1,Calendrier!$A$15:$A$59,0)+14,ROW()-17,3,1,"Calendrier"),1) -> T | G31: =IF(AND(C31<>0,D31<>0,E31<>0,F31<>0),F31-E31+D31-C31-M31-IF(E31-D31<Calendrier!$AT$10,Calendrier!$AT$10,0),IF(AND(C31<>0,D31<>0,E31=0,F31=0),D31-C31-M31,IF(AND(C31=0,D31=0,E31<>0,F31<>0),F31-E31-M31,IF(AND(C31>20,D31=0,E31=0,F31<>0),24-C31+F31-M31,IF(AND(C31<>0,D31=0,E31=0,F31<>0),F31-C31-M31,0))))) -> 0 | H31: =IF(G31=0,0,IF(K31=0.5,0,G31-Calendrier!$AT$9)) -> 0 | I31: 4.5 | J31: T | K31: 0 | M31: 0
A32: 2023-11-14 | B32: =INDIRECT(ADDRESS(MATCH($B$1,Calendrier!$A$15:$A$59,0)+14,ROW()-17,3,1,"Calendrier"),1) -> T | G32: =IF(AND(C32<>0,D32<>0,E32<>0,F32<>0),F32-E32+D32-C32-M32-IF(E32-D32<Calendrier!$AT$10,Calendrier!$AT$10,0),IF(AND(C32<>0,D32<>0,E32=0,F32=0),D32-C32-M32,IF(AND(C32=0,D32=0,E32<>0,F32<>0),F32-E32-M32,IF(AND(C32>20,D32=0,E32=0,F32<>0),24-C32+F32-M32,IF(AND(C32<>0,D32=0,E32=0,F32<>0),F32-C32-M32,0))))) -> 0 | H32: =IF(G32=0,0,IF(K32=0.5,0,G32-Calendrier!$AT$9)) -> 0 | I32: 4.5 | J32: T | K32: 0 | M32: 0
A33: 2023-11-15 | B33: =INDIRECT(ADDRESS(MATCH($B$1,Calendrier!$A$15:$A$59,0)+14,ROW()-17,3,1,"Calendrier"),1) -> T | G33: =IF(AND(C33<>0,D33<>0,E33<>0,F33<>0),F33-E33+D33-C33-M33-IF(E33-D33<Calendrier!$AT$10,Calendrier!$AT$10,0),IF(AND(C33<>0,D33<>0,E33=0,F33=0),D33-C33-M33,IF(AND(C33=0,D33=0,E33<>0,F33<>0),F33-E33-M33,IF(AND(C33>20,D33=0,E33=0,F33<>0),24-C33+F33-M33,IF(AND(C33<>0,D33=0,E33=0,F33<>0),F33-C33-M33,0))))) -> 0 | H33: =IF(G33=0,0,IF(K33=0.5,0,G33-Calendrier!$AT$9)) -> 0 | I33: 4.5 | J33: T | K33: 0 | M33: 0
A34: 2023-11-16 | B34: =INDIRECT(ADDRESS(MATCH($B$1,Calendrier!$A$15:$A$59,0)+14,ROW()-17,3,1,"Calendrier"),1) -> T | G34: =IF(AND(C34<>0,D34<>0,E34<>0,F34<>0),F34-E34+D34-C34-M34-IF(E34-D34<Calendrier!$AT$10,Calendrier!$AT$10,0),IF(AND(C34<>0,D34<>0,E34=0,F34=0),D34-C34-M34,IF(AND(C34=0,D34=0,E34<>0,F34<>0),F34-E34-M34,IF(AND(C34>20,D34=0,E34=0,F34<>0),24-C34+F34-M34,IF(AND(C34<>0,D34=0,E34=0,F34<>0),F34-C34-M34,0))))) -> 0 | H34: =IF(G34=0,0,IF(K34=0.5,0,G34-Calendrier!$AT$9)) -> 0 | I34: 4.5 | J34: =IF(AND(COUNTA(C34:F34)=0,OR(B34="F",WEEKDAY(A34,2)>5,B34="T",B34="RTT",B34="CA")),B34,IF(AND(COUNTA(C34:F34)>=2,OR(B34="F",B34="RTT",B34="CA",B34="Sa",B34="Di")),"calendrier",IF(AND(COUNTA(C34)+COUNTA(F34)=2,OR(COUNTA(C34:D34)<1,COUNTA(E34:F34)<1)),"erreur",IF(COUNTA(C34:F34)=3,"en cours",IF(COUNTA(C34:F34)=4,B34,IF(OR(AND(C34<>0,D34<>0),AND(E34<>0,F34<>0)),$F$12,IF(AND(C34<>0,D34=0,E34=0,F34<>0,WEEKDAY(A34,2)>5),"calendrier",IF(AND(C34<>0,D34=0,E34=0,F34<>0),$B34,"")))))))) -> T | K34: 0 | M34: 0
A35: 2023-11-17 | B35: =INDIRECT(ADDRESS(MATCH($B$1,Calendrier!$A$15:$A$59,0)+14,ROW()-17,3,1,"Calendrier"),1) -> T | G35: =IF(AND(C35<>0,D35<>0,E35<>0,F35<>0),F35-E35+D35-C35-M35-IF(E35-D35<Calendrier!$AT$10,Calendrier!$AT$10,0),IF(AND(C35<>0,D35<>0,E35=0,F35=0),D35-C35-M35,IF(AND(C35=0,D35=0,E35<>0,F35<>0),F35-E35-M35,IF(AND(C35>20,D35=0,E35=0,F35<>0),24-C35+F35-M35,IF(AND(C35<>0,D35=0,E35=0,F35<>0),F35-C35-M35,0))))) -> 0 | H35: =IF(G35=0,0,IF(K35=0.5,0,G35-Calendrier!$AT$9)) -> 0 | I35: 4.5 | J35: T | K35: 0 | M35: 0
A36: 2023-11-18 | B36: =INDIRECT(ADDRESS(MATCH($B$1,Calendrier!$A$15:$A$59,0)+14,ROW()-17,3,1,"Calendrier"),1) -> Sa | G36: =IF(AND(C36<>0,D36<>0,E36<>0,F36<>0),F36-E36+D36-C36-M36-IF(E36-D36<Calendrier!$AT$10,Calendrier!$AT$10,0),IF(AND(C36<>0,D36<>0,E36=0,F36=0),D36-C36-M36,IF(AND(C36=0,D36=0,E36<>0,F36<>0),F36-E36-M36,IF(AND(C36>20,D36=0,E36=0,F36<>0),24-C36+F36-M36,IF(AND(C36<>0,D36=0,E36=0,F36<>0),F36-C36-M36,0))))) -> 0 | H36: =IF(G36=0,0,IF(K36=0.5,0,G36-Calendrier!$AT$9)) -> 0 | I36: 4.5 | J36: Sa | K36: 0 | M36: 0
A37: 2023-11-19 | B37: =INDIRECT(ADDRESS(MATCH($B$1,Calendrier!$A$15:$A$59,0)+14,ROW()-17,3,1,"Calendrier"),1) -> Di | G37: =IF(AND(C37<>0,D37<>0,E37<>0,F37<>0),F37-E37+D37-C37-M37-IF(E37-D37<Calendrier!$AT$10,Calendrier!$AT$10,0),IF(AND(C37<>0,D37<>0,E37=0,F37=0),D37-C37-M37,IF(AND(C37=0,D37=0,E37<>0,F37<>0),F37-E37-M37,IF(AND(C37>20,D37=0,E37=0,F37<>0),24-C37+F37-M37,IF(AND(C37<>0,D37=0,E37=0,F37<>0),F37-C37-M37,0))))) -> 0 | H37: =IF(G37=0,0,IF(K37=0.5,0,G37-Calendrier!$AT$9)) -> 0 | I37: 4.5 | J37: Di | K37: 0 | M37: 0
A38: 2023-11-20 | B38: =INDIRECT(ADDRESS(MATCH($B$1,Calendrier!$A$15:$A$59,0)+14,ROW()-17,3,1,"Calendrier"),1) -> T | G38: =IF(AND(C38<>0,D38<>0,E38<>0,F38<>0),F38-E38+D38-C38-M38-IF(E38-D38<Calendrier!$AT$10,Calendrier!$AT$10,0),IF(AND(C38<>0,D38<>0,E38=0,F38=0),D38-C38-M38,IF(AND(C38=0,D38=0,E38<>0,F38<>0),F38-E38-M38,IF(AND(C38>20,D38=0,E38=0,F38<>0),24-C38+F38-M38,IF(AND(C38<>0,D38=0,E38=0,F38<>0),F38-C38-M38,0))))) -> 0 | H38: =IF(G38=0,0,IF(K38=0.5,0,G38-Calendrier!$AT$9)) -> 0 | I38: 4.5 | J38: T | K38: 0 | M38: 0
A39: 2023-11-21 | B39: =INDIRECT(ADDRESS(MATCH($B$1,Calendrier!$A$15:$A$59,0)+14,ROW()-17,3,1,"Calendrier"),1) -> T | G39: =IF(AND(C39<>0,D39<>0,E39<>0,F39<>0),F39-E39+D39-C39-M39-IF(E39-D39<Calendrier!$AT$10,Calendrier!$AT$10,0),IF(AND(C39<>0,D39<>0,E39=0,F39=0),D39-C39-M39,IF(AND(C39=0,D39=0,E39<>0,F39<>0),F39-E39-M39,IF(AND(C39>20,D39=0,E39=0,F39<>0),24-C39+F39-M39,IF(AND(C39<>0,D39=0,E39=0,F39<>0),F39-C39-M39,0))))) -> 0 | H39: =IF(G39=0,0,IF(K39=0.5,0,G39-Calendrier!$AT$9)) -> 0 | I39: 4.5 | J39: T | K39: 0 | M39: 0
A40: 2023-11-22 | B40: =INDIRECT(ADDRESS(MATCH($B$1,Calendrier!$A$15:$A$59,0)+14,ROW()-17,3,1,"Calendrier"),1) -> RTT | G40: =IF(AND(C40<>0,D40<>0,E40<>0,F40<>0),F40-E40+D40-C40-M40-IF(E40-D40<Calendrier!$AT$10,Calendrier!$AT$10,0),IF(AND(C40<>0,D40<>0,E40=0,F40=0),D40-C40-M40,IF(AND(C40=0,D40=0,E40<>0,F40<>0),F40-E40-M40,IF(AND(C40>20,D40=0,E40=0,F40<>0),24-C40+F40-M40,IF(AND(C40<>0,D40=0,E40=0,F40<>0),F40-C40-M40,0))))) -> 0 | H40: =IF(G40=0,0,IF(K40=0.5,0,G40-Calendrier!$AT$9)) -> 0 | I40: 4.5 | J40: RTT | K40: 0 | M40: 0
A41: 2023-11-23 | B41: =INDIRECT(ADDRESS(MATCH($B$1,Calendrier!$A$15:$A$59,0)+14,ROW()-17,3,1,"Calendrier"),1) -> T | G41: =IF(AND(C41<>0,D41<>0,E41<>0,F41<>0),F41-E41+D41-C41-M41-IF(E41-D41<Calendrier!$AT$10,Calendrier!$AT$10,0),IF(AND(C41<>0,D41<>0,E41=0,F41=0),D41-C41-M41,IF(AND(C41=0,D41=0,E41<>0,F41<>0),F41-E41-M41,IF(AND(C41>20,D41=0,E41=0,F41<>0),24-C41+F41-M41,IF(AND(C41<>0,D41=0,E41=0,F41<>0),F41-C41-M41,0))))) -> 0 | H41: =IF(G41=0,0,IF(K41=0.5,0,G41-Calendrier!$AT$9)) -> 0 | I41: 4.5 | J41: T | K41: 0 | M41: 0
A42: 2023-11-24 | B42: =INDIRECT(ADDRESS(MATCH($B$1,Calendrier!$A$15:$A$59,0)+14,ROW()-17,3,1,"Calendrier"),1) -> T | G42: =IF(AND(C42<>0,D42<>0,E42<>0,F42<>0),F42-E42+D42-C42-M42-IF(E42-D42<Calendrier!$AT$10,Calendrier!$AT$10,0),IF(AND(C42<>0,D42<>0,E42=0,F42=0),D42-C42-M42,IF(AND(C42=0,D42=0,E42<>0,F42<>0),F42-E42-M42,IF(AND(C42>20,D42=0,E42=0,F42<>0),24-C42+F42-M42,IF(AND(C42<>0,D42=0,E42=0,F42<>0),F42-C42-M42,0))))) -> 0 | H42: =IF(G42=0,0,IF(K42=0.5,0,G42-Calendrier!$AT$9)) -> 0 | I42: 4.5 | J42: T | K42: 0 | M42: 0
A43: 2023-11-25 | B43: =INDIRECT(ADDRESS(MATCH($B$1,Calendrier!$A$15:$A$59,0)+14,ROW()-17,3,1,"Calendrier"),1) -> Sa | G43: =IF(AND(C43<>0,D43<>0,E43<>0,F43<>0),F43-E43+D43-C43-M43-IF(E43-D43<Calendrier!$AT$10,Calendrier!$AT$10,0),IF(AND(C43<>0,D43<>0,E43=0,F43=0),D43-C43-M43,IF(AND(C43=0,D43=0,E43<>0,F43<>0),F43-E43-M43,IF(AND(C43>20,D43=0,E43=0,F43<>0),24-C43+F43-M43,IF(AND(C43<>0,D43=0,E43=0,F43<>0),F43-C43-M43,0))))) -> 0 | H43: =IF(G43=0,0,IF(K43=0.5,0,G43-Calendrier!$AT$9)) -> 0 | I43: 4.5 | J43: Sa | K43: 0 | M43: 0
A44: 2023-11-26 | B44: =INDIRECT(ADDRESS(MATCH($B$1,Calendrier!$A$15:$A$59,0)+14,ROW()-17,3,1,"Calendrier"),1) -> Di | G44: =IF(AND(C44<>0,D44<>0,E44<>0,F44<>0),F44-E44+D44-C44-M44-IF(E44-D44<Calendrier!$AT$10,Calendrier!$AT$10,0),IF(AND(C44<>0,D44<>0,E44=0,F44=0),D44-C44-M44,IF(AND(C44=0,D44=0,E44<>0,F44<>0),F44-E44-M44,IF(AND(C44>20,D44=0,E44=0,F44<>0),24-C44+F44-M44,IF(AND(C44<>0,D44=0,E44=0,F44<>0),F44-C44-M44,0))))) -> 0 | H44: =IF(G44=0,0,IF(K44=0.5,0,G44-Calendrier!$AT$9)) -> 0 | I44: 4.5 | J44: Di | K44: 0 | M44: 0
A45: 2023-11-27 | B45: =INDIRECT(ADDRESS(MATCH($B$1,Calendrier!$A$15:$A$59,0)+14,ROW()-17,3,1,"Calendrier"),1) -> T | G45: =IF(AND(C45<>0,D45<>0,E45<>0,F45<>0),F45-E45+D45-C45-M45-IF(E45-D45<Calendrier!$AT$10,Calendrier!$AT$10,0),IF(AND(C45<>0,D45<>0,E45=0,F45=0),D45-C45-M45,IF(AND(C45=0,D45=0,E45<>0,F45<>0),F45-E45-M45,IF(AND(C45>20,D45=0,E45=0,F45<>0),24-C45+F45-M45,IF(AND(C45<>0,D45=0,E45=0,F45<>0),F45-C45-M45,0))))) -> 0 | H45: =IF(G45=0,0,IF(K45=0.5,0,G45-Calendrier!$AT$9)) -> 0 | I45: 4.5 | J45: T | K45: 0 | M45: 0
A46: 2023-11-28 | B46: =INDIRECT(ADDRESS(MATCH($B$1,Calendrier!$A$15:$A$59,0)+14,ROW()-17,3,1,"Calendrier"),1) -> T | G46: =IF(AND(C46<>0,D46<>0,E46<>0,F46<>0),F46-E46+D46-C46-M46-IF(E46-D46<Calendrier!$AT$10,Calendrier!$AT$10,0),IF(AND(C46<>0,D46<>0,E46=0,F46=0),D46-C46-M46,IF(AND(C46=0,D46=0,E46<>0,F46<>0),F46-E46-M46,IF(AND(C46>20,D46=0,E46=0,F46<>0),24-C46+F46-M46,IF(AND(C46<>0,D46=0,E46=0,F46<>0),F46-C46-M46,0))))) -> 0 | H46: =IF(G46=0,0,IF(K46=0.5,0,G46-Calendrier!$AT$9)) -> 0 | I46: 4.5 | J46: T | K46: 0 | M46: 0
A47: 2023-11-29 | B47: =INDIRECT(ADDRESS(MATCH($B$1,Calendrier!$A$15:$A$59,0)+14,ROW()-17,3,1,"Calendrier"),1) -> T | G47: =IF(AND(C47<>0,D47<>0,E47<>0,F47<>0),F47-E47+D47-C47-M47-IF(E47-D47<Calendrier!$AT$10,Calendrier!$AT$10,0),IF(AND(C47<>0,D47<>0,E47=0,F47=0),D47-C47-M47,IF(AND(C47=0,D47=0,E47<>0,F47<>0),F47-E47-M47,IF(AND(C47>20,D47=0,E47=0,F47<>0),24-C47+F47-M47,IF(AND(C47<>0,D47=0,E47=0,F47<>0),F47-C47-M47,0))))) -> 0 | H47: =IF(G47=0,0,IF(K47=0.5,0,G47-Calendrier!$AT$9)) -> 0 | I47: 4.5 | J47: T | K47: 0 | M47: 0
A48: 2023-11-30 | B48: =INDIRECT(ADDRESS(MATCH($B$1,Calendrier!$A$15:$A$59,0)+14,ROW()-17,3,1,"Calendrier"),1) -> T | G48: =IF(AND(C48<>0,D48<>0,E48<>0,F48<>0),F48-E48+D48-C48-M48-IF(E48-D48<Calendrier!$AT$10,Calendrier!$AT$10,0),IF(AND(C48<>0,D48<>0,E48=0,F48=0),D48-C48-M48,IF(AND(C48=0,D48=0,E48<>0,F48<>0),F48-E48-M48,IF(AND(C48>20,D48=0,E48=0,F48<>0),24-C48+F48-M48,IF(AND(C48<>0,D48=0,E48=0,F48<>0),F48-C48-M48,0))))) -> 0 | H48: =IF(G48=0,0,IF(K48=0.5,0,G48-Calendrier!$AT$9)) -> 0 | I48: 4.5 | J48: T | K48: 0 | M48: 0
A49: =IF(MONTH(A48+1)>11,0,A48+1) -> 00:00:00 | B49: =INDIRECT(ADDRESS(MATCH($B$1,Calendrier!$A$15:$A$59,0)+14,ROW()-17,3,1,"Calendrier"),1) -> 0 | G49: =IF(AND(C49<>0,D49<>0,E49<>0,F49<>0),F49-E49+D49-C49-M49-IF(E49-D49<Calendrier!$AT$10,Calendrier!$AT$10,0),IF(AND(C49<>0,D49<>0,E49=0,F49=0),D49-C49-M49,IF(AND(C49=0,D49=0,E49<>0,F49<>0),F49-E49-M49,IF(AND(C49>20,D49=0,E49=0,F49<>0),24-C49+F49-M49,IF(AND(C49<>0,D49=0,E49=0,F49<>0),F49-C49-M49,0))))) -> 0 | H49: =IF(G49=0,0,IF(K49=0.5,0,G49-Calendrier!$AT$9)) -> 0 | I49: 4.5 | J49: =IF(AND(COUNTA(C49:F49)=0,B49="F"),B49,IF(AND(COUNTA(C49:F49)=0,WEEKDAY(A49,2)>5),B49,IF(AND(COUNTA(C49:F49)=0,B49="T"),"",IF(AND(COUNTA(C49:F49)=0,B49="RTT"),B49,IF(AND(COUNTA(D49:F49)=0,C49<>0),"erreur",IF(AND(COUNTA(C49:F49)=4,B49="RTT"),"Erreur RTT",IF(AND(COUNTA(C49:F49)=4,B49="F"),"fériés",IF(COUNTA(C49:F49)=4,B49,IF(COUNTA(C49:F49)=3,"Erreur",IF(AND(C49<>0,D49<>0),$F$12,IF(AND(E49<>0,F49<>0),$F$12,IF(AND(C49<>0,D49=0,E49=0,F49<>0,WEEKDAY(A49,2)>5),"Modif calendrier",IF(AND(C49<>0,D49=0,E49=0,F49<>0),$B49))))))))))))) -> 0 | K49: 0 | M49: 0
G50: =SUM(G19:G49) -> 0 | I50: =I49 -> 4.5

Sheet DEC
B1: =RIGHT(CELL("nomfichier",$A$1),3) -> DEC | C1: FICHE DE SUIVI HORAIRE
B3: mois : | C3: DECEMBRE | F3: année | G3: =VLOOKUP(C3,Fériés!$I$1:$J$12,2,FALSE) -> 2023 | J3: service | K3: =Calendrier!F4 -> Administratif
B5: nom : | C5: =Calendrier!F2 -> Isq | F5: prénom | G5: =Calendrier!F3 -> Philippe | J5: N° Ident | K5: =Calendrier!F1 -> T506489
H6: à réaliser | I6: cumul | J6: en cours | K6: reste | M6: N.cumul
D7: Nb J | E7: =Calendrier!$AT$11 -> 218 | F7: =+$H$10 -> 0 | G7: =E7-F7 -> 218 | H7: =Calendrier!N1 -> 365 | I7: =NOV!M7 -> 296.5 | J7: =SUM(J8:J15) -> 31 | K7: =H7-(I7+J7) -> 37.5 | M7: =SUM(M8:M15) -> 327.5
F8: 1/2CA | G8: CA | H8: =Calendrier!N5 -> 25 | I8: =NOV!M8 -> 19 | J8: =COUNTIF($J$19:$J$49,G8)+COUNTIF($J$19:$J$49,F8)/2 -> 5 | K8: =+H8-(I8+J8) -> 1 | L8: J | M8: =+I8+J8 -> 24
F9: 1/2RTT | G9: RTT | H9: =Calendrier!N8 -> 9 | I9: =NOV!M9 -> 6 | J9: =COUNTIF($J$19:$J$49,G9)+COUNTIF($J$19:$J$49,F9)/2 -> 1 | K9: =+H9-(I9+J9) -> 2 | L9: J | M9: 7
F10: 1/2CS | G10: CS | H10: =Calendrier!N9 -> 0 | I10: =NOV!M10 -> 0 | J10: 0 | K10: =H10-(I10+J10) -> 0 | L10: J | M10: 0
F11: 1/2CP | G11: CP | H11: =Calendrier!N6 -> 0 | I11: =NOV!M11 -> 0 | J11: 0 | K11: =H11-(I11+J11) -> 0 | L11: J | M11: 0
F12: 1/2T | G12: T | H12: =Calendrier!N7 -> 218 | I12: =NOV!M12 -> 182.5 | J12: 14 | K12: =+H12-(I12+J12) -> 21.5 | L12: J | M12: 196.5
F13: 0 | G13: Sa | H13: =Calendrier!N4 -> 51 | I13: =NOV!M13 -> 40 | J13: =COUNTIF($J$19:$J$49,G13) -> 5 | K13: =+H13-(I13+J13) -> 6 | L13: J | M13: 45
F14: 0 | G14: Di | H14: =Calendrier!N3 -> 50 | I14: =NOV!M14 -> 42 | J14: =COUNTIF($J$19:$J$49,G14) -> 5 | K14: =+H14-(I14+J14) -> 3 | L14: J | M14: 47
F15: 0 | G15: F | H15: =Calendrier!N2 -> 12 | I15: =NOV!M15 -> 7 | J15: =COUNTIF($J$19:$J$49,G15) -> 1 | K15: =+H15-(I15+J15) -> 4 | L15: J | M15: 8
G16: heure/avance fin mois | I16: =NOV!I50 -> 4.5 | M16: =I50 -> 4.5 | N16: avec bon
B17: Prévu | C17: Entrée | D17: Sortie | E17: Entrée | F17: Sortie | G17: total | H17: variation | I17: cumul | J17: Type | K17: nb J/T | M17: divers E/S | N17: Sortie | O17: Retour
I18: =NOV!$I$50 -> 4.5
A19: =VALUE("01/12/"&G3) -> 2023-12-01 | B19: =INDIRECT(ADDRESS(MATCH($B$1,Calendrier!$A$15:$A$59,0)+14,ROW()-17,3,1,"Calendrier"),1) -> T | G19: =IF(AND(C19<>0,D19<>0,E19<>0,F19<>0),F19-E19+D19-C19-K19-IF(E19-D19<Calendrier!$AT$10,Calendrier!$AT$10,0),IF(AND(C19<>0,D19<>0,E19=0,F19=0),D19-C19-K19,IF(AND(C19=0,D19=0,E19<>0,F19<>0),F19-E19-K19,IF(AND(C19>20,D19=0,E19=0,F19<>0),24-C19+F19-K19,IF(AND(C19<>0,D19=0,E19=0,F19<>0),F19-C19-K19,0))))) -> 0 | H19: =IF(G19=0,0,IF(K19=0.5,0,G19-Calendrier!$AT$9)) -> 0 | I19: =I18+H19 -> 4.5 | J19: =IF(AND(COUNTA(C19:F19)=0,OR(B19="F",WEEKDAY(A19,2)>5,B19="T",B19="RTT",B19="CA")),B19,IF(AND(COUNTA(C19:F19)>=2,OR(B19="F",B19="RTT",B19="CA",B19="Sa",B19="Di")),"calendrier",IF(AND(COUNTA(C19)+COUNTA(F19)=2,OR(COUNTA(C19:D19)<1,COUNTA(E19:F19)<1)),"erreur",IF(COUNTA(C19:F19)=3,"en cours",IF(COUNTA(C19:F19)=4,B19,IF(OR(AND(C19<>0,D19<>0),AND(E19<>0,F19<>0)),$F$12,IF(AND(C19<>0,D19=0,E19=0,F19<>0,WEEKDAY(A19,2)>5),"calendrier",IF(AND(C19<>0,D19=0,E19=0,F19<>0),$B19,"")))))))) -> T | K19: =IF(COUNTA(C19:F19)=4,1,IF(OR(AND(C19<>0,D19<>0),AND(E19<>0,F19<>0)),0.5,IF(AND(C19<>0,F19<>0,D19=0,E19=0,B19="T"),1,0))) -> 0 | M19: =IF(OR(N19=0,O19=0),0,O19-N19) -> 0
A20: =A19+1 -> 2023-12-02 | B20: =INDIRECT(ADDRESS(MATCH($B$1,Calendrier!$A$15:$A$59,0)+14,ROW()-17,3,1,"Calendrier"),1) -> Sa | G20: =IF(AND(C20<>0,D20<>0,E20<>0,F20<>0),F20-E20+D20-C20-K20-IF(E20-D20<Calendrier!$AT$10,Calendrier!$AT$10,0),IF(AND(C20<>0,D20<>0,E20=0,F20=0),D20-C20-K20,IF(AND(C20=0,D20=0,E20<>0,F20<>0),F20-E20-K20,IF(AND(C20>20,D20=0,E20=0,F20<>0),24-C20+F20-K20,IF(AND(C20<>0,D20=0,E20=0,F20<>0),F20-C20-K20,0))))) -> 0 | H20: =IF(G20=0,0,IF(K20=0.5,0,G20-Calendrier!$AT$9)) -> 0 | I20: 4.5 | J20: Sa | K20: 0 | M20: 0
A21: =A20+1 -> 2023-12-03 | B21: =INDIRECT(ADDRESS(MATCH($B$1,Calendrier!$A$15:$A$59,0)+14,ROW()-17,3,1,"Calendrier"),1) -> Di | G21: =IF(AND(C21<>0,D21<>0,E21<>0,F21<>0),F21-E21+D21-C21-M21-IF(E21-D21<Calendrier!$AT$10,Calendrier!$AT$10,0),IF(AND(C21<>0,D21<>0,E21=0,F21=0),D21-C21-M21,IF(AND(C21=0,D21=0,E21<>0,F21<>0),F21-E21-M21,IF(AND(C21>20,D21=0,E21=0,F21<>0),24-C21+F21-M21,IF(AND(C21<>0,D21=0,E21=0,F21<>0),F21-C21-M21,0))))) -> 0 | H21: =IF(G21=0,0,IF(K21=0.5,0,G21-Calendrier!$AT$9)) -> 0 | I21: =I20+H21 -> 4.5 | J21: Di | K21: 0 | M21: 0
A22: 2023-12-04 | B22: =INDIRECT(ADDRESS(MATCH($B$1,Calendrier!$A$15:$A$59,0)+14,ROW()-17,3,1,"Calendrier"),1) -> T | G22: =IF(AND(C22<>0,D22<>0,E22<>0,F22<>0),F22-E22+D22-C22-M22-IF(E22-D22<Calendrier!$AT$10,Calendrier!$AT$10,0),IF(AND(C22<>0,D22<>0,E22=0,F22=0),D22-C22-M22,IF(AND(C22=0,D22=0,E22<>0,F22<>0),F22-E22-M22,IF(AND(C22>20,D22=0,E22=0,F22<>0),24-C22+F22-M22,IF(AND(C22<>0,D22=0,E22=0,F22<>0),F22-C22-M22,0))))) -> 0 | H22: =IF(G22=0,0,IF(K22=0.5,0,G22-Calendrier!$AT$9)) -> 0 | I22: 4.5 | J22: T | K22: 0 | M22: 0
A23: 2023-12-05 | B23: =INDIRECT(ADDRESS(MATCH($B$1,Calendrier!$A$15:$A$59,0)+14,ROW()-17,3,1,"Calendrier"),1) -> T | G23: =IF(AND(C23<>0,D23<>0,E23<>0,F23<>0),F23-E23+D23-C23-M23-IF(E23-D23<Calendrier!$AT$10,Calendrier!$AT$10,0),IF(AND(C23<>0,D23<>0,E23=0,F23=0),D23-C23-M23,IF(AND(C23=0,D23=0,E23<>0,F23<>0),F23-E23-M23,IF(AND(C23>20,D23=0,E23=0,F23<>0),24-C23+F23-M23,IF(AND(C23<>0,D23=0,E23=0,F23<>0),F23-C23-M23,0))))) -> 0 | H23: =IF(G23=0,0,IF(K23=0.5,0,G23-Calendrier!$AT$9)) -> 0 | I23: 4.5 | J23: T | K23: 0 | M23: 0
A24: 2023-12-06 | B24: =INDIRECT(ADDRESS(MATCH($B$1,Calendrier!$A$15:$A$59,0)+14,ROW()-17,3,1,"Calendrier"),1) -> T | G24: =IF(AND(C24<>0,D24<>0,E24<>0,F24<>0),F24-E24+D24-C24-M24-IF(E24-D24<Calendrier!$AT$10,Calendrier!$AT$10,0),IF(AND(C24<>0,D24<>0,E24=0,F24=0),D24-C24-M24,IF(AND(C24=0,D24=0,E24<>0,F24<>0),F24-E24-M24,IF(AND(C24>20,D24=0,E24=0,F24<>0),24-C24+F24-M24,IF(AND(C24<>0,D24=0,E24=0,F24<>0),F24-C24-M24,0))))) -> 0 | H24: =IF(G24=0,0,IF(K24=0.5,0,G24-Calendrier!$AT$9)) -> 0 | I24: 4.5 | J24: T | K24: 0 | M24: =IF(OR(N24=0,O24=0),0,O24-N24) -> 0
A25: 2023-12-07 | B25: =INDIRECT(ADDRESS(MATCH($B$1,Calendrier!$A$15:$A$59,0)+14,ROW()-17,3,1,"Calendrier"),1) -> T | G25: =IF(AND(C25<>0,D25<>0,E25<>0,F25<>0),F25-E25+D25-C25-M25-IF(E25-D25<Calendrier!$AT$10,Calendrier!$AT$10,0),IF(AND(C25<>0,D25<>0,E25=0,F25=0),D25-C25-M25,IF(AND(C25=0,D25=0,E25<>0,F25<>0),F25-E25-M25,IF(AND(C25>20,D25=0,E25=0,F25<>0),24-C25+F25-M25,IF(AND(C25<>0,D25=0,E25=0,F25<>0),F25-C25-M25,0))))) -> 0 | H25: =IF(G25=0,0,IF(K25=0.5,0,G25-Calendrier!$AT$9)) -> 0 | I25: 4.5 | J25: T | K25: 0 | M25: =IF(OR(N25=0,O25=0),0,O25-N25) -> 0
A26: 2023-12-08 | B26: =INDIRECT(ADDRESS(MATCH($B$1,Calendrier!$A$15:$A$59,0)+14,ROW()-17,3,1,"Calendrier"),1) -> T | G26: =IF(AND(C26<>0,D26<>0,E26<>0,F26<>0),F26-E26+D26-C26-M26-IF(E26-D26<Calendrier!$AT$10,Calendrier!$AT$10,0),IF(AND(C26<>0,D26<>0,E26=0,F26=0),D26-C26-M26,IF(AND(C26=0,D26=0,E26<>0,F26<>0),F26-E26-M26,IF(AND(C26>20,D26=0,E26=0,F26<>0),24-C26+F26-M26,IF(AND(C26<>0,D26=0,E26=0,F26<>0),F26-C26-M26,0))))) -> 0 | H26: =IF(G26=0,0,IF(K26=0.5,0,G26-Calendrier!$AT$9)) -> 0 | I26: 4.5 | J26: T | K26: 0 | M26: 0
A27: 2023-12-09 | B27: =INDIRECT(ADDRESS(MATCH($B$1,Calendrier!$A$15:$A$59,0)+14,ROW()-17,3,1,"Calendrier"),1) -> Sa | G27: =IF(AND(C27<>0,D27<>0,E27<>0,F27<>0),F27-E27+D27-C27-M27-IF(E27-D27<Calendrier!$AT$10,Calendrier!$AT$10,0),IF(AND(C27<>0,D27<>0,E27=0,F27=0),D27-C27-M27,IF(AND(C27=0,D27=0,E27<>0,F27<>0),F27-E27-M27,IF(AND(C27>20,D27=0,E27=0,F27<>0),24-C27+F27-M27,IF(AND(C27<>0,D27=0,E27=0,F27<>0),F27-C27-M27,0))))) -> 0 | H27: =IF(G27=0,0,IF(K27=0.5,0,G27-Calendrier!$AT$9)) -> 0 | I27: 4.5 | J27: Sa | K27: 0 | M27: 0
A28: 2023-12-10 | B28: =INDIRECT(ADDRESS(MATCH($B$1,Calendrier!$A$15:$A$59,0)+14,ROW()-17,3,1,"Calendrier"),1) -> Di | G28: =IF(AND(C28<>0,D28<>0,E28<>0,F28<>0),F28-E28+D28-C28-M28-IF(E28-D28<Calendrier!$AT$10,Calendrier!$AT$10,0),IF(AND(C28<>0,D28<>0,E28=0,F28=0),D28-C28-M28,IF(AND(C28=0,D28=0,E28<>0,F28<>0),F28-E28-M28,IF(AND(C28>20,D28=0,E28=0,F28<>0),24-C28+F28-M28,IF(AND(C28<>0,D28=0,E28=0,F28<>0),F28-C28-M28,0))))) -> 0 | H28: =IF(G28=0,0,IF(K28=0.5,0,G28-Calendrier!$AT$9)) -> 0 | I28: 4.5 | J28: Di | K28: 0 | M28: 0 | Q28: =WEEKDAY(A25,2) -> 4
A29: 2023-12-11 | B29: =INDIRECT(ADDRESS(MATCH($B$1,Calendrier!$A$15:$A$59,0)+14,ROW()-17,3,1,"Calendrier"),1) -> T | G29: =IF(AND(C29<>0,D29<>0,E29<>0,F29<>0),F29-E29+D29-C29-M29-IF(E29-D29<Calendrier!$AT$10,Calendrier!$AT$10,0),IF(AND(C29<>0,D29<>0,E29=0,F29=0),D29-C29-M29,IF(AND(C29=0,D29=0,E29<>0,F29<>0),F29-E29-M29,IF(AND(C29>20,D29=0,E29=0,F29<>0),24-C29+F29-M29,IF(AND(C29<>0,D29=0,E29=0,F29<>0),F29-C29-M29,0))))) -> 0 | H29: =IF(G29=0,0,IF(K29=0.5,0,G29-Calendrier!$AT$9)) -> 0 | I29: 4.5 | J29: T | K29: 0 | M29: 0
A30: 2023-12-12 | B30: =INDIRECT(ADDRESS(MATCH($B$1,Calendrier!$A$15:$A$59,0)+14,ROW()-17,3,1,"Calendrier"),1) -> T | G30: =IF(AND(C30<>0,D30<>0,E30<>0,F30<>0),F30-E30+D30-C30-M30-IF(E30-D30<Calendrier!$AT$10,Calendrier!$AT$10,0),IF(AND(C30<>0,D30<>0,E30=0,F30=0),D30-C30-M30,IF(AND(C30=0,D30=0,E30<>0,F30<>0),F30-E30-M30,IF(AND(C30>20,D30=0,E30=0,F30<>0),24-C30+F30-M30,IF(AND(C30<>0,D30=0,E30=0,F30<>0),F30-C30-M30,0))))) -> 0 | H30: =IF(G30=0,0,IF(K30=0.5,0,G30-Calendrier!$AT$9)) -> 0 | I30: 4.5 | J30: T | K30: 0 | M30: 0
A31: 2023-12-13 | B31: =INDIRECT(ADDRESS(MATCH($B$1,Calendrier!$A$15:$A$59,0)+14,ROW()-17,3,1,"Calendrier"),1) -> T | G31: =IF(AND(C31<>0,D31<>0,E31<>0,F31<>0),F31-E31+D31-C31-M31-IF(E31-D31<Calendrier!$AT$10,Calendrier!$AT$10,0),IF(AND(C31<>0,D31<>0,E31=0,F31=0),D31-C31-M31,IF(AND(C31=0,D31=0,E31<>0,F31<>0),F31-E31-M31,IF(AND(C31>20,D31=0,E31=0,F31<>0),24-C31+F31-M31,IF(AND(C31<>0,D31=0,E31=0,F31<>0),F31-C31-M31,0))))) -> 0 | H31: =IF(G31=0,0,IF(K31=0.5,0,G31-Calendrier!$AT$9)) -> 0 | I31: 4.5 | J31: T | K31: 0 | M31: 0
A32: 2023-12-14 | B32: =INDIRECT(ADDRESS(MATCH($B$1,Calendrier!$A$15:$A$59,0)+14,ROW()-17,3,1,"Calendrier"),1) -> T | G32: =IF(AND(C32<>0,D32<>0,E32<>0,F32<>0),F32-E32+D32-C32-M32-IF(E32-D32<Calendrier!$AT$10,Calendrier!$AT$10,0),IF(AND(C32<>0,D32<>0,E32=0,F32=0),D32-C32-M32,IF(AND(C32=0,D32=0,E32<>0,F32<>0),F32-E32-M32,IF(AND(C32>20,D32=0,E32=0,F32<>0),24-C32+F32-M32,IF(AND(C32<>0,D32=0,E32=0,F32<>0),F32-C32-M32,0))))) -> 0 | H32: =IF(G32=0,0,IF(K32=0.5,0,G32-Calendrier!$AT$9)) -> 0 | I32: 4.5 | J32: T | K32: 0 | M32: 0
A33: 2023-12-15 | B33: =INDIRECT(ADDRESS(MATCH($B$1,Calendrier!$A$15:$A$59,0)+14,ROW()-17,3,1,"Calendrier"),1) -> T | G33: =IF(AND(C33<>0,D33<>0,E33<>0,F33<>0),F33-E33+D33-C33-M33-IF(E33-D33<Calendrier!$AT$10,Calendrier!$AT$10,0),IF(AND(C33<>0,D33<>0,E33=0,F33=0),D33-C33-M33,IF(AND(C33=0,D33=0,E33<>0,F33<>0),F33-E33-M33,IF(AND(C33>20,D33=0,E33=0,F33<>0),24-C33+F33-M33,IF(AND(C33<>0,D33=0,E33=0,F33<>0),F33-C33-M33,0))))) -> 0 | H33: =IF(G33=0,0,IF(K33=0.5,0,G33-Calendrier!$AT$9)) -> 0 | I33: 4.5 | J33: T | K33: 0 | M33: 0
A34: 2023-12-16 | B34: =INDIRECT(ADDRESS(MATCH($B$1,Calendrier!$A$15:$A$59,0)+14,ROW()-17,3,1,"Calendrier"),1) -> Sa | G34: =IF(AND(C34<>0,D34<>0,E34<>0,F34<>0),F34-E34+D34-C34-M34-IF(E34-D34<Calendrier!$AT$10,Calendrier!$AT$10,0),IF(AND(C34<>0,D34<>0,E34=0,F34=0),D34-C34-M34,IF(AND(C34=0,D34=0,E34<>0,F34<>0),F34-E34-M34,IF(AND(C34>20,D34=0,E34=0,F34<>0),24-C34+F34-M34,IF(AND(C34<>0,D34=0,E34=0,F34<>0),F34-C34-M34,0))))) -> 0 | H34: =IF(G34=0,0,IF(K34=0.5,0,G34-Calendrier!$AT$9)) -> 0 | I34: 4.5 | J34: =IF(AND(COUNTA(C34:F34)=0,OR(B34="F",WEEKDAY(A34,2)>5,B34="T",B34="RTT",B34="CA")),B34,IF(AND(COUNTA(C34:F34)>=2,OR(B34="F",B34="RTT",B34="CA",B34="Sa",B34="Di")),"calendrier",IF(AND(COUNTA(C34)+COUNTA(F34)=2,OR(COUNTA(C34:D34)<1,COUNTA(E34:F34)<1)),"erreur",IF(COUNTA(C34:F34)=3,"en cours",IF(COUNTA(C34:F34)=4,B34,IF(OR(AND(C34<>0,D34<>0),AND(E34<>0,F34<>0)),$F$12,IF(AND(C34<>0,D34=0,E34=0,F34<>0,WEEKDAY(A34,2)>5),"calendrier",IF(AND(C34<>0,D34=0,E34=0,F34<>0),$B34,"")))))))) -> Sa | K34: 0 | M34: 0
A35: 2023-12-17 | B35: =INDIRECT(ADDRESS(MATCH($B$1,Calendrier!$A$15:$A$59,0)+14,ROW()-17,3,1,"Calendrier"),1) -> Di | G35: =IF(AND(C35<>0,D35<>0,E35<>0,F35<>0),F35-E35+D35-C35-M35-IF(E35-D35<Calendrier!$AT$10,Calendrier!$AT$10,0),IF(AND(C35<>0,D35<>0,E35=0,F35=0),D35-C35-M35,IF(AND(C35=0,D35=0,E35<>0,F35<>0),F35-E35-M35,IF(AND(C35>20,D35=0,E35=0,F35<>0),24-C35+F35-M35,IF(AND(C35<>0,D35=0,E35=0,F35<>0),F35-C35-M35,0))))) -> 0 | H35: =IF(G35=0,0,IF(K35=0.5,0,G35-Calendrier!$AT$9)) -> 0 | I35: 4.5 | J35: Di | K35: 0 | M35: 0
A36: 2023-12-18 | B36: =INDIRECT(ADDRESS(MATCH($B$1,Calendrier!$A$15:$A$59,0)+14,ROW()-17,3,1,"Calendrier"),1) -> T | G36: =IF(AND(C36<>0,D36<>0,E36<>0,F36<>0),F36-E36+D36-C36-M36-IF(E36-D36<Calendrier!$AT$10,Calendrier!$AT$10,0),IF(AND(C36<>0,D36<>0,E36=0,F36=0),D36-C36-M36,IF(AND(C36=0,D36=0,E36<>0,F36<>0),F36-E36-M36,IF(AND(C36>20,D36=0,E36=0,F36<>0),24-C36+F36-M36,IF(AND(C36<>0,D36=0,E36=0,F36<>0),F36-C36-M36,0))))) -> 0 | H36: =IF(G36=0,0,IF(K36=0.5,0,G36-Calendrier!$AT$9)) -> 0 | I36: 4.5 | J36: T | K36: 0 | M36: 0
A37: 2023-12-19 | B37: =INDIRECT(ADDRESS(MATCH($B$1,Calendrier!$A$15:$A$59,0)+14,ROW()-17,3,1,"Calendrier"),1) -> RTT | G37: =IF(AND(C37<>0,D37<>0,E37<>0,F37<>0),F37-E37+D37-C37-M37-IF(E37-D37<Calendrier!$AT$10,Calendrier!$AT$10,0),IF(AND(C37<>0,D37<>0,E37=0,F37=0),D37-C37-M37,IF(AND(C37=0,D37=0,E37<>0,F37<>0),F37-E37-M37,IF(AND(C37>20,D37=0,E37=0,F37<>0),24-C37+F37-M37,IF(AND(C37<>0,D37=0,E37=0,F37<>0),F37-C37-M37,0))))) -> 0 | H37: =IF(G37=0,0,IF(K37=0.5,0,G37-Calendrier!$AT$9)) -> 0 | I37: 4.5 | J37: RTT | K37: 0 | M37: 0
A38: 2023-12-20 | B38: =INDIRECT(ADDRESS(MATCH($B$1,Calendrier!$A$15:$A$59,0)+14,ROW()-17,3,1,"Calendrier"),1) -> T | G38: =IF(AND(C38<>0,D38<>0,E38<>0,F38<>0),F38-E38+D38-C38-M38-IF(E38-D38<Calendrier!$AT$10,Calendrier!$AT$10,0),IF(AND(C38<>0,D38<>0,E38=0,F38=0),D38-C38-M38,IF(AND(C38=0,D38=0,E38<>0,F38<>0),F38-E38-M38,IF(AND(C38>20,D38=0,E38=0,F38<>0),24-C38+F38-M38,IF(AND(C38<>0,D38=0,E38=0,F38<>0),F38-C38-M38,0))))) -> 0 | H38: =IF(G38=0,0,IF(K38=0.5,0,G38-Calendrier!$AT$9)) -> 0 | I38: 4.5 | J38: T | K38: 0 | M38: 0
A39: 2023-12-21 | B39: =INDIRECT(ADDRESS(MATCH($B$1,Calendrier!$A$15:$A$59,0)+14,ROW()-17,3,1,"Calendrier"),1) -> T | G39: =IF(AND(C39<>0,D39<>0,E39<>0,F39<>0),F39-E39+D39-C39-M39-IF(E39-D39<Calendrier!$AT$10,Calendrier!$AT$10,0),IF(AND(C39<>0,D39<>0,E39=0,F39=0),D39-C39-M39,IF(AND(C39=0,D39=0,E39<>0,F39<>0),F39-E39-M39,IF(AND(C39>20,D39=0,E39=0,F39<>0),24-C39+F39-M39,IF(AND(C39<>0,D39=0,E39=0,F39<>0),F39-C39-M39,0))))) -> 0 | H39: =IF(G39=0,0,IF(K39=0.5,0,G39-Calendrier!$AT$9)) -> 0 | I39: 4.5 | J39: T | K39: 0 | M39: 0
A40: 2023-12-22 | B40: =INDIRECT(ADDRESS(MATCH($B$1,Calendrier!$A$15:$A$59,0)+14,ROW()-17,3,1,"Calendrier"),1) -> CA | G40: =IF(AND(C40<>0,D40<>0,E40<>0,F40<>0),F40-E40+D40-C40-M40-IF(E40-D40<Calendrier!$AT$10,Calendrier!$AT$10,0),IF(AND(C40<>0,D40<>0,E40=0,F40=0),D40-C40-M40,IF(AND(C40=0,D40=0,E40<>0,F40<>0),F40-E40-M40,IF(AND(C40>20,D40=0,E40=0,F40<>0),24-C40+F40-M40,IF(AND(C40<>0,D40=0,E40=0,F40<>0),F40-C40-M40,0))))) -> 0 | H40: =IF(G40=0,0,IF(K40=0.5,0,G40-Calendrier!$AT$9)) -> 0 | I40: 4.5 | J40: CA | K40: 0 | M40: 0
A41: 2023-12-23 | B41: =INDIRECT(ADDRESS(MATCH($B$1,Calendrier!$A$15:$A$59,0)+14,ROW()-17,3,1,"Calendrier"),1) -> Sa | G41: =IF(AND(C41<>0,D41<>0,E41<>0,F41<>0),F41-E41+D41-C41-M41-IF(E41-D41<Calendrier!$AT$10,Calendrier!$AT$10,0),IF(AND(C41<>0,D41<>0,E41=0,F41=0),D41-C41-M41,IF(AND(C41=0,D41=0,E41<>0,F41<>0),F41-E41-M41,IF(AND(C41>20,D41=0,E41=0,F41<>0),24-C41+F41-M41,IF(AND(C41<>0,D41=0,E41=0,F41<>0),F41-C41-M41,0))))) -> 0 | H41: =IF(G41=0,0,IF(K41=0.5,0,G41-Calendrier!$AT$9)) -> 0 | I41: 4.5 | J41: Sa | K41: 0 | M41: 0
A42: 2023-12-24 | B42: =INDIRECT(ADDRESS(MATCH($B$1,Calendrier!$A$15:$A$59,0)+14,ROW()-17,3,1,"Calendrier"),1) -> Di | G42: =IF(AND(C42<>0,D42<>0,E42<>0,F42<>0),F42-E42+D42-C42-M42-IF(E42-D42<Calendrier!$AT$10,Calendrier!$AT$10,0),IF(AND(C42<>0,D42<>0,E42=0,F42=0),D42-C42-M42,IF(AND(C42=0,D42=0,E42<>0,F42<>0),F42-E42-M42,IF(AND(C42>20,D42=0,E42=0,F42<>0),24-C42+F42-M42,IF(AND(C42<>0,D42=0,E42=0,F42<>0),F42-C42-M42,0))))) -> 0 | H42: =IF(G42=0,0,IF(K42=0.5,0,G42-Calendrier!$AT$9)) -> 0 | I42: 4.5 | J42: Di | K42: 0 | M42: 0
A43: 2023-12-25 | B43: =INDIRECT(ADDRESS(MATCH($B$1,Calendrier!$A$15:$A$59,0)+14,ROW()-17,3,1,"Calendrier"),1) -> F | G43: =IF(AND(C43<>0,D43<>0,E43<>0,F43<>0),F43-E43+D43-C43-M43-IF(E43-D43<Calendrier!$AT$10,Calendrier!$AT$10,0),IF(AND(C43<>0,D43<>0,E43=0,F43=0),D43-C43-M43,IF(AND(C43=0,D43=0,E43<>0,F43<>0),F43-E43-M43,IF(AND(C43>20,D43=0,E43=0,F43<>0),24-C43+F43-M43,IF(AND(C43<>0,D43=0,E43=0,F43<>0),F43-C43-M43,0))))) -> 0 | H43: =IF(G43=0,0,IF(K43=0.5,0,G43-Calendrier!$AT$9)) -> 0 | I43: 4.5 | J43: F | K43: 0 | M43: 0
A44: 2023-12-26 | B44: =INDIRECT(ADDRESS(MATCH($B$1,Calendrier!$A$15:$A$59,0)+14,ROW()-17,3,1,"Calendrier"),1) -> CA | G44: =IF(AND(C44<>0,D44<>0,E44<>0,F44<>0),F44-E44+D44-C44-M44-IF(E44-D44<Calendrier!$AT$10,Calendrier!$AT$10,0),IF(AND(C44<>0,D44<>0,E44=0,F44=0),D44-C44-M44,IF(AND(C44=0,D44=0,E44<>0,F44<>0),F44-E44-M44,IF(AND(C44>20,D44=0,E44=0,F44<>0),24-C44+F44-M44,IF(AND(C44<>0,D44=0,E44=0,F44<>0),F44-C44-M44,0))))) -> 0 | H44: =IF(G44=0,0,IF(K44=0.5,0,G44-Calendrier!$AT$9)) -> 0 | I44: 4.5 | J44: CA | K44: 0 | M44: 0
A45: 2023-12-27 | B45: =INDIRECT(ADDRESS(MATCH($B$1,Calendrier!$A$15:$A$59,0)+14,ROW()-17,3,1,"Calendrier"),1) -> CA | G45: =IF(AND(C45<>0,D45<>0,E45<>0,F45<>0),F45-E45+D45-C45-M45-IF(E45-D45<Calendrier!$AT$10,Calendrier!$AT$10,0),IF(AND(C45<>0,D45<>0,E45=0,F45=0),D45-C45-M45,IF(AND(C45=0,D45=0,E45<>0,F45<>0),F45-E45-M45,IF(AND(C45>20,D45=0,E45=0,F45<>0),24-C45+F45-M45,IF(AND(C45<>0,D45=0,E45=0,F45<>0),F45-C45-M45,0))))) -> 0 | H45: =IF(G45=0,0,IF(K45=0.5,0,G45-Calendrier!$AT$9)) -> 0 | I45: 4.5 | J45: CA | K45: 0 | M45: 0
A46: 2023-12-28 | B46: =INDIRECT(ADDRESS(MATCH($B$1,Calendrier!$A$15:$A$59,0)+14,ROW()-17,3,1,"Calendrier"),1) -> CA | G46: =IF(AND(C46<>0,D46<>0,E46<>0,F46<>0),F46-E46+D46-C46-M46-IF(E46-D46<Calendrier!$AT$10,Calendrier!$AT$10,0),IF(AND(C46<>0,D46<>0,E46=0,F46=0),D46-C46-M46,IF(AND(C46=0,D46=0,E46<>0,F46<>0),F46-E46-M46,IF(AND(C46>20,D46=0,E46=0,F46<>0),24-C46+F46-M46,IF(AND(C46<>0,D46=0,E46=0,F46<>0),F46-C46-M46,0))))) -> 0 | H46: =IF(G46=0,0,IF(K46=0.5,0,G46-Calendrier!$AT$9)) -> 0 | I46: 4.5 | J46: CA | K46: 0 | M46: 0
A47: 2023-12-29 | B47: =INDIRECT(ADDRESS(MATCH($B$1,Calendrier!$A$15:$A$59,0)+14,ROW()-17,3,1,"Calendrier"),1) -> CA | G47: =IF(AND(C47<>0,D47<>0,E47<>0,F47<>0),F47-E47+D47-C47-M47-IF(E47-D47<Calendrier!$AT$10,Calendrier!$AT$10,0),IF(AND(C47<>0,D47<>0,E47=0,F47=0),D47-C47-M47,IF(AND(C47=0,D47=0,E47<>0,F47<>0),F47-E47-M47,IF(AND(C47>20,D47=0,E47=0,F47<>0),24-C47+F47-M47,IF(AND(C47<>0,D47=0,E47=0,F47<>0),F47-C47-M47,0))))) -> 0 | H47: =IF(G47=0,0,IF(K47=0.5,0,G47-Calendrier!$AT$9)) -> 0 | I47: 4.5 | J47: CA | K47: 0 | M47: 0
A48: 2023-12-30 | B48: =INDIRECT(ADDRESS(MATCH($B$1,Calendrier!$A$15:$A$59,0)+14,ROW()-17,3,1,"Calendrier"),1) -> Sa | G48: =IF(AND(C48<>0,D48<>0,E48<>0,F48<>0),F48-E48+D48-C48-M48-IF(E48-D48<Calendrier!$AT$10,Calendrier!$AT$10,0),IF(AND(C48<>0,D48<>0,E48=0,F48=0),D48-C48-M48,IF(AND(C48=0,D48=0,E48<>0,F48<>0),F48-E48-M48,IF(AND(C48>20,D48=0,E48=0,F48<>0),24-C48+F48-M48,IF(AND(C48<>0,D48=0,E48=0,F48<>0),F48-C48-M48,0))))) -> 0 | H48: =IF(G48=0,0,IF(K48=0.5,0,G48-Calendrier!$AT$9)) -> 0 | I48: 4.5 | J48: Sa | K48: 0 | M48: 0
A49: 2023-12-31 | B49: =INDIRECT(ADDRESS(MATCH($B$1,Calendrier!$A$15:$A$59,0)+14,ROW()-17,3,1,"Calendrier"),1) -> Di | G49: =IF(AND(C49<>0,D49<>0,E49<>0,F49<>0),F49-E49+D49-C49-M49-IF(E49-D49<Calendrier!$AT$10,Calendrier!$AT$10,0),IF(AND(C49<>0,D49<>0,E49=0,F49=0),D49-C49-M49,IF(AND(C49=0,D49=0,E49<>0,F49<>0),F49-E49-M49,IF(AND(C49>20,D49=0,E49=0,F49<>0),24-C49+F49-M49,IF(AND(C49<>0,D49=0,E49=0,F49<>0),F49-C49-M49,0))))) -> 0 | H49: =IF(G49=0,0,IF(K49=0.5,0,G49-Calendrier!$AT$9)) -> 0 | I49: 4.5 | J49: Di | K49: 0 | M49: 0
G50: =SUM(G19:G49) -> 0 | I50: =I49 -> 4.5

Sheet Fériés
A1: =Calendrier!A1 -> 2023 | B1: =A1+1 -> 2024 | G1: 1 | H1: =IF(MONTH(Calendrier!$B$13)<10,0&MONTH(Calendrier!$B$13),MONTH(Calendrier!$B$13)) -> 01 | I1: =CHOOSE(H1,"Janvier","Fevrier","Mars","Avril","Mai","Juin","Juillet","Aout","septembre","Octobre","Novembre","Decembre") -> Janvier | J1: =AN_1 -> 2023 | K1: 01 | L1: janvier | M1: =DAY(EOMONTH(DATE(AN_1,G1,1),0)) -> 31
A2: =VALUE("01/01/"&AN_1) -> 2023-01-01 | B2: Jour de l'an | G2: 2 | H2: =IF(H1+1>12,"01",IF(H1+1<10,"0"&H1+1,H1+1)) -> 02 | I2: =CHOOSE(H2,"Janvier","Fevrier","Mars","Avril","Mai","Juin","Juillet","Aout","septembre","Octobre","Novembre","Decembre") -> Fevrier | J2: =IF(CHOOSE(VALUE(H2),1,2,3,4,5,6,7,8,9,10,11,12)>=CHOOSE(VALUE($H$1),1,2,3,4,5,6,7,8,9,10,11,12),AN_1,AN_2) -> 2023 | K2: 02 | L2: fevrier | M2: 28
B3: Vendredi saint | C3: =$A$4-2 -> 45023 | G3: 3 | H3: 03 | I3: Mars | J3: 2023 | K3: 03 | L3: mars | M3: 31
A4: =ROUND(("4/"&AN_1)/7+MOD(19*MOD(AN_1,19)-7,30)*14%,)*7-6 -> 2023-04-09 | B4: Pâques | G4: 4 | H4: 04 | I4: Avril | J4: 2023 | K4: 04 | L4: avril | M4: 30
A5: =A4+1 -> 2023-04-10 | B5: lundi Pâques | G5: 5 | H5: 05 | I5: Mai | J5: 2023 | K5: 05 | L5: mai | M5: 31
A6: =VALUE("01/05/"&AN_1) -> 2023-05-01 | B6: Fête du travail | G6: 6 | H6: 06 | I6: Juin | J6: 2023 | K6: 06 | L6: juin | M6: 30
A7: =VALUE("08/05/"&AN_1) -> 2023-05-08 | B7: Victoire 1945 | G7: 7 | H7: 07 | I7: =CHOOSE(H7,"Janvier","Fevrier","Mars","Avril","Mai","Juin","Juillet","Aout","septembre","Octobre","Novembre","Decembre") -> Juillet | J7: 2023 | K7: 07 | L7: juillet | M7: 31
A8: =A4+39 -> 2023-05-18 | B8: jeudi ascension | G8: 8 | H8: =IF(H7+1>12,"01",IF(H7+1<10,"0"&H7+1,H7+1)) -> 08 | I8: =CHOOSE(H8,"Janvier","Fevrier","Mars","Avril","Mai","Juin","Juillet","Aout","septembre","Octobre","Novembre","Decembre") -> Aout | J8: 2023 | K8: 08 | L8: août | M8: 31
A9: =A4+49 -> 2023-05-28 | B9: Pentecôte | G9: 9 | H9: =IF(H8+1>12,"01",IF(H8+1<10,"0"&H8+1,H8+1)) -> 09 | I9: septembre | J9: 2023 | K9: 09 | L9: septembre | M9: 30
B10: lundi de Pentecôte | G10: 10 | H10: 10 | I10: Octobre | J10: 2023 | K10: 10 | L10: octobre | M10: 31
A11: =VALUE("14/07/"&AN_1) -> 2023-07-14 | B11: Fête Nationale | G11: 11 | H11: 11 | I11: Novembre | J11: 2023 | K11: 11' | L11: novembre | M11: 30
A12: =VALUE("15/08/"&AN_1) -> 2023-08-15 | B12: Assomption | G12: 12 | H12: 12 | I12: Decembre | J12: 2023 | K12: 12 | L12: Decembre | M12: 31
A13: =VALUE("01/11/"&AN_1) -> 2023-11-01 | B13: Toussaint
A14: =VALUE("11/11/"&AN_1) -> 2023-11-11 | B14: Armistice
A15: =VALUE("25/12/"&AN_1) -> 2023-12-25 | B15: Noël
B16: Saint-Etienne | C16: =$A$15+1 -> 45286
A17: =A15+7 -> 2024-01-01 | B17: Jour de l'an
B18: Vendredi saint | C18: =$A$19-2 -> 45380
A19: =ROUND(("4/"&AN_2)/7+MOD(19*MOD(AN_2,19)-7,30)*14%,)*7-6 -> 2024-03-31 | B19: Pâques
A20: =A19+1 -> 2024-04-01 | B20: lundi Pâques
A21: =VALUE("01/05/"&AN_2) -> 2024-05-01 | B21: Fête du travail
A22: =VALUE("08/05/"&AN_2) -> 2024-05-08 | B22: Victoire 1945
A23: =A19+39 -> 2024-05-09 | B23: jeudi ascension
A24: =A19+49 -> 2024-05-19 | B24: Pentecôte
B25: lundi de Pentecôte
A26: =VALUE("14/07/"&AN_2) -> 2024-07-14 | B26: Fête Nationale
A27: =VALUE("15/08/"&AN_2) -> 2024-08-15 | B27: Assomption
A28: =VALUE("01/11/"&AN_2) -> 2024-11-01 | B28: Toussaint
A29: =VALUE("11/11/"&AN_2) -> 2024-11-11 | B29: Armistice
A30: =VALUE("25/12/"&AN_2) -> 2024-12-25 | B30: Noël
B31: Saint-Etienne | C31: =$A$30+1 -> 45652
A32: =A30+7 -> 2025-01-01 | B32: Jour de l'an

Sheet Lisez_moi
